Workbook

Sheet A_LIRE
U1: 1
J2: Editer une Synthèse chiffrée et graphique de votre RSU | U2: 1
A9: Merci de bien vouloir remplir ce questionnaire Excel.
A10: Attention : La structure du présent questionnaire ne doit en aucun cas être modifiée sous peine de compromettre le processus d'exportation.
J12: Cette fiche synthétique reprend les principaux indicateurs sociaux issus du RSU 2020. Ces données ont pour objectif de bénéficier d'une vue d'ensemble sur les effectifs de la collectivité. L'outil automatisé permettant la réalisation de cette synthèse a été développé par le Comité Technique des Chargés d'études des Observatoires Régionaux des Centres de Gestion.
A13: Une fois ce questionnaire complété, veuillez exporter les données vers
A14: un fichier d'échange au format .txt en cliquant sur le bouton "Exporter" ci-dessous
A21: Puis, veuillez l'intégrer sur l'application :
A22: www.donnees-sociales.fr
A23: Conformément à la loi du 6 août 2018, les Centres de Gestion mettent à disposition des collectivités une application de saisie, de contrôle et d'exploitation du Rapport Social Unique.
A26: Le fichier fabriqué par la procédure d'exportation est nommé d'après le n° Siret de votre collectivité
A27: Il est situé dans le même répertoire que le présent questionnaire Excel
A29: Si l'exportation ne fonctionne pas, contactez votre Centre de gestion | F29: cliquez ici | R29: Version 4
A35: Pour importer dans un questionnaire vierge les données d'un fichier texte d'échange cliquez sur le bouton ci-dessus
A43: modele_DGCL_2019.xlsm
A44: hrg_2019.xlsm | B44: Oui

Sheet synthese
B1: SYNTHÈSE DU RAPPORT SOCIAL UNIQUE 2020 | GO1: Cadre d'emploi F | GP1: Fonctionnaires | GQ1: Contractuel P | GR1: tt agent | GS1: Rang | GT1: Rang 2 | GU1: % | GV1: Cadre | GW1: Catégorie | GX1: tt agent | GY1: Fonctionnaires | GZ1: Contractuel P
GO2: Administrateurs | GP2: ='IND 1.1.1'!I23 -> 0 | GQ2: ='IND 1.2.1'!K15 -> 0 | GR2: =GP2+GQ2 -> 0 | GS2: =RANK(GR2,$GR$1:$GR$58,0)+COUNTIF(GR$1:GR2,GR2)-1 -> 3 | GT2: =GS2 -> 3 | GU2: =$GX2/SUM($GX$2:$GX$58) -> 0 | GV2: =GO2 -> Administrateurs | GW2: A | GX2: =GR2 -> 0 | GY2: =GP2 -> 0 | GZ2: =GQ2 -> 0
L3: Æ | M3: =IF(D69+D70<2,"Répartition par temps de travail, complet ou non complet ","Répartition des agents à temps complet ou non complet") -> Répartition des agents à temps complet ou non complet | R3: Æ | S3: =IF(AND('IND 1.1.1'!B376+'IND 1.2.1'!L91=0),"Aucun agent à temps complet ",IF(D69+D70<2,"Répartition des temps travail, temps plein ou temps partiel ","Répartition des agents à temps plein ou à temps partiel")) -> Répartition des agents à temps plein ou à temps partiel | X3: Æ | Y3: ="En 2020, "&IF(AF126+AG126=0,"aucune arrivée d'agent permanent",IF(AF126+AG126<2,AF126+AG126&" arrivée d'agent permanent",TEXT(AF126+AG126,"# ##0")&" arrivées d'agents permanents"))&IF(AF105+AG105=0," et aucun départ ",IF(AF105+AG105<2," et "&AF105+AG105&" départ "," et "&TEXT(AF105+AG105,"# ##0")&" départs ")) -> En 2020, 4 arrivées d'agents permanents et 4 départs | AD3: Æ | AE3: =IF(AF105+AG105=0, "Aucun départ d'agent permanent en 2020", "Principales causes de départ d'agents permanents") -> Principales causes de départ d'agents permanents | AW3: Æ | AX3: =IF(D69+D70=0,"Aucun agent dans la collectivité",IF(D69=0,BD3,IF(SUM('IND 2.1.1'!$F$15:$G$20)=0,"Aucun jour d’absence pour motif médical concernant les fonctionnaires en 2020",IF(ROUND(SUM('IND 2.1.1'!$F$15:$G$20)/D69,1)>2,"En moyenne, "&ROUND((SUM('IND 2.1.1'!$F$15:$G$20))/D69,1)&" jours d’absence pour tout motif médical en 2020 par fonctionnaire ","En moyenne, "&ROUND((SUM('IND 2.1.1'!$F$15:$G$20))/D69,1)&" jour d’absence pour tout motif médical en 2020 par fonctionnaire")))) -> En moyenne, 77,3 jours d’absence pour tout motif médical en 2020 par fonctionnaire | BC3: =IF(D69=0,"",IF(D70=0,"",">")) -> > | BD3: =IF(D70=0,"",IF(SUM('IND 2.1.2'!$F$15:$G$20)=0,"Aucun jour d’absence pour motif médical concernant les agents contractuels en 2020",IF(SUM('IND 2.1.2'!$F$15:$G$20)/D70>1,"En moyenne, "&ROUND(SUM('IND 2.1.2'!$F$15:$G$20)/D70,1)&" jours d’absence pour tout motif médical en 2020 par agent contractuel permanent ","En moyenne, "&ROUND(SUM('IND 2.1.2'!$F$15:$G$20)/D70,1)&" jour d’absence pour tout motif médical en 2020 par agent contractuel permanent " ))) -> Aucun jour d’absence pour motif médical concernant les agents contractuels en 2020 | BI3: Æ | BJ3: =IF('IND 5.1.1'!$F$15=0,"Aucun agent titulaire ou contractuel permanent n'a bénéficié d'un départ en formation en 2020","en 2020, "&TEXT(BK102*100,"##,0")&"% des agents permanents ont suivi une formation "&CHAR(10)&"d'au moins un jour") -> en 2020, 16,7% des agents permanents ont suivi une formation d'au moins un jour | BP3: =IF(BQ3=" "," ","Æ") -> Æ | BQ3: =IF(D69+D70=0," ",IF(D69+D70<2,IF(BS102=0,"Aucun jour de formation suivi en 2020",IF(BS102<2,ROUND(BS102,0)&" jour de formation suivi en 2020",TEXT(ROUND(BS102,0),"# ##0")&" jours de formation suivis par l'agents permanents en 2020")),IF(BS102=0,"Aucun jour de formation suivi par des agents permanents en 2020",IF(BS102<2,ROUND(BS102,0)&" jour de formation suivi en 2020",TEXT(ROUND(BS102,0),"# ##0")&" jours de formation suivis par les agents sur emploi permanent en 2020")))) -> 1 jour de formation suivi en 2020 | BU3: Æ | BV3: 1Formules de calcul - Effectif théorique au 31/12/2019 | GO3: Attachés | GP3: ='IND 1.1.1'!I30 -> 0 | GQ3: ='IND 1.2.1'!K16 -> 0 | GR3: =GP3+GQ3 -> 0 | GS3: =RANK(GR3,$GR$1:$GR$58,0)+COUNTIF(GR$1:GR3,GR3)-1 -> 4 | GT3: =GS3 -> 4 | GU3: =$GX3/SUM($GX$2:$GX$58) -> 0 | GV3: =GO3 -> Attachés | GW3: A | GX3: =GR3 -> 0 | GY3: =GP3 -> 0 | GZ3: 0
AI4: Æ | AJ4: =IF(AL6="0 €","Informations manquantes","Les charges de personnel représentent "&ROUND($AP$62,2)&" % des dépenses de fonctionnement") -> Les charges de personnel représentent 43,66 % des dépenses de fonctionnement | GJ4: Numéro | GK4: Région | GL4: Colonne2 | GO4: Secrétaires de mairie | GP4: ='IND 1.1.1'!I33 -> 0 | GQ4: ='IND 1.2.1'!K17 -> 0 | GR4: 0 | GS4: =RANK(GR4,$GR$1:$GR$58,0)+COUNTIF(GR$1:GR4,GR4)-1 -> 5 | GT4: 5 | GU4: 0 | GV4: Secrétaires de mairie | GW4: A | GX4: 0 | GY4: 0 | GZ4: 0
B5: Æ | C5: ='Page de garde'!$A$3 -> COMMUNE D AUSSAC | BV5: Pour les fonctionnaires : Total de l'effectif physique rémunéré des fonctionnaires au 31/12/2020 + Départs définitifs de titulaires ou de stagiaires + Départs temporaires non rémunérés - Arrivées de titulaires ou de stagiaires - Stagiairisation de contractuels de la collectivité - Retours de titulaires stagiaires | CA5: Pour les contractuels permanents : Total de l'effectif physique rémunéré des contractuels au 31/12/2020 + Départs définitifs de contractuels + Départs temporaires non rémunérés + Stagiairisation de contractuels de la collectivité - Arrivées de contractuels - Retours de contractuels | CG5: =IF(BM36="","","Santé") -> Santé | GJ5: 67 | GK5: Alsace | GL5: Centre de Gestion du Bas-Rhin | GO5: Rédacteurs | GP5: ='IND 1.1.1'!I40 -> 0 | GQ5: ='IND 1.2.1'!K18 -> 0 | GR5: 0 | GS5: =RANK(GR5,$GR$1:$GR$58,0)+COUNTIF(GR$1:GR5,GR5)-1 -> 6 | GT5: 6 | GU5: 0 | GV5: Rédacteurs | GW5: B | GX5: 0 | GY5: 0 | GZ5: 0
Y6: =IF(AF128+AF129+AF130=0,"Aucun contractuel permanent nommé stagiaire",IF(AF128+AF129+AF130<2,AF128+AF129+AF130&" contractuel permanent nommé stagiaire",AF128+AF129+AF130&" contractuels permanents nommés stagiaires")) -> Aucun contractuel permanent nommé stagiaire | AD6: 1 | AE6: =IF(ISNA(VLOOKUP(AD6,$AA$87:$AG$104,2,FALSE))=TRUE,"",VLOOKUP(AD6,$AA$87:$AG$104,2,FALSE)) -> Fin de contrats remplacants | AH6: =IF(AE6>"",VLOOKUP(AD6,$AA$86:$AE$104,5,FALSE),"") -> 0.75 | AJ6: Budget de fonctionnement* | AL6: =TEXT('IND 3.4.5'!C7,"# ##0") & " €" -> 349 943 € | AN6: Charges de personnel* | AP6: =TEXT('IND 3.4.5'!C8,"# ##0") & " €" -> 152 790 € | AS6: =IF(AL6="0 €","Informations manquantes","Soit "&ROUND($AP$62,2)&" % des dépenses de fonctionnement") -> Soit 43,66 % des dépenses de fonctionnement | BQ6: =IF('IND 5.1.1'!$F$14=0," ","Répartition des jours de formation"&CHAR(10)&"par catégorie hiérarchique") -> Répartition des jours de formation par catégorie hiérarchique | GJ6: 68 | GK6: Alsace | GL6: Centre de Gestion du Haut-Rhin | GO6: Adjoints administratifs | GP6: ='IND 1.1.1'!I47 -> 0 | GQ6: ='IND 1.2.1'!K19 -> 1 | GR6: 1 | GS6: =RANK(GR6,$GR$1:$GR$58,0)+COUNTIF(GR$1:GR6,GR6)-1 -> 2 | GT6: 2 | GU6: 0.1666666667 | GV6: Adjoints administratifs | GW6: C | GX6: 1 | GY6: 0 | GZ6: 1
AD7: 2 | AE7: =IF(ISNA(VLOOKUP(AD7,$AA$87:$AG$104,2,FALSE))=TRUE,"",VLOOKUP(AD7,$AA$87:$AG$104,2,FALSE)) -> Mutation | AH7: =IF(AE7>"",VLOOKUP(AD7,$AA$86:$AE$104,5,FALSE),"") -> 0.25 | BA7: =IF($D$69=0," ","Fonctionnaires") -> Fonctionnaires | BC7: =IF($D$70=0," ","Contractuels"& CHAR(10)& "permanents") -> Contractuels permanents | BE7: Ensemble agents permanents | BG7: =IF($D$71=0," ","Contractuels"& CHAR(10)& " non permanents") ->  | BJ7: =IF('IND 5.1.1'!$F$14=0," ","Pourcentage d'agents par catégorie et par statut ayant bénéficié d'au moins un jour de formation en 2020") -> Pourcentage d'agents par catégorie et par statut ayant bénéficié d'au moins un jour de formation en 2020 | GJ7: 24 | GK7: Aquitaine | GL7: Centre de Gestion de la Dordogne | GO7: Ingénieurs en chef | GP7: ='IND 1.1.1'!I56 -> 0 | GQ7: ='IND 1.2.1'!K22 -> 0 | GR7: 0 | GS7: =RANK(GR7,$GR$1:$GR$58,0)+COUNTIF(GR$1:GR7,GR7)-1 -> 7 | GT7: 7 | GU7: 0 | GV7: Ingénieurs en chef | GW7: A | GX7: 0 | GY7: 0 | GZ7: 0
Y8: Emplois permanents rémunérés | AD8: 3 | AE8: =IF(ISNA(VLOOKUP(AD8,$AA$87:$AG$104,2,FALSE))=TRUE,"",VLOOKUP(AD8,$AA$87:$AG$104,2,FALSE)) ->  | AH8: =IF(AE8>"",VLOOKUP(AD8,$AA$86:$AE$104,5,FALSE),"") ->  | AJ8: * Montant global | GJ8: 33 | GK8: Aquitaine | GL8: Centre de Gestion de la Gironde | GO8: Ingénieurs | GP8: ='IND 1.1.1'!I62 -> 0 | GQ8: ='IND 1.2.1'!K23 -> 0 | GR8: 0 | GS8: =RANK(GR8,$GR$1:$GR$58,0)+COUNTIF(GR$1:GR8,GR8)-1 -> 8 | GT8: 8 | GU8: 0 | GV8: Ingénieurs | GW8: A | GX8: 0 | GY8: 0 | GZ8: 0
AD9: 4 | AE9: =IF(ISNA(VLOOKUP(AD9,$AA$87:$AG$104,2,FALSE))=TRUE,"",VLOOKUP(AD9,$AA$87:$AG$104,2,FALSE)) ->  | AH9: =IF(AE9>"",VLOOKUP(AD9,$AA$86:$AE$104,5,FALSE),"") ->  | AX9: Taux d'absentéisme « compressible » (maladies ordinaires et accidents de travail) | BA9: =IF($D$69=0," ",SUM('IND 2.1.1'!$F$15:$G$17)/($D$69*365)) -> 0.2116438356 | BC9: =IF($D$70=0," ",SUM('IND 2.1.2'!$F$15:$G$17)/($D$70*365)) -> 0 | BE9: =IF($D$69+$D$70=0," ",SUM('IND 2.1.1'!$F$15:$G$17,'IND 2.1.2'!$F$15:$G$17)/(($D$69+$D$70)*365)) -> 0.1410958904 | BG9: =IF($D$71=0," ",SUM('IND 2.1.3'!$F$16:$G$18)/($D$71*365)) ->  | GJ9: 40 | GK9: Aquitaine | GL9: Centre de Gestion des Landes | GO9: Techniciens | GP9: ='IND 1.1.1'!I69 -> 0 | GQ9: ='IND 1.2.1'!K24 -> 0 | GR9: 0 | GS9: =RANK(GR9,$GR$1:$GR$58,0)+COUNTIF(GR$1:GR9,GR9)-1 -> 9 | GT9: 9 | GU9: 0 | GV9: Techniciens | GW9: B | GX9: 0 | GY9: 0 | GZ9: 0
B10: =IFERROR("Cette synthèse du Rapport sur l'État de la Collectivité reprend les principaux indicateurs du Rapport Social Unique au 31 décembre 2020. Elle a été réalisée via l'application www.bs.donnees-sociales"&" des Centres de Gestion par extraction des données 2020 transmises en 2021 par la collectivité au "&VLOOKUP(VALUE('Page de garde'!$F$8),$GJ$4:$GL$110,3,FALSE)&".","") -> Cette synthèse du Rapport sur l'État de la Collectivité reprend les principaux indicateurs du Rapport Social Unique au 31 décembre 2020. Elle a été réalisée via l'application www.bs.donnees-sociales des Centres de Gestion par extraction des données 2020 transmises en 2021 par la collectivité au Centre de Gestion de la Charente. | Y10: Effectif physique théorique au 31/12/20191 | AA10: Effectif physique au 31/12/2020 | AD10: 5 | AE10: =IF(ISNA(VLOOKUP(AD10,$AA$87:$AG$104,2,FALSE))=TRUE,"",VLOOKUP(AD10,$AA$87:$AG$104,2,FALSE)) ->  | AH10: =IF(AE10>"",VLOOKUP(AD10,$AA$86:$AE$104,5,FALSE),"") ->  | AJ10: Rémunérations annuelles brutes - emploi permanent : | AP10: ='IND 3.1.1-3.4.3'!B58+'IND 3.1.1-3.4.3'!C58+'IND 3.1.1-3.4.3'!B106+'IND 3.1.1-3.4.3'!C106 -> 106228 | AS10: =IF(AS12<2,"Rémunération - emploi non permanent :","Rémunérations des agents sur emploi non permanent :") -> Rémunération - emploi non permanent : | GJ10: 47 | GK10: Aquitaine | GL10: Centre de Gestion du Lot-et-Garonne | GO10: Agents de maîtrise | GP10: ='IND 1.1.1'!I74 -> 0 | GQ10: ='IND 1.2.1'!K25 -> 0 | GR10: 0 | GS10: =RANK(GR10,$GR$1:$GR$58,0)+COUNTIF(GR$1:GR10,GR10)-1 -> 10 | GT10: 10 | GU10: 0 | GV10: Agents de maîtrise | GW10: C | GX10: 0 | GY10: 0 | GZ10: 0
BA11: =BA9 -> 0.2116438356 | BC11: =BC9 -> 0 | BE11: =BE9 -> 0.1410958904 | BG11: =BG9 ->  | GJ11: 64 | GK11: Aquitaine | GL11: Centre de Gestion des Pyrénées-Atlantiques | GO11: Adjoints techniques | GP11: ='IND 1.1.1'!I81 -> 4 | GQ11: ='IND 1.2.1'!K26 -> 1 | GR11: 5 | GS11: =RANK(GR11,$GR$1:$GR$58,0)+COUNTIF(GR$1:GR11,GR11)-1 -> 1 | GT11: 1 | GU11: 0.8333333333 | GV11: Adjoints techniques | GW11: C | GX11: 5 | GY11: 4 | GZ11: 1
Y12: =IF(Z140< 2, TEXT(Z140, "# ##0") & " agent",TEXT(Z140, "# ##0") & " agents") -> 6 agents | AA12: =IF(D69+D70< 2, TEXT(D69+D70, "# ##0") & " agent",TEXT(D69+D70, "# ##0") & " agents") -> 6 agents | AJ12: Primes et indemnités versées : | AP12: ='IND 3.1.1-3.4.3'!D58+'IND 3.1.1-3.4.3'!E58+'IND 3.1.1-3.4.3'!D106+'IND 3.1.1-3.4.3'!E106 -> 9037 | AS12: ='IND 3.1.1-3.4.3'!D122+'IND 3.1.1-3.4.3'!E122 -> 0 | AX12: Taux d'absentéisme médical (toutes absences pour motif médical) | BA12: =IF($D$69=0," ",SUM('IND 2.1.1'!$F$15:$G$20)/($D$69*365)) -> 0.2116438356 | BC12: =IF($D$70=0," ",SUM('IND 2.1.2'!$F$15:$G$20)/($D$70*365)) -> 0 | BE12: =IF($D$69+$D$70=0," ",SUM('IND 2.1.1'!$F$15:$G$20,'IND 2.1.2'!$F$15:$G$20)/(($D$69+$D$70)*365)) -> 0.1410958904 | BG12: =IF($D$71=0," ",SUM('IND 2.1.3'!$F$16:$G$21)/($D$71*365)) ->  | GJ12: 3 | GK12: Auvergne | GL12: Centre de Gestion de l'Allier | GO12: Adjoints techniques des établissements d'enseignement | GP12: ='IND 1.1.1'!I88 -> 0 | GQ12: ='IND 1.2.1'!K27 -> 0 | GR12: 0 | GS12: =RANK(GR12,$GR$1:$GR$58,0)+COUNTIF(GR$1:GR12,GR12)-1 -> 11 | GT12: 11 | GU12: 0 | GV12: Adjoints techniques des établissements d'enseignement | GW12: C | GX12: 0 | GY12: 0 | GZ12: 0
AD13: Æ | AE13: =IF(AF126+AG126=0, "Aucune arrivée d'agent permanent en 2020", "Principaux modes d'arrivée d'agents permanents") -> Principaux modes d'arrivée d'agents permanents | AJ13: Heures supplémentaires et/ou complémentaires : | AP13: ='IND 3.1.1-3.4.3'!$H$58+'IND 3.1.1-3.4.3'!$I$58+'IND 3.1.1-3.4.3'!$F$106+'IND 3.1.1-3.4.3'!$G$106 -> 1186 | GJ13: 15 | GK13: Auvergne | GL13: Centre de Gestion du Cantal | GO13: Conservateurs du patrimoine | GP13: ='IND 1.1.1'!I96 -> 0 | GQ13: ='IND 1.2.1'!K30 -> 0 | GR13: 0 | GS13: =RANK(GR13,$GR$1:$GR$58,0)+COUNTIF(GR$1:GR13,GR13)-1 -> 12 | GT13: 12 | GU13: 0 | GV13: Conservateurs du patrimoine | GW13: A | GX13: 0 | GY13: 0 | GZ13: 0
AA14: 1 cf. page 7 | AJ14: Nouvelle Bonification Indiciaire : | AP14: ='IND 3.1.1-3.4.3'!F58+'IND 3.1.1-3.4.3'!G58 -> 1726 | BA14: =BA12 -> 0.2116438356 | BC14: =BC12 -> 0 | BE14: =BE12 -> 0.1410958904 | BG14: =BG12 ->  | BV14: Pour l'ensemble des agents permanents : Effectif théorique des fonctionnaires au 31/12/2019 + Effectif théorique des contractuels permanents au 31/12/2019 | GJ14: 43 | GK14: Auvergne | GL14: Centre de Gestion de la Haute-Loire | GO14: Conservateurs des bibliothèques | GP14: ='IND 1.1.1'!I101 -> 0 | GQ14: ='IND 1.2.1'!K31 -> 0 | GR14: 0 | GS14: =RANK(GR14,$GR$1:$GR$58,0)+COUNTIF(GR$1:GR14,GR14)-1 -> 13 | GT14: 13 | GU14: 0 | GV14: Conservateurs des bibliothèques | GW14: A | GX14: 0 | GY14: 0 | GZ14: 0
L15: =IF(M15="","","Æ") -> Æ | M15: =IF(SUM(V72:W72)=0,"",IF(L20="","La filière la plus concernée par le temps non complet",IF(L21="","Les 2 filières les plus concernées par le temps non complet","Les 3 filières les plus concernées par le temps non complet"))) -> La filière la plus concernée par le temps non complet | R15: =IF(S15="","","Æ") ->  | S15: =IF(SUM(V73:W73)=0,"","Part des agents permanents à temps partiel selon le genre") ->  | AJ15: Supplément familial de traitement : | AP15: ='IND 3.1.1-3.4.3'!J58+'IND 3.1.1-3.4.3'!K58 -> 1819 | AX15: Taux d'absentéisme global (toutes absences y compris maternité, paternité et autre) | BA15: =IF($D$69=0," ",SUM('IND 2.1.1'!$F$15:$G$23)/($D$69*365)) -> 0.2116438356 | BC15: =IF($D$70=0," ",SUM('IND 2.1.2'!$F$15:$G$23)/($D$70*365)) -> 0 | BE15: =IF($D$69+$D$70=0," ",SUM('IND 2.1.1'!$F$15:$G$23,'IND 2.1.2'!$F$15:$G$23)/(($D$69+$D$70)*365)) -> 0.1410958904 | BG15: =IF($D$71=0," ",SUM('IND 2.1.3'!$F$16:$G$24)/($D$71*365)) ->  | GJ15: 63 | GK15: Auvergne | GL15: Centre de Gestion du Puy-de-Dôme | GO15: Attachés de conservation du patrimoine | GP15: ='IND 1.1.1'!I106 -> 0 | GQ15: ='IND 1.2.1'!K32 -> 0 | GR15: 0 | GS15: =RANK(GR15,$GR$1:$GR$58,0)+COUNTIF(GR$1:GR15,GR15)-1 -> 14 | GT15: 14 | GU15: 0 | GV15: Attachés de conservation du patrimoine | GW15: A | GX15: 0 | GY15: 0 | GZ15: 0
Y16: Variation des effectifs* | AD16: 1 | AE16: =IF(ISNA(VLOOKUP(AD16,$AA$115:$AB$125,2,FALSE))=TRUE,"",VLOOKUP(AD16,$AA$115:$AB$125,2,FALSE)) -> Remplacements (contractuels) | AH16: =IF(AE16>"",VLOOKUP(AE16,$AB$115:$AE$124,4,FALSE),"") -> 1 | AJ16: Indemnité de résidence : | AP16: ='IND 3.1.1-3.4.3'!L58+'IND 3.1.1-3.4.3'!M58 -> 0 | BQ16: =IF('IND 5.1.1'!$F$15=0,"","Nombre moyen de jours de formation" & CHAR(10) & "par agent permanent : ") -> Nombre moyen de jours de formation par agent permanent : | GJ16: 14 | GK16: Basse-Normandie | GL16: Centre de Gestion du Calvados | GO16: Bibliothécaires | GP16: ='IND 1.1.1'!I111 -> 0 | GQ16: ='IND 1.2.1'!K33 -> 0 | GR16: 0 | GS16: =RANK(GR16,$GR$1:$GR$58,0)+COUNTIF(GR$1:GR16,GR16)-1 -> 15 | GT16: 15 | GU16: 0 | GV16: Bibliothécaires | GW16: A | GX16: 0 | GY16: 0 | GZ16: 0
A17: Æ | B17: =IF(D69+D70+D71=0,"Aucun agent employé par la collectivité au 31 décembre 2020",IF(D69+D70+D71<2,D69+D70+D71&" agent employé par la collectivité au 31 décembre 2020",TEXT(D69+D70+D71,"# ##0")&" agents employés par la collectivité au 31 décembre 2020")) -> 6 agents employés par la collectivité au 31 décembre 2020 | Y17: entre le 1er janvier et le 31 décembre 2020 | AD17: 2 | AE17: =IF(ISNA(VLOOKUP(AD17,$AA$115:$AB$125,2,FALSE))=TRUE,"",VLOOKUP(AD17,$AA$115:$AB$125,2,FALSE)) ->  | AH17: =IF(AE17>"",VLOOKUP(AE17,$AB$115:$AE$124,4,FALSE),"") ->  | BA17: =BA15 -> 0.2116438356 | BC17: =BC15 -> 0 | BE17: =BE15 -> 0.1410958904 | BG17: =BG15 ->  | GJ17: 61 | GK17: Basse-Normandie | GL17: Centre de Gestion de l'Orne | GO17: Directeurs d'établissements d'enseignement artistique | GP17: ='IND 1.1.1'!I117 -> 0 | GQ17: ='IND 1.2.1'!K34 -> 0 | GR17: 0 | GS17: =RANK(GR17,$GR$1:$GR$58,0)+COUNTIF(GR$1:GR17,GR17)-1 -> 16 | GT17: 16 | GU17: 0 | GV17: Directeurs d'établissements d'enseignement artistique | GW17: A | GX17: 0 | GY17: 0 | GZ17: 0
L18: =IF(M15="","","Filière") -> Filière | N18: =IF(M15="","",IF(D69=0,"","Fonctionnaires")) -> Fonctionnaires | P18: =IF(M15="","",IF(D70=0,"","Contractuels")) -> Contractuels | Y18: =IF(D69<2,"Fonctionnaire","Fonctionnaires") -> Fonctionnaires | AA18: =IF($AB$18="","",IF(AB18>0%,"æ",IF(AB18<0,"è","â"))) -> è | AB18: =AH142 -> -0.2 | AD18: 3 | AE18: =IF(ISNA(VLOOKUP(AD18,$AA$115:$AB$125,2,FALSE))=TRUE,"",VLOOKUP(AD18,$AA$115:$AB$125,2,FALSE)) ->  | AH18: =IF(AE18>"",VLOOKUP(AE18,$AB$115:$AE$124,4,FALSE),"") ->  | AX18: Cf. p7 Précisions méthodologiques pour les groupes d'absences Taux d'absentéisme : nombre de jours d'absence / (nombre total d'agents x 365) | BU18: Æ | BV18: 2Formules de calcul - Taux d'absentéisme | CB18: Note de lecture : Si le taux d’absentéisme est de 8 %, cela signifie que pour 100 agents de la collectivité, un équivalent de 8 agents a été absent toute l’année. | GJ18: 21 | GK18: Bourgogne | GL18: Centre de Gestion de la Côte d'Or | GO18: Professeurs d'enseignement artistique | GP18: ='IND 1.1.1'!I122 -> 0 | GQ18: ='IND 1.2.1'!K35 -> 0 | GR18: 0 | GS18: =RANK(GR18,$GR$1:$GR$58,0)+COUNTIF(GR$1:GR18,GR18)-1 -> 17 | GT18: 17 | GU18: 0 | GV18: Professeurs d'enseignement artistique | GW18: A | GX18: 0 | GY18: 0 | GZ18: 0
L19: =IF(ISNA(VLOOKUP(1,$L$73:$O$80,2,FALSE))=FALSE,VLOOKUP(1,$L$73:$O$80,2,FALSE),"") -> Technique | N19: =IF(L19="","",VLOOKUP(1,$L$73:$O$80,3,FALSE)) -> 0.5 | P19: =IF(L19="","",VLOOKUP(1,$L$73:$O$80,4,FALSE)) -> 1 | S19: =IF(S15="","",O85) ->  | T19: =IF(S15="","","des hommes à temps partiel") ->  | AD19: 4 | AE19: =IF(ISNA(VLOOKUP(AD19,$AA$115:$AB$125,2,FALSE))=TRUE,"",VLOOKUP(AD19,$AA$115:$AB$125,2,FALSE)) ->  | AH19: =IF(AE19>"",VLOOKUP(AE19,$AB$115:$AE$124,4,FALSE),"") ->  | AI19: Æ | AJ19: Rémunération moyenne par équivalent temps plein rémunéré des agents permanents | AW19: =IF(AX19="","","Æ") ->  | AX19: =IF('IND 2.1.0'!$B$8=0,"",IF('IND 2.1.0'!$B$8=1,"Les agents ont bénéficié d'un jour de congés au titre des droits acquis (cycles de travail antérieurs au 1er janvier 2002).","Les agents ont bénéficié de "&'IND 2.1.0'!$B$8&" jours de congés au titre des droits acquis (cycles de travail antérieurs au 1er janvier 2002).")) ->  | BI19: =IF(BJ19=" "," ","Æ") -> Æ | BJ19: =IF('IND 5.1.4'!C15=0, " ",TEXT(ROUND('IND 5.1.4'!$C$15,0),"# ##0") &" € ont été consacrés à la formation en 2020") -> 878 € ont été consacrés à la formation en 2020 | BR19: =IF((D69+D70)=0,"","> "&IF(AND(BS102/(D69+D70)<2,BS102/(D69+D70)>0),ROUND((BS102/(D69+D70)),1)&" jour par agent",IF(BS102/(D69+D70)>=2,ROUND((BS102/(D69+D70)),1)&" jours par agent"," Aucun jour de formation"))) -> > 0,2 jour par agent | GJ19: 58 | GK19: Bourgogne | GL19: Centre de Gestion de la Nièvre | GO19: Assistants de conservation du patrimoine et des bibliothèque | GP19: ='IND 1.1.1'!I129 -> 0 | GQ19: ='IND 1.2.1'!K36 -> 0 | GR19: 0 | GS19: =RANK(GR19,$GR$1:$GR$58,0)+COUNTIF(GR$1:GR19,GR19)-1 -> 18 | GT19: 18 | GU19: 0 | GV19: Assistants de conservation du patrimoine et des bibliothèque | GW19: B | GX19: 0 | GY19: 0 | GZ19: 0
B20: =D69 -> 4 | D20: =IF(D69<2,"fonctionnaire","fonctionnaires") -> fonctionnaires | L20: =IF(ISNA(VLOOKUP(2,$L$73:$O$80,2,FALSE))=FALSE,VLOOKUP(2,$L$73:$O$80,2,FALSE),"") ->  | N20: =IF(L20="","",VLOOKUP(2,$L$73:$O$80,3,FALSE)) ->  | P20: =IF(L20="","",VLOOKUP(2,$L$73:$O$80,4,FALSE)) ->  | S20: =IF(OR(J64=0,S15=""),"",O86) ->  | T20: =IF(S15="","","des femmes à temps partiel") ->  | Y20: =IF(D70<2,"Contractuel","Contractuels") -> Contractuels | AA20: =IF($AB$20="", "",IF(AB20>0%,"æ",IF(AB20<0,"è","â"))) -> æ | AB20: =AH144 -> 1 | AD20: 5 | AE20: =IF(ISNA(VLOOKUP(AD20,$AA$115:$AB$125,2,FALSE))=TRUE,"",VLOOKUP(AD20,$AA$115:$AB$125,2,FALSE)) ->  | AH20: =IF(AE20>"",VLOOKUP(AE20,$AB$115:$AE$124,4,FALSE),"") ->  | BV20: Nombre de jours calendaires d'absence | BZ20: x 100 | GJ20: 71 | GK20: Bourgogne | GL20: Centre de Gestion de Saône-et-Loire | GO20: Assistants d'enseignement artistique | GP20: ='IND 1.1.1'!I136 -> 0 | GQ20: ='IND 1.2.1'!K37 -> 0 | GR20: 0 | GS20: =RANK(GR20,$GR$1:$GR$58,0)+COUNTIF(GR$1:GR20,GR20)-1 -> 19 | GT20: 19 | GU20: 0 | GV20: Assistants d'enseignement artistique | GW20: B | GX20: 0 | GY20: 0 | GZ20: 0
B21: =D70 -> 2 | D21: =IF(D70<2,"contractuel permanent","contractuels permanents") -> contractuels permanents | L21: =IF(ISNA(VLOOKUP(3,$L$73:$O$80,2,FALSE))=FALSE,VLOOKUP(3,$L$73:$O$80,2,FALSE),"") ->  | N21: =IF(L21="","",VLOOKUP(3,$L$73:$O$80,3,FALSE)) ->  | P21: =IF(L21="","",VLOOKUP(3,$L$73:$O$80,4,FALSE)) ->  | AE21: * Variation des effectifs : | AK21: Catégorie A | AO21: Catégorie B | AS21: Catégorie C | AW21: Æ | AX21: =IF('IND 2.1.0'!$B$10=0,"Aucune journée de congés supplémentaires accordée au-delà des congés légaux (exemple : journée du maire)",IF('IND 2.1.0'!$B$10=1,"Une journée de congés supplémentaires accordée au-delà des congés légaux (exemple : journée du maire)",'IND 2.1.0'!$B$10 &" journées de congés supplémentaires accordées au-delà des congés légaux (exemple : journée du maire)")) -> Aucune journée de congés supplémentaires accordée au-delà des congés légaux (exemple : journée du maire) | BQ21: =IF(BS102=0, "","Répartition des jours de formation"&CHAR(10)&"par organisme") -> Répartition des jours de formation par organisme | BV21: Nombre d'agents au 31/12/2020 x 365 | GJ21: 89 | GK21: Bourgogne | GL21: Centre de Gestion de l'Yonne | GO21: Adjoints du patrimoine | GP21: ='IND 1.1.1'!I143 -> 0 | GQ21: ='IND 1.2.1'!K38 -> 0 | GR21: 0 | GS21: =RANK(GR21,$GR$1:$GR$58,0)+COUNTIF(GR$1:GR21,GR21)-1 -> 20 | GT21: 20 | GU21: 0 | GV21: Adjoints du patrimoine | GW21: C | GX21: 0 | GY21: 0 | GZ21: 0
B22: =D71 -> 0 | D22: =IF(D71<2,"contractuel non permanent","contractuels non permanents") -> contractuel non permanent | Y22: Ensemble | AA22: =IF($AB$22="","",IF(AB22>0%,"æ",IF(AB22<0,"è","â"))) -> â | AB22: =AH140 -> 0 | AE22: (effectif physique rémunéré au 31/12/2020 - effectif physique théorique rémunéré au 31/12/2019) / | AK22: Titulaire | AM22: Contractuel | AO22: Titulaire | AQ22: Contractuel | AS22: Titulaire | AU22: Contractuel | BJ22: =IF('IND 5.1.4'!C15=0," ","Répartition des dépenses de formation") -> Répartition des dépenses de formation | BV22: Les journées d’absence sont décomptées en jours calendaires pour respecter les saisies réalisées dans les logiciels de paie | GJ22: 22 | GK22: Bretagne | GL22: Centre de Gestion des Côtes d'Armor | GO22: Conseillers des APS | GP22: ='IND 1.1.1'!I151 -> 0 | GQ22: ='IND 1.2.1'!K41 -> 0 | GR22: 0 | GS22: =RANK(GR22,$GR$1:$GR$58,0)+COUNTIF(GR$1:GR22,GR22)-1 -> 21 | GT22: 21 | GU22: 0 | GV22: Conseillers des APS | GW22: A | GX22: 0 | GY22: 0 | GZ22: 0
AI23: Administrative | AK23: =IF(AK161>=2,AK148/AK161,IF(AK161=0,"","s")) ->  | AM23: =IF(AN161>=2,AN148/AN161,IF(AN161=0,"","s")) ->  | AO23: =IF(AO161>=2,AO148/AO161,IF(AO161=0,"","s")) ->  | AQ23: =IF(AP161>=2,AP148/AP161,IF(AP161=0,"","s")) ->  | AS23: =IF(AR161>=2,AR148/AR161,IF(AR161=0,"","s")) -> s | AU23: =IF(AT161>=2,AT148/AT161,IF(AT161=0,"","s")) -> s | AW23: Æ | AX23: =IF(SUM('IND 2.2.6'!$B$13:$G$13,'IND 2.2.6'!$B$22:$G$22)=0,"Aucun jour de carence prélevé pour les agents permanents",TEXT((BF76/BF75)*100,"##0,0")&" % des agents permanents ayant été absents ont eu au moins un jour de carence prélevé") -> 40,0 % des agents permanents ayant été absents ont eu au moins un jour de carence prélevé | GJ23: 29 | GK23: Bretagne | GL23: Centre de Gestion du Finistère | GO23: Educateurs des APS | GP23: ='IND 1.1.1'!I158 -> 0 | GQ23: ='IND 1.2.1'!K42 -> 0 | GR23: 0 | GS23: =RANK(GR23,$GR$1:$GR$58,0)+COUNTIF(GR$1:GR23,GR23)-1 -> 22 | GT23: 22 | GU23: 0 | GV23: Educateurs des APS | GW23: B | GX23: 0 | GY23: 0 | GZ23: 0
A24: =IF($B$24="","","Æ") -> Æ | B24: =IF($D$70=0,"",IF($I$70=0,"Aucun contractuel permanent en CDI",(IF($I$70>5,ROUND($I$70/$D$70*100,0)&" % des contractuels permanents en CDI",IF($I$70=1,"1 contractuel permanent en CDI",$I$70&" contractuels permanents en CDI"))))) -> Aucun contractuel permanent en CDI | G24: =IF($H$24="","","Æ") ->  | H24: =IF($D$74=0,"",IF($D$74<2,"Un agent sur emploi fonctionnel dans la collectivité",$D$74&" agents sur emploi fonctionnel dans la collectivité"&IF($D$75>0," dont "&IF($D$75<2,"un contractuel",$D$75&" contractuels"),""))) ->  | AE24: (Effectif physique théorique rémunéré au 31/12/2019) | AI24: Technique | AS24: 25421.45455 | AU24: s | BJ24: =IF('IND 5.1.4'!$C$11+'IND 5.1.4'!$C$12=0,"", "CNFPT ") -> CNFPT | BN24: =IF(BM108=0,"",ROUND(((BM108/'IND 5.1.4'!$C$15)*100),0) & " %") -> 77 % | BQ24: =IF(BS102=0,"",IF(BT24="","", "CNFPT")) ->  | BT24: =IF(BS107=0,"",BS107) ->  | BV24: 3 « groupes d’absences » | GJ24: 35 | GK24: Bretagne | GL24: Centre de Gestion d'Ille-et-Vilaine | GO24: Opérateurs des APS | GP24: ='IND 1.1.1'!I164 -> 0 | GQ24: ='IND 1.2.1'!K43 -> 0 | GR24: 0 | GS24: =RANK(GR24,$GR$1:$GR$58,0)+COUNTIF(GR$1:GR24,GR24)-1 -> 23 | GT24: 23 | GU24: 0 | GV24: Opérateurs des APS | GW24: C | GX24: 0 | GY24: 0 | GZ24: 0
L25: Æ | M25: =IF(D69+D70=0,"Aucun agent",IF(D69+D70<2,"L'agent employé a "&G88&" ans","En moyenne, les agents de la collectivité ont "&ROUND($O$33,0)&" ans")) -> En moyenne, les agents de la collectivité ont 42 ans | AI25: Culturelle | AW25: =IF(AX25="","","Æ") -> Æ | AX25: =IF('IND 4.2.5'!$I$5="Oui", "La collectivité adhère à un contrat d'assurance groupe pour la gestion du risque maladie",IF('IND 4.2.5'!$I$4="Non","La collectivité n'est pas assurée pour la gestion du risque maladie","")) -> La collectivité adhère à un contrat d'assurance groupe pour la gestion du risque maladie | BJ25: =IF('IND 5.1.4'!$C$13=0,"","Autres organismes ") -> Autres organismes | BN25: =IF(BM109=0,"",ROUND(((BM109/'IND 5.1.4'!$C$15)*100),0) & " %") -> 23 % | BQ25: =IF(BS102=0,"",IF(BT25="","","Autres organismes ")) -> Autres organismes | BT25: =IF(BS108=0,"",BS108) -> 1 | GJ25: 56 | GK25: Bretagne | GL25: Centre de Gestion du Morbihan | GO25: Conseillers socio-éducatifs | GP25: ='IND 1.1.1'!I173 -> 0 | GQ25: ='IND 1.2.1'!K46 -> 0 | GR25: 0 | GS25: =RANK(GR25,$GR$1:$GR$58,0)+COUNTIF(GR$1:GR25,GR25)-1 -> 24 | GT25: 24 | GU25: 0 | GV25: Conseillers socio-éducatifs | GW25: A | GX25: 0 | GY25: 0 | GZ25: 0
AI26: Sportive | BJ26: =IF('IND 5.1.4'!$C$14=0,"","Frais de déplacement ") ->  | BN26: =IF(BM110=0,"",ROUND(((BM110/'IND 5.1.4'!$C$15)*100),0) & " %") ->  | BQ26: =IF(BS102=0,"",IF(BT26="","","Interne à la collectivité ")) ->  | BT26: =IF(BS109=0,"",BS109) ->  | BV26: 1. Absences compressibles : Maladie ordinaire et accidents du travail | BY26: 2. Absences médicales : Absences compressibles + longue maladie, maladie de longue durée, grave maladie, maladie professionnelle | CC26: 3. Absences Globales : Absences médicales + maternité, paternité adoption, autres raisons* | GJ26: 18 | GK26: Centre | GL26: Centre de Gestion du Cher | GO26: Assistants socio-éducatifs | GP26: ='IND 1.1.1'!I179 -> 0 | GQ26: ='IND 1.2.1'!K47 -> 0 | GR26: 0 | GS26: =RANK(GR26,$GR$1:$GR$58,0)+COUNTIF(GR$1:GR26,GR26)-1 -> 25 | GT26: 25 | GU26: 0 | GV26: Assistants socio-éducatifs | GW26: A | GX26: 0 | GY26: 0 | GZ26: 0
A27: =IF($B$27="","","Æ") ->  | B27: =IF($D$71=0,"",IF($D$71<2,"Précisions emploi non permanent","Précisions emplois non permanents")) ->  | M27: =IF(D69+D70<2,"Tranche d'âge","Âge moyen*"&CHAR(10)&"des agents permanents") -> Âge moyen* des agents permanents | R27: Pyramide des âges des agents sur emploi permanent | X27: Æ | Y27: =IF(B20=0," ",IF((AF62+AG62)=0,"Aucun bénéficiaire d'une promotion interne",IF(AF62+AG62<2,AF62+AG62&" bénéficiaire d'une promotion interne "&IF(AF63+AG63=0,"nommé","n'ayant pas été nommé"),AF62+AG62&" bénéficiaires d'une promotion interne "&IF(AF63+AG63=0,"nommés",IF(AF62+AG62=AF63+AG63,"n'ayant pas été nommés","dont "&AG63+AF63&" n'ayant pas été nommés"))))) -> 3 bénéficiaires d'une promotion interne nommés | AD27: Æ | AE27: =IF(B20=0," ",IF((AF64+AG64)=0,"Aucun lauréat d'un examen professionnel",IF(AF64+AG64<2,AF64+AG64&" lauréat d'un examen professionnel "&IF(AF65+AG65=0,"nommé","n'ayant pas été nommé"),AF64+AG64&" lauréats d'un examen professionnel "&IF(AF65+AG65=0,"nommés",IF(AF64+AG64=AF65+AG65,"n'ayant pas été nommés","dont "&AG65+AF65&" n'ayant pas été nommés"))))) -> Aucun lauréat d'un examen professionnel | AI27: Médico-sociale | GJ27: 28 | GK27: Centre | GL27: Centre de Gestion d'Eure-et-Loir | GO27: Educateurs de jeunes enfants | GP27: ='IND 1.1.1'!I185 -> 0 | GQ27: ='IND 1.2.1'!K48 -> 0 | GR27: 0 | GS27: =RANK(GR27,$GR$1:$GR$58,0)+COUNTIF(GR$1:GR27,GR27)-1 -> 26 | GT27: 26 | GU27: 0 | GV27: Educateurs de jeunes enfants | GW27: A | GX27: 0 | GY27: 0 | GZ27: 0
AI28: Police | GJ28: 36 | GK28: Centre | GL28: Centre de Gestion de l'Indre | GO28: Moniteurs-éducateurs et intervenants familiaux | GP28: ='IND 1.1.1'!I190 -> 0 | GQ28: ='IND 1.2.1'!K49 -> 0 | GR28: 0 | GS28: =RANK(GR28,$GR$1:$GR$58,0)+COUNTIF(GR$1:GR28,GR28)-1 -> 27 | GT28: 27 | GU28: 0 | GV28: Moniteurs-éducateurs et intervenants familiaux | GW28: B | GX28: 0 | GY28: 0 | GZ28: 0
B29: =IF($C$29="","","a") ->  | C29: =IF($D$71=0,"",IF($I$69=0,"Aucun contractuel non permanent recruté dans le cadre d’un emploi aidé ",IF($I$69>5,ROUND($I$69/$D$71*100,0)&" % des contractuels non permanents recrutés dans le cadre d’un emploi aidé ",IF($I$69<2,"1 contractuel non permanent recruté dans le cadre d’un emploi aidé",$I$69&" contractuels non permanents recrutés dans le cadre d’un emploi aidé")))) ->  | M29: =IF($H$85=0," ",IF(D69<2,"Fonctionnaire","Fonctionnaires")) -> Fonctionnaires | O29: =IF($H$85=0," ",IF(D69<2,"de "&$H$86-2.5&" à "&$H$86+2.5,$H$86)) -> 45 | AI29: Incendie | GJ29: 37 | GK29: Centre | GL29: Centre de Gestion d'Indre-et-Loire | GO29: ATSEM | GP29: ='IND 1.1.1'!I195 -> 0 | GQ29: ='IND 1.2.1'!K50 -> 0 | GR29: 0 | GS29: =RANK(GR29,$GR$1:$GR$58,0)+COUNTIF(GR$1:GR29,GR29)-1 -> 28 | GT29: 28 | GU29: 0 | GV29: ATSEM | GW29: C | GX29: 0 | GY29: 0 | GZ29: 0
B30: =IF($C$30=" "," ","a") ->  | C30: =IF($D$71=0," ",IF($I$71=0,"Aucun contractuel non permanent recruté comme saisonnier ou occasionnel",(IF($I$71>5,ROUND($I$71/D71*100,0)&" % des contractuels non permanents recrutés comme saisonniers ou occasionnels",IF($I$71<2,$I$71&" contractuel non permanent recruté comme saisonnier ou occasionnel",$I$71&" contractuels non permanents recrutés comme saisonniers ou occasionnels"))))) ->  | Y30: =IF(AB71+AA71=0,"",IF(AB71=0,"Aucune nomination concerne des femmes","dont "&TEXT(AB72,"#0%")&" des nominations concernent des femmes")) -> dont 67% des nominations concernent des femmes | AE30: =IF(AB73+AA73=0,"",IF(AB73=0,"Aucune nomination concerne des femmes","dont "&TEXT(AB74,"#0%")&" des nominations concernent des femmes")) ->  | AI30: Animation | AW30: Æ | AX30: =IF(D69+D70=0,"Aucun agent dans la collectivité",IF('IND 4.2.1'!C101+'IND 4.2.1'!D101+'IND 4.2.1'!G101+'IND 4.2.1'!H101=0,"Aucun accident du travail déclaré en 2020",IF('IND 4.2.1'!C101+'IND 4.2.1'!D101+'IND 4.2.1'!G101+'IND 4.2.1'!H101>1,'IND 4.2.1'!C101+'IND 4.2.1'!D101+'IND 4.2.1'!G101+'IND 4.2.1'!H101&" accidents du travail déclarés au total en 2020",'IND 4.2.1'!C101+'IND 4.2.1'!D101+'IND 4.2.1'!G101+'IND 4.2.1'!H101&" seul accident du travail déclaré au total en 2020"))) -> Aucun accident du travail déclaré en 2020 | BI30: ="Æ" -> Æ | BJ30: =IF(AND(BV63=0,BV64=0,BX63=0,BX64=0),"Aucune information relative à la participation aux contrats de protection sociale complémentaire ",IF(AND(BV63=1,BV64=1,BX63=1,BX64=1),"La collectivité ne participe ni à la complémentaire santé de ses agents, ni aux contrats de prévoyance",IF(AND(OR(BV63=2,BV64=2),OR(BX63=2,BX64=2)),"La collectivité participe à la complémentaire santé et aux contrats de prévoyance",IF(OR(BV63=2,BV64=2),"La collectivité participe financièrement à la complémentaire santé",IF(OR(BX63=2,BX64=2),"La collectivité participe aux contrats de prévoyance ",""))))) -> La collectivité participe à la complémentaire santé et aux contrats de prévoyance | BO30: ="Æ" -> Æ | BP30: L’action sociale de la collectivité | BU30: * Les absences pour "autres raisons" correspondent aux autorisations spéciales d'absences (motif familial, concours…) Ne sont pas comptabilisés les jours de formation et les absences pour motif syndical ou de représentation. | GJ30: 41 | GK30: Centre | GL30: Centre de Gestion du Loir-et-Cher | GO30: Agents sociaux | GP30: ='IND 1.1.1'!I202 -> 0 | GQ30: ='IND 1.2.1'!K51 -> 0 | GR30: 0 | GS30: =RANK(GR30,$GR$1:$GR$58,0)+COUNTIF(GR$1:GR30,GR30)-1 -> 29 | GT30: 29 | GU30: 0 | GV30: Agents sociaux | GW30: C | GX30: 0 | GY30: 0 | GZ30: 0
B31: =IF($C$30=" "," ","a") ->  | C31: ="Personnel temporaire intervenu en 2020 : "& IF(SUM('IND 1.3.2'!$E$14:$F$14)=0,"aucun agent du Centre de Gestion et ",IF(SUM('IND 1.3.2'!$E$14:$F$14)=1,"un agent du Centre de Gestion et ",IF(SUM('IND 1.3.2'!$E$14:$F$14)=1,"un agent du Centre de Gestion et ",SUM('IND 1.3.2'!$E$14:$F$14)&" agents du Centre de Gestion et ")))&IF(SUM('IND 1.3.2'!$E$26:$F$26)=0,"aucun intérimaire",IF(SUM('IND 1.3.2'!$E$26:$F$26)=1,"un intérimaire",IF(SUM('IND 1.3.2'!$E$26:$F$26)=1,"un intérimaire ",SUM('IND 1.3.2'!$E$26:$F$26)&" intérimaires"))) -> Personnel temporaire intervenu en 2020 : aucun agent du Centre de Gestion et aucun intérimaire | M31: =IF($I$85=0," ",IF(D70<2,"Contractuel permanent","Contractuels permanents")) -> Contractuels permanents | O31: =IF($I$85=0," ",IF(D70<2,"de "&$I$86-2.5&" à "&$I$86+2.5,$I$86)) -> 35 | AI31: Toutes filières | AS31: 25342.69972 | AU31: s | BC31: Æ | BD31: =IF('IND 4.1.1-4.1.2'!B9=1,"ASSISTANT DE PRÉVENTION","ASSISTANTS DE PRÉVENTION") -> ASSISTANTS DE PRÉVENTION | GJ31: 45 | GK31: Centre | GL31: Centre de Gestion du Loiret | GO31: Médecins | GP31: ='IND 1.1.1'!I211 -> 0 | GQ31: ='IND 1.2.1'!K54 -> 0 | GR31: 0 | GS31: =RANK(GR31,$GR$1:$GR$58,0)+COUNTIF(GR$1:GR31,GR31)-1 -> 30 | GT31: 30 | GU31: 0 | GV31: Médecins | GW31: A | GX31: 0 | GY31: 0 | GZ31: 0
X32: Æ | Y32: =IF(B20=0," ",IF((AF66+AG66)=0,"Aucun lauréat d'un concours",IF(AF66+AG66<2,AF66+AG66&" lauréat d'un concours "&IF(AF67+AG67=0,"nommé","n'ayant pas été nommé"),AF66+AG66&" lauréats d'un concours "&IF(AF67+AG67=0,"nommés",IF(AF66+AG66=AF67+AG67,"n'ayant pas été nommés","dont "&AG67+AF67&" n'ayant pas été nommés"))))) -> Aucun lauréat d'un concours | AO32: *s : secret statistique appliqué en dessous de 2 ETPR | BD32: =IF('IND 4.1.1-4.1.2'!B9=0,"Aucun assistant de prévention désigné dans la collectivité",IF('IND 4.1.1-4.1.2'!B9<2,'IND 4.1.1-4.1.2'!B9&" assistant de prévention désigné dans la collectivité",'IND 4.1.1-4.1.2'!B9&" assistants de prévention désignés dans la collectivité")) -> 2 assistants de prévention désignés dans la collectivité | GJ32: 8 | GK32: Champagne | GL32: Centre de Gestion des Ardennes | GO32: Psychologues | GP32: ='IND 1.1.1'!I216 -> 0 | GQ32: ='IND 1.2.1'!K55 -> 0 | GR32: 0 | GS32: =RANK(GR32,$GR$1:$GR$58,0)+COUNTIF(GR$1:GR32,GR32)-1 -> 31 | GT32: 31 | GU32: 0 | GV32: Psychologues | GW32: A | GX32: 0 | GY32: 0 | GZ32: 0
M33: =IF($K$85=0," ",IF(D69+D70<2," ","Ensemble des permanents")) -> Ensemble des permanents | O33: =IF($K$85=0," ",IF(D69+D70<2," ",$K$86)) -> 41.66666667 | AW33: =IF(AX33="","",">") ->  | AX33: =IF('IND 4.2.1'!C101+'IND 4.2.1'!D101+'IND 4.2.1'!G101+'IND 4.2.1'!H101=0,"",IF(D69+D70+D71<=100,IF('IND 4.2.1'!C101+'IND 4.2.1'!D101+'IND 4.2.1'!G101+'IND 4.2.1'!H101<2,('IND 4.2.1'!C101+'IND 4.2.1'!D101+'IND 4.2.1'!G101+'IND 4.2.1'!H101)&" accident du travail pour ",('IND 4.2.1'!C101+'IND 4.2.1'!D101+'IND 4.2.1'!G101+'IND 4.2.1'!H101)&" accidents du travail pour ")&IF(D69+D70+D71<1,D69+D70+D71 &" agent en position d'activité au 31 décembre 2020",D69+D70+D71&" agents en position d'activité au 31 décembre 2020"),IF(ROUND((('IND 4.2.1'!C101+'IND 4.2.1'!D101+'IND 4.2.1'!G101+'IND 4.2.1'!H101)/(D69+D70+D71))*100,1)<2,ROUND((('IND 4.2.1'!C101+'IND 4.2.1'!D101+'IND 4.2.1'!G101+'IND 4.2.1'!H101)/(D69+D70+D71))*100,1)&" accident du travail pour 100 agents",ROUND((('IND 4.2.1'!C101+'IND 4.2.1'!D101+'IND 4.2.1'!G101+'IND 4.2.1'!H101)/(D69+D70+D71))*100,1)&" accidents du travail pour 100 agents"))) ->  | BP33: =IF('IND 7.1.1-7.1.3'!$B$21="Oui","La collectivité cotise auprès d'un Comité d'Œuvres Sociales","La collectivité ne cotise pas auprès d'un Comité d'Œuvres Sociales") -> La collectivité cotise auprès d'un Comité d'Œuvres Sociales | BU33: Æ | BV33: En raison de certains arrondis, la somme des pourcentages peut ne pas être égale à 100 % | GJ33: 10 | GK33: Champagne | GL33: Centre de Gestion de l'Aube | GO33: Sages-femmes | GP33: ='IND 1.1.1'!I221 -> 0 | GQ33: ='IND 1.2.1'!K56 -> 0 | GR33: 0 | GS33: =RANK(GR33,$GR$1:$GR$58,0)+COUNTIF(GR$1:GR33,GR33)-1 -> 32 | GT33: 32 | GU33: 0 | GV33: Sages-femmes | GW33: A | GX33: 0 | GY33: 0 | GZ33: 0
AD34: Æ | AE34: =IF((B20+B21)=0," ",IF(SUM('IND 1.5.7'!$B$8:$C$10)=0,"Aucun agent n'a bénéficié d'un accompagnement par un conseiller en évolution professionnelle",IF(SUM('IND 1.5.7'!$B$8:$C$10)=1,"Un agent a bénéficié d'un accompagnement par un conseiller en évolution professionnelle",SUM('IND 1.5.7'!$B$8:$C$10)& " agents ont bénéficié d'un accompagnement par un conseiller en évolution professionnelle"))) -> Aucun agent n'a bénéficié d'un accompagnement par un conseiller en évolution professionnelle | AI34: Æ | AJ34: =IF(D69+D70=0,"Aucun agent dans la collectivité",IF(D69+D70=1,"La collectivité consacre " &TEXT((AP10/AL6)*100,"##,0")&" % de son budget de fonctionnement à la rémunération de l'agent permanent",IF(AP12=0,"La collectivité consacre " &TEXT((AP10/AL6)*100,"##,0")&" % de son budget de fonctionnement à la rémunération des agents permanents","La part du régime indemnitaire sur les rémunérations annuelles brutes pour l'ensemble des agents permanents est de " & (ROUND(AN44, 4))*100 & " %"))) -> La part du régime indemnitaire sur les rémunérations annuelles brutes pour l'ensemble des agents permanents est de 8,51 % | BD34: =IF('IND 4.1.1-4.1.2'!B10=0," ",IF('IND 4.1.1-4.1.2'!B10<2,'IND 4.1.1-4.1.2'!B10&" conseiller de prévention ",'IND 4.1.1-4.1.2'!B10&" conseillers de prévention")) ->  | BJ34: =IF('IND 7.1.4'!$B$27+'IND 7.1.4'!$C$27=0,"","Montants annuels") -> Montants annuels | BM34: =IF(BM36="","","Santé") -> Santé | BN34: =IF(BN36=""," ","Prévoyance") -> Prévoyance | GJ34: 51 | GK34: Champagne | GL34: Centre de Gestion de la Marne | GO34: CADRES DE SANTE PARAMEDICAUX | GP34: ='IND 1.1.1'!I227 -> 0 | GQ34: ='IND 1.2.1'!K57 -> 0 | GR34: 0 | GS34: =RANK(GR34,$GR$1:$GR$58,0)+COUNTIF(GR$1:GR34,GR34)-1 -> 33 | GT34: 33 | GU34: 0 | GV34: CADRES DE SANTE PARAMEDICAUX | GW34: A | GX34: 0 | GY34: 0 | GZ34: 0
A35: Æ | B35: =IF(D69+D70+D71<2,"Répartition par filière","Répartition par filière et par statut") -> Répartition par filière et par statut | G35: Æ | H35: =IF(D69+D70+D71<2,"Répartition par catégorie","Répartition des agents par catégorie") -> Répartition des agents par catégorie | Y35: =IF(AB75+AA75=0,"",IF(AB75=0,"Aucune nomination concerne des femmes","dont "&TEXT(AB76,"#0%")&" des nominations concernent des femmes")) ->  | AW35: =IF(OR(AX35="",AX35=" "),"",">") ->  | AX35: =IF('IND 4.2.1'!C101+'IND 4.2.1'!D101+'IND 4.2.1'!G101+'IND 4.2.1'!H101=0,"",(IF('IND 4.2.1'!C101+'IND 4.2.1'!D101+'IND 4.2.1'!G101+'IND 4.2.1'!H101<2," ",IF('IND 4.2.1'!C101+'IND 4.2.1'!D101+'IND 4.2.1'!G101+'IND 4.2.1'!H101=0,"Les accidents de travail déclarés en 2020 n'ont été suivis d'aucun jour d'arrêt de travail",IF(('IND 4.2.1'!K101+'IND 4.2.1'!L101+'IND 4.2.1'!M101+'IND 4.2.1'!N101)/('IND 4.2.1'!C101+'IND 4.2.1'!D101+'IND 4.2.1'!G101+'IND 4.2.1'!H101)>1, "En moyenne, "&ROUND(('IND 4.2.1'!K101+'IND 4.2.1'!L101+'IND 4.2.1'!M101+'IND 4.2.1'!N101)/('IND 4.2.1'!C101+'IND 4.2.1'!D101+'IND 4.2.1'!G101+'IND 4.2.1'!H101),0)&" jours d'absence consécutifs par accident du travail", "En moyenne, "&ROUND(('IND 4.2.1'!K101+'IND 4.2.1'!L101+'IND 4.2.1'!M101+'IND 4.2.1'!N101)/('IND 4.2.1'!C101+'IND 4.2.1'!D101+'IND 4.2.1'!G101+'IND 4.2.1'!H101),0)&" jour d'absence consécutif par accident du travail"))))) ->  | GJ35: 52 | GK35: Champagne | GL35: Centre de Gestion de Haute-Marne | GO35: Puéricultrices cadres de santé | GP35: ='IND 1.1.1'!I231 -> 0 | GQ35: ='IND 1.2.1'!K58 -> 0 | GR35: 0 | GS35: =RANK(GR35,$GR$1:$GR$58,0)+COUNTIF(GR$1:GR35,GR35)-1 -> 34 | GT35: 34 | GU35: 0 | GV35: Puéricultrices cadres de santé | GW35: A | GX35: 0 | GY35: 0 | GZ35: 0
M36: =IF(D71<2,"Tranche d'âge","Âge moyen* "&CHAR(10)&"des agents non permanent") -> Tranche d'âge | BC36: Æ | BD36: FORMATION | BJ36: =IF('IND 7.1.4'!$B$27+'IND 7.1.4'!$C$27=0,"","Montant global des participations") -> Montant global des participations | BM36: =IF('IND 7.1.4'!$B$27=0,"",TEXT('IND 7.1.4'!$B$27,"# ### ### €")) -> 1 200 € | BN36: =IF('IND 7.1.4'!$C$27=0,"",TEXT('IND 7.1.4'!$C$27,"# ### ### €")) -> 300 € | BP36: =IF(OR(BV73="Non",BV73="(vide)",BV73="Ne sait pas"), "Aucune prestation sociale servie directement aux agents n'est prévue", "La collectivité a mis en place des prestations sociales servies directement aux agents ") -> Aucune prestation sociale servie directement aux agents n'est prévue | GJ36: 2A | GK36: Corse | GL36: Centre de Gestion de Corse du Sud | GO36: PUERICULTRICES (décret n° 92-859 du 28 août 1992 modifié) * | GP36: ='IND 1.1.1'!I235+'IND 1.1.1'!I241 -> 0 | GQ36: ='IND 1.2.1'!K59 -> 0 | GR36: 0 | GS36: =RANK(GR36,$GR$1:$GR$58,0)+COUNTIF(GR$1:GR36,GR36)-1 -> 35 | GT36: 35 | GU36: 0 | GV36: PUERICULTRICES (décret n° 92-859 du 28 août 1992 modifié) * | GW36: A | GX36: 0 | GY36: 0 | GZ36: 0
A37: Filière | D37: Titulaire | E37: Contractuel | F37: Tous | X37: Æ | Y37: =IF(B20=0," ",IF('IND 1.5.4-1.5.5'!$B$26+'IND 1.5.4-1.5.5'!$C$26=0,"Aucun avancement d'échelon",IF('IND 1.5.4-1.5.5'!$B$26+'IND 1.5.4-1.5.5'!$C$26=1,"Un avancement d'échelon",'IND 1.5.4-1.5.5'!$B$26+'IND 1.5.4-1.5.5'!$C$26& " avancements d'échelon")))&IF(B20=0," "," et ")& CHAR(10)&IF(B20=0," ",IF('IND 1.5.4-1.5.5'!$B$27+'IND 1.5.4-1.5.5'!$C$27=0,"aucun avancement de grade",IF('IND 1.5.4-1.5.5'!$B$27+'IND 1.5.4-1.5.5'!$C$27=1,"un avancement de grade",'IND 1.5.4-1.5.5'!$B$27+'IND 1.5.4-1.5.5'!$C$27& " avancements de grade"))) -> 3 avancements d'échelon et aucun avancement de grade | AJ37: ="Part du régime indemnitaire" & CHAR(10)&" sur les rémunérations :" -> Part du régime indemnitaire sur les rémunérations : | AQ37: Part du régime indemnitaire sur les rémunérations par catégorie et par statut | BD37: =IF(SUM('IND 4.1.1-4.1.2'!C26:C28)=0,"Aucune formation liée à la prévention n'a été suivie",IF(SUM('IND 4.1.1-4.1.2'!C26:C28)>1,SUM('IND 4.1.1-4.1.2'!C26:C28)&" jours de formation liés à la prévention (habilitations et formations obligatoires)",SUM('IND 4.1.1-4.1.2'!C26:C28)&" jour de formation lié à la prévention (habilitation ou formation obligatoire)")) -> 1 jour de formation lié à la prévention (habilitation ou formation obligatoire) | GJ37: 2B | GK37: Corse | GL37: Centre de Gestion de la Haute-Corse | GS37: =RANK(GR37,$GR$1:$GR$58,0)+COUNTIF(GR$1:GR37,GR37)-1 -> 35 | GU37: 0 | GX37: 0 | GY37: 0 | GZ37: 0
A38: Administrative | D38: =IFERROR('IND 1.1.1'!$I$49/$D$69,"") -> 0 | E38: =IFERROR('IND 1.2.1'!K20/$D$70,"") -> 0.5 | F38: =IFERROR(('IND 1.1.1'!I49+'IND 1.2.1'!K20)/(synthese!$D$69+synthese!$D$70),"") -> 0.1666666667 | M38: =IF($J$85=0," ",IF(D71<2,"Contractuel non permanent","Contractuels non permanents")) ->  | O38: =IF($J$85=0," ",IF(D71<2,"de "&$J$86-2.5&" à "&$J$86+2.5,$J$86)) ->  | AE38: =IF(SUM('IND 1.5.7'!$B$8:$C$10)=0,"","dont "&TEXT(AG74*100,"##0,0")&" % femmes") ->  | BV38: Cette fiche synthétique reprend les principaux indicateurs sociaux issus du Rapport Social Unique 2020. Les données utilisées sont extraites du Rapport sur l'État de la Collectivité 2020 transmis en 2021 par la collectivité. Ces données ont pour objectif de bénéficier d'une vue d'ensemble sur les effectifs de la collectivité. | GJ38: 25 | GK38: Franche-Comté | GL38: Centre de Gestion du Doubs | GO38: Cadres de santé infirmiers, rééducateurs et assistants médico-techniques | GP38: ='IND 1.1.1'!I244 -> 0 | GQ38: ='IND 1.2.1'!K60 -> 0 | GR38: 0 | GS38: =RANK(GR38,$GR$1:$GR$58,0)+COUNTIF(GR$1:GR38,GR38)-1 -> 36 | GT38: 36 | GU38: 0 | GV38: Cadres de santé infirmiers, rééducateurs et assistants médico-techniques | GW38: A | GX38: 0 | GY38: 0 | GZ38: 0
A39: Technique | D39: =IFERROR('IND 1.1.1'!$I$90/$D$69,"") -> 1 | E39: =IFERROR('IND 1.2.1'!K28/$D$70,"") -> 0.5 | F39: =IFERROR(('IND 1.1.1'!I90+'IND 1.2.1'!K28)/(synthese!$D$69+synthese!$D$70),"") -> 0.8333333333 | T39: * L'âge moyen est calculé sur la base des tranches d'âge | AE39: =IF(SUM('IND 1.5.7'!$B$8:$C$10)=0,"","dont "&TEXT(AH80*100,"##0,0")&" % de catégorie C") ->  | BJ39: =IF(OR('IND 7.1.4'!$B$27+'IND 7.1.4'!$C$27=0,'IND 7.1.4'!$B$20+'IND 7.1.4'!$C$20=0),"","Montant moyen par bénéficiaire") -> Montant moyen par bénéficiaire | BM39: =IF('IND 7.1.4'!$B$20=0," ",IF('IND 7.1.4'!$B$27=0, "",TEXT(ROUND('IND 7.1.4'!$B$27/'IND 7.1.4'!$B$20,0),"# ### ### €"))) -> 240 € | BN39: =IF('IND 7.1.4'!$C$20=0,"",IF('IND 7.1.4'!$C$27=0, "",TEXT(ROUND('IND 7.1.4'!$C$27/'IND 7.1.4'!$C$20,0),"# ### ### €"))) -> 60 € | BP39: (ex. : restauration, chèques vacances…) | GJ39: 39 | GK39: Franche-Comté | GL39: Centre de Gestion du Jura | GO39: Infirmiers en soins généraux | GP39: ='IND 1.1.1'!I250 -> 0 | GQ39: ='IND 1.2.1'!K61 -> 0 | GR39: 0 | GS39: =RANK(GR39,$GR$1:$GR$58,0)+COUNTIF(GR$1:GR39,GR39)-1 -> 37 | GT39: 37 | GU39: 0 | GV39: Infirmiers en soins généraux | GW39: A | GX39: 0 | GY39: 0 | GZ39: 0
A40: Culturelle | D40: =IFERROR('IND 1.1.1'!$I$145/$D$69,"") -> 0 | E40: =IFERROR('IND 1.2.1'!K39/$D$70,"") -> 0 | F40: =IFERROR(('IND 1.1.1'!I145+'IND 1.2.1'!K39)/(synthese!$D$69+synthese!$D$70),"") -> 0 | AJ40: =IF(AP72=0, " ","Fonctionnaires") -> Fonctionnaires | AN40: =IF(AP72=0," ",AS72) -> 0.09823466748 | BD40: =IF($BG$40=" "," ","Coût total des formations :") -> Coût total des formations : | BG40: =IF(SUM('IND 4.1.1-4.1.2'!B26:B28)=0," ",SUM('IND 4.1.1-4.1.2'!B26:B28)) -> 200 | GJ40: 70 | GK40: Franche-Comté | GL40: Centre de Gestion de Haute-Saône | GO40: Infirmiers | GP40: ='IND 1.1.1'!I254 -> 0 | GQ40: ='IND 1.2.1'!K62 -> 0 | GR40: 0 | GS40: =RANK(GR40,$GR$1:$GR$58,0)+COUNTIF(GR$1:GR40,GR40)-1 -> 38 | GT40: 38 | GU40: 0 | GV40: Infirmiers | GW40: B | GX40: 0 | GY40: 0 | GZ40: 0
A41: Sportive | D41: =IFERROR('IND 1.1.1'!$I$166/$D$69,"") -> 0 | E41: =IFERROR('IND 1.2.1'!K44/$D$70,"") -> 0 | F41: =IFERROR(('IND 1.1.1'!I166+'IND 1.2.1'!K44)/(synthese!$D$69+synthese!$D$70),"") -> 0 | BD41: =IF($BG$40=" "," ","Coût par jour de formation :") -> Coût par jour de formation : | BG41: =IF($BG$40=" "," ",(IF(SUM('IND 4.1.1-4.1.2'!B26:B28)/SUM('IND 4.1.1-4.1.2'!C26:C28)=$BG$40,"- ",SUM('IND 4.1.1-4.1.2'!B26:B28)/SUM('IND 4.1.1-4.1.2'!C26:C28)))) -> - | GJ41: 90 | GK41: Franche-Comté | GL41: Centre de Gestion du Territoire-de-Belfort | GO41: Auxiliaires de puériculture | GP41: ='IND 1.1.1'!I259 -> 0 | GQ41: ='IND 1.2.1'!K63 -> 0 | GR41: 0 | GS41: =RANK(GR41,$GR$1:$GR$58,0)+COUNTIF(GR$1:GR41,GR41)-1 -> 39 | GT41: 39 | GU41: 0 | GV41: Auxiliaires de puériculture | GW41: C | GX41: 0 | GY41: 0 | GZ41: 0
A42: Médico-sociale | D42: =IFERROR(('IND 1.1.1'!$I$266+'IND 1.1.1'!$I$280+'IND 1.1.1'!$I$204)/$D$69,"") -> 0 | E42: =IFERROR(('IND 1.2.1'!K52+'IND 1.2.1'!K65+'IND 1.2.1'!K69)/$D$70,"") -> 0 | F42: =IFERROR(('IND 1.1.1'!$I$266+'IND 1.1.1'!$I$280+'IND 1.1.1'!$I$204+('IND 1.2.1'!K52+'IND 1.2.1'!K65+'IND 1.2.1'!K69))/(synthese!$D$69+synthese!$D$70),"") -> 0 | AJ42: =IF(AR72=0," ","Contractuels sur emplois permanents") -> Contractuels sur emplois permanents | AN42: =IF(AR72=0," ",AT72) -> 0 | GJ42: 27 | GK42: Haute-Normandie | GL42: Centre de Gestion de l'Eure | GO42: Auxiliaires de soins | GP42: ='IND 1.1.1'!I264 -> 0 | GQ42: ='IND 1.2.1'!K64 -> 0 | GR42: 0 | GS42: =RANK(GR42,$GR$1:$GR$58,0)+COUNTIF(GR$1:GR42,GR42)-1 -> 40 | GT42: 40 | GU42: 0 | GV42: Auxiliaires de soins | GW42: C | GX42: 0 | GY42: 0 | GZ42: 0
A43: Police | D43: =IFERROR('IND 1.1.1'!$I$305/$D$69,"") -> 0 | E43: =IFERROR('IND 1.2.1'!K75/$D$70,"") -> 0 | F43: =IFERROR(('IND 1.1.1'!I305+'IND 1.2.1'!K75)/(synthese!$D$69+synthese!$D$70),"") -> 0 | L43: Æ | M43: =TEXT('IND 1.1.4'!$C$72+'IND 1.1.4'!$D$72+'IND 1.2.4'!$C$71+'IND 1.2.4'!$D$71+'IND 1.3.1'!$F$83,"# ##0,00")&IF('IND 1.1.4'!$C$72+'IND 1.1.4'!$D$72+'IND 1.2.4'!$C$71+'IND 1.2.4'!$D$71+'IND 1.3.1'!$F$83<2," agent en Equivalent Temps Plein Rémunéré (ETPR) sur l'année 2020"," agents en Equivalent Temps Plein Rémunéré (ETPR) sur l'année 2020") -> 4,32 agents en Equivalent Temps Plein Rémunéré (ETPR) sur l'année 2020 | X43: Æ | Y43: =IF(SUM('IND 6.1.4'!$B$11:$C$11,'IND 6.1.4'!$B$15:$C$15,'IND 6.1.4'!$B$19:$C$19,'IND 6.1.4'!$B$22:$C$22,'IND 6.1.4'!$B$29:$B$33,'IND 6.1.4'!$C$29:$C$33,'IND 6.1.4'!$B$38:$C$41)=0,"Aucune sanction disciplinaire prononcée en 2020",IF(SUM('IND 6.1.4'!$B$11:$C$11,'IND 6.1.4'!$B$15:$C$15,'IND 6.1.4'!$B$19:$C$19,'IND 6.1.4'!$B$22:$C$22,'IND 6.1.4'!$B$29:$B$33,'IND 6.1.4'!$C$29:$C$33,'IND 6.1.4'!$B$38:$C$41)=1,"Une sanction disciplinaire prononcée en 2020",SUM('IND 6.1.4'!$B$11:$C$11,'IND 6.1.4'!$B$15:$C$15,'IND 6.1.4'!$B$19:$C$19,'IND 6.1.4'!$B$22:$C$22,'IND 6.1.4'!$B$29:$B$33,'IND 6.1.4'!$C$29:$C$33,'IND 6.1.4'!$B$38:$C$41)&" sanctions disciplinaires prononcées en 2020")) -> Aucune sanction disciplinaire prononcée en 2020 | AW43: Seules les collectivités de plus de 20 agents équivalent temps plein sont soumises à l'obligation d'emploi de travailleurs handicapés à hauteur de 6 % des effectifs. | BC43: Æ | BD43: DÉPENSES | BY43: L'outil automatisé permettant la réalisation de cette synthèse a été développé par l'Observatoire de l'emploi et de la FPT de Nouvelle-Aquitaine en partenariat avec le Comité Technique des Chargés d'études des Observatoires Régionaux des Centres de Gestion. | GJ43: 76 | GK43: Haute-Normandie | GL43: Centre de Gestion de la Seine-Maritime | GO43: Biologistes-vétérinaires-pharmaciens | GP43: ='IND 1.1.1'!I273 -> 0 | GQ43: ='IND 1.2.1'!K67 -> 0 | GR43: 0 | GS43: =RANK(GR43,$GR$1:$GR$58,0)+COUNTIF(GR$1:GR43,GR43)-1 -> 41 | GT43: 41 | GU43: 0 | GV43: Biologistes-vétérinaires-pharmaciens | GW43: A | GX43: 0 | GY43: 0 | GZ43: 0
A44: Incendie | D44: =IFERROR('IND 1.1.1'!$I$357/$D$69,"") -> 0 | E44: =IFERROR('IND 1.2.1'!K85/$D$70,"") -> 0 | F44: =IFERROR(('IND 1.1.1'!I357+'IND 1.2.1'!K85)/(synthese!$D$69+synthese!$D$70),"") -> 0 | AJ44: =IF($B$21+$B$20=0," ","Ensemble") -> Ensemble | AN44: =IF($B$21+$B$20=0," ",AU72) -> 0.0850717325 | BD44: =IF(SUM('IND 4.1.1-4.1.2'!B29:B30)=0, "Aucune dépense en faveur de la prévention, de la sécurité et de l’amélioration des conditions de travail n'a été effectuée","La collectivité a effectué des dépenses en faveur de la prévention, de la sécurité et de l’amélioration des conditions de travail") -> La collectivité a effectué des dépenses en faveur de la prévention, de la sécurité et de l’amélioration des conditions de travail | GJ44: 75 | GK44: Ile-de-France | GL44: Centre Interdépartemental de Gestion de la Grande Couronne de la Région d'Ile-de-France | GO44: Techniciens paramédicaux | GP44: ='IND 1.1.1'!I278 -> 0 | GQ44: ='IND 1.2.1'!K68 -> 0 | GR44: 0 | GS44: =RANK(GR44,$GR$1:$GR$58,0)+COUNTIF(GR$1:GR44,GR44)-1 -> 42 | GT44: 42 | GU44: 0 | GV44: Techniciens paramédicaux | GW44: B | GX44: 0 | GY44: 0 | GZ44: 0
A45: Animation | D45: =IFERROR('IND 1.1.1'!$I$374/$D$69,"") -> 0 | E45: =IFERROR('IND 1.2.1'!K89/$D$70,"") -> 0 | F45: =IFERROR(('IND 1.1.1'!I374+'IND 1.2.1'!K89)/(synthese!$D$69+synthese!$D$70),"") -> 0 | M45: ="> " & TEXT('IND 1.1.4'!C72+'IND 1.1.4'!D72,"# ##0,00") -> > 3,63 | O45: =IF('IND 1.1.4'!$C$72+'IND 1.1.4'!$D$72<2,"fonctionnaire","fonctionnaires") -> fonctionnaires | S45: Répartition des ETPR permanents par catégorie | Y45: Nombre de sanctions prononcées concernant les fonctionnaires en 2020 | BI45: ="Æ" -> Æ | BJ45: Jours de grève | BN45: =IF(BO45=" "," ","Æ") ->  | BO45: =IF('IND 6.1.1-6.1.3'!B7=0," ","Comité Technique Local ") ->  | GJ45: 77 | GK45: Ile-de-France | GL45: Centre de Gestion de Seine-et-Marne | GO45: Directeurs de police municipale | GP45: ='IND 1.1.1'!I286 -> 0 | GQ45: ='IND 1.2.1'!K71 -> 0 | GR45: 0 | GS45: =RANK(GR45,$GR$1:$GR$58,0)+COUNTIF(GR$1:GR45,GR45)-1 -> 43 | GT45: 43 | GU45: 0 | GV45: Directeurs de police municipale | GW45: A | GX45: 0 | GY45: 0 | GZ45: 0
A46: Total | D46: =SUM($D$38:$D$45) -> 1 | E46: =SUM($E$38:$E$45) -> 1 | F46: =SUM($F$38:$F$45) -> 1 | M46: ="> " &TEXT('IND 1.2.4'!C71+'IND 1.2.4'!D71,"# ##0,00") -> > 0,69 | O46: =IF('IND 1.2.4'!$C$71+'IND 1.2.4'!$D$71<2,"contractuel permanent","contractuels permanents") -> contractuel permanent | AE46: =IF(SUM('IND 6.1.4'!$B$11:$C$11,'IND 6.1.4'!$B$15:$C$15,'IND 6.1.4'!$B$19:$C$19,'IND 6.1.4'!$B$22:$C$22,'IND 6.1.4'!$B$29:$B$33,'IND 6.1.4'!$C$29:$C$33,'IND 6.1.4'!$B$38:$C$41)=0,"",IF(SUM('IND 6.1.4'!$B$29:$C$33)=0,"Aucune sanction prononcée à l'encontre de fonctionnaires stagiaires ",IF(SUM('IND 6.1.4'!$B$29:$C$33)=1,"Une sanction prononcée à l'encontre d'un fonctionnaire stagiaire",SUM('IND 6.1.4'!$B$29:$C$33)&" sanctions prononcées à l'encontre de fonctionnaires stagiaires"))) ->  | GJ46: 78 | GK46: Ile-de-France | GL46: Centre Interdépartemental de Gestion de la Grande Couronne de la Région d'Ile-de-France | GO46: Chefs de service de police municipale | GP46: ='IND 1.1.1'!I292 -> 0 | GQ46: ='IND 1.2.1'!K72 -> 0 | GR46: 0 | GS46: =RANK(GR46,$GR$1:$GR$58,0)+COUNTIF(GR$1:GR46,GR46)-1 -> 44 | GT46: 44 | GU46: 0 | GV46: Chefs de service de police municipale | GW46: B | GX46: 0 | GY46: 0 | GZ46: 0
M47: ="> " &TEXT('IND 1.3.1'!F83,"# ##0,00") -> > 0,00 | O47: =IF('IND 1.3.1'!$F$83<2,"contractuel non permanent","contractuels non permanents") -> contractuel non permanent | AA47: Hommes | AB47: Femmes | AW47: =IF(SUM('IND 1.6.1'!B17:E19)=0,"Aucun travailleur handicapé employé sur emploi permanent ",IF(SUM('IND 1.6.1'!B17:E19)<2,SUM('IND 1.6.1'!B17:E19) &" travailleur handicapé employé sur emploi permanent ",SUM('IND 1.6.1'!B17:E19) &" travailleurs handicapés employés sur emploi permanent ")) -> Aucun travailleur handicapé employé sur emploi permanent | BJ47: =IF('IND 6.1.1-6.1.3'!B59=0,"Aucun jour de grève recensé en 2020",IF('IND 6.1.1-6.1.3'!B59<2,'IND 6.1.1-6.1.3'!B59&" jour de grève recensé en 2020",'IND 6.1.1-6.1.3'!B59&" jours de grève recensés en 2020")) -> Aucun jour de grève recensé en 2020 | BO47: =IF('IND 6.1.1-6.1.3'!B7=0," ",IF('IND 6.1.1-6.1.3'!B7<2,'IND 6.1.1-6.1.3'!B7&" réunion en 2020 dans la collectivité",'IND 6.1.1-6.1.3'!B7&" réunions en 2020 dans la collectivité")) ->  | GJ47: 91 | GK47: Ile-de-France | GL47: Centre Interdépartemental de Gestion de la Grande Couronne de la Région d'Ile-de-France | GO47: Agents de police municipale | GP47: ='IND 1.1.1'!I298 -> 0 | GQ47: ='IND 1.2.1'!K73 -> 0 | GR47: 0 | GS47: =RANK(GR47,$GR$1:$GR$58,0)+COUNTIF(GR$1:GR47,GR47)-1 -> 45 | GT47: 45 | GU47: 0 | GV47: Agents de police municipale | GW47: C | GX47: 0 | GY47: 0 | GZ47: 0
A48: Æ | B48: Répartition par genre et par statut | G48: Æ | H48: =IF(H52="","Cadre d'emplois","Les principaux cadres d’emplois") -> Les principaux cadres d’emplois | M48: =TEXT('IND 4.2.1'!$C$10,"# ##0") & IF('IND 4.2.1'!$C$10<2," heure travaillée rémunérée en 2020"," heures travaillées rémunérées en 2020") -> 7 862 heures travaillées rémunérées en 2020 | Y48: Sanctions 1er groupe | AA48: ='IND 6.1.4'!$B$11 -> 0 | AB48: ='IND 6.1.4'!$C$11 -> 0 | AI48: =IF($C$30=" "," ","a") ->  | AJ48: =IF(OR('IND 3.1.1-3.4.3'!$F$13="(vide)",'IND 3.1.1-3.4.3'!$F$13="Ne sait pas"),"Aucune information concernant la mise en place du RIFSEEP",IF('IND 3.1.1-3.4.3'!$F$13="Oui","Le RIFSEEP a été mis en place pour les fonctionnaires"&IF('IND 3.1.1-3.4.3'!$F$62="Oui"," et pour les contractuels"&IF('IND 3.1.1-3.4.3'!$F$14="Oui"," ainsi que le CIA",""),""),IF('IND 3.1.1-3.4.3'!$F$13="Non","Le RIFSEEP n'a pas été mis en place"))) -> Le RIFSEEP a été mis en place pour les fonctionnaires | AP48: =IF($C$30=" "," ","a") ->  | AQ48: =IF(SUM('IND 3.4.4'!$B$86:$C$86,'IND 3.4.4'!$F$86:$G$86,'IND 3.4.4'!$H$86:$I$86,'IND 3.4.4'!$L$86:$M$86)=0,"Aucune heure supplémentaire réalisée et rémunérée en 2020",IF(SUM('IND 3.4.4'!$B$86:$C$86,'IND 3.4.4'!$F$86:$G$86,'IND 3.4.4'!$H$86:$I$86,'IND 3.4.4'!$L$86:$M$86)=1,"Une heure supplémentaire réalisée et rémunérée en 2020",SUM('IND 3.4.4'!$B$86:$C$86,'IND 3.4.4'!$F$86:$G$86,'IND 3.4.4'!$H$86:$I$86,'IND 3.4.4'!$L$86:$M$86)&" heures supplémentaires réalisées et rémunérées en 2020")) -> Aucune heure supplémentaire réalisée et rémunérée en 2020 | BO48: =IF('IND 6.1.1-6.1.3'!B18=0," ",IF('IND 6.1.1-6.1.3'!B18<2,'IND 6.1.1-6.1.3'!B18&" réunion du CHSCT",'IND 6.1.1-6.1.3'!B18&" réunions du CHSCT")) ->  | GJ48: 92 | GK48: Ile-de-France | GL48: Centre Interdépartemental de Gestion de la Petite Couronne de la Région d'Ile-de-France | GO48: Gardes-champêtres | GP48: ='IND 1.1.1'!I303 -> 0 | GQ48: ='IND 1.2.1'!K74 -> 0 | GR48: 0 | GS48: =RANK(GR48,$GR$1:$GR$58,0)+COUNTIF(GR$1:GR48,GR48)-1 -> 46 | GT48: 46 | GU48: 0 | GV48: Gardes-champêtres | GW48: C | GX48: 0 | GY48: 0 | GZ48: 0
Y49: Sanctions 2ème groupe | AA49: ='IND 6.1.4'!$B$15 -> 0 | AB49: ='IND 6.1.4'!$C$15 -> 0 | AE49: =IF(SUM('IND 6.1.4'!$B$11:$C$11,'IND 6.1.4'!$B$15:$C$15,'IND 6.1.4'!$B$19:$C$19,'IND 6.1.4'!$B$22:$C$22,'IND 6.1.4'!$B$29:$B$33,'IND 6.1.4'!$C$29:$C$33,'IND 6.1.4'!$B$38:$C$41)=0,"",IF(SUM('IND 6.1.4'!$B$38:$C$41)=0,"Aucune sanction prononcée à l'encontre d'agents contractuels",IF(SUM('IND 6.1.4'!$B$38:$C$41)=1,"Une sanction prononcée à l'encontre d'un agent contractuel ",SUM('IND 6.1.4'!$B$38:$C$41)&" sanctions prononcées à l'encontre d'agents contractuels"))) ->  | BD49: =IF(SUM('IND 4.1.1-4.1.2'!B29:B30) = 0, " ","Total des dépenses : ") -> Total des dépenses : | BG49: =IF(SUM('IND 4.1.1-4.1.2'!B29:B30)= 0, " ",SUM('IND 4.1.1-4.1.2'!B29:B30)) -> 516 | BI49: =IF(BJ49=" "," ","Æ") ->  | BJ49: =IF('IND 6.1.1-6.1.3'!B8=0, " ", "Commissions Administratives Paritaires ") ->  | GJ49: 93 | GK49: Ile-de-France | GL49: Centre Interdépartemental de Gestion de la Petite Couronne de la Région d'Ile-de-France | GO49: CONTRÔLEURS, COLONELS | GP49: ='IND 1.1.1'!I312 -> 0 | GQ49: ='IND 1.2.1'!K77 -> 0 | GR49: 0 | GS49: =RANK(GR49,$GR$1:$GR$58,0)+COUNTIF(GR$1:GR49,GR49)-1 -> 47 | GT49: 47 | GU49: 0 | GV49: CONTRÔLEURS, COLONELS | GW49: A | GX49: 0 | GY49: 0 | GZ49: 0
H50: Cadres d'emplois | K50: % d'agents | Y50: Sanctions 3ème groupe | AA50: ='IND 6.1.4'!$B$19 -> 0 | AB50: ='IND 6.1.4'!$C$19 -> 0 | AI50: =IF($C$30=" "," ","a") ->  | AJ50: =IF('IND 3.1.1-3.4.3'!$F$145="Oui","Les primes sont maintenues en cas de congé de maladie ordinaire",IF('IND 3.1.1-3.4.3'!$F$145="Non","Les primes ne sont pas maintenues en cas de congé de maladie ordinaire","Aucune information sur le maintien des primes en cas de congé de maladie ordinaire")) -> Les primes ne sont pas maintenues en cas de congé de maladie ordinaire | AP50: =IF($C$30=" "," ","a") ->  | AQ50: =IF(SUM('IND 3.4.4'!$D$86:$E$86,'IND 3.4.4'!$J$86:$K$86)=0,"Aucune heure complémentaire réalisée et rémunérée en 2020",IF(SUM('IND 3.4.4'!$D$86:$E$86,'IND 3.4.4'!$J$86:$K$86)=1,"Une heure complémentaire réalisée et rémunérée en 2020",SUM('IND 3.4.4'!$D$86:$E$86,'IND 3.4.4'!$J$86:$K$86)&" heures complémentaires réalisées et rémunérées en 2020")) -> 107 heures complémentaires réalisées et rémunérées en 2020 | AW50: =IF(AX50=" "," ","a") -> a | AX50: =IF(SUM('IND 1.6.1'!B27:C27)=0, "Aucun travailleur handicapé recruté sur emploi non permanent",IF(SUM('IND 1.6.1'!B27:C27)<2,SUM('IND 1.6.1'!B27:C27)& " travailleur handicapé recruté sur emploi non permanent",SUM('IND 1.6.1'!B27:C27) & " travailleurs handicapés recrutés sur emploi non permanent")) -> Aucun travailleur handicapé recruté sur emploi non permanent | BX50: Date de publication : | BZ50: =TODAY() -> 2021-11-03 | CD50: Version 4 | GJ50: 94 | GK50: Ile-de-France | GL50: Centre Interdépartemental de Gestion de la Petite Couronne de la Région d'Ile-de-France | GO50: Capitaines, commandants, lieutenants-colonels, colonels | GP50: ='IND 1.1.1'!I318 -> 0 | GQ50: ='IND 1.2.1'!K78 -> 0 | GR50: 0 | GS50: =RANK(GR50,$GR$1:$GR$58,0)+COUNTIF(GR$1:GR50,GR50)-1 -> 48 | GT50: 48 | GU50: 0 | GV50: Capitaines, commandants, lieutenants-colonels, colonels | GW50: A | GX50: 0 | GY50: 0 | GZ50: 0
H51: =IF(OR(K51=0,K51=""),"",VLOOKUP(1,$GT$2:$GV$60,3,FALSE)) -> Adjoints techniques | K51: =IF(D69+D70=0,"",VLOOKUP(1,$GT$2:$GU$60,2,FALSE)) -> 0.8333333333 | R51: =U134&U120&U112&U108 ->  | Y51: Sanctions 4ème groupe | AA51: ='IND 6.1.4'!$B$22 -> 0 | AB51: ='IND 6.1.4'!$C$22 -> 0 | BC51: =IF(BD52=" "," ","Æ") -> Æ | BD51: =IF(BD52=" "," ","DOCUMENT DE PRÉVENTION") -> DOCUMENT DE PRÉVENTION | BI51: =IF(BJ53=" "," ","Æ") ->  | BJ51: =IF('IND 6.1.1-6.1.3'!B8=0," ",IF('IND 6.1.1-6.1.3'!B8<2,'IND 6.1.1-6.1.3'!B8&" réunion en 2020 dans la collectivité",'IND 6.1.1-6.1.3'!B8&" réunions en 2020 dans la collectivité")) ->  | GJ51: 95 | GK51: Ile-de-France | GL51: Centre Interdépartemental de Gestion de la Grande Couronne de la Région d'Ile-de-France | GO51: Médecins, pharmaciens | GP51: ='IND 1.1.1'!I324 -> 0 | GQ51: ='IND 1.2.1'!K79 -> 0 | GR51: 0 | GS51: =RANK(GR51,$GR$1:$GR$58,0)+COUNTIF(GR$1:GR51,GR51)-1 -> 49 | GT51: 49 | GU51: 0 | GV51: Médecins, pharmaciens | GW51: A | GX51: 0 | GY51: 0 | GZ51: 0
H52: =IF(OR(K52=0,K52=""),"",VLOOKUP(2,$GT$2:$GV$60,3,FALSE)) -> Adjoints administratifs | K52: =IF(D69+D70=0,"",VLOOKUP(2,$GT$2:$GU$60,2,FALSE)) -> 0.1666666667 | M52: =IF(U147&U126&U105&U106="","Aucune position particulière",U147&U126&U105&U106) -> Aucune position particulière | AW52: =IF(AX52=" "," ","a") ->  | AX52: =IF(AZ63=0," ",(IF(AZ63>5,ROUND(((AZ63)/(AZ66))*100,0)&" % sont fonctionnaires*",IF(AZ63<2,AZ63&" travailleur handicapé fonctionnaire ",AZ63&" travailleurs handicapés fonctionnaires ")))) ->  | BD52: =IF('IND 4.1.4-4.1.7'!$F$9="(Vide)"," ",(IF('IND 4.1.4-4.1.7'!$F$9="Non","La collectivité ne dispose pas d'un document unique d'évaluation des risques professionnels",IF('IND 4.1.4-4.1.7'!$F$9="En cours","Le document unique d'évaluation des risques professionnels est en cours d'élaboration","La collectivité dispose d'un document unique d'évaluation des risques professionnels")))) -> La collectivité dispose d'un document unique d'évaluation des risques professionnels | GJ52: 11 | GK52: Languedoc | GL52: Centre de Gestion de l'Aude | GO52: Lieutenants de sapeurs-pompiers professionnels | GP52: ='IND 1.1.1'!I331 -> 0 | GQ52: ='IND 1.2.1'!K80 -> 0 | GR52: 0 | GS52: =RANK(GR52,$GR$1:$GR$58,0)+COUNTIF(GR$1:GR52,GR52)-1 -> 50 | GT52: 50 | GU52: 0 | GV52: Lieutenants de sapeurs-pompiers professionnels | GW52: B | GX52: 0 | GY52: 0 | GZ52: 0
H53: =IF(OR(K53=0,K53=""),"",VLOOKUP(3,$GT$2:$GV$60,3,FALSE)) ->  | K53: =IF(D69+D70=0,"",VLOOKUP(3,$GT$2:$GU$60,2,FALSE)) -> 0 | X53: =IF(Y53="","","Æ") ->  | Y53: =IF(SUM('IND 6.1.4'!$B$46:$C$56)=0,"",IF(Y56="","Motif de la sanction prononcée (fonctionnaires et contractuels en 2020)","Principaux motifs des sanctions prononcées (fonctionnaires et contractuels en 2020)")) ->  | AJ53: =IF($D$70=0," ",AL76) ->  | AQ53: =IF(AR53=" "," ","> ") ->  | AR53: =IF($D$70=0," ",AL81) ->  | AW53: =IF(AX53=" "," ","a") ->  | AX53: =IF((AY72)=0," ",IF(AY71>5,ROUND((AY71/(AY72))*100,0) &" % sont en catégorie C*", IF(AY69<2,AY69& " travailleur handicapé en catégorie A, " & AY70 & " en catégorie B, " & AY71 &" en catégorie C", AY69 & " travailleurs handicapés en catégorie A, " & AY70 & " en catégorie B, " & AY71 &" en catégorie C"))) ->  | BJ53: =IF('IND 6.1.1-6.1.3'!B9=0, " ", "Commissions Consultatives Paritaires ") ->  | GJ53: 30 | GK53: Languedoc | GL53: Centre de Gestion du Gard | GO53: CADRES DE SANTE DES SAPEURS POMPIERS PROFESSIONNELS | GP53: ='IND 1.1.1'!I337 -> 0 | GQ53: ='IND 1.2.1'!K81 -> 0 | GR53: 0 | GS53: =RANK(GR53,$GR$1:$GR$58,0)+COUNTIF(GR$1:GR53,GR53)-1 -> 51 | GT53: 51 | GU53: 0 | GV53: CADRES DE SANTE DES SAPEURS POMPIERS PROFESSIONNELS | GW53: A | GX53: 0 | GY53: 0 | GZ53: 0
H54: =IF(OR(K54=0,K54=""),"",VLOOKUP(4,$GT$2:$GV$60,3,FALSE)) ->  | K54: =IF(D69+D70=0,"",VLOOKUP(4,$GT$2:$GU$60,2,FALSE)) -> 0 | AI54: =IF(AJ53=" "," ", "Æ") ->  | GJ54: 34 | GK54: Languedoc | GL54: Centre de Gestion de l'Hérault | GO54: Infirmiers de sapeurs-pompiers professionnels | GP54: ='IND 1.1.1'!I343 -> 0 | GQ54: ='IND 1.2.1'!K82 -> 0 | GR54: 0 | GS54: =RANK(GR54,$GR$1:$GR$58,0)+COUNTIF(GR$1:GR54,GR54)-1 -> 52 | GT54: 52 | GU54: 0 | GV54: Infirmiers de sapeurs-pompiers professionnels | GW54: A | GX54: 0 | GY54: 0 | GZ54: 0
H55: =IF(OR(K55=0,K55=""),"",VLOOKUP(5,$GT$2:$GV$60,3,FALSE)) ->  | K55: =IF(D69+D70=0,"",VLOOKUP(5,$GT$2:$GU$60,2,FALSE)) -> 0 | Y55: =IF(ISNA(VLOOKUP(1,$BJ$115:$BM$125,2,FALSE))=TRUE,"",VLOOKUP(1,$BJ$115:$BM$125,2,FALSE)) ->  | AH55: =IF(ISNA(VLOOKUP(1,$BJ$115:$BM$125,4,FALSE))=TRUE,"",VLOOKUP(1,$BJ$115:$BM$125,4,FALSE)) ->  | BJ55: =IF('IND 6.1.1-6.1.3'!B9=0," ",IF('IND 6.1.1-6.1.3'!B9<2,'IND 6.1.1-6.1.3'!B9&" réunion en 2020 dans la collectivité",'IND 6.1.1-6.1.3'!B9&" réunions en 2020 dans la collectivité")) ->  | GJ55: 48 | GK55: Languedoc | GL55: Centre de Gestion de la Lozère | GO55: Sous officiers de sapeurs-pompiers professionnels | GP55: ='IND 1.1.1'!I348 -> 0 | GQ55: ='IND 1.2.1'!K83 -> 0 | GR55: 0 | GS55: =RANK(GR55,$GR$1:$GR$58,0)+COUNTIF(GR$1:GR55,GR55)-1 -> 53 | GT55: 53 | GU55: 0 | GV55: Sous officiers de sapeurs-pompiers professionnels | GW55: C | GX55: 0 | GY55: 0 | GZ55: 0
Y56: =IF(ISNA(VLOOKUP(2,$BJ$115:$BM$125,2,FALSE))=TRUE,"",VLOOKUP(2,$BJ$115:$BM$125,2,FALSE)) ->  | AH56: =IF(ISNA(VLOOKUP(2,$BJ$115:$BM$125,4,FALSE))=TRUE,"",VLOOKUP(2,$BJ$115:$BM$125,4,FALSE)) ->  | AW56: =IF(AX56=" "," ","a") ->  | AX56: =IF(SUM('IND 1.6.2'!B12:B15)=0," ",TEXT(SUM('IND 1.6.2'!B12:B15),"# ##")& " € de dépenses réalisées couvrant partiellement l’obligation d’emploi ") ->  | BD56: =IF(BG56="","","Dernière mise à jour :") -> Dernière mise à jour : | BG56: =IF('IND 4.1.4-4.1.7'!$F$12=0,"",'IND 4.1.4-4.1.7'!$F$12) -> 2018 | GJ56: 66 | GK56: Languedoc | GL56: Centre de Gestion des Pyrénées-Orientales | GO56: Sapeurs et caporaux de sapeurs-pompiers professionnels | GP56: ='IND 1.1.1'!I355 -> 0 | GQ56: ='IND 1.2.1'!K84 -> 0 | GR56: 0 | GS56: =RANK(GR56,$GR$1:$GR$58,0)+COUNTIF(GR$1:GR56,GR56)-1 -> 54 | GT56: 54 | GU56: 0 | GV56: Sapeurs et caporaux de sapeurs-pompiers professionnels | GW56: C | GX56: 0 | GY56: 0 | GZ56: 0
A57: Synthèse des principaux indicateurs du Rapport Social Unique 2020 | Y57: =IF(ISNA(VLOOKUP(3,$BJ$115:$BM$125,2,FALSE))=TRUE,"",VLOOKUP(3,$BJ$115:$BM$125,2,FALSE)) ->  | AH57: =IF(ISNA(VLOOKUP(3,$BJ$115:$BM$125,4,FALSE))=TRUE,"",VLOOKUP(3,$BJ$115:$BM$125,4,FALSE)) ->  | AJ57: =IF($D$70=0," ",AL86) ->  | GJ57: 19 | GK57: Limousin | GL57: Centre de Gestion de la Corrèze | GO57: Animateurs | GP57: ='IND 1.1.1'!I365 -> 0 | GQ57: ='IND 1.2.1'!K87 -> 0 | GR57: 0 | GS57: =RANK(GR57,$GR$1:$GR$58,0)+COUNTIF(GR$1:GR57,GR57)-1 -> 55 | GT57: 55 | GU57: 0 | GV57: Animateurs | GW57: B | GX57: 0 | GY57: 0 | GZ57: 0
GJ58: 23 | GK58: Limousin | GL58: Centre de Gestion de la Creuse | GO58: Adjoints d'animation | GP58: ='IND 1.1.1'!I372 -> 0 | GQ58: ='IND 1.2.1'!K88 -> 0 | GR58: 0 | GS58: =RANK(GR58,$GR$1:$GR$58,0)+COUNTIF(GR$1:GR58,GR58)-1 -> 56 | GT58: 56 | GU58: 0 | GV58: Adjoints d'animation | GW58: C | GX58: 0 | GY58: 0 | GZ58: 0
GJ59: 87 | GK59: Limousin | GL59: Centre de Gestion de Haute-Vienne | GO59: SOMME | GP59: =SUM(GP2:GP58) -> 4 | GQ59: =SUM(GQ2:GQ58) -> 2 | GR59: 6 | GU59: 1 | GV59: 0 | GW59: 0 | GX59: 6 | GY59: 4 | GZ59: 2
GJ60: 54 | GK60: Lorraine | GL60: Centre de Gestion de Meurthe-et-Moselle
AE61: Nombre de fonctionnaires ayant connu au cours de l'année un avancement de grade à la suite d'une : | AF61: ='IND 1.5.4-1.5.5'!B29 -> Hommes | AG61: ='IND 1.5.4-1.5.5'!C29 -> Femmes | BV61: Participation Santé ou prévoyance | GJ61: 55 | GK61: Lorraine | GL61: Centre de Gestion de la Meuse
H62: Permanent | I62: % | J62: Nombre | M62: , | N62: Hommes | O62: Femmes | U62: Temps complet | V62: Temps non complet | AE62: promotion au choix | AF62: ='IND 1.5.4-1.5.5'!B30 -> 1 | AG62: ='IND 1.5.4-1.5.5'!C30 -> 2 | AL62: % masse salariale sur dép de fonc | AP62: =IF($AL$6=0,0,(AP6/$AL$6)*100) -> 43.66139628 | AX62: Travailleurs handicapés | BV62: Santé | BX62: Prévoyance | GJ62: 57 | GK62: Lorraine | GL62: Centre de Gestion de la Moselle
B63: Catégorie A | D63: =SUMIF(GW2:GW58,"A",GX2:GX58)/GX59 -> 0 | H63: Hommes | I63: Femmes | J63: Hommes | K63: Femmes | L63: T | M63: moins de 30 ans | N63: =-SUM('IND 1.7.1'!$C$13:$D$14)/('IND 1.7.1'!$D$47+'IND 1.7.1'!$C$47) -> 0 | O63: =SUM('IND 1.7.1'!C25:D26)/('IND 1.7.1'!$D$47+'IND 1.7.1'!$C$47) -> 0 | S63: =IF(D70=0," ","Contractuels") -> Contractuels | U63: ='IND 1.2.1'!L91/$D$70 -> 0.5 | V63: ='IND 1.2.1'!M91/$D$70 -> 0.5 | AE63: - n'ayant pas entrainé une "nomination stagiaire" | AF63: ='IND 1.5.4-1.5.5'!B31 -> 0 | AG63: ='IND 1.5.4-1.5.5'!C31 -> 0 | AX63: Fonctionnaires | AZ63: =SUM('IND 1.6.1'!B17:C19) -> 0 | BV63: =IF(SUM('IND 7.1.4'!$B$23:$B$26)>0,2,IF('IND 7.1.4'!$B$11="(vide)",0,IF('IND 7.1.4'!$B$11="Ne sait pas",0,IF('IND 7.1.4'!$B$11="Oui",2,IF('IND 7.1.4'!$B$11="Non",1))))) -> 2 | BX63: =IF(SUM('IND 7.1.4'!$C$23:$C$26)>0,2,IF('IND 7.1.4'!$C$11="(vide)",0,IF('IND 7.1.4'!$C$11="Ne sait pas",0,IF('IND 7.1.4'!$C$11="Oui",2,IF('IND 7.1.4'!$C$11="Non",1))))) -> 2 | GJ63: 88 | GK63: Lorraine | GL63: Centre de Gestion des Vosges
B64: Catégorie B | D64: =SUMIF(GW2:GW58,"B",GX2:GX58)/GX59 -> 0 | G64: Ensemble | H64: =(('IND 1.1.1'!G376+'IND 1.2.1'!Q91+'IND 1.2.1'!S91)/($D$69+$D$70)) -> 0.3333333333 | I64: =(('IND 1.1.1'!H376+'IND 1.2.1'!R91+'IND 1.2.1'!T91)/($D$69+$D$70)) -> 0.6666666667 | J64: =('IND 1.1.1'!G376+'IND 1.2.1'!Q91+'IND 1.2.1'!S91) -> 2 | K64: =('IND 1.1.1'!H376+'IND 1.2.1'!R91+'IND 1.2.1'!T91) -> 4 | M64: Entre 30 et 50 ans | N64: =-SUM('IND 1.7.1'!C15:D18)/('IND 1.7.1'!$D$47+'IND 1.7.1'!$C$47) -> -0.1666666667 | O64: =SUM('IND 1.7.1'!C27:D30)/('IND 1.7.1'!$D$47+'IND 1.7.1'!$C$47) -> 0.5 | S64: =IF(D69=0," ","Fonctionnaires") -> Fonctionnaires | U64: ='IND 1.1.1'!$B$376/synthese!$D$69 -> 0.5 | V64: ='IND 1.1.1'!$F$376/synthese!$D$69 -> 0.5 | AE64: réussite à un examen professionnel de promotion interne : | AF64: ='IND 1.5.4-1.5.5'!B32 -> 0 | AG64: ='IND 1.5.4-1.5.5'!C32 -> 0 | AX64: Emploi permanent | AZ64: =SUM('IND 1.6.1'!D17:E19) -> 0 | BV64: =IF(SUM('IND 7.1.4'!$B$23:$B$26)>0,2,IF('IND 7.1.4'!$B$12="(vide)",0,IF('IND 7.1.4'!$B$12="Ne sait pas",0,IF('IND 7.1.4'!$B$12="Oui",2,IF('IND 7.1.4'!$B$12="Non",1))))) -> 2 | BX64: =IF(SUM('IND 7.1.4'!$C$23:$C$26)>0,2,IF('IND 7.1.4'!$C$12="(vide)",0,IF('IND 7.1.4'!$C$12="Ne sait pas",0,IF('IND 7.1.4'!$C$12="Oui",2,IF('IND 7.1.4'!$C$12="Non",1))))) -> 2 | GJ64: 9 | GK64: Midi-Pyrénées | GL64: Centre de Gestion de l'Ariège
B65: Catégorie C | D65: =SUMIF(GW2:GW58,"C",GX2:GX58)/GX59 -> 1 | G65: Contractuels | H65: =('IND 1.2.1'!Q91+'IND 1.2.1'!S91)/$D$70 -> 0 | I65: =('IND 1.2.1'!R91+'IND 1.2.1'!T91)/$D$70 -> 1 | J65: =('IND 1.2.1'!Q91+'IND 1.2.1'!S91) -> 0 | K65: =('IND 1.2.1'!R91+'IND 1.2.1'!T91) -> 2 | M65: Plus de 50 ans | N65: =-SUM('IND 1.7.1'!C19:D22)/('IND 1.7.1'!$D$47+'IND 1.7.1'!$C$47) -> -0.1666666667 | O65: =SUM('IND 1.7.1'!C31:D34)/('IND 1.7.1'!$D$47+'IND 1.7.1'!$C$47) -> 0.1666666667 | AE65: - n'ayant pas entrainé une "nomination stagiaire" | AF65: ='IND 1.5.4-1.5.5'!B33 -> 0 | AG65: ='IND 1.5.4-1.5.5'!C33 -> 0 | AN65: Part des primes sur rémunérations annuelles butes | AX65: Non permanent | AZ65: =SUM('IND 1.6.1'!B27:C27) -> 0 | GJ65: 12 | GK65: Midi-Pyrénées | GL65: Centre de Gestion de l'Aveyron
G66: Fonctionnaires | H66: ='IND 1.1.1'!$G$376/$D$69 -> 0.5 | I66: ='IND 1.1.1'!$H$376/$D$69 -> 0.5 | J66: ='IND 1.1.1'!$G$376 -> 2 | K66: ='IND 1.1.1'!$H$376 -> 2 | U66: Temps plein | V66: Temps partiel | AE66: réussite à un concours : | AF66: ='IND 1.5.4-1.5.5'!B34 -> 0 | AG66: ='IND 1.5.4-1.5.5'!C34 -> 0 | AY66: Total | AZ66: =SUM(AZ63:AZ64) -> 0 | GJ66: 31 | GK66: Midi-Pyrénées | GL66: Centre de Gestion de Haute-Garonne
M67: Total départ de fonctionnaires | Q67: ='IND 1.5.0'!F40+'IND 1.5.0'!J40 -> 0 | S67: =IF(D70=0," ","Contractuels") -> Contractuels | U67: =SUM('IND 1.2.2'!B91:C91)/SUM('IND 1.2.2'!J91:K91) -> 1 | V67: =SUM('IND 1.2.2'!D91:I91)/SUM('IND 1.2.2'!J91:K91) -> 0 | AE67: - n'ayant pas entrainé "une nomination stagiaire" | AF67: ='IND 1.5.4-1.5.5'!B35 -> 0 | AG67: ='IND 1.5.4-1.5.5'!C35 -> 0 | AN67: Prime | AP67: Rémunération ann B | AS67: % | BV67: cotisation COS | GJ67: 32 | GK67: Midi-Pyrénées | GL67: Centre de Gestion du Gers
B68: Total Agents au 31/12 | M68: Total départ de contractuels | Q68: ='IND 1.5.0'!F63+'IND 1.5.0'!J63 -> 1 | S68: =IF(D69=0," ","Fonctionnaires") -> Fonctionnaires | U68: =SUM('IND 1.1.2'!B90:C90)/SUM('IND 1.1.2'!J90:K90) -> 1 | V68: =SUM('IND 1.1.2'!D90:I90)/SUM('IND 1.1.2'!J90:K90) -> 0 | AN68: Fonctionnaires | AO68: Contractuels | AP68: Fonctionnaires | AR68: Contractuels | AS68: Fonctionnaires | AT68: Contractuels | AU68: Ensemble | AX68: Travailleurs handicapés par catégorie | BV68: Propre | BW68: =IF(OR(BX68="Non",BX68="(vide)",BX68="Ne sait pas"),0,1) -> 0 | BX68: ='IND 7.1.1-7.1.3'!$B$11 -> Non | GJ68: 46 | GK68: Midi-Pyrénées | GL68: Centre de Gestion du Lot
B69: Fonct° | D69: ='IND 1.1.1'!$I$376 -> 4 | H69: Emploi aidé | I69: ='IND 1.3.1'!F26 -> 0 | AL69: Catégorie A | AN69: ='IND 3.1.1-3.4.3'!D20+'IND 3.1.1-3.4.3'!E20+'IND 3.1.1-3.4.3'!D24+'IND 3.1.1-3.4.3'!E24+'IND 3.1.1-3.4.3'!D28+'IND 3.1.1-3.4.3'!E28+'IND 3.1.1-3.4.3'!D32+'IND 3.1.1-3.4.3'!E32+'IND 3.1.1-3.4.3'!D36+'IND 3.1.1-3.4.3'!E36+'IND 3.1.1-3.4.3'!D40+'IND 3.1.1-3.4.3'!E40+'IND 3.1.1-3.4.3'!D44+'IND 3.1.1-3.4.3'!E44+'IND 3.1.1-3.4.3'!D48+'IND 3.1.1-3.4.3'!E48+'IND 3.1.1-3.4.3'!D52+'IND 3.1.1-3.4.3'!E52 -> 0 | AO69: ='IND 3.1.1-3.4.3'!D68+'IND 3.1.1-3.4.3'!E68+'IND 3.1.1-3.4.3'!D72+'IND 3.1.1-3.4.3'!E72+'IND 3.1.1-3.4.3'!D76+'IND 3.1.1-3.4.3'!E76+'IND 3.1.1-3.4.3'!D80+'IND 3.1.1-3.4.3'!E80+'IND 3.1.1-3.4.3'!D84+'IND 3.1.1-3.4.3'!E84+'IND 3.1.1-3.4.3'!D88+'IND 3.1.1-3.4.3'!E88+'IND 3.1.1-3.4.3'!D92+'IND 3.1.1-3.4.3'!E92+'IND 3.1.1-3.4.3'!D96+'IND 3.1.1-3.4.3'!E96+'IND 3.1.1-3.4.3'!D100+'IND 3.1.1-3.4.3'!E100 -> 0 | AP69: ='IND 3.1.1-3.4.3'!B20+'IND 3.1.1-3.4.3'!C20+'IND 3.1.1-3.4.3'!B24+'IND 3.1.1-3.4.3'!C24+'IND 3.1.1-3.4.3'!B28+'IND 3.1.1-3.4.3'!C28+'IND 3.1.1-3.4.3'!B32+'IND 3.1.1-3.4.3'!C32+'IND 3.1.1-3.4.3'!B36+'IND 3.1.1-3.4.3'!C36+'IND 3.1.1-3.4.3'!B40+'IND 3.1.1-3.4.3'!C40+'IND 3.1.1-3.4.3'!B44+'IND 3.1.1-3.4.3'!C44+'IND 3.1.1-3.4.3'!B48+'IND 3.1.1-3.4.3'!C48+'IND 3.1.1-3.4.3'!B52+'IND 3.1.1-3.4.3'!C52 -> 0 | AR69: ='IND 3.1.1-3.4.3'!B68+'IND 3.1.1-3.4.3'!C68+'IND 3.1.1-3.4.3'!B72+'IND 3.1.1-3.4.3'!C72+'IND 3.1.1-3.4.3'!B76+'IND 3.1.1-3.4.3'!C76+'IND 3.1.1-3.4.3'!B80+'IND 3.1.1-3.4.3'!C80+'IND 3.1.1-3.4.3'!B84+'IND 3.1.1-3.4.3'!C84+'IND 3.1.1-3.4.3'!B88+'IND 3.1.1-3.4.3'!C88+'IND 3.1.1-3.4.3'!B92+'IND 3.1.1-3.4.3'!C92+'IND 3.1.1-3.4.3'!B96+'IND 3.1.1-3.4.3'!C96+'IND 3.1.1-3.4.3'!B100+'IND 3.1.1-3.4.3'!C100 -> 0 | AS69: =IF(AP69=0,"",AN69/AP69) ->  | AT69: =IF(AR69=0,"",AO69/AR69) ->  | AU69: =IF((AP69+AR69)=0,"",(AN69+AO69)/(AP69+AR69)) ->  | AX69: Catégorie A | AY69: =SUM('IND 1.6.1'!B17:E17) -> 0 | BV69: Inter | BW69: =IF(OR(BX69="Non",BX69="(vide)",BX69="Ne sait pas"),0,1) -> 1 | BX69: ='IND 7.1.1-7.1.3'!$B$12 -> Oui | GJ69: 65 | GK69: Midi-Pyrénées | GL69: Centre de Gestion des Hautes-Pyrénées
B70: Cont Perm | D70: ='IND 1.2.1'!K91 -> 2 | H70: CDI | I70: ='IND 1.2.1'!Q91+'IND 1.2.1'!R91 -> 0 | M70: Graphique % de temps non complet par filières et par statut | AA70: H | AB70: F | AL70: Catégorie B | AN70: ='IND 3.1.1-3.4.3'!D21+'IND 3.1.1-3.4.3'!E21+'IND 3.1.1-3.4.3'!D25+'IND 3.1.1-3.4.3'!E25+'IND 3.1.1-3.4.3'!D29+'IND 3.1.1-3.4.3'!E29+'IND 3.1.1-3.4.3'!D33+'IND 3.1.1-3.4.3'!E33+'IND 3.1.1-3.4.3'!D37+'IND 3.1.1-3.4.3'!E37+'IND 3.1.1-3.4.3'!D41+'IND 3.1.1-3.4.3'!E41+'IND 3.1.1-3.4.3'!D45+'IND 3.1.1-3.4.3'!E45+'IND 3.1.1-3.4.3'!D49+'IND 3.1.1-3.4.3'!E49+'IND 3.1.1-3.4.3'!D53+'IND 3.1.1-3.4.3'!E53+'IND 3.1.1-3.4.3'!D56+'IND 3.1.1-3.4.3'!E56 -> 0 | AO70: ='IND 3.1.1-3.4.3'!D69+'IND 3.1.1-3.4.3'!E69+'IND 3.1.1-3.4.3'!D73+'IND 3.1.1-3.4.3'!E73+'IND 3.1.1-3.4.3'!D77+'IND 3.1.1-3.4.3'!E77+'IND 3.1.1-3.4.3'!D81+'IND 3.1.1-3.4.3'!E81+'IND 3.1.1-3.4.3'!D85+'IND 3.1.1-3.4.3'!E85+'IND 3.1.1-3.4.3'!D89+'IND 3.1.1-3.4.3'!E89+'IND 3.1.1-3.4.3'!D93+'IND 3.1.1-3.4.3'!E93+'IND 3.1.1-3.4.3'!D97+'IND 3.1.1-3.4.3'!E97+'IND 3.1.1-3.4.3'!D101+'IND 3.1.1-3.4.3'!E101+'IND 3.1.1-3.4.3'!D104+'IND 3.1.1-3.4.3'!E104 -> 0 | AP70: ='IND 3.1.1-3.4.3'!B21+'IND 3.1.1-3.4.3'!C21+'IND 3.1.1-3.4.3'!B25+'IND 3.1.1-3.4.3'!C25+'IND 3.1.1-3.4.3'!B29+'IND 3.1.1-3.4.3'!C29+'IND 3.1.1-3.4.3'!B33+'IND 3.1.1-3.4.3'!C33+'IND 3.1.1-3.4.3'!B37+'IND 3.1.1-3.4.3'!C37+'IND 3.1.1-3.4.3'!B41+'IND 3.1.1-3.4.3'!C41+'IND 3.1.1-3.4.3'!B45+'IND 3.1.1-3.4.3'!C45+'IND 3.1.1-3.4.3'!B49+'IND 3.1.1-3.4.3'!C49+'IND 3.1.1-3.4.3'!B53+'IND 3.1.1-3.4.3'!C53+'IND 3.1.1-3.4.3'!B56+'IND 3.1.1-3.4.3'!C56 -> 0 | AR70: ='IND 3.1.1-3.4.3'!B69+'IND 3.1.1-3.4.3'!C69+'IND 3.1.1-3.4.3'!B73+'IND 3.1.1-3.4.3'!C73+'IND 3.1.1-3.4.3'!B77+'IND 3.1.1-3.4.3'!C77+'IND 3.1.1-3.4.3'!B81+'IND 3.1.1-3.4.3'!C81+'IND 3.1.1-3.4.3'!B85+'IND 3.1.1-3.4.3'!C85+'IND 3.1.1-3.4.3'!B89+'IND 3.1.1-3.4.3'!C89+'IND 3.1.1-3.4.3'!B93+'IND 3.1.1-3.4.3'!C93+'IND 3.1.1-3.4.3'!B97+'IND 3.1.1-3.4.3'!C97+'IND 3.1.1-3.4.3'!B101+'IND 3.1.1-3.4.3'!C101+'IND 3.1.1-3.4.3'!B104+'IND 3.1.1-3.4.3'!C104 -> 0 | AS70: =IF(AP70=0,"",AN70/AP70) ->  | AT70: =IF(AR70=0,"",AO70/AR70) ->  | AU70: =IF((AP70+AR70)=0,"",(AN70+AO70)/(AP70+AR70)) ->  | AX70: Catégorie B | AY70: =SUM('IND 1.6.1'!B18:E18) -> 0 | BV70: Donc | BW70: =BW69+BW68 -> 1 | GJ70: 81 | GK70: Midi-Pyrénées | GL70: Centre de Gestion du Tarn
B71: Cont N Perm | D71: ='IND 1.3.1'!F38 -> 0 | H71: saisonniers | I71: ='IND 1.3.1'!F24 -> 0 | V71: Titulaire | W71: Contractuel | Y71: Promotion choix | AA71: =AF62-AF63 -> 1 | AB71: =AG62-AG63 -> 2 | AF71: H | AG71: F | AL71: Catégorie C | AN71: ='IND 3.1.1-3.4.3'!D22+'IND 3.1.1-3.4.3'!E22+'IND 3.1.1-3.4.3'!D26+'IND 3.1.1-3.4.3'!E26+'IND 3.1.1-3.4.3'!D30+'IND 3.1.1-3.4.3'!E30+'IND 3.1.1-3.4.3'!D34+'IND 3.1.1-3.4.3'!E34+'IND 3.1.1-3.4.3'!D38+'IND 3.1.1-3.4.3'!E38+'IND 3.1.1-3.4.3'!D42+'IND 3.1.1-3.4.3'!E42+'IND 3.1.1-3.4.3'!D46+'IND 3.1.1-3.4.3'!E46+'IND 3.1.1-3.4.3'!D50+'IND 3.1.1-3.4.3'!E50+'IND 3.1.1-3.4.3'!D54+'IND 3.1.1-3.4.3'!E54+'IND 3.1.1-3.4.3'!D57+'IND 3.1.1-3.4.3'!E57 -> 9037 | AO71: ='IND 3.1.1-3.4.3'!D70+'IND 3.1.1-3.4.3'!E70+'IND 3.1.1-3.4.3'!D74+'IND 3.1.1-3.4.3'!E74+'IND 3.1.1-3.4.3'!D78+'IND 3.1.1-3.4.3'!E78+'IND 3.1.1-3.4.3'!D82+'IND 3.1.1-3.4.3'!E82+'IND 3.1.1-3.4.3'!E86+'IND 3.1.1-3.4.3'!D86+'IND 3.1.1-3.4.3'!D90+'IND 3.1.1-3.4.3'!E90+'IND 3.1.1-3.4.3'!D94+'IND 3.1.1-3.4.3'!E94+'IND 3.1.1-3.4.3'!D98+'IND 3.1.1-3.4.3'!E98+'IND 3.1.1-3.4.3'!D102+'IND 3.1.1-3.4.3'!E102+'IND 3.1.1-3.4.3'!D105+'IND 3.1.1-3.4.3'!E105 -> 0 | AP71: ='IND 3.1.1-3.4.3'!B22+'IND 3.1.1-3.4.3'!C22+'IND 3.1.1-3.4.3'!B26+'IND 3.1.1-3.4.3'!C26+'IND 3.1.1-3.4.3'!B30+'IND 3.1.1-3.4.3'!C30+'IND 3.1.1-3.4.3'!B34+'IND 3.1.1-3.4.3'!C34+'IND 3.1.1-3.4.3'!B38+'IND 3.1.1-3.4.3'!C38+'IND 3.1.1-3.4.3'!B42+'IND 3.1.1-3.4.3'!C42+'IND 3.1.1-3.4.3'!B46+'IND 3.1.1-3.4.3'!C46+'IND 3.1.1-3.4.3'!B50+'IND 3.1.1-3.4.3'!C50+'IND 3.1.1-3.4.3'!B54+'IND 3.1.1-3.4.3'!C54+'IND 3.1.1-3.4.3'!B57+'IND 3.1.1-3.4.3'!C57 -> 91994 | AR71: ='IND 3.1.1-3.4.3'!B70+'IND 3.1.1-3.4.3'!C70+'IND 3.1.1-3.4.3'!B74+'IND 3.1.1-3.4.3'!C74+'IND 3.1.1-3.4.3'!B78+'IND 3.1.1-3.4.3'!C78+'IND 3.1.1-3.4.3'!B82+'IND 3.1.1-3.4.3'!C82+'IND 3.1.1-3.4.3'!B86+'IND 3.1.1-3.4.3'!C86+'IND 3.1.1-3.4.3'!B90+'IND 3.1.1-3.4.3'!C90+'IND 3.1.1-3.4.3'!B94+'IND 3.1.1-3.4.3'!C94+'IND 3.1.1-3.4.3'!B98+'IND 3.1.1-3.4.3'!C98+'IND 3.1.1-3.4.3'!B102+'IND 3.1.1-3.4.3'!C102+'IND 3.1.1-3.4.3'!B105+'IND 3.1.1-3.4.3'!C105 -> 14234 | AS71: 0.09823466748 | AT71: 0 | AU71: 0.0850717325 | AX71: Catégorie C | AY71: =SUM('IND 1.6.1'!B19:E19) -> 0 | GJ71: 82 | GK71: Midi-Pyrénées | GL71: Centre de Gestion du Tarn-et-Garonne
L72: Rang | M72: Filière | N72: Titulaire | O72: Contractuel | S72: Nb agent Temps non complet | V72: ='IND 1.1.1'!$F$376 -> 2 | W72: ='IND 1.2.1'!M91 -> 1 | Y72: % | AB72: =AB71/(AA71+AB71) -> 0.6666666667 | AE72: CEP | AF72: =SUM('IND 1.5.7'!$B$8:$B$10) -> 0 | AG72: =SUM('IND 1.5.7'!$C$8:$C$10) -> 0 | AL72: Total | AN72: =SUM(AN69:AN71) -> 9037 | AO72: =SUM(AO69:AO71) -> 0 | AP72: =SUM(AP69:AQ71) -> 91994 | AR72: =SUM(AR69:AR71) -> 14234 | AS72: 0.09823466748 | AT72: 0 | AU72: 0.0850717325 | AX72: Total | AY72: =SUM(AY69:AY71) -> 0 | BV72: Prestation servies par coll | GJ72: 59 | GK72: Nord | GL72: Centre de Gestion du Nord
H73: Ensemble | L73: =IF(N73>0,RANK(N73,$N$72:$N$80,0)+COUNTIF(N$73:N74,N73)-1,"") ->  | M73: Administrative | N73: =IFERROR('IND 1.1.1'!$F$49/('IND 1.1.1'!$F$49+'IND 1.1.1'!$B$49),"") ->  | O73: =IFERROR('IND 1.2.1'!$M$20/('IND 1.2.1'!$L$20+'IND 1.2.1'!$M$20),"") -> 0 | S73: Nb agent Temps partiel | V73: =SUM('IND 1.1.2'!$D$90:$I$90) -> 0 | W73: =SUM('IND 1.2.2'!$D$91:$I$91) -> 0 | Y73: examen pro | AA73: =AF64-AF65 -> 0 | AB73: =AG64-AG65 -> 0 | AE73: Permanent | BV73: ='IND 7.1.1-7.1.3'!$B$20 -> Non | GJ73: 62 | GK73: Nord | GL73: Centre de Gestion du Pas-de-Calais
B74: Emploi fonctionnel | D74: =SUM('IND 1.1.0'!B21:K21,'IND 1.1.0'!B36:K36,'IND 1.1.0'!B51:C51) -> 0 | G74: Tranche d'âge | H74: Titulaires | I74: Permanents | J74: N-perma | K74: Ensemble | L74: =IF(N74>0,RANK(N74,$N$72:$N$80,0)+COUNTIF(N$73:N75,N74)-1,"") -> 1 | M74: Technique | N74: =IFERROR('IND 1.1.1'!$F$90/('IND 1.1.1'!$F$90+'IND 1.1.1'!$B$90),"") -> 0.5 | O74: =IFERROR('IND 1.2.1'!$M$28/('IND 1.2.1'!$L$28+'IND 1.2.1'!$M$28),"") -> 1 | Y74: % | AB74: =AB73/(AA73+AB73) ->  | AE74: % | AG74: =+AG72/SUM(AF72:AG72) ->  | AX74: Jours de carence | BF74: N | GJ74: 50 | GK74: Normandie | GL74: Centre de Gestion de la Manche
B75: dt cont | D75: ='IND 1.1.0'!B51+'IND 1.1.0'!C51 -> 0 | G75: moins de 25 ans | H75: =22.5*'IND 1.7.1'!$C$37 -> 0 | I75: =22.5*'IND 1.7.1'!$D$37 -> 0 | J75: =22.5*'IND 1.7.1'!$E$37 -> 0 | K75: =SUM($H75:$I75) -> 0 | L75: =IF(N75>0,RANK(N75,$N$72:$N$80,0)+COUNTIF(N$73:N76,N75)-1,"") ->  | M75: Culturelle | N75: =IFERROR('IND 1.1.1'!$F$145/('IND 1.1.1'!$F$145+'IND 1.1.1'!$B$145),"") ->  | O75: =IFERROR('IND 1.2.1'!$M$39/('IND 1.2.1'!$L$39+'IND 1.2.1'!$M$39),"") ->  | Y75: Concours | AA75: =AF66-AF67 -> 0 | AB75: =AG66-AG67 -> 0 | AX75: Nombre total d'agents rémunérés et potentiellement soumis au jour de carence | BF75: =SUM('IND 2.2.6'!$B$12:$G$12,'IND 2.2.6'!$B$21:$G$21) -> 10 | GJ75: 44 | GK75: Pays-de-la-Loire | GL75: Centre de Gestion de Loire-Atlantique
B76: dt femme | D76: ='IND 1.1.0'!C21+'IND 1.1.0'!E21+'IND 1.1.0'!G21+'IND 1.1.0'!I21+'IND 1.1.0'!K21+'IND 1.1.0'!C35+'IND 1.1.0'!E36+'IND 1.1.0'!G36+'IND 1.1.0'!I36+'IND 1.1.0'!K36+'IND 1.1.0'!C51 -> 0 | G76: 25 - 29 ans | H76: =27.5*'IND 1.7.1'!$C$38 -> 0 | I76: =27.5*'IND 1.7.1'!$D$38 -> 0 | J76: =27.5*'IND 1.7.1'!$E$38 -> 0 | K76: 0 | L76: =IF(N76>0,RANK(N76,$N$72:$N$80,0)+COUNTIF(N$73:N77,N76)-1,"") ->  | M76: Sportive | N76: =IFERROR('IND 1.1.1'!$F$166/('IND 1.1.1'!$F$166+'IND 1.1.1'!$B$166),"") ->  | O76: =IFERROR('IND 1.2.1'!$M$44/('IND 1.2.1'!$L$44+'IND 1.2.1'!$M$44),"") ->  | Y76: % | AB76: =AB75/(AA75+AB75) ->  | AK76: Cotise ass chomage | AL76: =IF('IND 3.1.1-3.4.3'!$A$138="Êtes en auto-assurance avec convention de gestion avec Pôle Emploi","La collectivité est en auto-assurance avec convention de gestion avec Pôle Emploi pour l'assurance chômage de ses agents contractuels",IF('IND 3.1.1-3.4.3'!$A$138="Êtes en auto-assurance sans convention de gestion avec Pôle Emploi","La collectivité est en auto-assurance sans convention de gestion avec Pôle Emploi pour l'assurance chômage de ses agents contractuels",IF('IND 3.1.1-3.4.3'!$A$138="Avez adhéré au régime d'assurance chômage","La collectivité a adhéré au régime général d'assurance chômage pour l'assurance chômage de ses agents contractuels"," "))) ->  | AX76: Nombre d'agents auxquels a été appliqué au moins un jour de carence | BF76: =SUM('IND 2.2.6'!$B$13:$G$13,'IND 2.2.6'!$B$22:$G$22) -> 4 | GJ76: 49 | GK76: Pays-de-la-Loire | GL76: Centre de Gestion de Maine-et-Loire
G77: 30 - 34 ans | H77: =32.5*'IND 1.7.1'!$C$39 -> 32.5 | I77: =32.5*'IND 1.7.1'!$D$39 -> 32.5 | J77: =32.5*'IND 1.7.1'!$E$39 -> 0 | K77: 65 | L77: =IF(N77>0,RANK(N77,$N$72:$N$80,0)+COUNTIF(N$73:N78,N77)-1,"") ->  | M77: Médico-sociale | N77: =IFERROR(('IND 1.1.1'!$F$204+'IND 1.1.1'!$F$266+'IND 1.1.1'!$F$280)/('IND 1.1.1'!$F$204+'IND 1.1.1'!$F$266+'IND 1.1.1'!$F$280+'IND 1.1.1'!$B$204+'IND 1.1.1'!$B$266+'IND 1.1.1'!$B$280),"") ->  | O77: =IFERROR(('IND 1.2.1'!$M$52+'IND 1.2.1'!$M$65+'IND 1.2.1'!$M$69)/('IND 1.2.1'!$M$52+'IND 1.2.1'!$M$65+'IND 1.2.1'!$M$69+'IND 1.2.1'!$L$52+'IND 1.2.1'!$L$65+'IND 1.2.1'!$L$69),"") ->  | Y77: fonc | AA77: ='IND 1.1.1'!$G$376 -> 2 | AB77: ='IND 1.1.1'!$H$376 -> 2 | AF77: A | AG77: B | AH77: C | GJ77: 53 | GK77: Pays-de-la-Loire | GL77: Centre de Gestion de la Mayenne
G78: 35 - 39 ans | H78: =37.5*'IND 1.7.1'!$C$40 -> 37.5 | I78: =37.5*'IND 1.7.1'!$D$40 -> 37.5 | J78: =37.5*'IND 1.7.1'!$E$40 -> 0 | K78: 75 | L78: =IF(N78>0,RANK(N78,$N$72:$N$80,0)+COUNTIF(N$73:N79,N78)-1,"") ->  | M78: Police | N78: =IFERROR('IND 1.1.1'!$F$305/('IND 1.1.1'!$F$305+'IND 1.1.1'!$B$305),"") ->  | O78: =IFERROR('IND 1.2.1'!$M$75/('IND 1.2.1'!$L$75+'IND 1.2.1'!$M$75),"") ->  | AE78: CEP | AF78: =SUM('IND 1.5.7'!$B$8:$C$8) -> 0 | AG78: =SUM('IND 1.5.7'!$B$9:$C$9) -> 0 | AH78: =SUM('IND 1.5.7'!$B$10:$C$10) -> 0 | GJ78: 72 | GK78: Pays-de-la-Loire | GL78: Centre de Gestion de la Sarthe
G79: 40 - 44 ans | H79: =42.5*'IND 1.7.1'!$C$41 -> 0 | I79: =42.5*'IND 1.7.1'!$D$41 -> 0 | J79: =42.5*'IND 1.7.1'!$E$41 -> 0 | K79: 0 | L79: =IF(N79>0,RANK(N79,$N$72:$N$80,0)+COUNTIF(N$73:N80,N79)-1,"") ->  | M79: Incendie | N79: =IFERROR('IND 1.1.1'!$F$357/('IND 1.1.1'!$F$357+'IND 1.1.1'!$B$357),"") ->  | O79: =IFERROR('IND 1.2.1'!$M$85/('IND 1.2.1'!$L$85+'IND 1.2.1'!$M$85),"") ->  | AE79: Permanent | GJ79: 85 | GK79: Pays-de-la-Loire | GL79: Centre de Gestion de la Vendée
B80: ETPR | G80: 45 - 49 ans | H80: =47.5*'IND 1.7.1'!$C$42 -> 0 | I80: =47.5*'IND 1.7.1'!$D$42 -> 0 | J80: =47.5*'IND 1.7.1'!$E$42 -> 0 | K80: 0 | L80: =IF(N80>0,RANK(N80,$N$72:$N$80,0)+COUNTIF(N$73:N81,N80)-1,"") ->  | M80: Animation | N80: =IFERROR('IND 1.1.1'!$F$374/('IND 1.1.1'!$F$374+'IND 1.1.1'!$B$374),"") ->  | O80: =IFERROR('IND 1.2.1'!$M$89/('IND 1.2.1'!$L$89+'IND 1.2.1'!$M$89),"") ->  | AE80: % | AH80: =AH78/SUM(AF78:AH78) ->  | GJ80: 2 | GK80: Picardie | GL80: Centre de Gestion de l'Aisne
D81: H | E81: F | F81: T | G81: 50 - 54 ans | H81: =52.5*'IND 1.7.1'!$C$43 -> 52.5 | I81: =52.5*'IND 1.7.1'!$D$43 -> 0 | J81: =52.5*'IND 1.7.1'!$E$43 -> 0 | K81: 52.5 | AK81: Nbre d'allocataire (contractuels | AL81: =IF('IND 3.1.1-3.4.3'!$B$141=0," ",IF('IND 3.1.1-3.4.3'!$B$141=1,"en 2020, "&'IND 3.1.1-3.4.3'!$B$141&" allocataire a bénéficié de l'indemnisation du chômage (ancien contractuel)",IF('IND 3.1.1-3.4.3'!$B$141>1,"en 2020, "&'IND 3.1.1-3.4.3'!$B$141&" allocataires ont bénéficié de l'indemnisation du chômage (anciens contractuels)"))) ->  | GJ81: 60 | GK81: Picardie | GL81: Centre de Gestion de l'Oise
B82: Catégorie C | D82: ='IND 1.1.4'!$C$35+'IND 1.1.4'!$C$39+'IND 1.1.4'!$C$43+'IND 1.1.4'!$C$47+'IND 1.1.4'!$C$51+'IND 1.1.4'!$C$55+'IND 1.1.4'!$C$59+'IND 1.1.4'!$C$63+'IND 1.1.4'!$C$67+'IND 1.1.4'!$C$70+'IND 1.2.4'!$C$34+'IND 1.2.4'!$C$38+'IND 1.2.4'!$C$42+'IND 1.2.4'!$C$46+'IND 1.2.4'!$C$50+'IND 1.2.4'!$C$54+'IND 1.2.4'!$C$58+'IND 1.2.4'!$C$62+'IND 1.2.4'!$C$66+'IND 1.2.4'!$C$69 -> 1.83 | E82: ='IND 1.1.4'!$D$35+'IND 1.1.4'!$D$39+'IND 1.1.4'!$D$43+'IND 1.1.4'!$D$47+'IND 1.1.4'!$D$51+'IND 1.1.4'!$D$55+'IND 1.1.4'!$D$59+'IND 1.1.4'!$D$63+'IND 1.1.4'!$D$67+'IND 1.1.4'!$D$70+'IND 1.2.4'!$D$34+'IND 1.2.4'!$D$38+'IND 1.2.4'!$D$42+'IND 1.2.4'!$D$46+'IND 1.2.4'!$D$50+'IND 1.2.4'!$D$54+'IND 1.2.4'!$D$58+'IND 1.2.4'!$D$62+'IND 1.2.4'!$D$66+'IND 1.2.4'!$D$69 -> 2.49 | F82: =SUM(D82:E82) -> 4.32 | G82: 55 - 59 ans | H82: =57.5*'IND 1.7.1'!$C$44 -> 57.5 | I82: =57.5*'IND 1.7.1'!$D$44 -> 0 | J82: =57.5*'IND 1.7.1'!$E$44 -> 0 | K82: 57.5 | M82: Graphique % Temps partiel hommes / femmes | Y82: Départs | GJ82: 80 | GK82: Picardie | GL82: Centre de Gestion de la Somme
B83: Catégorie B | D83: ='IND 1.1.4'!$C$34+'IND 1.1.4'!$C$38+'IND 1.1.4'!$C$42+'IND 1.1.4'!$C$46+'IND 1.1.4'!$C$50+'IND 1.1.4'!$C$54+'IND 1.1.4'!$C$58+'IND 1.1.4'!$C$62+'IND 1.1.4'!$C$66+'IND 1.1.4'!$C$69+'IND 1.2.4'!$C$33+'IND 1.2.4'!$C$37+'IND 1.2.4'!$C$41+'IND 1.2.4'!$C$45+'IND 1.2.4'!$C$49+'IND 1.2.4'!$C$53+'IND 1.2.4'!$C$57+'IND 1.2.4'!$C$61+'IND 1.2.4'!$C$65+'IND 1.2.4'!$C$68 -> 0 | E83: ='IND 1.1.4'!$D$34+'IND 1.1.4'!$D$38+'IND 1.1.4'!$D$42+'IND 1.1.4'!$D$46+'IND 1.1.4'!$D$50+'IND 1.1.4'!$D$54+'IND 1.1.4'!$D$58+'IND 1.1.4'!$D$62+'IND 1.1.4'!$D$66+'IND 1.1.4'!$D$69+'IND 1.2.4'!$D$33+'IND 1.2.4'!$D$37+'IND 1.2.4'!$D$41+'IND 1.2.4'!$D$45+'IND 1.2.4'!$D$49+'IND 1.2.4'!$D$53+'IND 1.2.4'!$D$57+'IND 1.2.4'!$D$61+'IND 1.2.4'!$D$65+'IND 1.2.4'!$D$68 -> 0 | F83: =SUM(D83:E83) -> 0 | G83: 60 - 64 ans | H83: =62.5*'IND 1.7.1'!$C$45 -> 0 | I83: =62.5*'IND 1.7.1'!$D$45 -> 0 | J83: =62.5*'IND 1.7.1'!$E$45 -> 0 | K83: 0 | AA83: Rang | AE83: % - FC +C | AF83: Fonctionnaires | AG83: Contractuels | GJ83: 16 | GK83: Poitou-Charente | GL83: Centre de Gestion de la Charente
B84: Catégorie A | D84: ='IND 1.1.4'!$C$33+'IND 1.1.4'!$C$37+'IND 1.1.4'!$C$41+'IND 1.1.4'!$C$45+'IND 1.1.4'!$C$49+'IND 1.1.4'!$C$53+'IND 1.1.4'!$C$57+'IND 1.1.4'!$C$61+'IND 1.1.4'!$C$65+'IND 1.2.4'!$C$32+'IND 1.2.4'!$C$36+'IND 1.2.4'!$C$40+'IND 1.2.4'!$C$44+'IND 1.2.4'!$C$48+'IND 1.2.4'!$C$52+'IND 1.2.4'!$C$56+'IND 1.2.4'!$C$60+'IND 1.2.4'!$C$64 -> 0 | E84: ='IND 1.1.4'!$D$33+'IND 1.1.4'!$D$37+'IND 1.1.4'!$D$41+'IND 1.1.4'!$D$45+'IND 1.1.4'!$D$49+'IND 1.1.4'!$D$53+'IND 1.1.4'!$D$57+'IND 1.1.4'!$D$61+'IND 1.1.4'!$D$65+'IND 1.2.4'!$D$32+'IND 1.2.4'!$D$36+'IND 1.2.4'!$D$40+'IND 1.2.4'!$D$44+'IND 1.2.4'!$D$48+'IND 1.2.4'!$D$52+'IND 1.2.4'!$D$56+'IND 1.2.4'!$D$60+'IND 1.2.4'!$D$64 -> 0 | F84: =SUM(D84:E84) -> 0 | G84: 65 ans ou plus | H84: =67.5*'IND 1.7.1'!$C$46 -> 0 | I84: =67.5*'IND 1.7.1'!$D$46 -> 0 | J84: =67.5*'IND 1.7.1'!$E$46 -> 0 | K84: 0 | N84: Temps plein | O84: Temps partiel | Y84: Départs "temporaires" | Z84: Rémunéré | AB84: Mise à disposition | AE84: =IF($D$69+$D$70>0,(AF84+AG84)/($AF$105+$AG$105),"") -> 0 | GJ84: 17 | GK84: Poitou-Charente | GL84: Centre de Gestion de la Charente Maritime
G85: TOTAL | H85: =SUM(H75:H84) -> 180 | I85: =SUM(I75:I84) -> 70 | J85: =SUM(J75:J84) -> 0 | K85: =SUM(K75:K84) -> 250 | M85: Hommes | N85: =('IND 1.1.2'!B90+'IND 1.2.2'!B91)/('IND 1.1.2'!J90+'IND 1.2.2'!J91) -> 1 | O85: =1-N85 -> 0 | AB85: Décharge de service | AE85: 0 | GJ85: 79 | GK85: Poitou-Charente | GL85: Centre de Gestion des Deux-Sèvres
F86: =TEXT(F82,"#,00")&" ETPR" -> 4,32 ETPR | G86: MOYENNE | H86: =$H$85/'IND 1.7.1'!$C$47 -> 45 | I86: =$I$85/'IND 1.7.1'!$D$47 -> 35 | J86: =$J$85/'IND 1.7.1'!$E$47 ->  | K86: =$K$85/('IND 1.7.1'!$C$47+'IND 1.7.1'!$D$47) -> 41.66666667 | M86: Femmes | N86: =('IND 1.1.2'!C90+'IND 1.2.2'!C91)/('IND 1.1.2'!K90+'IND 1.2.2'!K91) -> 1 | O86: =1-N86 -> 0 | AB86: Congé spécial | AE86: 0 | AK86: Nbre d'allocataire (fonctionaires) | AL86: =IF('IND 3.1.1-3.4.3'!$B$131+'IND 3.1.1-3.4.3'!$B$132=0," ",IF('IND 3.1.1-3.4.3'!$B$131+'IND 3.1.1-3.4.3'!$B$132=1,"en 2020, "&'IND 3.1.1-3.4.3'!$B$131+'IND 3.1.1-3.4.3'!$B$132&" allocataire a bénéficié de l'indemnisation du chômage (ancien fonctionnaire)",IF('IND 3.1.1-3.4.3'!$B$131+'IND 3.1.1-3.4.3'!$B$132>1,"en 2020, "&'IND 3.1.1-3.4.3'!$B$131+'IND 3.1.1-3.4.3'!$B$132&" allocataires ont bénéficié de l'indemnisation du chômage (anciens fonctionnaires)"))) ->  | GJ86: 86 | GK86: Poitou-Charente | GL86: Centre de Gestion de la Vienne
F87: =TEXT(F83,"#,00")&" ETPR" -> ,00 ETPR | Z87: Non rémunéré | AA87: =IF(AE87=0,"",RANK(AE87,$AE$87:$AE$104,0)+COUNTIF($AE$87:AE87,AE87)-1) ->  | AB87: Congé formation indemnisé | AE87: 0 | AF87: ='IND 1.5.0'!F23+'IND 1.5.0'!J23 -> 0 | AG87: ='IND 1.5.0'!F52+'IND 1.5.0'!J52 -> 0 | GJ87: 4 | GK87: Provence-Alpes-Côte d'Azur | GL87: Centre de Gestion des Alpes de Haute-Provence
F88: =TEXT(F84,"#,00")&" ETPR" -> ,00 ETPR | G88: =IF(O29<>"",O29,O31) -> 45 | AA88: =IF(AE88=0,"",RANK(AE88,$AE$87:$AE$104,0)+COUNTIF($AE$87:AE88,AE88)-1) ->  | AB88: Congé formation > à un an | AE88: 0 | AF88: ='IND 1.5.0'!F24+'IND 1.5.0'!J24 -> 0 | AG88: ='IND 1.5.0'!F53+'IND 1.5.0'!J53 -> 0 | GJ88: 5 | GK88: Provence-Alpes-Côte d'Azur | GL88: Centre de Gestion des Hautes-Alpes
AA89: =IF(AE89=0,"",RANK(AE89,$AE$87:$AE$104,0)+COUNTIF($AE$87:AE89,AE89)-1) ->  | AB89: Détachement | AE89: 0 | AF89: ='IND 1.5.0'!F25+'IND 1.5.0'!J25 -> 0 | BR89: Répartition des jours de formation | GJ89: 6 | GK89: Provence-Alpes-Côte d'Azur | GL89: Centre de Gestion des Alpes-Maritimes
AA90: =IF(AE90=0,"",RANK(AE90,$AE$87:$AE$104,0)+COUNTIF($AE$87:AE90,AE90)-1) ->  | AB90: Mise en disponibilité | AE90: 0 | AF90: ='IND 1.5.0'!F26+'IND 1.5.0'!J26 -> 0 | BR90: Catégorie A | BS90: =IF($D$69+$D$70=0, " ",BS97/BS102) -> 0 | GJ90: 13 | GK90: Provence-Alpes-Côte d'Azur | GL90: Centre de Gestion des Bouches du Rhône
AA91: =IF(AE91=0,"",RANK(AE91,$AE$87:$AE$104,0)+COUNTIF($AE$87:AE91,AE91)-1) ->  | AB91: Congé parental | AE91: 0 | AF91: ='IND 1.5.0'!F29+'IND 1.5.0'!J29 -> 0 | AG91: ='IND 1.5.0'!F54+'IND 1.5.0'!J54 -> 0 | BR91: Catégorie B | BS91: =IF($D$69+$D$70=0, " ",BS98/BS102) -> 0 | GJ91: 83 | GK91: Provence-Alpes-Côte d'Azur | GL91: Centre de Gestion du Var
AA92: =IF(AE92=0,"",RANK(AE92,$AE$87:$AE$104,0)+COUNTIF($AE$87:AE92,AE92)-1) ->  | AB92: Congés sans traitement | AE92: 0 | AG92: ='IND 1.5.0'!F55+'IND 1.5.0'!J55 -> 0 | BJ92: AJOUT RIFSEEP ? | BK92: CIA ? | BL92: HS / HC | BR92: Catégorie C | BS92: =IF($D$69+$D$70=0, " ",BS99/BS102) -> 1 | GJ92: 84 | GK92: Provence-Alpes-Côte d'Azur | GL92: Centre de Gestion du Vaucluse
Y93: Départs "définitifs" | AA93: =IF(AE93=0,"",RANK(AE93,$AE$87:$AE$104,0)+COUNTIF($AE$87:AE93,AE93)-1) -> 2 | AB93: Mutation | AE93: 0.25 | AF93: ='IND 1.5.0'!F30+'IND 1.5.0'!J30 -> 1 | GJ93: 1 | GK93: Rhône-Alpes | GL93: Centre de Gestion de l'Ain
AA94: =IF(AE94=0,"",RANK(AE94,$AE$87:$AE$104,0)+COUNTIF($AE$87:AE94,AE94)-1) ->  | AB94: Fin de détachement | AE94: 0 | AF94: ='IND 1.5.0'!F31+'IND 1.5.0'!J31 -> 0 | GJ94: 7 | GK94: Rhône-Alpes | GL94: Centre de Gestion de l'Ardèche
AA95: =IF(AE95=0,"",RANK(AE95,$AE$87:$AE$104,0)+COUNTIF($AE$87:AE95,AE95)-1) ->  | AB95: Décharge d'emploi et de fonction | AE95: 0 | AF95: ='IND 1.5.0'!F32+'IND 1.5.0'!J32 -> 0 | BR95: Nombre de jours de formation | GJ95: 26 | GK95: Rhône-Alpes | GL95: Centre de Gestion de la Drôme
AA96: =IF(AE96=0,"",RANK(AE96,$AE$87:$AE$104,0)+COUNTIF($AE$87:AE96,AE96)-1) ->  | AB96: Agent pris en charge par le CNFPT ou le CDG | AE96: 0 | AF96: ='IND 1.5.0'!F33+'IND 1.5.0'!J33 -> 0 | BJ96: Agent sur emploi permanent ayant participé à au moins une formation | BR96: Emploi permanent | GJ96: 38 | GK96: Rhône-Alpes | GL96: Centre de Gestion de l'Isère
AA97: =IF(AE97=0,"",RANK(AE97,$AE$87:$AE$104,0)+COUNTIF($AE$87:AE97,AE97)-1) ->  | AB97: Démission | AE97: 0 | AF97: ='IND 1.5.0'!F34+'IND 1.5.0'!J34 -> 0 | AG97: ='IND 1.5.0'!F56+'IND 1.5.0'!J56 -> 0 | BQ97: Catégorie A | BS97: =IF($D$69+$D$70=0,0,('IND 5.1.1'!$F$35+'IND 5.1.1'!$F$69)) -> 0 | GJ97: 42 | GK97: Rhône-Alpes | GL97: Centre de Gestion de la Loire
AA98: =IF(AE98=0,"",RANK(AE98,$AE$87:$AE$104,0)+COUNTIF($AE$87:AE98,AE98)-1) -> 1 | AB98: Fin de contrats remplacants | AE98: 0.75 | AG98: =IF('IND 1.5.0'!F57=0,'IND 1.5.0'!F58,'IND 1.5.0'!F57)+IF('IND 1.5.0'!J57=0,'IND 1.5.0'!J58,'IND 1.5.0'!J57) -> 3 | BK98: Fonctionnaires | BL98: Contractuels | BQ98: Catégorie B | BS98: =IF($D$69+$D$70=0,0,('IND 5.1.1'!$F$43+'IND 5.1.1'!$F$77)) -> 0 | GJ98: 69 | GK98: Rhône-Alpes | GL98: Centre de Gestion du Rhône
AA99: =IF(AE99=0,"",RANK(AE99,$AE$87:$AE$104,0)+COUNTIF($AE$87:AE99,AE99)-1) ->  | BJ99: Catégorie A | BK99: =IF($D$69=0," ",IF(('IND 5.1.1'!$B$12+'IND 5.1.1'!$C$12)/SUMIF(GW2:GW60,"A",GY2:GY60)>100%,100%,('IND 5.1.1'!$B$12+'IND 5.1.1'!$C$12)/SUMIF(GW2:GW60,"A",GY2:GY60))) ->  | BL99: =IF($D$70=0," ",IF(('IND 5.1.1'!$D$12+'IND 5.1.1'!$E$12)/SUMIF(GW2:GW60,"A",GZ2:GZ60)>100%,100%,('IND 5.1.1'!$D$12+'IND 5.1.1'!$E$12)/SUMIF(GW2:GW60,"A",GZ2:GZ60))) ->  | BQ99: Catégorie C | BS99: =IF($D$69+$D$70=0,0,('IND 5.1.1'!$F$51+'IND 5.1.1'!$F$85)) -> 1 | GJ99: 73 | GK99: Rhône-Alpes | GL99: Centre de Gestion de la Savoie
AA100: =IF(AE100=0,"",RANK(AE100,$AE$87:$AE$104,0)+COUNTIF($AE$87:AE100,AE100)-1) ->  | AB100: Départ à la retraite | AE100: =IF($D$69+$D$70>0,(AF100+AG100)/($AF$105+$AG$105),"") -> 0 | AF100: ='IND 1.5.0'!F35+'IND 1.5.0'!J35 -> 0 | AG100: ='IND 1.5.0'!F59+'IND 1.5.0'!J59 -> 0 | BJ100: Catégorie B | BK100: =IF($D$69=0," ",IF(('IND 5.1.1'!$B$13+'IND 5.1.1'!$C$13)/SUMIF(GW2:GW60,"B",GY2:GY60)>100%,100%,('IND 5.1.1'!$B$13+'IND 5.1.1'!$C$13)/SUMIF(GW2:GW60,"B",GY2:GY60))) ->  | BL100: =IF($D$70=0," ",IF(('IND 5.1.1'!$D$13+'IND 5.1.1'!$E$13)/SUMIF(GW2:GW60,"B",GZ2:GZ60)>100%,100%,('IND 5.1.1'!$D$13+'IND 5.1.1'!$E$13)/SUMIF(GW2:GW60,"B",GZ2:GZ60))) ->  | BQ100: Total jours format° hors hors catégorie | BS100: =SUM(BS97:BS99) -> 1 | GJ100: 74 | GK100: Rhône-Alpes | GL100: Centre de Gestion de la Haute-Savoie
AA101: =IF(AE101=0,"",RANK(AE101,$AE$87:$AE$104,0)+COUNTIF($AE$87:AE101,AE101)-1) ->  | AB101: Licenciement | AE101: =IF($D$69+$D$70>0,(AF101+AG101)/($AF$105+$AG$105),"") -> 0 | AF101: ='IND 1.5.0'!F36+'IND 1.5.0'!J36 -> 0 | AG101: ='IND 1.5.0'!F60+'IND 1.5.0'!J60 -> 0 | BJ101: Catégorie C | BK101: =IF($D$69=0," ",IF(('IND 5.1.1'!$B$14+'IND 5.1.1'!$C$14)/SUMIF(GW2:GW60,"c",GY2:GY60)>100%,100%,('IND 5.1.1'!$B$14+'IND 5.1.1'!$C$14)/SUMIF(GW2:GW60,"c",GY2:GY60))) -> 0.25 | BL101: =IF($D$70=0," ",IF(('IND 5.1.1'!$D$14+'IND 5.1.1'!$E$14)/SUMIF(GW2:GW60,"C",GZ2:GZ60)>100%,100%,('IND 5.1.1'!$D$14+'IND 5.1.1'!$E$14)/SUMIF(GW2:GW60,"C",GZ2:GZ60))) -> 0 | GJ101: 971 | GK101: Guadeloupe | GL101: Centre de Gestion de la Guadeloupe
M102: 1.4.1 Nombre d'agents originaires de la collectivité | AA102: =IF(AE102=0,"",RANK(AE102,$AE$87:$AE$104,0)+COUNTIF($AE$87:AE102,AE102)-1) ->  | AB102: Décès | AE102: =IF($D$69+$D$70>0,(AF102+AG102)/($AF$105+$AG$105),"") -> 0 | AF102: ='IND 1.5.0'!F37+'IND 1.5.0'!J37 -> 0 | AG102: ='IND 1.5.0'!F61+'IND 1.5.0'!J61 -> 0 | BJ102: Total | BK102: =IF((D69+D70)=0,"",'IND 5.1.1'!$F$15/(D69+D70)) -> 0.1666666667 | BQ102: Total toutes catégories | BS102: =('IND 5.1.1'!$F$55+'IND 5.1.1'!$F$89) -> 1 | GJ102: 972 | GK102: Martinique | GL102: Centre dee Gestion de la Martinique
N103: 1 | O103: 2 | P103: 0 | Q103: sexe | AA103: =IF(AE103=0,"",RANK(AE103,$AE$87:$AE$104,0)+COUNTIF($AE$87:AE103,AE103)-1) ->  | AB103: Autres cas | AE103: =IF($D$69+$D$70>0,(AF103+AG103)/($AF$105+$AG$105),"") -> 0 | AF103: ='IND 1.5.0'!F40+'IND 1.5.0'!J40 -> 0 | AG103: ='IND 1.5.0'!F64+'IND 1.5.0'!J64 -> 0 | GJ103: 973 | GK103: Guyane | GL103: Centre de Gestion de la Guyane
M104: au 31/12/2020 | N104: Hommes | O104: Femmes | P104: Total | Q104: position1 | T104: 7 lignes | AA104: =IF(AE104=0,"",RANK(AE104,$AE$87:$AE$104,0)+COUNTIF($AE$87:AE104,AE104)-1) ->  | AB104: Transfert de compétence | AE104: =IF($D$69+$D$70>0,(AF104+AG104)/($AF$105+$AG$105),"") -> 0 | AF104: ='IND 1.5.0'!F38+'IND 1.5.0'!J38 -> 0 | AG104: ='IND 1.5.0'!F62+'IND 1.5.0'!J62 -> 0 | BJ104: VAE | GJ104: 974 | GK104: Réunion | GL104: Centre de Gestion de la Réunion
M105: En congé parental (article 75) Fonctionnaires et contractuels | Q105: 10 | T105: 3 | U105: =IF(SUM('IND 1.4.1-1.4.4'!$B$10:$C$10)=0,"",IF(SUM('IND 1.4.1-1.4.4'!$B$10:$C$10)=1,"> Un agent en congés parental"&CHAR(10),"> "&SUM('IND 1.4.1-1.4.4'!$B$10:$C$10)&" agents en congés parental"&CHAR(10))) ->  | AB105: Totaux | AF105: =SUM(AF86:AF104) -> 1 | AG105: =SUM(AG86:AG104) -> 3 | GJ105: 976 | GK105: Mayotte | GL105: Centre de Gestion de Mayotte
M106: En disponibilité (article 72) hors ceux mis en disponibilité d'office ou bénéficiaires d'un congé équivalent pour les contractuels Fonctionnaires et contractuels | Q106: 20 | T106: 4 | U106: =IF(SUM('IND 1.4.1-1.4.4'!$B$11:$C$11)=0,"",IF(SUM('IND 1.4.1-1.4.4'!$B$11:$C$11)=1,"> Un agent en disponibilité"&CHAR(10),"> "&SUM('IND 1.4.1-1.4.4'!$B$11:$C$11)&" agents en disponibilité"&CHAR(10))) ->  | BR106: Répartition des jours de formations
M107: dont disponibilité de droit | P107: =N107+O107 -> 0 | Q107: 21 | AB107: Légende | AC107: 3 | AD107: Départs fonctionnaire | BL107: Coûts de formation | BQ107: CNFPT | BS107: =IF(BS102=0,"",('IND 5.1.1'!$B$55+'IND 5.1.1'!$C$55+'IND 5.1.1'!$B$89+'IND 5.1.1'!$C$89)/('IND 5.1.1'!$F$55+'IND 5.1.1'!$F$89)) -> 0
M108: En disponibilité d'office ou bénéficiaires d'un congé équivalent Fonctionnaires et contractuels | P108: 0 | Q108: 22 | T108: 8 | U108: =IF(SUM('IND 1.4.1-1.4.4'!$B$13:$C$15)=0,"",IF(SUM('IND 1.4.1-1.4.4'!$B$13:$C$15)=1,"> Un agent dans une autre situation (disponibilité d'office, congés spécial ou hors cadre)"&CHAR(10),"> "&SUM(SUM('IND 1.4.1-1.4.4'!$B$13:$C$15))&" agents dans d'autres situations (disponibilité d'office, congés spécial et hors cadre)"&CHAR(10))) ->  | AB108: Légende | AC108: 4 | AD108: Départs de contractuels | BK108: CNFPT | BM108: ='IND 5.1.4'!$C$11+'IND 5.1.4'!$C$12 -> 678 | BQ108: Autres organismes | BS108: =IF(BS102=0,"",('IND 5.1.1'!$E$55+'IND 5.1.1'!$E$89)/('IND 5.1.1'!$F$55+'IND 5.1.1'!$F$89)) -> 1
M109: En position hors cadres (article 70) Fonctionnaires uniquement | P109: 0 | Q109: 79 | BK109: Autres organismes | BM109: ='IND 5.1.4'!$C$13 -> 200 | BQ109: Interne | BS109: =IF(BS102=0,"",('IND 5.1.1'!$D$55+'IND 5.1.1'!$D$89)/('IND 5.1.1'!$F$55+'IND 5.1.1'!$F$89)) -> 0
M110: En congé spécial (article 99) Fonctionnaires uniquement | P110: 0 | Q110: 80 | Y110: 1.5.4 | Z110: Nomimation stagiaire au sein de la collectivité (Contractuel permanent) | AG110: ='IND 1.5.4-1.5.5'!B17+'IND 1.5.4-1.5.5'!C17 -> 0 | BK110: Collectivité | BM110: ='IND 5.1.4'!$C$14 -> 0
Z111: Nomimation stagiaire au sein de la collectivité (Contractuel non permanent) | AG111: ='IND 1.5.4-1.5.5'!B18+'IND 1.5.4-1.5.5'!C18 -> 0 | BK111: total max | BM111: =SUM(BM108:BM110) -> 878
M112: Détachés dans une autre structure (article 64) Fonctionnaires uniquement : | N112: Hommes | O112: Femmes | P112: Total | T112: 7 | U112: =IF(SUM('IND 1.4.1-1.4.4'!$B$18:$C$21)=0,"",IF(SUM('IND 1.4.1-1.4.4'!$B$18:$C$21)=1,"> Un agent détaché dans une autre structure"&CHAR(10),"> "&SUM('IND 1.4.1-1.4.4'!$B$18:$C$21)&" agents détachés dans une autre structure"&CHAR(10))) -> 
M113: Fonction publique d'Etat | P113: =N113+O113 -> 0 | Q113: 41 | Y113: Arrivées hors conctractuels déjà présents
M114: Fonction publique hospitalière | P114: =N114+O114 -> 0 | Q114: 42 | AA114: Rang | AE114: % FC + C | AF114: Fonctionnaires | AG114: Contractuels | BJ114: Rang
M115: Autre collectivité | P115: =N115+O115 -> 0 | Q115: 43 | Y115: Arrivée de fonctionnaires hors contractuels permanents déjà présents | Z115: agents non rémunérés | AA115: =IF(AE115=0,"",RANK(AE115,$AE$115:$AE$124,0)+COUNTIF($AE$115:AE115,AE115)-1) ->  | AB115: Recrutement direct | AE115: =(AF115+AG115)/($AF$126+$AG$126) -> 0 | AF115: ='IND 1.5.2'!B93+'IND 1.5.2'!D93 -> 0 | BJ115: =IF(BL115=0,"",RANK(BL115,$BL$114:$BL$125,0)+COUNTIF(BL$114:BL115,BL115)-1) ->  | BK115: Probité, intégrité (détournement, conservation de fonds, malversation, vol, dégradation, dettes, chèque sans provision) | BL115: ='IND 6.1.4'!B46+'IND 6.1.4'!C46 -> 0 | BM115: =BL115/SUM($BL$115:$BL$125) -> 
M116: Autres structures* | P116: =N116+O116 -> 0 | Q116: 44 | AA116: =IF(AE116=0,"",RANK(AE116,$AE$115:$AE$124,0)+COUNTIF($AE$115:AE116,AE116)-1) ->  | AB116: Voie de concours, sélection professionnelle | AE116: =(AF116+AG116)/($AF$126+$AG$126) -> 0 | AF116: ='IND 1.5.2'!E93+'IND 1.5.2'!G93 -> 0 | BJ116: =IF(BL116=0,"",RANK(BL116,$BL$114:$BL$125,0)+COUNTIF(BL$114:BL116,BL116)-1) ->  | BK116: Qualité de service (manquement aux sujétions du service, négligence, désobéissance hiérarchique, absence irrégulière, abandon de poste) | BL116: ='IND 6.1.4'!B47+'IND 6.1.4'!C47 -> 0 | BM116: =BL116/SUM($BL$115:$BL$125) -> 
AA117: =IF(AE117=0,"",RANK(AE117,$AE$115:$AE$124,0)+COUNTIF($AE$115:AE117,AE117)-1) ->  | BJ117: =IF(BL117=0,"",RANK(BL117,$BL$114:$BL$125,0)+COUNTIF(BL$114:BL117,BL117)-1) ->  | BK117: Atteinte à la discrétion professionnelle, au secret professionnel, au secret des correspondances, à la vie privée, à la liberté individuelle | BL117: ='IND 6.1.4'!B48+'IND 6.1.4'!C48 -> 0
M118: *Par exemple : fonction publique d'un Etat de l'Union européenne (FPEUE). | AA118: =IF(AE118=0,"",RANK(AE118,$AE$115:$AE$124,0)+COUNTIF($AE$115:AE118,AE118)-1) ->  | AB118: Intégration directe | AE118: =(AF118+AG118)/($AF$126+$AG$126) -> 0 | AF118: ='IND 1.5.2'!I93 -> 0 | BJ118: =IF(BL118=0,"",RANK(BL118,$BL$114:$BL$125,0)+COUNTIF(BL$114:BL118,BL118)-1) ->  | BK118: Incorrections, violences, insultes, harcèlement moral | BL118: ='IND 6.1.4'!B49+'IND 6.1.4'!C49 -> 0
AA119: =IF(AE119=0,"",RANK(AE119,$AE$115:$AE$124,0)+COUNTIF($AE$115:AE119,AE119)-1) ->  | AB119: Voie de mutation | AE119: 0 | AF119: ='IND 1.5.2'!J93 -> 0 | BJ119: =IF(BL119=0,"",RANK(BL119,$BL$114:$BL$125,0)+COUNTIF(BL$114:BL119,BL119)-1) ->  | BK119: Ivresse | BL119: ='IND 6.1.4'!B50+'IND 6.1.4'!C50 -> 0
M120: Détachés au sein de leur propre collectivité : Fonctionnaires uniquement | N120: Hommes | O120: Femmes | P120: Total | T120: 6 | U120: =IF(SUM('IND 1.4.1-1.4.4'!$B$26:$C$28)=0,"",IF(SUM('IND 1.4.1-1.4.4'!$B$26:$C$28)=1,"> Un agent détaché au sein de la collectivité"&CHAR(10),"> "&SUM('IND 1.4.1-1.4.4'!$B$26:$C$28)&" agents détachés au sein de la collectivité"&CHAR(10))) ->  | AA120: =IF(AE120=0,"",RANK(AE120,$AE$115:$AE$124,0)+COUNTIF($AE$115:AE120,AE120)-1) ->  | AB120: Voie de détachement | AE120: 0 | AF120: =SUM('IND 1.5.2'!K93:N93) -> 0 | BJ120: =IF(BL120=0,"",RANK(BL120,$BL$114:$BL$125,0)+COUNTIF(BL$114:BL120,BL120)-1) ->  | BK120: Mœurs (dont harcèlement sexuel) | BL120: ='IND 6.1.4'!B51+'IND 6.1.4'!C51 -> 0
M121: Détachés sur un emploi fonctionnel dans leur collectivité | P121: =N121+O121 -> 0 | Q121: 51 | AA121: =IF(AE121=0,"",RANK(AE121,$AE$115:$AE$124,0)+COUNTIF($AE$115:AE121,AE121)-1) ->  | AB121: Transfert de compétence | AE121: 0 | AF121: ='IND 1.5.2'!O93 -> 0 | BJ121: =IF(BL121=0,"",RANK(BL121,$BL$114:$BL$125,0)+COUNTIF(BL$114:BL121,BL121)-1) ->  | BK121: Manquement à l'obligation de laïcité, atteinte au principe de neutralité, discrimination, manquement à l'obligation de réserve | BL121: ='IND 6.1.4'!B52+'IND 6.1.4'!C52 -> 0
M122: Détachés sur un emploi de cabinet dans leur collectivité | P122: =N122+O122 -> 0 | Q122: 52 | AA122: =IF(AE122=0,"",RANK(AE122,$AE$115:$AE$124,0)+COUNTIF($AE$115:AE122,AE122)-1) ->  | AB122: Réintégration et retour | AE122: 0 | AF122: ='IND 1.5.2'!P93+'IND 1.5.2'!Q93 -> 0 | AG122: ='IND 1.5.3'!F13 -> 0 | BJ122: =IF(BL122=0,"",RANK(BL122,$BL$114:$BL$125,0)+COUNTIF(BL$114:BL122,BL122)-1) ->  | BK122: Conflit d'intérêt, trafic d'influence, prise illégale d'intérêts | BL122: ='IND 6.1.4'!B53+'IND 6.1.4'!C53 -> 0
M123: Changement de filière | P123: =N123+O123 -> 0 | Q123: 53 | AA123: =IF(AE123=0,"",RANK(AE123,$AE$115:$AE$124,0)+COUNTIF($AE$115:AE123,AE123)-1) ->  | AB123: Arrivées de contractuels | AE123: 0 | AG123: ='IND 1.5.3'!F98 -> 0 | BJ123: =IF(BL123=0,"",RANK(BL123,$BL$114:$BL$125,0)+COUNTIF(BL$114:BL123,BL123)-1) ->  | BK123: Exercice d'une activité privée rémunérée sans autorisation | BL123: ='IND 6.1.4'!B54+'IND 6.1.4'!C54 -> 0
AA124: =IF(AE124=0,"",RANK(AE124,$AE$115:$AE$124,0)+COUNTIF($AE$115:AE124,AE124)-1) -> 1 | AB124: Remplacements (contractuels) | AE124: 1 | AG124: ='IND 1.5.3'!F12 -> 4 | BJ124: =IF(BL124=0,"",RANK(BL124,$BL$114:$BL$125,0)+COUNTIF(BL$114:BL124,BL124)-1) ->  | BK124: Comportement privé affectant le renom du service, condamnation pénale (pour manquements non mentionnés dans les colonnes précédentes) | BL124: ='IND 6.1.4'!B55+'IND 6.1.4'!C55 -> 0
M125: Mis à disposition dans une autre structure (articles 61 et 136) Fonctionnaires et contractuels | N125: Hommes | O125: Femmes | P125: Total | Z125: agents rémunérés | AB125: Retours d'agents en positions particulières ayant été rémunérés pendant la période d'absence | AE125: 0 | AF125: ='IND 1.5.2'!R93 -> 0 | AG125: ='IND 1.5.3'!F14 -> 0 | BJ125: =IF(BL125=0,"",RANK(BL125,$BL$114:$BL$125,0)+COUNTIF(BL$114:BL125,BL125)-1) ->  | BK125: Autres | BL125: ='IND 6.1.4'!B56+'IND 6.1.4'!C56 -> 0
M126: Ensemble | P126: =N126+O126 -> 0 | Q126: 70 | T126: 2 | U126: =IF(SUM('IND 1.4.1-1.4.4'!$B$31:$C$31)=0,"",IF(SUM('IND 1.4.1-1.4.4'!$B$31:$C$31)=1,"> Un agent mis à disposition dans une autre structure"&CHAR(10),"> "&SUM('IND 1.4.1-1.4.4'!$B$31:$C$31)&" agents mis à disposition dans une autre structure"&CHAR(10))) ->  | AB126: Totaux | AF126: =SUM(AF115:AF124) -> 0 | AG126: =SUM(AG115:AG124) -> 4
M127: dont mis à disposition d'une organisation syndicale | P127: =N127+O127 -> 0 | Q127: 71
Y128: 1.5.2 | AA128: 5 | AB128: recrutement direct | AF128: ='IND 1.5.2'!C93 -> 0
AB129: lauréat concours | AF129: ='IND 1.5.2'!F93 -> 0
AB130: Article 38 | AF130: ='IND 1.5.2'!H93 -> 0
M131: 1.4.2 Nombre d'agents originaires d'une autre structure
AB132: Légende | AC132: 1 | AD132: Arrivées fonctionnaire
M133: au 31/12/2020 | N133: Emploi non fonctionnel | P133: Emploi fonctionnel | R133: Emploi de cabinet | AB133: Légende | AC133: 2 | AD133: Arrivées de contractuels
N134: Hommes | O134: Femmes | P134: Hommes | Q134: Femmes | R134: Hommes | S134: Femmes | T134: 5 | U134: =IF(SUM(synthese!Valeur_142)=0,"",IF(SUM(synthese!Valeur_142)=1,"> Un agent détaché dans la collectivité et originaire d'une autre structure"&CHAR(10),"> "&SUM(synthese!Valeur_142)&" agents détachés dans la collectivité et originaires d'une autre structure"&CHAR(10))) -> 
M135: Détachés dans votre collectivité et issus de :
M136: Fonction publique d'Etat
M137: Fonction publique hospitalière
M138: Autre collectivité | Z138: Effectif 31/12/N-1 | AA138: Arrivée | AC138: Contractuels nommés stagiaires | AE138: Départ | AG138: Effectif 31/12/N | AH138: Variation
M139: Autres structures*
N140: 1 | O140: 2 | P140: 1 | Q140: 2 | R140: 1 | S140: 2 | X140: Emploi permanent | Z140: =AG140+AE140-AA140 -> 6 | AA140: =SUM(AF115:AG124) -> 4 | AC140: - | AE140: =SUM(AF87:AG104) -> 4 | AG140: =D69+D70 -> 6 | AH140: =IF(AND(Z140=0,AG140=0),"",IF(AND(Z140=0,AG140<>0),IF(AG140<2,"1 agent",AG140 & " agents"),(AG140-Z140)/Z140)) -> 0
M141: *par exemple : fonction publique d'un Etat de l'Union européenne (FPEUE).
X142: Fonctionnaire | Z142: =AG142+AE142-AC142-AA142 -> 5 | AA142: =SUM(AF115:AF124) -> 0 | AC142: =SUM(AF128:AF130) -> 0 | AE142: =SUM(AF87:AF104) -> 1 | AG142: =D69 -> 4 | AH142: =IF(AND(Z142=0,AG142=0),"",IF(AND(Z142=0,AG142<>0),IF(AG142<2,"1 agent",AG142 & " agents"),(AG142-Z142)/Z142)) -> -0.2
M143: 1.4.3 Nombre d'agents originaires d'une autre structure mis à disposition (*)
N144: 1 | O144: 1 | P144: 2 | Q144: 2 | R144: statut1 | X144: Contractuels | Z144: =AG144+AC144+AE144-AA144 -> 1 | AA144: =SUM(AG115:AG124) -> 4 | AC144: =SUM(AF128:AF130) -> 0 | AE144: =SUM(AG87:AG104) -> 3 | AG144: =D70 -> 2 | AH144: =IF(AND(Z144=0,AG144=0),"",IF(AND(Z144=0,AG144<>0),IF(AG144<2,"1 agent",AG144 & " agents"),(AG144-Z144)/Z144)) -> 1
M145: au 31/12/2020 | N145: Fonctionnaires | P145: Contractuels sur emploi permanent | R145: position3 | AI145: Rémunération
N146: Hommes | O146: Femmes | P146: Hommes | Q146: Femmes | AK146: Catégorie A | AO146: Catégorie B | AR146: Catégorie C
M147: Mis à disposition de votre collectivité | R147: 1 | T147: 1 | U147: =IF(SUM('IND 1.4.1-1.4.4'!$B$52:$E$52)=0,"",IF(SUM('IND 1.4.1-1.4.4'!$B$52:$E$52)=1,"> Un agent mis à disposition dans la collectivité"&CHAR(10),"> "&SUM('IND 1.4.1-1.4.4'!$B$52:$E$52)&" agents mis à disposition dans la collectivité"&CHAR(10))) ->  | AK147: Titulaire | AN147: Contractuel | AO147: Titulaire | AP147: Contractuel | AR147: Titulaire | AT147: Contractuel
M148: dont originaire de la fonction publique d'Etat | R148: 2 | AI148: Administrative | AK148: =SUM('IND 3.1.1-3.4.3'!$B$20:$C$20) -> 0 | AN148: =SUM('IND 3.1.1-3.4.3'!$B$68:$C$68) -> 0 | AO148: =SUM('IND 3.1.1-3.4.3'!$B$21:$C$21) -> 0 | AP148: =SUM('IND 3.1.1-3.4.3'!$B$69:$C$69) -> 0 | AR148: =SUM('IND 3.1.1-3.4.3'!$B$22:$C$22) -> 22085 | AT148: =SUM('IND 3.1.1-3.4.3'!$B$70:$C$70) -> 3862
N149: 1 | O149: 2 | P149: 1 | Q149: 2 | R149: sexe | AI149: Technique | AK149: =SUM('IND 3.1.1-3.4.3'!$B$24:$C$24) -> 0 | AN149: =SUM('IND 3.1.1-3.4.3'!$B$72:$C$72) -> 0 | AO149: =SUM('IND 3.1.1-3.4.3'!$B$25:$C$25) -> 0 | AP149: =SUM('IND 3.1.1-3.4.3'!$B$73:$C$73) -> 0 | AR149: =SUM('IND 3.1.1-3.4.3'!$B$26:$C$26) -> 69909 | AT149: =SUM('IND 3.1.1-3.4.3'!$B$74:$C$74) -> 10372
M150: (*) Décret n° 2008-580 du 18 juin 2008 relatif au régime de la mise à disposition applicable aux collectivités territoriales et aux établissements publics administratifs locaux. | AI150: Culturelle | AK150: =SUM('IND 3.1.1-3.4.3'!$B$28:$C$28) -> 0 | AN150: =SUM('IND 3.1.1-3.4.3'!$B$76:$C$76) -> 0 | AO150: =SUM('IND 3.1.1-3.4.3'!$B$29:$C$29) -> 0 | AP150: =SUM('IND 3.1.1-3.4.3'!$B$77:$C$77) -> 0 | AR150: =SUM('IND 3.1.1-3.4.3'!$B$30:$C$30) -> 0 | AT150: =SUM('IND 3.1.1-3.4.3'!$B$78:$C$78) -> 0
AI151: Sportive | AK151: =SUM('IND 3.1.1-3.4.3'!$B$32:$C$32) -> 0 | AN151: =SUM('IND 3.1.1-3.4.3'!$B$80:$C$80) -> 0 | AO151: =SUM('IND 3.1.1-3.4.3'!$B$33:$C$33) -> 0 | AP151: =SUM('IND 3.1.1-3.4.3'!$B$81:$C$81) -> 0 | AR151: =SUM('IND 3.1.1-3.4.3'!$B$34:$C$34) -> 0 | AT151: =SUM('IND 3.1.1-3.4.3'!$B$82:$C$82) -> 0
M152: 1.4.4 Fonctionnaires pris en charge par le CDG ou le CNFPT (articles 53 et 97) | AI152: Médico-sociale | AK152: =SUM('IND 3.1.1-3.4.3'!$B$36:$C$36)+SUM('IND 3.1.1-3.4.3'!$B40:$C$40)+SUM('IND 3.1.1-3.4.3'!$B$44:$C$44) -> 0 | AN152: =SUM('IND 3.1.1-3.4.3'!$B$84:$C$84)+SUM('IND 3.1.1-3.4.3'!$B88:$C$88)+SUM('IND 3.1.1-3.4.3'!$B$92:$C$92) -> 0 | AO152: =SUM('IND 3.1.1-3.4.3'!$B$37:$C$37)+SUM('IND 3.1.1-3.4.3'!$B41:$C$41)+SUM('IND 3.1.1-3.4.3'!$B$45:$C$45) -> 0 | AP152: =SUM('IND 3.1.1-3.4.3'!$B$85:$C$85)+SUM('IND 3.1.1-3.4.3'!$B89:$C$89)+SUM('IND 3.1.1-3.4.3'!$B$93:$C$93) -> 0 | AR152: =SUM('IND 3.1.1-3.4.3'!$B$38:$C$38)+SUM('IND 3.1.1-3.4.3'!$B42:$C$42)+SUM('IND 3.1.1-3.4.3'!$B$46:$C$46) -> 0 | AT152: =SUM('IND 3.1.1-3.4.3'!$B$86:$C$86)+SUM('IND 3.1.1-3.4.3'!$B90:$C$90)+SUM('IND 3.1.1-3.4.3'!$B$94:$C$94) -> 0
AI153: Police | AK153: =SUM('IND 3.1.1-3.4.3'!$B$48:$C$48) -> 0 | AN153: =SUM('IND 3.1.1-3.4.3'!$B$96:$C$96) -> 0 | AO153: =SUM('IND 3.1.1-3.4.3'!$B$49:$C$49) -> 0 | AP153: =SUM('IND 3.1.1-3.4.3'!$B$97:$C$97) -> 0 | AR153: =SUM('IND 3.1.1-3.4.3'!$B$50:$C$50) -> 0 | AT153: =SUM('IND 3.1.1-3.4.3'!$B$98:$C$98) -> 0
M154: Remarque : seuls le CNFPT et les CDG doivent renseigner cet indicateur | AI154: Incendie | AK154: =SUM('IND 3.1.1-3.4.3'!$B$52:$C$52) -> 0 | AN154: =SUM('IND 3.1.1-3.4.3'!$B$100:$C$100) -> 0 | AO154: =SUM('IND 3.1.1-3.4.3'!$B$53:$C$53) -> 0 | AP154: =SUM('IND 3.1.1-3.4.3'!$B$101:$C$101) -> 0 | AR154: =SUM('IND 3.1.1-3.4.3'!$B$54:$C$54) -> 0 | AT154: =SUM('IND 3.1.1-3.4.3'!$B$102:$C$102) -> 0
N155: 1 | O155: 2 | P155: 0 | Q155: sexe | AI155: Animation | AO155: =SUM('IND 3.1.1-3.4.3'!$B$56:$C$56) -> 0 | AP155: =SUM('IND 3.1.1-3.4.3'!$B$104:$C$104) -> 0 | AR155: =SUM('IND 3.1.1-3.4.3'!$B$57:$C$57) -> 0 | AT155: =SUM('IND 3.1.1-3.4.3'!$B$105:$C$105) -> 0
M156: au 31/12/2020 | N156: Hommes | O156: Femmes | P156: Total | Q156: position4 | AI156: total | AK156: =SUM(AK148:AL155) -> 0 | AN156: =SUM(AN148:AN155) -> 0 | AO156: =SUM(AO148:AO155) -> 0 | AP156: =SUM(AP148:AQ155) -> 0 | AR156: =SUM(AR148:AR155) -> 91994 | AT156: =SUM(AT148:AT155) -> 14234 | AU156: =SUM(AU148:AU155) -> 0
M157: Depuis moins d'1 an | P157: =SUM(N157:O157) -> 0 | Q157: 1
M158: De 1 an à moins de 2 ans | P158: =SUM(N158:O158) -> 0 | Q158: 2 | AI158: ETPR
M159: De 2 ans à moins de 5 ans | P159: =SUM(N159:O159) -> 0 | Q159: 3 | AK159: Catégorie A | AO159: Catégorie B | AR159: Catégorie C
M160: 5 ans et plus | P160: =SUM(N160:O160) -> 0 | Q160: 4 | AK160: Titulaire | AN160: Contractuel | AO160: Titulaire | AP160: Contractuel | AR160: Titulaire | AT160: Contractuel
AI161: Administrative | AK161: =SUM('IND 1.1.4'!$C$33:$D$33) -> 0 | AN161: =SUM('IND 1.2.4'!$C$32:$D$32) -> 0 | AO161: =SUM('IND 1.1.4'!$C$34:$D$34) -> 0 | AP161: =SUM('IND 1.2.4'!$C$33:$D$33) -> 0 | AR161: =SUM('IND 1.1.4'!$C$35:$D$35) -> 0.88 | AT161: =SUM('IND 1.2.4'!$C$34:$D$34) -> 0.17
AI162: Technique | AK162: =SUM('IND 1.1.4'!$C$37:$D$37) -> 0 | AN162: =SUM('IND 1.2.4'!$C$36:$D$36) -> 0 | AO162: =SUM('IND 1.1.4'!$C$38:$D$38) -> 0 | AP162: =SUM('IND 1.2.4'!$C$37:$D$37) -> 0 | AR162: =SUM('IND 1.1.4'!$C$39:$D$39) -> 2.75 | AT162: =SUM('IND 1.2.4'!$C$38:$D$38) -> 0.52
AI163: Culturelle | AK163: =SUM('IND 1.1.4'!$C$41:$D$41) -> 0 | AN163: =SUM('IND 1.2.4'!$C$40:$D$40) -> 0 | AO163: =SUM('IND 1.1.4'!$C$42:$D$42) -> 0 | AP163: =SUM('IND 1.2.4'!$C$41:$D$41) -> 0 | AR163: =SUM('IND 1.1.4'!$C$43:$D$43) -> 0 | AT163: =SUM('IND 1.2.4'!$C$42:$D$42) -> 0
AI164: Sportive | AK164: =SUM('IND 1.1.4'!$C$45:$D$45) -> 0 | AN164: =SUM('IND 1.2.4'!$C$44:$D$44) -> 0 | AO164: =SUM('IND 1.1.4'!$C$46:$D$46) -> 0 | AP164: =SUM('IND 1.2.4'!$C$45:$D$45) -> 0 | AR164: =SUM('IND 1.1.4'!$C$47:$D$47) -> 0 | AT164: =SUM('IND 1.2.4'!$C$46:$D$46) -> 0
AI165: Médico-sociale | AK165: =SUM('IND 1.1.4'!$C$49:$D$49)+SUM('IND 1.1.4'!$C$53:$D$53)+SUM('IND 1.1.4'!$C$57:$D$57) -> 0 | AN165: =SUM('IND 1.2.4'!$C$48:$D$48)+SUM('IND 1.2.4'!$C$52:$D$52)+SUM('IND 1.2.4'!$C$56:$D$56) -> 0 | AO165: =SUM('IND 1.1.4'!$C$50:$D$50)+SUM('IND 1.1.4'!$C$54:$D$54)+SUM('IND 1.1.4'!$C$58:$D$58) -> 0 | AP165: =SUM('IND 1.2.4'!$C$49:$D$49)+SUM('IND 1.2.4'!$C$53:$D$53)+SUM('IND 1.2.4'!$C$57:$D$57) -> 0 | AR165: =SUM('IND 1.1.4'!$C$51:$D$51)+SUM('IND 1.1.4'!$C$55:$D$55)+SUM('IND 1.1.4'!$C$59:$D$59) -> 0 | AT165: =SUM('IND 1.2.4'!$C$50:$D$50)+SUM('IND 1.2.4'!$C$54:$D$54)+SUM('IND 1.2.4'!$C$58:$D$58) -> 0
AI166: Police | AK166: =SUM('IND 1.1.4'!$C$61:$D$61) -> 0 | AN166: =SUM('IND 1.2.4'!$C$60:$D$60) -> 0 | AO166: =SUM('IND 1.1.4'!$C$62:$D$62) -> 0 | AP166: =SUM('IND 1.2.4'!$C$61:$D$61) -> 0 | AR166: =SUM('IND 1.1.4'!$C$63:$D$63) -> 0 | AT166: =SUM('IND 1.2.4'!$C$62:$D$62) -> 0
AI167: Incendie | AK167: =SUM('IND 1.1.4'!$C$65:$D$65) -> 0 | AN167: =SUM('IND 1.2.4'!$C$64:$D$64) -> 0 | AO167: =SUM('IND 1.1.4'!$C$66:$D$66) -> 0 | AP167: =SUM('IND 1.2.4'!$C$65:$D$65) -> 0 | AR167: =SUM('IND 1.1.4'!$C$67:$D$67) -> 0 | AT167: =SUM('IND 1.2.4'!$C$66:$D$66) -> 0
AI168: Animation | AO168: =SUM('IND 1.1.4'!$C$69:$D$69) -> 0 | AP168: =SUM('IND 1.2.4'!$C$68:$D$68) -> 0 | AR168: =SUM('IND 1.1.4'!$C$70:$D$70) -> 0 | AT168: =SUM('IND 1.2.4'!$C$69:$D$69) -> 0
AI169: total | AK169: =SUM(AK161:AL168) -> 0 | AN169: =SUM(AN161:AN168) -> 0 | AO169: =SUM(AO161:AO168) -> 0 | AP169: =SUM(AP161:AQ168) -> 0 | AR169: =SUM(AR161:AR168) -> 3.63 | AT169: =SUM(AT161:AT168) -> 0.69 | AU169: =SUM(AU161:AU168) -> 0
AJ173: RIFSEEP
AJ174: Contractuels | AK174: =IF('IND 3.1.1-3.4.3'!$F$62="Oui","et pour les contractuels","") -> 

Sheet Page de garde
A2: NOM DE LA COLLECTIVITE TERRITORIALE :
A3: COMMUNE D AUSSAC
A6: Nom du correspondant : | G6: CROIZARD
A8: N° Département : | F8: 16 | P8: Téléphone : | T8: 0545206160
A10: Code postal : | F10: 16560 | P10: Adresse mail : | T10: mairie@aussac-vadalle.fr
A13: RAPPORT SOCIAL UNIQUE
A14: PRÉSENTÉ AU COMITÉ TECHNIQUE ET À l'ASSEMBLÉE DÉLIBÉRANTE
A15: AU 31 DECEMBRE 2020
A17: LISTE NORMALISÉE DES INFORMATIONS DISPONIBLES
A19: Conformément à la loi du 6 août 2020 et au décret n° 2020-1493 du 30 novembre 2020 relatif à la base de données sociales et au rapport social unique dans la fonction publique
A23: Informations complémentaires pour l'exploitation statistique du rapport
A26: N° SIRET de la collectivité : | H26: 21160024200013
A29: Type de collectivité : | H29: 06 - Commune (y compris commune nouvelle)
A33: Veuillez préciser (en cochant les cases concernées avec x) :
A35: . La collectivité… | Y35: oui | AA35: non
A37: * Est-elle affiliée au Centre de gestion ? | Y37: X
A39: * Dispose-t-elle de son propre CT ? | AA39: X
A43: . Pour les OPHLM et les ODHLM, le nombre de logements gérés | V43: 0
A48: 01 - Région (y compris collectivités territoriales uniques de Martinique, de Guyane et de Corse)
A49: 02 - Département
A50: 03 - Service départemental d'incendie et de secours
A51: 04 - Centre de gestion de la fonction publique territoriale
A52: 05 - Centre national de la fonction publique territoriale
A53: 06 - Commune (y compris commune nouvelle)
A54: 07 - Centre communal d'action sociale (CCAS)
A55: 08 - Caisse des écoles (CDE)
A56: 09 - Caisse de crédit municipal
A57: 10 - Métropole (y compris métropole de Lyon)
A58: 11 - Communauté urbaine
A59: 12 - Communauté d'agglomération
A60: 13 - Communauté de communes
A61: 14 - Centre intercommunal d'action sociale (CIAS)
A62: 15 - Syndicat de communes à vocation multiple
A63: 16 - Syndicat de communes à vocation unique
A64: 17 - Syndicat mixte
A65: 18 - Pôle d'équilibre territorial et rural (PETR)
A66: 19 - Office public de l'habitat (OPHLM - ODHLM)
A67: 20 - Pôle métropolitain
A68: 21 - Autre établissement public intercommunal
A69: 22 - Autre

Sheet Handitorial (hidden)
A758: Entre 4 et 6 ans | C758: Entre 7 et 12 ans | E758: Plus de 12 ans
A759: Homme | B759: Femme | C759: Homme | D759: Femme | E759: Homme | F759: Femme
A760: 0 | B760: 0 | C760: 0 | D760: 0 | E760: 0 | F760: 0

Sheet RASSCT (hidden)

Sheet RASSCT (actions) (2) (hidden)

Sheet RASSCT (actions) (3) (hidden)

Sheet RASSCT (actions) (4) (hidden)

Sheet RASSCT (actions) (5) (hidden)

Sheet GPEEC (hidden)

Sheet Sommaire
A1: Sommaire
A3: Cliquez dans la colonne "onglet" pour accéder directement à l'onglet désiré. | B3: Onglet
A5: 1 - EFFECTIFS
A7: Fiche 1.1.0 - Nombre d'agents occupant un emploi fonctionnel rémunérés au 31/12/2020, par statut, cadre d'emplois, sexe et grade de détachement | B7: Fiche 1.1.0
A8: - IND 1.1.0 - Nombre d'agents occupant un emploi fonctionnel rémunérés au 31/12/2020, par statut d'origine, cadre d'emplois, sexe et grade de détachement | B8: IND 1.1.0
A10: Fiche 1.1.1 - Nombre de fonctionnaires occupant un emploi permanent rémunérés au 31/12/2020 par filière, cadre d'emplois et grade, selon les caractéristiques de l'emploi et selon le sexe | B10: Fiche 1.1.1
A11: - IND 1.1.1 - Nombre de fonctionnaires occupant un emploi permanent rémunérés au 31/12/2020 par filière, cadre d'emploi et grade, selon les caractéristiques de l'emploi et selon le sexe | B11: IND 1.1.1
A13: Fiche 1.1.2 - Nombre de fonctionnaires occupant un emploi permanent à temps complet rémunérés au 31/12/2020 par filière, cadre d'emplois et selon la quotité de temps de travail et le sexe | B13: Fiche 1.1.2
A14: - IND 1.1.2 - Nombre de fonctionnaires occupant un emploi permanent à temps complet rémunérés au 31/12/2020 par filière, cadre d'emplois et selon la quotité de temps de travail et le sexe | B14: IND 1.1.2
A16: Fiche 1.1.3 - Nombre de fonctionnaires bénéficiaires d'un temps partiel de droit ou sur autorisation par catégorie et sexe | B16: Fiche 1.1.3
A17: - IND 1.1.3 - Nombre de fonctionnaires bénéficiaires d'un temps partiel de droit ou sur autorisation par catégorie et sexe | B17: IND 1.1.3
A19: - IND 1.1.4 - Nombre de fonctionnaires en Equivalent Temps Plein Rémunéré (ETPR) en 2020 par filière déclinée par catégorie hiérarchique et par sexe | B19: IND 1.1.4
A21: Fiche 1.2.1 - Effectifs des agents contractuels occupant un emploi permanent rémunérés au 31/12/2020 par filière et cadre d'emplois, selon le type de contrat, le type de recrutement | B21: Fiche 1.2.1
A22: - IND 1.2.1 - Effectifs des agents contractuels occupant un emploi permanent rémunérés au 31/12/2020 par filière et cadre d'emplois, selon le type de contrat et le type de recrutement | B22: IND 1.2.1
A24: Fiche 1.2.2 - Nombre d'agents contractuels rémunérés au 31/12/2020 occupant un emploi permanent à temps complet par filières, cadre d'emplois, selon la quotité de travail et le sexe | B24: Fiche 1.2.2
A25: - IND 1.2.2 - Nombre d'agents contractuels rémunérés au 31/12/2020 occupant un emploi permanent à temps complet par filières et cadres d'emplois, selon la quotité de temps de travail et le sexe | B25: IND 1.2.2
A27: Fiche 1.2.3 - Nombre d'agents contractuels bénéficiaires d'un temps partiel de droit ou sur autorisation rémunérés au 31/12/2020, par catégorie et sexe | B27: Fiche 1.2.3
A28: - IND 1.2.3 - Nombre d'agents contractuels rémunérés bénéficiaires d'un temps partiel de droit ou sur autorisation rémunérés au 31/12/2020, par catégorie et sexe | B28: IND 1.2.3
A29: - IND 1.2.4 - Nombre de contractuels en Equivalent Temps Plein Rémunéré (ETPR) en 2020 par filière déclinée par catégorie et par sexe | B29: IND 1.2.4
A31: Fiche 1.3.1 - 1.3.2 - Autres personnels | B31: Fiche 1.3.1-1.3.2
A32: - IND 1.3.1 - Autres contractuels sur emploi non permanent, en effectif physique et en ETPR, selon le sexe | B32: IND 1.3.1
A33: - IND 1.3.2 - Recours à du personnel temporaire (mis à disposition par CDG décliné par filière et intérim), selon le sexe | B33: IND 1.3.2
A35: Fiche 1.4.1 - 1.4.4 - Nombre d'agents selon les positions statutaires particulières et par sexe, au 31/12/2020 | B35: Fiche 1.4.1-1.4.4
A36: - IND 1.4.1 - Nombre d'agents originaires de la collectivité | B36: IND 1.4.1-1.4.4
A37: - IND 1.4.2 - Nombre d'agents originaires d'une autre structure détachés dans la collectivité | B37: IND 1.4.1-1.4.4
A38: - IND 1.4.3 - Nombre d'agents originaires d'une autre structure mis à disposition | B38: IND 1.4.1-1.4.4
A39: - IND 1.4.4 - Fonctionnaires pris en charge par le CDG ou le CNFPT (articles 53 et 97) | B39: IND 1.4.1-1.4.4
A41: Fiche 1.5.0 - Départs dans l'année 2020 | B41: Fiche 1.5.0
A42: - IND 1.5.0 - Départs dans l'année 2020, par motif de départ et selon le sexe et la catégorie | B42: IND 1.5.0
A44: Fiche 1.5.1 - Arrivées d'agents sur emploi fonctionnel, au cours de l'année 2020 | B44: Fiche 1.5.1
A45: - IND 1.5.1 - Arrivées d'agents sur emploi fonctionnel au cours de l'année 2020, par statut d'origine, selon le grade de détachement et le sexe | B45: IND 1.5.1
A47: Fiche 1.5.2 - Arrivées de fonctionnaires dans l'année 2020 | B47: Fiche 1.5.2
A48: - IND 1.5.2 - Arrivées de fonctionnaires dans l'année 2020, par cadre d'emplois, selon le motif de recrutement | B48: IND 1.5.2
A50: Fiche 1.5.3 - Arrivées de contractuels sur emploi permanent dans l'année 2020 | B50: Fiche 1.5.3
A51: - IND 1.5.3 - Arrivées de contractuels sur emploi permanent dans l'année 2020, par filière et cadre d'emplois, selon les caractéristiques de l'emploi et le sexe | B51: IND 1.5.3
A53: Fiche 1.5.4-1.5.7 - Titularisations, avancements, accompagnements professionnels dans l'année 2020 | B53: Fiche 1.5.4-1.5.7
A54: - IND 1.5.4 - Titularisation et stages au cours de l'année 2020 | B54: IND 1.5.4-1.5.5
A55: - IND 1.5.5 - Avancements dans l'année 2020 | B55: IND 1.5.4-1.5.5
A56: - IND 1.5.6 - Avancements de grade dans l'année 2020 par filière et catégorie hiérarchique | B56: IND 1.5.6
A57: - IND 1.5.7 - Nombre d'agents (fonctionnaires et contractuels sur emploi permanent) ayant bénéficié d'un accompagnement par un conseiller en évolution professionnelle | B57: IND 1.5.7
A59: Fiche 1.6.1 - 1.6.2 - Bénéficiaires de l'obligation d'emploi (travailleurs en situation de handicap) | B59: Fiche 1.6.1-1.6.2
A60: - IND 1.6.1 - Nombre d'agents en situation de handicap par catégorie hiérarchique, statut et sexe, rémunérés au 31/12/2020 | B60: IND 1.6.1
A61: - IND 1.6.2 - Respect des obligations d'emploi : dépenses couvrant partiellement l'obligation d'emploi et taux d'emploi | B61: IND 1.6.2
A63: - IND 1.7.1 - Répartition par sexe et tranche d'âge des effectifs des fonctionnaires et des contractuels présents dans les effectifs au 31/12/2020 | B63: IND 1.7.1
A65: 2 - TEMPS DE TRAVAIL
A67: Fiche 2.1.0 - Nombre de jours accordés pour l'ensemble des agents | B67: Fiche 2.1.0
A68: - IND 2.1.0 - Nombre de journées de congés supplémentaires accordées à l'ensemble des agents | B68: IND 2.1.0
A69: - IND 2.1.1 - Nombre de fonctionnaires ayant été absents au moins un jour dans l'année par motif (hors formation, journées de grève et absences syndicales), présents dans les effectifs au 31/12/2020 | B69: IND 2.1.1
A70: - IND 2.1.2 - Nombre de contractuels sur emploi permanent ayant été absents au moins un jour dans l'année par motif (hors formation, journées de grève et absences syndicales), présents au 31/12/2020 | B70: IND 2.1.2
A71: - IND 2.1.3 - Nombre de contractuels sur emploi non permanent ayant été absents au moins un jour dans l'année, par motif (hors formation, journées de grève et absences syndicales), présents au 31/12/2020 | B71: IND 2.1.3
A72: - IND 2.1.4 - Congés de paternité et d'accueil de l'enfant des agents FONCTIONNAIRES ET CONTRACTUELS, par catégorie hiérarchique | B72: IND 2.1.4-2.1.6
A73: - IND 2.1.5 - Congés de présence parentale des FONCTIONNAIRES ET CONTRACTUELS, par catégorie hiérarchique | B73: IND 2.1.4-2.1.6
A74: - IND 2.1.6 - Congés de solidarité familiale des FONCTIONNAIRES ET CONTRACTUELS, par catégorie hiérarchique | B74: IND 2.1.4-2.1.6
A75: - IND 2.1.7 - Entretiens avant et après des congés de six mois ou plus | B75: IND 2.1.7
A77: Fiche 2.2.1 - 2.2.7 - Temps de travail | B77: Fiche 2.2.1-2.2.7
A78: - IND 2.2.1 - Modalités d'organisation du temps de travail | B78: IND 2.2.1-2.2.4
A79: - IND 2.2.2 - Contraintes particulières concernant le temps de travail | B79: IND 2.2.1-2.2.4
A80: - IND 2.2.3 - Compte épargne-temps | B80: IND 2.2.1-2.2.4
A81: - IND 2.2.4 - Télétravail | B81: IND 2.2.1-2.2.4
A82: - IND 2.2.5 - Charte du temps | B82: IND 2.2.5
A83: - IND 2.2.6 - Nombre de jours de carence par sexe, par catégorie hiérarchique et montants des sommes brutes retenues | B83: IND 2.2.6
A84: - IND 2.2.7 - Modalités de contrôle des arrêts maladie | B84: IND 2.2.7
A86: - IND 2.3.1 - Informations relatives au temps partiel prévu par l'article 60 de la loi du 26 janvier 1984 | B86: IND 2.3.1
A88: 3 - REMUNERATIONS
A90: Fiche 3.1.1 - 3.4.3 - Rémunération et assurance chômage | B90: Fiche 3.1.1-3.4.3
A91: - IND 3.1.1 et 3.2.1 - Rémunérations des fonctionnaires et contractuels occupant un emploi permanent ayant travaillé au moins un jour durant l'année 2020 | B91: IND 3.1.1-3.4.3
A92: - IND 3.3.1 - Rémunérations des agents sur emploi non permanent ayant travaillé au moins un jour durant l'année 2020 | B92: IND 3.1.1-3.4.3
A93: - IND 3.4.1 - Indemnisation du chômage pour les titulaires | B93: IND 3.1.1-3.4.3
A94: - IND 3.4.2 - Indemnisation du chômage pour les contractuels | B94: IND 3.1.1-3.4.3
A95: - IND 3.4.3 - Maintien des primes en cas de congé de maladie ordinaire | B95: IND 3.1.1-3.4.3
A97: - IND 3.4.4 - Nombre d'heures supplémentaires et complémentaires réalisées et rémunérées en 2020, par sexe, filière et cadre d'emplois | B97: IND 3.4.4
A98: - IND 3.4.5 - Dépenses de fonctionnement de la collectivité et dépenses de personnel | B98: IND 3.4.5
A100: 4 - CONDITIONS DE TRAVAIL - HYGIENE ET SECURITE
A102: - IND 4.1.1 - Agents affectés à la prévention | B102: IND 4.1.1-4.1.2
A103: - IND 4.1.2 - Actions liées à la prévention dans l'année 2020 | B103: IND 4.1.1-4.1.2
A104: - IND 4.1.3 - Nombre de visites médicales sur demande de l'agent | B104: IND 4.1.3
A106: Fiche 4.1.4 - 4.1.6 - Documents de prévention | B106: Fiche 4.1.4-4.1.6
A107: - IND 4.1.4 - IND 4.1.7 - Documents et démarches de prévention | B107: IND 4.1.4-4.1.7
A109: - IND 4.2.1 - les accidents du travail survenus dans l'année 2020, par cadre d'emplois et par sexe | B109: IND 4.2.1
A110: - IND 4.2.2 - Les maladies professionnelles ou à caractère professionnel ou contractées en service , par cadre d'emplois et par sexe | B110: IND 4.2.2
A111: - IND 4.2.3 - Inaptitudes au cours de l'année 2020 | B111: IND 4.2.3
A112: - IND 4.2.4 - Nombre d'allocations temporaires d'invalidité (ATI) attribuées au cours de l'année 2020 | B112: IND 4.2.4
A113: - IND 4.2.5 - Contrat d'assurance statutaire pour la prise en charge du risque maladie | B113: IND 4.2.5
A114: - IND 4.3.1 - Nombre d'actes de violences physiques et de signalements pour actes de violences sexuelles, agissements sexistes, harcèlement moral et harcèlement sexuel envers le personnel au cours de l'année 2020 | B114: IND 4.3.1
A116: 5 - FORMATION
A118: Fiche 5.1.1-5.1.4 - Formation | B118: Fiche 5.1.1-5.1.4
A119: - IND 5.1.1(1) - Tableau récapitulatif - Fonctionnaires et contractuels sur un emploi permanent ayant participé à au moins une formation en 2020 | B119: IND 5.1.1
A120: - IND 5.1.1(2) - Journées de formation suivies par les fonctionnaires et contractuels sur un emploi permanent présents au 31/12/2020 et nombre d'agents ayant participé à au moins une journée de formation en 2020 | B120: IND 5.1.1
A122: - IND 5.1.2 (1) - Journées de formation suivies par les agents sur un emploi non permanent au cours de l'année 2020 | B122: IND 5.1.2
A123: - IND 5.1.2 (2) - Nombre d'agents sur un emploi non permanent présents au 31/12/2020 et ayant participé à au moins une formation en 2020 | B123: IND 5.1.2
A125: - IND 5.1.3 - Validation de l'expérience, bilan de compétence et congé de formation dans l'année 2020 | B125: IND 5.1.3
A127: - IND 5.1.4 - Coûts de formation | B127: IND 5.1.4
A129: 6 - 7 - DROITS SOCIAUX
A131: - IND 6.1.1 - Réunions statutaires | B131: IND 6.1.1-6.1.3
A132: - IND 6.1.2 - Droits syndicaux | B132: IND 6.1.1-6.1.3
A133: - IND 6.1.3 - Conflits du travail : grèves | B133: IND 6.1.1-6.1.3
A135: Fiche 6.1.4 - Nombre de sanctions disciplinaires prononcées dans l'année | B135: Fiche 6.1.4
A136: - IND 6.1.4 - Nombre de sanctions disciplinaires prononcées dans l'année | B136: IND 6.1.4
A138: Fiche 7.1.1 - 7.1.4 - Action sociale relevant de la collectivité et protection sociale complémentaire | B138: Fiche 7.1.1-7.1.4
A139: - IND 7.1.1 - Œuvres sociales à destination du personnel ou de leurs familles | B139: IND 7.1.1-7.1.3
A140: - IND 7.1.2 - Prestations servies directement par la collectivité territoriale | B140: IND 7.1.1-7.1.3
A141: - IND 7.1.3 - Aides à la garde d'enfants | B141: IND 7.1.1-7.1.3
A143: - IND 7.1.4 - Protection sociale complémentaire | B143: IND 7.1.4
A145: - IND 8.1.0 - Ecart de rémunération hommes-femmes | B145: IND 8.1.0

Sheet Fiche 1.1.0
C1: Retour Sommaire
A3: 1.1.0 - Nombre d'agents occupant un emploi fonctionnel rémunérés au 31/12/2020, par statut, cadre d'emplois, sexe et grade de détachement
A5: L’indicateur 1.1.0. recense les effectifs en nombre de personnes physiques (1 personne = 1 unité).
A6: Ne pas remplir les cellules grisées (pré remplies par un zéro) qui font l’objet de calculs automatiques.
A9: Quels sont les agents à recenser ?
A11: * les fonctionnaires titulaires occupant un emploi fonctionnel en application de l'art 53 de la loi du 26 janvier 1984 dont ceux appartenant aux cadres d'emploi d'administrateur, d'attaché ou d'ingénieur
A13: * les contractuels recrutés sur un emploi fonctionnel en application de l'art 47 de la loi du 26 janvier 1984
A15: * rémunérés à la date du 31 décembre 2020
A17: Attention : ne pas comptabiliser ici les secrétaires de mairie et les secrétaires généraux.
A20: Comment sont-ils recensés ?
A22: * par statut et fonction publique d'origine pour les fonctionnaires :
A23: - tableau 1 : fonctionnaires de la fonction publique territoriale
A24: - tableau 2 : fonctionnaires issus d'une autre administration (FPE, FPH)
A25: - tableau 3 : contractuels sur emplois permanents
A27: * par emplois fonctionnels dans les filières concernées (administratives, techniques et d'incendie et secours ; en lignes)
A29: * par cadre d'emplois
A30: - les fonctionnaires des filières administratives et techniques occupant un emploi fonctionnel de direction doivent être recensés selon leur grade de détachement. Parmi ceux-ci, on comptabilise ceux ayant un cadre d'emploi d'administrateur, d'attaché ou d'ingénieur.
A31: - les contractuels sur emploi permanent sont recensés uniquement sur l'emploi fonctionnel occupé.
A33: * par sexe

Sheet IND 1.1.0
C1: Retour Sommaire
A3: 1.1.0 - Effectifs /Nombre d'agents occupant un emploi fonctionnel rémunérés au 31/12/2020, par statut d'origine, cadre d'emplois, sexe et grade de détachement
A6: Champ : les tableaux qui suivent concernent les fonctionnaires et contractuels occupant un emploi permanent fonctionnel rémunérés au 31/12/2020.
A8: Tableau 1 : Fonctionnaires de la fonction publique territoriale
A9: Emplois fonctionnels | B9: Fonctionnaires de la fonction publique territoriale
B10: Administrateurs | D10: Attachés | F10: Ingénieurs en chef | H10: Ingénieurs | J10: Autres
B11: Hommes | C11: Femmes | D11: Hommes | E11: Femmes | F11: Hommes | G11: Femmes | H11: Hommes | I11: Femmes | J11: Hommes | K11: Femmes
A12: Emplois fonctionnels administratifs :
A13: Directeur général des services ou directeur | B13: 0 | C13: 0 | D13: 0 | E13: 0 | F13: 0 | G13: 0 | H13: 0 | I13: 0 | J13: 0 | K13: 0 | L13: TAU2
A14: Directeur général adjoint des services ou directeur adjoint | B14: 0 | C14: 0 | D14: 0 | E14: 0 | F14: 0 | G14: 0 | H14: 0 | I14: 0 | J14: 0 | K14: 0 | L14: TAU1
A15: Emplois fonctionnels techniques :
A16: Directeur général des services techniques | B16: 0 | C16: 0 | D16: 0 | E16: 0 | F16: 0 | G16: 0 | H16: 0 | I16: 0 | J16: 0 | K16: 0 | L16: TTU2
A17: Directeur des services techniques | B17: 0 | C17: 0 | D17: 0 | E17: 0 | F17: 0 | G17: 0 | H17: 0 | I17: 0 | J17: 0 | K17: 0 | L17: TTU1
A18: Emplois fonctionnels d'incendie et secours :
A19: Directeur départemental des services d'incendie et secours | B19: 0 | C19: 0 | D19: 0 | E19: 0 | F19: 0 | G19: 0 | H19: 0 | I19: 0 | J19: 0 | K19: 0 | L19: TRB2
A20: Directeur départemental adjoint des services d'incendie et secours | B20: 0 | C20: 0 | D20: 0 | E20: 0 | F20: 0 | G20: 0 | H20: 0 | I20: 0 | J20: 0 | K20: 0 | L20: TRB1
A21: TOTAL EMPLOIS FONCTIONNELS | B21: =B13+B14+B16+B17+B19+B20 -> 0 | C21: =C13+C14+C16+C17+C19+C20 -> 0 | D21: 0 | E21: 0 | F21: 0 | G21: 0 | H21: 0 | I21: 0 | J21: 0 | K21: 0 | L21: 00X3
B22: 1 | C22: 1 | D22: 2 | E22: 2 | F22: 3 | G22: 3 | H22: 4 | I22: 4 | J22: 5 | K22: 5 | L22: origine
A23: Tableau 2 : Fonctionnaires issus d'une autre administration (FPE, FPH) | B23: 1 | C23: 2 | D23: 1 | E23: 2 | F23: 1 | G23: 2 | H23: 1 | I23: 2 | J23: 1 | K23: 2 | L23: sexe
A24: Emplois fonctionnels | B24: Fonctionnaires issus d'une autre administration (FPE, FPH)
B25: Administrateurs | D25: Attachés | F25: Ingénieurs en chef | H25: Ingénieurs | J25: Autres
B26: Hommes | C26: Femmes | D26: Hommes | E26: Femmes | F26: Hommes | G26: Femmes | H26: Hommes | I26: Femmes | J26: Hommes | K26: Femmes
A27: Emplois fonctionnels administratifs :
A28: Directeur général des services ou directeur | B28: 0 | C28: 0 | D28: 0 | E28: 0 | F28: 0 | G28: 0 | H28: 0 | I28: 0 | J28: 0 | K28: 0 | L28: TAU2
A29: Directeur général adjoint des services ou directeur adjoint | B29: 0 | C29: 0 | D29: 0 | E29: 0 | F29: 0 | G29: 0 | H29: 0 | I29: 0 | J29: 0 | K29: 0 | L29: TAU1
A30: Emplois fonctionnels techniques :
A31: Directeur général des services techniques | B31: 0 | C31: 0 | D31: 0 | E31: 0 | F31: 0 | G31: 0 | H31: 0 | I31: 0 | J31: 0 | K31: 0 | L31: TTU2
A32: Directeur des services techniques | B32: 0 | C32: 0 | D32: 0 | E32: 0 | F32: 0 | G32: 0 | H32: 0 | I32: 0 | J32: 0 | K32: 0 | L32: TTU1
A33: Emplois fonctionnels d'incendie et secours :
A34: Directeur départemental des services d'incendie et secours | B34: 0 | C34: 0 | D34: 0 | E34: 0 | F34: 0 | G34: 0 | H34: 0 | I34: 0 | J34: 0 | K34: 0 | L34: TRB2
A35: Directeur départemental adjoint des services d'incendie et secours | B35: 0 | C35: 0 | D35: 0 | E35: 0 | F35: 0 | G35: 0 | H35: 0 | I35: 0 | J35: 0 | K35: 0 | L35: TRB1
A36: TOTAL EMPLOIS FONCTIONNELS | B36: =B28+B29+B31+B32+B34+B35 -> 0 | C36: =C28+C29+C31+C32+C34+C35 -> 0 | D36: 0 | E36: 0 | F36: 0 | G36: 0 | H36: 0 | I36: 0 | J36: 0 | K36: 0 | L36: 00X3
B37: 1 | C37: 1 | D37: 2 | E37: 2 | F37: 3 | G37: 3 | H37: 4 | I37: 4 | J37: 5 | K37: 5 | L37: origine
A38: Tableau 3 : Contractuels sur emplois permanents | B38: 1 | C38: 2 | D38: 1 | E38: 2 | F38: 1 | G38: 2 | H38: 1 | I38: 2 | J38: 1 | K38: 2 | L38: sexe
A39: Emplois fonctionnels | B39: Contractuels sur emplois permanents
B41: Hommes | C41: Femmes
A42: Emplois fonctionnels administratifs :
A43: Directeur général des services ou directeur | B43: 0 | C43: 0 | D43: TAU2
A44: Directeur général adjoint des services ou directeur adjoint | B44: 0 | C44: 0 | D44: TAU1
A45: Emplois fonctionnels techniques :
A46: Directeur général des services techniques | B46: 0 | C46: 0 | D46: TTU2
A47: Directeur des services techniques | B47: 0 | C47: 0 | D47: TTU1
A48: Emplois fonctionnels d'incendie et secours :
A49: Directeur départemental des services d'incendie et secours | B49: 0 | C49: 0 | D49: TRB2
A50: Directeur départemental adjoint des services d'incendie et secours | B50: 0 | C50: 0 | D50: TRB1
A51: TOTAL EMPLOIS FONCTIONNELS | B51: =B43+B44+B46+B47+B49+B50 -> 0 | C51: =C43+C44+C46+C47+C49+C50 -> 0 | D51: 00X3
B52: 1 | C52: 2 | D52: sexe

Sheet Fiche 1.1.1
C1: Retour Sommaire
A3: 1.1.1 - Nombre de fonctionnaires occupant un emploi permanent rémunérés au 31/12/2020 par filière, cadre d'emplois et grade, selon les caractéristiques de l'emploi et selon le sexe
A5: L’indicateur 1.1.1. recense les effectifs en nombre de personnes physiques (1 personne = 1 unité).
A6: Ne pas remplir les cellules grisées (pré remplies par un zéro) qui font l’objet de calculs automatiques.
A9: Quels sont les agents à recenser ?
A11: * les fonctionnaires (titulaires et stagiaires)
A13: Remarque importante :
A14: - les fonctionnaires occupant un emploi fonctionnel de direction doivent être comptabilisés uniquement dans leurs cadres d'emplois et grades respectifs (nomenclature des emplois territoriaux au 31 décembre 2020) même s'ils ont déjà été comptabilisés dans l'indicateur 1.1.0.
A16: * occupant un emploi permanent
A18: * rémunérés par votre collectivité à la date du 31 décembre 2020
A20: Sont comptabilisés :
A21: - les fonctionnaires en activité dans votre collectivité et rémunérés par votre collectivité
A22: - dont les fonctionnaires qui, détachés d'autres structures, sont en position d'activité dans votre collectivité ;
A23: - les fonctionnaires qui, n'exerçant pas leurs fonctions dans votre collectivité, sont mis à la disposition d'autres structures ;
A24: - pour le CNFPT et les Centres de Gestion uniquement : les fonctionnaires dont ils assument la prise en charge (suite à une suppression d'emploi, une fin de détachement sur emploi fonctionnel de direction...).
A27: Ne doivent pas être comptabilisés :
A28: - les fonctionnaires détachés sur un emploi de cabinet qui n’est pas un emploi permanent au sens de la loi du 26 janvier 1984. Ils seront recensés à l’indicateur 1.3.1 « Autres personnels ».
A29: - les fonctionnaires qui, n'étant pas en position d'activité, ne sont pas rémunérés à la date du 31 décembre 2020 (y compris les agents en disponibilité d'office après maladie) ;
A30: - les fonctionnaires qui, appartenant à d'autres structures, sont mis à la disposition de votre collectivité, mais ne sont pas rémunérés par votre collectivité et seront recensés dans leur collectivité d’origine ;
A31: - les fonctionnaires placés en CFA qui ne sont pas en activité et ne perçoivent qu’un revenu de remplacement ;
A32: - les fonctionnaires originaires de votre collectivité pris en charge par le CNFPT ou par un Centre de gestion (suite à une suppression d'emploi, une fin de détachement sur emploi fonctionnel de direction...) qui doivent être recensés par l’organisme qui les a pris en charge et qui les rémunère;
A33: - les fonctionnaires partis ou placés dans une position autre que l’activité qui ont perçu un rappel de traitement en décembre
A36: Comment sont-ils recensés ?
A38: * par filière, déclinée en cadres d'emplois puis en grades (en lignes)
A39: - les fonctionnaires occupant un emploi fonctionnel de direction doivent être comptabilisés uniquement dans leurs cadres d'emplois et grades respectifs (nomenclature des emplois territoriaux au 31 décembre 2020) même s'ils ont déjà été comptabilisés dans l'indicateur 1.1.0 ;
A40: - les stagiaires nommés par détachement (notamment suite à concours, promotion interne ou reclassement pour inaptitude physique), qui avaient auparavant la qualité de titulaires dans votre collectivité, doivent être recensés uniquement en qualité de stagiaires, et donc ne pas être comptés au titre de leur grade ou cadre d'emplois d'origine ;
A41: - les titulaires originaires d'autres collectivités ou structures, détachés dans la collectivité, doivent être recensés dans la filière, le cadre(s) d'emplois et grade correspondant à l'emploi dans lequel ils ont été nommés.
A43: * selon les caractéristiques de leur emploi (temps complet ou non complet ; en colonnes)
A44: - colonne 1.1.1(1) : effectif des fonctionnaires occupant un emploi à temps complet, qu’ils exercent à temps plein ou à temps partiel (ces derniers font l’objet d’un recensement détaillé à l’indicateur 1.1.2.)
A45: - colonnes 1.1.1(2) à 1.1.1(4) : effectif des fonctionnaires occupant un emploi à temps NON complet (réf. : loi du 26 janvier 1984 - articles 104 à 108), décliné par durée hebdomadaire de service.
A47: Attention : ne pas confondre "temps non complet" qui est une caractéristique de l'emploi (exprimée en 35èmes) et "temps partiel" qui est une modalité d'exercice (exprimée en pourcentage de temps plein) pour un agent occupant un emploi à temps complet.
A49: * puis par sexe (en colonnes)
A50: - colonne 1.1.1(5) : les hommes
A51: - colonne 1.1.1(6) : les femmes

Sheet IND 1.1.1
B1: Retour Sommaire
A3: 1.1.1 - Nombre de fonctionnaires occupant un emploi permanent rémunérés au 31/12/2020 par filière, cadre d'emplois et grade, selon les caractéristiques de l'emploi et selon le sexe
A6: Champ : le tableau qui suit concerne les agents titulaires et stagiaires occupant un emploi permanent rémunérés au 31/12/2020.
A7: Remarque importante : les agents occupant un emploi fonctionnel doivent être uniquement comptabilisés dans leurs cadres d'emplois et grades respectifs.
A8: Par exemple, un attaché principal qui est en poste sur un emploi fonctionnel de directeur général adjoint, doit être comptabilisé en tant qu’attaché principal.
B10: Tous emplois | G10: Tous emplois | I10: Total
A11: Grades | B11: Temps complet | C11: Temps non complet | G11: Hommes | H11: Femmes
A12: Cadres d'emplois | C12: Temps de travail hebdomadaire | F12: Sous-Total
A13: FILIERES | C13: moins de | D13: 17 H 30 à | E13: 28 H
C14: 17 H 30 | D14: moins de | E14: ou plus
D15: 28 H
B16: 1.1.1(1) | C16: 1.1.1(2) | D16: 1.1.1(3) | E16: 1.1.1(4) | G16: 1.1.1(5) | H16: 1.1.1(6)
B17: 10 | C17: 21 | D17: 22 | E17: 23 | F17: 20 | G17: 1 | H17: 2 | I17: 0 | J17: temps/sexe
A18: FILIERE ADMINISTRATIVE
A19: Administrateur général | B19: 0 | C19: 0 | D19: 0 | E19: 0 | F19: =SUM(C19:E19) -> 0 | G19: 0 | H19: 0 | I19: =SUM(G19:H19) -> 0 | J19: TAD3
A20: Administrateur hors classe | B20: 0 | C20: 0 | D20: 0 | E20: 0 | F20: =SUM(C20:E20) -> 0 | G20: 0 | H20: 0 | I20: =SUM(G20:H20) -> 0 | J20: TAD2
A21: Administrateur | B21: 0 | C21: 0 | D21: 0 | E21: 0 | F21: =SUM(C21:E21) -> 0 | G21: 0 | H21: 0 | I21: =SUM(G21:H21) -> 0 | J21: TAD1
A22: Administrateur stagiaire | B22: 0 | C22: 0 | D22: 0 | E22: 0 | F22: =SUM(C22:E22) -> 0 | G22: 0 | H22: 0 | I22: =SUM(G22:H22) -> 0 | J22: SAD1
A23: ADMINISTRATEURS | B23: =SUM(B19:B22) -> 0 | C23: 0 | D23: 0 | E23: 0 | F23: 0 | G23: 0 | H23: 0 | I23: 0 | J23: AD
A25: Attaché hors classe | B25: 0 | C25: 0 | D25: 0 | E25: 0 | F25: =SUM(C25:E25) -> 0 | G25: 0 | H25: 0 | I25: =SUM(G25:H25) -> 0 | J25: TAT4
A26: Directeur territorial | B26: 0 | C26: 0 | D26: 0 | E26: 0 | F26: =SUM(C26:E26) -> 0 | G26: 0 | H26: 0 | I26: =SUM(G26:H26) -> 0 | J26: TAT3
A27: Attaché principal | B27: 0 | C27: 0 | D27: 0 | E27: 0 | F27: =SUM(C27:E27) -> 0 | G27: 0 | H27: 0 | I27: =SUM(G27:H27) -> 0 | J27: TAT2
A28: Attaché | B28: 0 | C28: 0 | D28: 0 | E28: 0 | F28: =SUM(C28:E28) -> 0 | G28: 0 | H28: 0 | I28: =SUM(G28:H28) -> 0 | J28: TAT1
A29: Attaché stagiaire | B29: 0 | C29: 0 | D29: 0 | E29: 0 | F29: =SUM(C29:E29) -> 0 | G29: 0 | H29: 0 | I29: =SUM(G29:H29) -> 0 | J29: SAT1
A30: ATTACHES | B30: =SUM(B25:B29) -> 0 | C30: 0 | D30: 0 | E30: 0 | F30: 0 | G30: 0 | H30: 0 | I30: 0 | J30: AT
A32: Secrétaire de mairie | B32: 0 | C32: 0 | D32: 0 | E32: 0 | F32: =SUM(C32:E32) -> 0 | G32: 0 | H32: 0 | I32: =SUM(G32:H32) -> 0 | J32: TAS1
A33: SECRETAIRES DE MAIRIE | B33: =SUM(B32:B32) -> 0 | C33: 0 | D33: 0 | E33: 0 | F33: 0 | G33: 0 | H33: 0 | I33: 0 | J33: AS
A35: Rédacteur principal de 1ère classe | B35: 0 | C35: 0 | D35: 0 | E35: 0 | F35: =SUM(C35:E35) -> 0 | G35: 0 | H35: 0 | I35: =SUM(G35:H35) -> 0 | J35: TAR3
A36: Rédacteur principal de 2ème classe | B36: 0 | C36: 0 | D36: 0 | E36: 0 | F36: =SUM(C36:E36) -> 0 | G36: 0 | H36: 0 | I36: =SUM(G36:H36) -> 0 | J36: TAR2
A37: Rédacteur principal de 2ème classe stagiaire | B37: 0 | C37: 0 | D37: 0 | E37: 0 | F37: =SUM(C37:E37) -> 0 | G37: 0 | H37: 0 | I37: =SUM(G37:H37) -> 0 | J37: SAR2
A38: Rédacteur | B38: 0 | C38: 0 | D38: 0 | E38: 0 | F38: =SUM(C38:E38) -> 0 | G38: 0 | H38: 0 | I38: =SUM(G38:H38) -> 0 | J38: TAR1
A39: Rédacteur stagiaire | B39: 0 | C39: 0 | D39: 0 | E39: 0 | F39: =SUM(C39:E39) -> 0 | G39: 0 | H39: 0 | I39: =SUM(G39:H39) -> 0 | J39: SAR1
A40: REDACTEURS | B40: =SUM(B35:B39) -> 0 | C40: 0 | D40: 0 | E40: 0 | F40: 0 | G40: 0 | H40: 0 | I40: 0 | J40: AR
A42: Adjoint administratif principal de 1ère classe | B42: 0 | C42: 0 | D42: 0 | E42: 0 | F42: =SUM(C42:E42) -> 0 | G42: 0 | H42: 0 | I42: =SUM(G42:H42) -> 0 | J42: TAJ4
A43: Adjoint administratif principal de 2ème classe | B43: 0 | C43: 0 | D43: 0 | E43: 0 | F43: =SUM(C43:E43) -> 0 | G43: 0 | H43: 0 | I43: =SUM(G43:H43) -> 0 | J43: TAJ3
A44: Adjoint administratif principal de 2ème classe stagiaire | B44: 0 | C44: 0 | D44: 0 | E44: 0 | F44: =SUM(C44:E44) -> 0 | G44: 0 | H44: 0 | I44: =SUM(G44:H44) -> 0 | J44: SAJ3
A45: Adjoint administratif | B45: 0 | C45: 0 | D45: 0 | E45: 0 | F45: =SUM(C45:E45) -> 0 | G45: 0 | H45: 0 | I45: =SUM(G45:H45) -> 0 | J45: TAJ1
A46: Adjoint administratif stagiaire | B46: 0 | C46: 0 | D46: 0 | E46: 0 | F46: =SUM(C46:E46) -> 0 | G46: 0 | H46: 0 | I46: =SUM(G46:H46) -> 0 | J46: SAJ1
A47: ADJOINTS ADMINISTRATIFS | B47: =SUM(B42:B46) -> 0 | C47: 0 | D47: 0 | E47: 0 | F47: 0 | G47: 0 | H47: 0 | I47: 0 | J47: AJ
A49: FILIERE ADMINISTRATIVE | B49: =B23+B30+B33+B40+B47 -> 0 | C49: 0 | D49: 0 | E49: 0 | F49: 0 | G49: 0 | H49: 0 | I49: 0 | J49: A
A51: FILIERE TECHNIQUE
A52: Ingénieur général | B52: 0 | C52: 0 | D52: 0 | E52: 0 | F52: =SUM(C52:E52) -> 0 | G52: 0 | H52: 0 | I52: =SUM(G52:H52) -> 0 | J52: TTN3
A53: Ingénieur en chef hors classe | B53: 0 | C53: 0 | D53: 0 | E53: 0 | F53: =SUM(C53:E53) -> 0 | G53: 0 | H53: 0 | I53: =SUM(G53:H53) -> 0 | J53: TTN2
A54: Ingénieur en chef | B54: 0 | C54: 0 | D54: 0 | E54: 0 | F54: =SUM(C54:E54) -> 0 | G54: 0 | H54: 0 | I54: =SUM(G54:H54) -> 0 | J54: TTN1
A55: Ingénieur en chef stagiaire | B55: 0 | C55: 0 | D55: 0 | E55: 0 | F55: =SUM(C55:E55) -> 0 | G55: 0 | H55: 0 | I55: 0 | J55: STN1
A56: INGENIEURS EN CHEF | B56: =SUM(B52:B55) -> 0 | C56: =SUM(C52:C55) -> 0 | D56: 0 | E56: 0 | F56: 0 | G56: 0 | H56: 0 | I56: 0 | J56: TN
A58: Ingénieur hors classe | B58: 0 | C58: 0 | D58: 0 | E58: 0 | F58: =SUM(C58:E58) -> 0 | G58: 0 | H58: 0 | I58: 0 | J58: TTP3
A59: Ingénieur principal | B59: 0 | C59: 0 | D59: 0 | E59: 0 | F59: =SUM(C59:E59) -> 0 | G59: 0 | H59: 0 | I59: 0 | J59: TTP2
A60: Ingénieur | B60: 0 | C60: 0 | D60: 0 | E60: 0 | F60: =SUM(C60:E60) -> 0 | G60: 0 | H60: 0 | I60: 0 | J60: TTP1
A61: Ingénieur stagiaire | B61: 0 | C61: 0 | D61: 0 | E61: 0 | F61: =SUM(C61:E61) -> 0 | G61: 0 | H61: 0 | I61: 0 | J61: STP1
A62: INGENIEURS | B62: =SUM(B58:B61) -> 0 | C62: =SUM(C58:C61) -> 0 | D62: 0 | E62: 0 | F62: 0 | G62: 0 | H62: 0 | I62: 0 | J62: TP
A64: Technicien principal de 1ère classe | B64: 0 | C64: 0 | D64: 0 | E64: 0 | F64: =SUM(C64:E64) -> 0 | G64: 0 | H64: 0 | I64: =SUM(G64:H64) -> 0 | J64: TTT3
A65: Technicien principal de 2ème classe | B65: 0 | C65: 0 | D65: 0 | E65: 0 | F65: =SUM(C65:E65) -> 0 | G65: 0 | H65: 0 | I65: =SUM(G65:H65) -> 0 | J65: TTT2
A66: Technicien principal de 2ème classe stagiaire | B66: 0 | C66: 0 | D66: 0 | E66: 0 | F66: =SUM(C66:E66) -> 0 | G66: 0 | H66: 0 | I66: =SUM(G66:H66) -> 0 | J66: STT2
A67: Technicien | B67: 0 | C67: 0 | D67: 0 | E67: 0 | F67: =SUM(C67:E67) -> 0 | G67: 0 | H67: 0 | I67: =SUM(G67:H67) -> 0 | J67: TTT1
A68: Technicien stagiaire | B68: 0 | C68: 0 | D68: 0 | E68: 0 | F68: =SUM(C68:E68) -> 0 | G68: 0 | H68: 0 | I68: =SUM(G68:H68) -> 0 | J68: STT1
A69: TECHNICIENS | B69: =SUM(B64:B68) -> 0 | C69: 0 | D69: 0 | E69: 0 | F69: 0 | G69: 0 | H69: 0 | I69: 0 | J69: TT
A71: Agent de maîtrise principal | B71: 0 | C71: 0 | D71: 0 | E71: 0 | F71: =SUM(C71:E71) -> 0 | G71: 0 | H71: 0 | I71: =SUM(G71:H71) -> 0 | J71: TTM2
A72: Agent de maîtrise | B72: 0 | C72: 0 | D72: 0 | E72: 0 | F72: =SUM(C72:E72) -> 0 | G72: 0 | H72: 0 | I72: =SUM(G72:H72) -> 0 | J72: TTM1
A73: Agent de maîtrise stagiaire | B73: 0 | C73: 0 | D73: 0 | E73: 0 | F73: =SUM(C73:E73) -> 0 | G73: 0 | H73: 0 | I73: =SUM(G73:H73) -> 0 | J73: STM1
A74: AGENTS DE MAITRISE | B74: =SUM(B71:B73) -> 0 | C74: 0 | D74: 0 | E74: 0 | F74: 0 | G74: 0 | H74: 0 | I74: 0 | J74: TM
A76: Adjoint technique principal de 1ère classe | B76: 0 | C76: 0 | D76: 0 | E76: 0 | F76: =SUM(C76:E76) -> 0 | G76: 0 | H76: 0 | I76: =SUM(G76:H76) -> 0 | J76: TTH4
A77: Adjoint technique principal de 2ème classe | B77: 1 | C77: 0 | D77: 0 | E77: 0 | F77: =SUM(C77:E77) -> 0 | G77: 1 | H77: 0 | I77: =SUM(G77:H77) -> 1 | J77: TTH3
A78: Adjoint technique principal de 2ème classe stagiaire | B78: 0 | C78: 0 | D78: 0 | E78: 0 | F78: =SUM(C78:E78) -> 0 | G78: 0 | H78: 0 | I78: =SUM(G78:H78) -> 0 | J78: STH3
A79: Adjoint technique | B79: 1 | C79: 1 | D79: 1 | E79: 0 | F79: =SUM(C79:E79) -> 2 | G79: 1 | H79: 2 | I79: =SUM(G79:H79) -> 3 | J79: TTH1
A80: Adjoint technique stagiaire | B80: 0 | C80: 0 | D80: 0 | E80: 0 | F80: =SUM(C80:E80) -> 0 | G80: 0 | H80: 0 | I80: =SUM(G80:H80) -> 0 | J80: STH1
A81: ADJOINTS TECHNIQUES | B81: =SUM(B76:B80) -> 2 | C81: 1 | D81: 1 | E81: 0 | F81: 2 | G81: 2 | H81: 2 | I81: 4 | J81: TH
A83: Adjoint technique principal de 1ère classe | B83: 0 | C83: 0 | D83: 0 | E83: 0 | F83: =SUM(C83:E83) -> 0 | G83: 0 | H83: 0 | I83: =SUM(G83:H83) -> 0 | J83: TTA4
A84: Adjoint technique principal de 2ème classe | B84: 0 | C84: 0 | D84: 0 | E84: 0 | F84: =SUM(C84:E84) -> 0 | G84: 0 | H84: 0 | I84: =SUM(G84:H84) -> 0 | J84: TTA3
A85: Adjoint technique principal de 2ème classe stagiaire | B85: 0 | C85: 0 | D85: 0 | E85: 0 | F85: =SUM(C85:E85) -> 0 | G85: 0 | H85: 0 | I85: =SUM(G85:H85) -> 0 | J85: STA3
A86: Adjoint technique | B86: 0 | C86: 0 | D86: 0 | E86: 0 | F86: =SUM(C86:E86) -> 0 | G86: 0 | H86: 0 | I86: =SUM(G86:H86) -> 0 | J86: TTA2
A87: Adjoint technique stagiaire | B87: 0 | C87: 0 | D87: 0 | E87: 0 | F87: =SUM(C87:E87) -> 0 | G87: 0 | H87: 0 | I87: =SUM(G87:H87) -> 0 | J87: STA2
A88: ADJOINTS TECHNIQUES DES ETABLISSEMENTS D'ENSEIGNEMENT | B88: =SUM(B83:B87) -> 0 | C88: 0 | D88: 0 | E88: 0 | F88: 0 | G88: 0 | H88: 0 | I88: 0 | J88: TA
A90: FILIERE TECHNIQUE | B90: =B56+B62+B69+B74+B81+B88 -> 2 | C90: 1 | D90: 1 | E90: 0 | F90: 2 | G90: 2 | H90: 2 | I90: 4 | J90: T
A92: FILIERE CULTURELLE
A93: Conservateur en chef | B93: 0 | C93: 0 | D93: 0 | E93: 0 | F93: =SUM(C93:E93) -> 0 | G93: 0 | H93: 0 | I93: =SUM(G93:H93) -> 0 | J93: TCM3
A94: Conservateur | B94: 0 | C94: 0 | D94: 0 | E94: 0 | F94: =SUM(C94:E94) -> 0 | G94: 0 | H94: 0 | I94: =SUM(G94:H94) -> 0 | J94: TCM2
A95: Conservateur stagiaire | B95: 0 | C95: 0 | D95: 0 | E95: 0 | F95: =SUM(C95:E95) -> 0 | G95: 0 | H95: 0 | I95: =SUM(G95:H95) -> 0 | J95: SCM1
A96: CONSERVATEURS DU PATRIMOINE | B96: =SUM(B93:B95) -> 0 | C96: 0 | D96: 0 | E96: 0 | F96: 0 | G96: 0 | H96: 0 | I96: 0 | J96: CM
A98: Conservateur en chef | B98: 0 | C98: 0 | D98: 0 | E98: 0 | F98: =SUM(C98:E98) -> 0 | G98: 0 | H98: 0 | I98: =SUM(G98:H98) -> 0 | J98: TCH2
A99: Conservateur | B99: 0 | C99: 0 | D99: 0 | E99: 0 | F99: =SUM(C99:E99) -> 0 | G99: 0 | H99: 0 | I99: =SUM(G99:H99) -> 0 | J99: TCH1
A100: Conservateur stagiaire | B100: 0 | C100: 0 | D100: 0 | E100: 0 | F100: =SUM(C100:E100) -> 0 | G100: 0 | H100: 0 | I100: =SUM(G100:H100) -> 0 | J100: SCH1
A101: CONSERVATEURS DES BIBLIOTHEQUES | B101: =SUM(B98:B100) -> 0 | C101: 0 | D101: 0 | E101: 0 | F101: 0 | G101: 0 | H101: 0 | I101: 0 | J101: CH
A103: Attaché principal de conservation du patrimoine | B103: 0 | C103: 0 | D103: 0 | E103: 0 | F103: =SUM(C103:E103) -> 0 | G103: 0 | H103: 0 | I103: =SUM(G103:H103) -> 0 | J103: TCA2
A104: Attaché de conservation du patrimoine | B104: 0 | C104: 0 | D104: 0 | E104: 0 | F104: =SUM(C104:E104) -> 0 | G104: 0 | H104: 0 | I104: =SUM(G104:H104) -> 0 | J104: TCA1
A105: Attaché de conservation du patrimoine stagiaire | B105: 0 | C105: 0 | D105: 0 | E105: 0 | F105: =SUM(C105:E105) -> 0 | G105: 0 | H105: 0 | I105: =SUM(G105:H105) -> 0 | J105: SCA1
A106: ATTACHES DE CONSERVATION DU PATRIMOINE | B106: =SUM(B103:B105) -> 0 | C106: 0 | D106: 0 | E106: 0 | F106: 0 | G106: 0 | H106: 0 | I106: 0 | J106: CA
A108: Bibliothécaire principal | B108: 0 | C108: 0 | D108: 0 | E108: 0 | F108: =SUM(C108:E108) -> 0 | G108: 0 | H108: 0 | I108: =SUM(G108:H108) -> 0 | J108: TCB2
A109: Bibliothécaire | B109: 0 | C109: 0 | D109: 0 | E109: 0 | F109: =SUM(C109:E109) -> 0 | G109: 0 | H109: 0 | I109: =SUM(G109:H109) -> 0 | J109: TCB1
A110: Bibliothécaire stagiaire | B110: 0 | C110: 0 | D110: 0 | E110: 0 | F110: =SUM(C110:E110) -> 0 | G110: 0 | H110: 0 | I110: =SUM(G110:H110) -> 0 | J110: SCB1
A111: BIBLIOTHECAIRES | B111: =SUM(B108:B110) -> 0 | C111: 0 | D111: 0 | E111: 0 | F111: 0 | G111: 0 | H111: 0 | I111: 0 | J111: CB
A113: Directeur d'établissement d'enseignement artistique de 1ère catégorie | B113: 0 | C113: 0 | D113: 0 | E113: 0 | F113: =SUM(C113:E113) -> 0 | G113: 0 | H113: 0 | I113: =SUM(G113:H113) -> 0 | J113: TCD2
A114: Directeur d'établissement d'enseignement artistique de 1ère catégorie stagiaire | B114: 0 | C114: 0 | D114: 0 | E114: 0 | F114: =SUM(C114:E114) -> 0 | G114: 0 | H114: 0 | I114: =SUM(G114:H114) -> 0 | J114: SCD2
A115: Directeur d'établissement d'enseignement artistique de 2ème catégorie | B115: 0 | C115: 0 | D115: 0 | E115: 0 | F115: =SUM(C115:E115) -> 0 | G115: 0 | H115: 0 | I115: =SUM(G115:H115) -> 0 | J115: TCD1
A116: Directeur d'établissement d'enseignement artistique de 2ème catégorie stagiaire | B116: 0 | C116: 0 | D116: 0 | E116: 0 | F116: =SUM(C116:E116) -> 0 | G116: 0 | H116: 0 | I116: =SUM(G116:H116) -> 0 | J116: SCD1
A117: DIRECTEURS D'ETABLISSEMENTS D'ENSEIGNEMENT ARTISTIQUE | B117: =SUM(B113:B116) -> 0 | C117: 0 | D117: 0 | E117: 0 | F117: =SUM(F113:F116) -> 0 | G117: 0 | H117: 0 | I117: 0 | J117: CD
A119: Professeur d'enseignement artistique hors classe | B119: 0 | C119: 0 | D119: 0 | E119: 0 | F119: =SUM(C119:E119) -> 0 | G119: 0 | H119: 0 | I119: =SUM(G119:H119) -> 0 | J119: TCP2
A120: Professeur d'enseignement artistique classe normale | B120: 0 | C120: 0 | D120: 0 | E120: 0 | F120: =SUM(C120:E120) -> 0 | G120: 0 | H120: 0 | I120: =SUM(G120:H120) -> 0 | J120: TCP1
A121: Professeur d'enseignement artistique stagiaire | B121: 0 | C121: 0 | D121: 0 | E121: 0 | F121: =SUM(C121:E121) -> 0 | G121: 0 | H121: 0 | I121: =SUM(G121:H121) -> 0 | J121: SCP1
A122: PROFESSEURS D'ENSEIGNEMENT ARTISTIQUE | B122: =SUM(B119:B121) -> 0 | C122: 0 | D122: 0 | E122: 0 | F122: 0 | G122: 0 | H122: 0 | I122: 0 | J122: CP
A124: Assistant de conservation principal de 1ère classe | B124: 0 | C124: 0 | D124: 0 | E124: 0 | F124: =SUM(C124:E124) -> 0 | G124: 0 | H124: 0 | I124: =SUM(G124:H124) -> 0 | J124: TCG3
A125: Assistant de conservation principal de 2ème classe | B125: 0 | C125: 0 | D125: 0 | E125: 0 | F125: =SUM(C125:E125) -> 0 | G125: 0 | H125: 0 | I125: =SUM(G125:H125) -> 0 | J125: TCG2
A126: Assistant de conservation principal de 2ème classe stagiaire | B126: 0 | C126: 0 | D126: 0 | E126: 0 | F126: =SUM(C126:E126) -> 0 | G126: 0 | H126: 0 | I126: =SUM(G126:H126) -> 0 | J126: SCG2
A127: Assistant de conservation | B127: 0 | C127: 0 | D127: 0 | E127: 0 | F127: =SUM(C127:E127) -> 0 | G127: 0 | H127: 0 | I127: =SUM(G127:H127) -> 0 | J127: TCG1
A128: Assistant de conservation stagiaire | B128: 0 | C128: 0 | D128: 0 | E128: 0 | F128: =SUM(C128:E128) -> 0 | G128: 0 | H128: 0 | I128: =SUM(G128:H128) -> 0 | J128: SCG1
A129: ASSISTANTS DE CONSERVATION DU PATRIMOINE ET DES BIBLIOTHEQUES | B129: =SUM(B124:B128) -> 0 | C129: 0 | D129: 0 | E129: 0 | F129: 0 | G129: 0 | H129: 0 | I129: 0 | J129: CG
A131: Assistant d'enseignement artistique principal de 1ère classe | B131: 0 | C131: 0 | D131: 0 | E131: 0 | F131: =SUM(C131:E131) -> 0 | G131: 0 | H131: 0 | I131: =SUM(G131:H131) -> 0 | J131: TCS3
A132: Assistant d'enseignement artistique principal de 2ème classe | B132: 0 | C132: 0 | D132: 0 | E132: 0 | F132: =SUM(C132:E132) -> 0 | G132: 0 | H132: 0 | I132: =SUM(G132:H132) -> 0 | J132: TCS2
A133: Assistant d'enseignement artistique principal de 2ème classe stagiaire | B133: 0 | C133: 0 | D133: 0 | E133: 0 | F133: =SUM(C133:E133) -> 0 | G133: 0 | H133: 0 | I133: =SUM(G133:H133) -> 0 | J133: SCS2
A134: Assistant d'enseignement artistique | B134: 0 | C134: 0 | D134: 0 | E134: 0 | F134: =SUM(C134:E134) -> 0 | G134: 0 | H134: 0 | I134: =SUM(G134:H134) -> 0 | J134: TCS1
A135: Assistant d'enseignement artistique stagiaire | B135: 0 | C135: 0 | D135: 0 | E135: 0 | F135: =SUM(C135:E135) -> 0 | G135: 0 | H135: 0 | I135: =SUM(G135:H135) -> 0 | J135: SCS1
A136: ASSISTANTS D'ENSEIGNEMENT ARTISTIQUE | B136: =SUM(B131:B135) -> 0 | C136: 0 | D136: 0 | E136: 0 | F136: 0 | G136: 0 | H136: 0 | I136: 0 | J136: CS
A138: Adjoint territorial du patrimoine principal de 1ère classe | B138: 0 | C138: 0 | D138: 0 | E138: 0 | F138: =SUM(C138:E138) -> 0 | G138: 0 | H138: 0 | I138: =SUM(G138:H138) -> 0 | J138: TCJ4
A139: Adjoint territorial du patrimoine principal de 2ème classe | B139: 0 | C139: 0 | D139: 0 | E139: 0 | F139: =SUM(C139:E139) -> 0 | G139: 0 | H139: 0 | I139: =SUM(G139:H139) -> 0 | J139: TCJ3
A140: Adjoint territorial du patrimoine principal de 2ème classe stagiaire | B140: 0 | C140: 0 | D140: 0 | E140: 0 | F140: =SUM(C140:E140) -> 0 | G140: 0 | H140: 0 | I140: =SUM(G140:H140) -> 0 | J140: SCJ3
A141: Adjoint territorial du patrimoine | B141: 0 | C141: 0 | D141: 0 | E141: 0 | F141: =SUM(C141:E141) -> 0 | G141: 0 | H141: 0 | I141: =SUM(G141:H141) -> 0 | J141: TCJ1
A142: Adjoint territorial du patrimoine stagiaire | B142: 0 | C142: 0 | D142: 0 | E142: 0 | F142: =SUM(C142:E142) -> 0 | G142: 0 | H142: 0 | I142: =SUM(G142:H142) -> 0 | J142: SCJ1
A143: ADJOINTS TERRITORIAUX DU PATRIMOINE | B143: =SUM(B138:B142) -> 0 | C143: 0 | D143: 0 | E143: 0 | F143: 0 | G143: 0 | H143: 0 | I143: 0 | J143: CJ
A145: FILIERE CULTURELLE | B145: =B96+B101+B106+B111+B117+B122+B129+B136+B143 -> 0 | C145: =C96+C101+C106+C111+C117+C122+C129+C136+C143 -> 0 | D145: 0 | E145: 0 | F145: 0 | G145: 0 | H145: 0 | I145: 0 | J145: C
A147: FILIERE SPORTIVE
A148: Conseiller principal | B148: 0 | C148: 0 | D148: 0 | E148: 0 | F148: =SUM(C148:E148) -> 0 | G148: 0 | H148: 0 | I148: =SUM(G148:H148) -> 0 | J148: TSC2
A149: Conseiller | B149: 0 | C149: 0 | D149: 0 | E149: 0 | F149: =SUM(C149:E149) -> 0 | G149: 0 | H149: 0 | I149: =SUM(G149:H149) -> 0 | J149: TSC1
A150: Conseiller stagiaire | B150: 0 | C150: 0 | D150: 0 | E150: 0 | F150: =SUM(C150:E150) -> 0 | G150: 0 | H150: 0 | I150: =SUM(G150:H150) -> 0 | J150: SSC1
A151: CONSEILLERS DES APS | B151: =SUM(B148:B150) -> 0 | C151: 0 | D151: 0 | E151: 0 | F151: 0 | G151: 0 | H151: 0 | I151: 0 | J151: SC
A153: Educateur principal de 1ère classe | B153: 0 | C153: 0 | D153: 0 | E153: 0 | F153: =SUM(C153:E153) -> 0 | G153: 0 | H153: 0 | I153: =SUM(G153:H153) -> 0 | J153: TSE3
A154: Educateur principal de 2ème classe | B154: 0 | C154: 0 | D154: 0 | E154: 0 | F154: =SUM(C154:E154) -> 0 | G154: 0 | H154: 0 | I154: =SUM(G154:H154) -> 0 | J154: TSE2
A155: Educateur principal stagiaire de 2ème classe | B155: 0 | C155: 0 | D155: 0 | E155: 0 | F155: =SUM(C155:E155) -> 0 | G155: 0 | H155: 0 | I155: =SUM(G155:H155) -> 0 | J155: SSE2
A156: Educateur | B156: 0 | C156: 0 | D156: 0 | E156: 0 | F156: =SUM(C156:E156) -> 0 | G156: 0 | H156: 0 | I156: =SUM(G156:H156) -> 0 | J156: TSE1
A157: Educateur stagiaire | B157: 0 | C157: 0 | D157: 0 | E157: 0 | F157: =SUM(C157:E157) -> 0 | G157: 0 | H157: 0 | I157: =SUM(G157:H157) -> 0 | J157: SSE1
A158: EDUCATEURS DES APS | B158: =SUM(B153:B157) -> 0 | C158: 0 | D158: 0 | E158: 0 | F158: 0 | G158: 0 | H158: 0 | I158: 0 | J158: SE
A160: Opérateur principal | B160: 0 | C160: 0 | D160: 0 | E160: 0 | F160: =SUM(C160:E160) -> 0 | G160: 0 | H160: 0 | I160: =SUM(G160:H160) -> 0 | J160: TSP4
A161: Opérateur qualifié | B161: 0 | C161: 0 | D161: 0 | E161: 0 | F161: =SUM(C161:E161) -> 0 | G161: 0 | H161: 0 | I161: =SUM(G161:H161) -> 0 | J161: TSP3
A162: Opérateur qualifié stagiaire | B162: 0 | C162: 0 | D162: 0 | E162: 0 | F162: =SUM(C162:E162) -> 0 | G162: 0 | H162: 0 | I162: =SUM(G162:H162) -> 0 | J162: SSP3
A163: Opérateur | B163: 0 | C163: 0 | D163: 0 | E163: 0 | F163: =SUM(C163:E163) -> 0 | G163: 0 | H163: 0 | I163: =SUM(G163:H163) -> 0 | J163: TSP2
A164: OPERATEURS DES APS | B164: =SUM(B160:B163) -> 0 | C164: 0 | D164: 0 | E164: 0 | F164: 0 | G164: 0 | H164: 0 | I164: 0 | J164: SP
A166: FILIERE SPORTIVE | B166: =B151+B158+B164 -> 0 | C166: 0 | D166: 0 | E166: 0 | F166: 0 | G166: 0 | H166: 0 | I166: 0 | J166: S
A168: FILIERE SOCIALE
A169: Conseiller hors classe socio-éducatif | B169: 0 | C169: 0 | D169: 0 | E169: 0 | F169: =SUM(C169:E169) -> 0 | G169: 0 | H169: 0 | I169: =SUM(G169:H169) -> 0 | J169: TMM3
A170: Conseiller supérieur socio-éducatif | B170: 0 | C170: 0 | D170: 0 | E170: 0 | F170: =SUM(C170:E170) -> 0 | G170: 0 | H170: 0 | I170: =SUM(G170:H170) -> 0 | J170: TMM2
A171: Conseiller socio-éducatif | B171: 0 | C171: 0 | D171: 0 | E171: 0 | F171: =SUM(C171:E171) -> 0 | G171: 0 | H171: 0 | I171: =SUM(G171:H171) -> 0 | J171: TMM1
A172: Conseiller socio-éducatif stagiaire | B172: 0 | C172: 0 | D172: 0 | E172: 0 | F172: =SUM(C172:E172) -> 0 | G172: 0 | H172: 0 | I172: =SUM(G172:H172) -> 0 | J172: SMM1
A173: CONSEILLERS SOCIO-EDUCATIFS | B173: =SUM(B169:B172) -> 0 | C173: =SUM(C169:C172) -> 0 | D173: 0 | E173: 0 | F173: 0 | G173: 0 | H173: 0 | I173: 0 | J173: MM
A175: Assistant socio-éducatif de classe exceptionnelle | B175: 0 | C175: 0 | D175: 0 | E175: 0 | F175: =SUM(C175:E175) -> 0 | G175: 0 | H175: 0 | I175: =SUM(G175:H175) -> 0 | J175: TMT3
A176: Assistant socio-éducatif de 1ère classe | B176: 0 | C176: 0 | D176: 0 | E176: 0 | F176: =SUM(C176:E176) -> 0 | G176: 0 | H176: 0 | I176: =SUM(G176:H176) -> 0 | J176: TMT2
A177: Assistant socio-éducatif de 2ème classe | B177: 0 | C177: 0 | D177: 0 | E177: 0 | F177: =SUM(C177:E177) -> 0 | G177: 0 | H177: 0 | I177: =SUM(G177:H177) -> 0 | J177: TMT1
A178: Assistant socio-éducatif de 2ème classe stagiaire | B178: 0 | C178: 0 | D178: 0 | E178: 0 | F178: =SUM(C178:E178) -> 0 | G178: 0 | H178: 0 | I178: =SUM(G178:H178) -> 0 | J178: SMT1
A179: ASSISTANTS SOCIO-EDUCATIFS | B179: =SUM(B175:B178) -> 0 | C179: 0 | D179: 0 | E179: 0 | F179: 0 | G179: 0 | H179: 0 | I179: 0 | J179: MT
A181: Educateur de jeunes enfants de classe exceptionnelle | B181: 0 | C181: 0 | D181: 0 | E181: 0 | F181: =SUM(C181:E181) -> 0 | G181: 0 | H181: 0 | I181: =SUM(G181:H181) -> 0 | J181: TME3
A182: Educateur de jeunes enfants de 1ère classe | B182: 0 | C182: 0 | D182: 0 | E182: 0 | F182: =SUM(C182:E182) -> 0 | G182: 0 | H182: 0 | I182: =SUM(G182:H182) -> 0 | J182: TME2
A183: Educateur de jeunes enfants de 2ème classe | B183: 0 | C183: 0 | D183: 0 | E183: 0 | F183: =SUM(C183:E183) -> 0 | G183: 0 | H183: 0 | I183: =SUM(G183:H183) -> 0 | J183: TME1
A184: Educateur de jeunes enfants de 2ème classe stagiaire | B184: 0 | C184: 0 | D184: 0 | E184: 0 | F184: =SUM(C184:E184) -> 0 | G184: 0 | H184: 0 | I184: =SUM(G184:H184) -> 0 | J184: SME1
A185: EDUCATEURS DE JEUNES ENFANTS | B185: =SUM(B181:B184) -> 0 | C185: 0 | D185: 0 | E185: 0 | F185: 0 | G185: 0 | H185: 0 | I185: 0 | J185: ME
A187: Moniteur-éducateur et intervenant familial principal | B187: 0 | C187: 0 | D187: 0 | E187: 0 | F187: =SUM(C187:E187) -> 0 | G187: 0 | H187: 0 | I187: =SUM(G187:H187) -> 0 | J187: TMB2
A188: Moniteur-éducateur et intervenant familial | B188: 0 | C188: 0 | D188: 0 | E188: 0 | F188: =SUM(C188:E188) -> 0 | G188: 0 | H188: 0 | I188: =SUM(G188:H188) -> 0 | J188: TMB1
A189: Moniteur-éducateur et intervenant familial stagiaire | B189: 0 | C189: 0 | D189: 0 | E189: 0 | F189: =SUM(C189:E189) -> 0 | G189: 0 | H189: 0 | I189: =SUM(G189:H189) -> 0 | J189: SMB1
A190: MONITEURS EDUCATEURS ET INTERVENANTS FAMILIAUX | B190: =SUM(B187:B189) -> 0 | C190: 0 | D190: 0 | E190: 0 | F190: 0 | G190: 0 | H190: 0 | I190: 0 | J190: MB
A192: Agent spécialisé principal de 1ère classe des écoles maternelles | B192: 0 | C192: 0 | D192: 0 | E192: 0 | F192: =SUM(C192:E192) -> 0 | G192: 0 | H192: 0 | I192: =SUM(G192:H192) -> 0 | J192: TMD3
A193: Agent spécialisé principal de 2ème classe des écoles maternelles | B193: 0 | C193: 0 | D193: 0 | E193: 0 | F193: =SUM(C193:E193) -> 0 | G193: 0 | H193: 0 | I193: =SUM(G193:H193) -> 0 | J193: TMD2
A194: Agent spécialisé principal de 2ème classe des écoles maternelles stagiaire | B194: 0 | C194: 0 | D194: 0 | E194: 0 | F194: =SUM(C194:E194) -> 0 | G194: 0 | H194: 0 | I194: =SUM(G194:H194) -> 0 | J194: SMD2
A195: ASEM | B195: =SUM(B192:B194) -> 0 | C195: 0 | D195: 0 | E195: 0 | F195: 0 | G195: 0 | H195: 0 | I195: 0 | J195: MD
A197: Agent social principal de 1ère classe | B197: 0 | C197: 0 | D197: 0 | E197: 0 | F197: =SUM(C197:E197) -> 0 | G197: 0 | H197: 0 | I197: =SUM(G197:H197) -> 0 | J197: TMP4
A198: Agent social principal de 2ème classe | B198: 0 | C198: 0 | D198: 0 | E198: 0 | F198: =SUM(C198:E198) -> 0 | G198: 0 | H198: 0 | I198: =SUM(G198:H198) -> 0 | J198: TMP3
A199: Agent social principal de 2ème classe stagiaire | B199: 0 | C199: 0 | D199: 0 | E199: 0 | F199: =SUM(C199:E199) -> 0 | G199: 0 | H199: 0 | I199: =SUM(G199:H199) -> 0 | J199: SMP3
A200: Agent social | B200: 0 | C200: 0 | D200: 0 | E200: 0 | F200: =SUM(C200:E200) -> 0 | G200: 0 | H200: 0 | I200: =SUM(G200:H200) -> 0 | J200: TMP1
A201: Agent social stagiaire | B201: 0 | C201: 0 | D201: 0 | E201: 0 | F201: =SUM(C201:E201) -> 0 | G201: 0 | H201: 0 | I201: =SUM(G201:H201) -> 0 | J201: SMP1
A202: AGENTS SOCIAUX | B202: =SUM(B197:B201) -> 0 | C202: 0 | D202: 0 | E202: 0 | F202: 0 | G202: 0 | H202: 0 | I202: 0 | J202: MP
A204: FILIERE SOCIALE | B204: =B173+B179+B185+B190+B195+B202 -> 0 | C204: 0 | D204: 0 | E204: 0 | F204: 0 | G204: 0 | H204: 0 | I204: 0 | J204: M
A206: FILIERE MEDICO-SOCIALE
A207: Médecin hors classe | B207: 0 | C207: 0 | D207: 0 | E207: 0 | F207: =SUM(C207:E207) -> 0 | G207: 0 | H207: 0 | I207: =SUM(G207:H207) -> 0 | J207: TOD3
A208: Médecin de 1ère classe | B208: 0 | C208: 0 | D208: 0 | E208: 0 | F208: =SUM(C208:E208) -> 0 | G208: 0 | H208: 0 | I208: =SUM(G208:H208) -> 0 | J208: TOD2
A209: Médecin de 2ème classe | B209: 0 | C209: 0 | D209: 0 | E209: 0 | F209: =SUM(C209:E209) -> 0 | G209: 0 | H209: 0 | I209: =SUM(G209:H209) -> 0 | J209: TOD1
A210: Médecin de 2ème classe stagiaire | B210: 0 | C210: 0 | D210: 0 | E210: 0 | F210: =SUM(C210:E210) -> 0 | G210: 0 | H210: 0 | I210: =SUM(G210:H210) -> 0 | J210: SOD1
A211: MEDECINS | B211: =SUM(B207:B210) -> 0 | C211: 0 | D211: 0 | E211: 0 | F211: 0 | G211: 0 | H211: 0 | I211: 0 | J211: OD
A213: Psychologue hors classe | B213: 0 | C213: 0 | D213: 0 | E213: 0 | F213: =SUM(C213:E213) -> 0 | G213: 0 | H213: 0 | I213: =SUM(G213:H213) -> 0 | J213: TOH2
A214: Psychologue de classe normale | B214: 0 | C214: 0 | D214: 0 | E214: 0 | F214: =SUM(C214:E214) -> 0 | G214: 0 | H214: 0 | I214: =SUM(G214:H214) -> 0 | J214: TOH1
A215: Psycholoque de classe normale stagiaire | B215: 0 | C215: 0 | D215: 0 | E215: 0 | F215: =SUM(C215:E215) -> 0 | G215: 0 | H215: 0 | I215: =SUM(G215:H215) -> 0 | J215: SOH1
A216: PSYCHOLOGUES | B216: =SUM(B213:B215) -> 0 | C216: 0 | D216: 0 | E216: 0 | F216: 0 | G216: 0 | H216: 0 | I216: 0 | J216: OH
A218: Sage-femme hors classe | B218: 0 | C218: 0 | D218: 0 | E218: 0 | F218: =SUM(C218:E218) -> 0 | G218: 0 | H218: 0 | I218: =SUM(G218:H218) -> 0 | J218: TOF3
A219: Sage-femme de classe normale | B219: 0 | C219: 0 | D219: 0 | E219: 0 | F219: =SUM(C219:E219) -> 0 | G219: 0 | H219: 0 | I219: =SUM(G219:H219) -> 0 | J219: TOF1
A220: Sage-femme de classe normale stagiaire | B220: 0 | C220: 0 | D220: 0 | E220: 0 | F220: =SUM(C220:E220) -> 0 | G220: 0 | H220: 0 | I220: =SUM(G220:H220) -> 0 | J220: SOF1
A221: SAGES-FEMMES | B221: =SUM(B218:B220) -> 0 | C221: 0 | D221: 0 | E221: 0 | F221: 0 | G221: 0 | H221: 0 | I221: 0 | J221: OF
A223: Cadre supérieur de santé | B223: 0 | C223: 0 | D223: 0 | E223: 0 | F223: =SUM(C223:E223) -> 0 | G223: 0 | H223: 0 | I223: =SUM(G223:H223) -> 0 | J223: TOG3
A224: Cadré de santé de 1ère classe | B224: 0 | C224: 0 | D224: 0 | E224: 0 | F224: =SUM(C224:E224) -> 0 | G224: 0 | H224: 0 | I224: =SUM(G224:H224) -> 0 | J224: TOG2
A225: Cadre de santé de 2ème classe | B225: 0 | C225: 0 | D225: 0 | E225: 0 | F225: =SUM(C225:E225) -> 0 | G225: 0 | H225: 0 | I225: =SUM(G225:H225) -> 0 | J225: TOG1
A226: Cadre de santé de 2ème classe stagiaire | B226: 0 | C226: 0 | D226: 0 | E226: 0 | F226: =SUM(C226:E226) -> 0 | G226: 0 | H226: 0 | I226: =SUM(G226:H226) -> 0 | J226: SOG1
A227: CADRES DE SANTE PARAMEDICAUX | B227: =SUM(B223:B226) -> 0 | C227: 0 | D227: 0 | E227: 0 | F227: 0 | G227: 0 | H227: 0 | I227: 0 | J227: OG
A229: Puéricultrice-cadre supérieur de santé | B229: 0 | C229: 0 | D229: 0 | E229: 0 | F229: =SUM(C229:E229) -> 0 | G229: 0 | H229: 0 | I229: =SUM(G229:H229) -> 0 | J229: TOC2
A230: Puéricultrice-cadre de santé | B230: 0 | C230: 0 | D230: 0 | E230: 0 | F230: =SUM(C230:E230) -> 0 | G230: 0 | H230: 0 | I230: =SUM(G230:H230) -> 0 | J230: TOC1
A231: PUERICULTRICES-CADRES DE SANTE | B231: =SUM(B229:B230) -> 0 | C231: 0 | D231: 0 | E231: 0 | F231: 0 | G231: 0 | H231: 0 | I231: 0 | J231: OC
A233: Puéricultrice de classe supérieure | B233: 0 | C233: 0 | D233: 0 | E233: 0 | F233: =SUM(C233:E233) -> 0 | G233: 0 | H233: 0 | I233: =SUM(G233:H233) -> 0 | J233: TOP2
A234: Puéricultrice de classe normale | B234: 0 | C234: 0 | D234: 0 | E234: 0 | F234: =SUM(C234:E234) -> 0 | G234: 0 | H234: 0 | I234: =SUM(G234:H234) -> 0 | J234: TOP1
A235: PUERICULTRICES (décret n° 92-859 du 28 août 1992 modifié) * | B235: =SUM(B233:B234) -> 0 | C235: 0 | D235: 0 | E235: 0 | F235: 0 | G235: 0 | H235: 0 | I235: 0 | J235: OP
A237: Puéricultrice hors classe | B237: 0 | C237: 0 | D237: 0 | E237: 0 | F237: =SUM(C237:E237) -> 0 | G237: 0 | H237: 0 | I237: =SUM(G237:H237) -> 0 | J237: TOU3
A238: Puéricultrice de classe supérieure | B238: 0 | C238: 0 | D238: 0 | E238: 0 | F238: =SUM(C238:E238) -> 0 | G238: 0 | H238: 0 | I238: =SUM(G238:H238) -> 0 | J238: TOU2
A239: Puéricultrice de classe normale | B239: 0 | C239: 0 | D239: 0 | E239: 0 | F239: =SUM(C239:E239) -> 0 | G239: 0 | H239: 0 | I239: =SUM(G239:H239) -> 0 | J239: TOU1
A240: Puéricultrice de classe normale stagiaire | B240: 0 | C240: 0 | D240: 0 | E240: 0 | F240: =SUM(C240:E240) -> 0 | G240: 0 | H240: 0 | I240: =SUM(G240:H240) -> 0 | J240: SOU1
A241: PUERICULTRICES (décret n° 2014-923 du 18 août 2014) * | B241: =SUM(B237:B240) -> 0 | C241: 0 | D241: 0 | E241: 0 | F241: 0 | G241: 0 | H241: 0 | I241: 0 | J241: OU
A243: Cadre de santé | B243: 0 | C243: 0 | D243: 0 | E243: 0 | F243: =SUM(C243:E243) -> 0 | G243: 0 | H243: 0 | I243: =SUM(G243:H243) -> 0 | J243: TOA1
A244: CADRES DE SANTE INFIRMIERS, REEDUCATEURS ET ASSISTANTS MEDICO-TECHNIQUES | B244: =SUM(B243:B243) -> 0 | C244: 0 | D244: 0 | E244: 0 | F244: 0 | G244: 0 | H244: 0 | I244: 0 | J244: OA
A246: Infirmier en soins généraux hors classe | B246: 0 | C246: 0 | D246: 0 | E246: 0 | F246: =SUM(C246:E246) -> 0 | G246: 0 | H246: 0 | I246: =SUM(G246:H246) -> 0 | J246: TOB3
... 106 more rows

Sheet Fiche 1.1.2
C1: Retour Sommaire
A3: 1.1.2 - Nombre de fonctionnaires occupant un emploi permanent à temps complet rémunérés au 31/12/2020 par filière, cadre d'emplois et selon la quotité de temps de travail et par sexe
A6: L’indicateur 1.1.2. détaille les effectifs, en nombre de personnes physiques (1 personne = 1 unité), déjà recensés à l’indicateur 1.1.1. dans la colonne 1.1.1(1).
A7: Ne pas remplir les cellules grisées (pré remplies par un zéro) qui font l’objet de calculs automatiques.
A10: Quels sont les agents à recenser ?
A12: * les fonctionnaires
A14: * occupant un emploi permanent à temps complet
A16: * rémunérés à la date du 31 décembre 2020
A18: Remarque : Pour plus de précisions, se référer à la fiche de l’indicateur 1.1.1.
A21: Comment sont-ils recensés ?
A23: * par filière et cadre d'emplois (en lignes), selon les indications fournies dans la fiche de l’indicateur 1.1.1.
A25: * par quotité de temps de travail et par sexe (en colonnes)
A26: - colonnes 1.1.2(1) et 1.1.2(2) : temps plein
A27: - colonnes 1.1.2(3) à 1.1.2(8) : temps partiel
A30: Précisions sur les temps partiels :
A31: Sous réserve de l’exception ci-dessous, tous les fonctionnaires à temps partiel sont à recenser, y compris les temps partiels de droit ou sur autorisation et les CPA. (La CPA été supprimée en 2011 mais elle s'applique toujours aux agents qui étaient déjà en CPA à cette date. Le décompte des CPA a toutefois été supprimé à l'indicateur 1.1.3, car il concerne un nombre marginal d'agents.)
A32: La quotité de temps de travail à prendre en compte est celle qui figure sur la décision individuelle d’autorisation d’exercice à temps partiel, calculée en base annuelle par rapport à la durée légale du temps de travail. Cette quotité peut donc être différente de la durée hebdomadaire de service effectivement accomplie. Elle est également différente de la quotité rémunérée dans le cas particulier des temps partiels à 80% et à 90%.
A34: Ne doivent pas être comptabilisés :
A35: Les fonctionnaires qui bénéficient d’un temps partiel pour raison thérapeutique prévu par l’article 57-4 bis de la loi du 26 janvier 1984 après avis du comité médical ou de la commission de réforme, cette forme particulière de temps partiel n’étant pas considérée comme un « temps partiel choisi » relevant des dispositions de droit commun prévues par les articles 60 à 60 quater de la dite loi.

Sheet IND 1.1.2
D1: Retour Sommaire
A3: 1.1.2 - Nombre de fonctionnaires occupant un emploi permanent à temps complet rémunérés au 31/12/2020 par filière, cadre d'emplois selon la quotité de temps de travail et le sexe
A5: Champ : le tableau qui suit concerne les agents titulaires et stagiaires occupant un emploi permanent rémunérés au 31/12/2020.
A6: Remarque importante : les agents occupant un emploi fonctionnel doivent être uniquement comptabilisés dans leurs cadres d'emplois et grades respectifs.
B8: 10 | C8: 10 | D8: 21 | E8: 21 | F8: 22 | G8: 22 | H8: 23 | I8: 23 | J8: 00 | K8: 00 | L8: temps
B9: FONCTIONNAIRES sur emploi permanent occupant un poste à TEMPS COMPLET et exerçant leurs fonctions à : | J9: Total
B10: TEMPS PLEIN | D10: Tout type de TEMPS PARTIEL (sauf thérapeutique)
B11: 1 | D11: Moins de 80% | F11: de 80% à moins de 90% | H11: 90% et plus
B12: Hommes 1.1.2(1) | C12: Femmes 1.1.2(2) | D12: Hommes 1.1.2(3) | E12: Femmes 1.1.2(4) | F12: Hommes 1.1.2(5) | G12: Femmes 1.1.2(6) | H12: Hommes 1.1.2(7) | I12: Femmes 1.1.2(8) | J12: Hommes | K12: Femmes
A13: FILIERE ADMINISTRATIVE | B13: 1 | C13: 2 | D13: 1 | E13: 2 | F13: 1 | G13: 2 | H13: 1 | I13: 2 | J13: 1 | K13: 2 | L13: sexe
A14: Administrateurs | B14: 0 | C14: 0 | D14: 0 | E14: 0 | F14: 0 | G14: 0 | H14: 0 | I14: 0 | J14: =B14+D14+F14+H14 -> 0 | K14: 0 | L14: AD
A15: Attachés | B15: 0 | C15: 0 | D15: 0 | E15: 0 | F15: 0 | G15: 0 | H15: 0 | I15: 0 | J15: 0 | K15: 0 | L15: AT
A16: Secrétaires de mairie | B16: 0 | C16: 0 | D16: 0 | E16: 0 | F16: 0 | G16: 0 | H16: 0 | I16: 0 | J16: 0 | K16: 0 | L16: AS
A17: Rédacteurs | B17: 0 | C17: 0 | D17: 0 | E17: 0 | F17: 0 | G17: 0 | H17: 0 | I17: 0 | J17: 0 | K17: 0 | L17: AR
A18: Adjoints administratifs | B18: 0 | C18: 0 | D18: 0 | E18: 0 | F18: 0 | G18: 0 | H18: 0 | I18: 0 | J18: 0 | K18: 0 | L18: AJ
A19: FILIERE ADMINISTRATIVE | B19: =SUM(B14:B18) -> 0 | C19: 0 | D19: 0 | E19: 0 | F19: 0 | G19: 0 | H19: 0 | I19: 0 | J19: 0 | K19: 0 | L19: A
A20: FILIERE TECHNIQUE
A21: Ingénieurs en chef | B21: 0 | C21: 0 | D21: 0 | E21: 0 | F21: 0 | G21: 0 | H21: 0 | I21: 0 | J21: =B21+D21+F21+H21 -> 0 | K21: =C21+E21+G21+I21 -> 0 | L21: TN
A22: Ingénieurs | B22: 0 | C22: 0 | D22: 0 | E22: 0 | F22: 0 | G22: 0 | H22: 0 | I22: 0 | J22: =B22+D22+F22+H22 -> 0 | K22: 0 | L22: TP
A23: Techniciens | B23: 0 | C23: 0 | D23: 0 | E23: 0 | F23: 0 | G23: 0 | H23: 0 | I23: 0 | J23: 0 | K23: 0 | L23: TT
A24: Agents de maîtrise | B24: 0 | C24: 0 | D24: 0 | E24: 0 | F24: 0 | G24: 0 | H24: 0 | I24: 0 | J24: 0 | K24: 0 | L24: TM
A25: Adjoints techniques | B25: 2 | C25: 0 | D25: 0 | E25: 0 | F25: 0 | G25: 0 | H25: 0 | I25: 0 | J25: 2 | K25: 0 | L25: TH
A26: Adjoints techniques des établissements d'enseignement | B26: 0 | C26: 0 | D26: 0 | E26: 0 | F26: 0 | G26: 0 | H26: 0 | I26: 0 | J26: 0 | K26: 0 | L26: TA
A27: FILIERE TECHNIQUE | B27: =SUM(B21:B26) -> 2 | C27: =SUM(C21:C26) -> 0 | D27: 0 | E27: 0 | F27: 0 | G27: 0 | H27: 0 | I27: 0 | J27: 2 | K27: 0 | L27: T
A28: FILIERE CULTURELLE
A29: Conservateurs du patrimoine | B29: 0 | C29: 0 | D29: 0 | E29: 0 | F29: 0 | G29: 0 | H29: 0 | I29: 0 | J29: =B29+D29+F29+H29 -> 0 | K29: =C29+E29+G29+I29 -> 0 | L29: CM
A30: Conservateurs des bibliothèques | B30: 0 | C30: 0 | D30: 0 | E30: 0 | F30: 0 | G30: 0 | H30: 0 | I30: 0 | J30: 0 | K30: 0 | L30: CH
A31: Attachés de conservation du patrimoine | B31: 0 | C31: 0 | D31: 0 | E31: 0 | F31: 0 | G31: 0 | H31: 0 | I31: 0 | J31: 0 | K31: 0 | L31: CA
A32: Bibliothécaires | B32: 0 | C32: 0 | D32: 0 | E32: 0 | F32: 0 | G32: 0 | H32: 0 | I32: 0 | J32: 0 | K32: 0 | L32: CB
A33: Directeurs d'établissements d'enseignement artistique | B33: 0 | C33: 0 | D33: 0 | E33: 0 | F33: 0 | G33: 0 | H33: 0 | I33: 0 | J33: 0 | K33: 0 | L33: CD
A34: Professeurs d'enseignement artistique | B34: 0 | C34: 0 | D34: 0 | E34: 0 | F34: 0 | G34: 0 | H34: 0 | I34: 0 | J34: 0 | K34: 0 | L34: CP
A35: Assistants de conservation du patrimoine et des bibliothèques | B35: 0 | C35: 0 | D35: 0 | E35: 0 | F35: 0 | G35: 0 | H35: 0 | I35: 0 | J35: 0 | K35: 0 | L35: CG
A36: Assistants d'enseignement artistique | B36: 0 | C36: 0 | D36: 0 | E36: 0 | F36: 0 | G36: 0 | H36: 0 | I36: 0 | J36: 0 | K36: 0 | L36: CS
A37: Adjoints territoriaux du patrimoine | B37: 0 | C37: 0 | D37: 0 | E37: 0 | F37: 0 | G37: 0 | H37: 0 | I37: 0 | J37: 0 | K37: 0 | L37: CJ
A38: FILIERE CULTURELLE | B38: =SUM(B29:B37) -> 0 | C38: 0 | D38: 0 | E38: 0 | F38: 0 | G38: 0 | H38: 0 | I38: 0 | J38: 0 | K38: 0 | L38: C
A39: FILIERE SPORTIVE
A40: Conseillers des APS | B40: 0 | C40: 0 | D40: 0 | E40: 0 | F40: 0 | G40: 0 | H40: 0 | I40: 0 | J40: =B40+D40+F40+H40 -> 0 | K40: 0 | L40: SC
A41: Educateurs des APS | B41: 0 | C41: 0 | D41: 0 | E41: 0 | F41: 0 | G41: 0 | H41: 0 | I41: 0 | J41: 0 | K41: 0 | L41: SE
A42: Opérateurs des APS | B42: 0 | C42: 0 | D42: 0 | E42: 0 | F42: 0 | G42: 0 | H42: 0 | I42: 0 | J42: 0 | K42: 0 | L42: SP
A43: FILIERE SPORTIVE | B43: =SUM(B40:B42) -> 0 | C43: 0 | D43: 0 | E43: 0 | F43: 0 | G43: 0 | H43: 0 | I43: 0 | J43: 0 | K43: 0 | L43: S
A44: FILIERE SOCIALE
A45: Conseillers socio-éducatifs | B45: 0 | C45: 0 | D45: 0 | E45: 0 | F45: 0 | G45: 0 | H45: 0 | I45: 0 | J45: =B45+D45+F45+H45 -> 0 | K45: =C45+E45+G45+I45 -> 0 | L45: MM
A46: Assistants socio-éducatifs | B46: 0 | C46: 0 | D46: 0 | E46: 0 | F46: 0 | G46: 0 | H46: 0 | I46: 0 | J46: 0 | K46: 0 | L46: MT
A47: Educateurs de jeunes enfants | B47: 0 | C47: 0 | D47: 0 | E47: 0 | F47: 0 | G47: 0 | H47: 0 | I47: 0 | J47: 0 | K47: 0 | L47: ME
A48: Moniteurs-éducateurs et intervenants familiaux | B48: 0 | C48: 0 | D48: 0 | E48: 0 | F48: 0 | G48: 0 | H48: 0 | I48: 0 | J48: 0 | K48: 0 | L48: MB
A49: Agents spécialisés des écoles maternelles (ASEM) | B49: 0 | C49: 0 | D49: 0 | E49: 0 | F49: 0 | G49: 0 | H49: 0 | I49: 0 | J49: 0 | K49: 0 | L49: MD
A50: Agents sociaux | B50: 0 | C50: 0 | D50: 0 | E50: 0 | F50: 0 | G50: 0 | H50: 0 | I50: 0 | J50: 0 | K50: 0 | L50: MP
A51: FILIERE SOCIALE | B51: =SUM(B45:B50) -> 0 | C51: 0 | D51: 0 | E51: 0 | F51: 0 | G51: 0 | H51: 0 | I51: 0 | J51: 0 | K51: 0 | L51: M
A52: FILIERE MEDICO-SOCIALE
A53: Médecins | B53: 0 | C53: 0 | D53: 0 | E53: 0 | F53: 0 | G53: 0 | H53: 0 | I53: 0 | J53: =B53+D53+F53+H53 -> 0 | K53: =C53+E53+G53+I53 -> 0 | L53: OD
A54: Psychologues | B54: 0 | C54: 0 | D54: 0 | E54: 0 | F54: 0 | G54: 0 | H54: 0 | I54: 0 | J54: 0 | K54: 0 | L54: OH
A55: Sages-femmes | B55: 0 | C55: 0 | D55: 0 | E55: 0 | F55: 0 | G55: 0 | H55: 0 | I55: 0 | J55: 0 | K55: 0 | L55: OF
A56: Cadres de santé paramédicaux | B56: 0 | C56: 0 | D56: 0 | E56: 0 | F56: 0 | G56: 0 | H56: 0 | I56: 0 | J56: 0 | K56: 0 | L56: OG
A57: Puéricultrices cadres de santé | B57: 0 | C57: 0 | D57: 0 | E57: 0 | F57: 0 | G57: 0 | H57: 0 | I57: 0 | J57: 0 | K57: 0 | L57: OC
A58: Puéricultrices* | B58: 0 | C58: 0 | D58: 0 | E58: 0 | F58: 0 | G58: 0 | H58: 0 | I58: 0 | J58: 0 | K58: 0 | L58: OX
A59: Cadres de santé infirmiers, rééducateurs et assistants médico-techniques | B59: 0 | C59: 0 | D59: 0 | E59: 0 | F59: 0 | G59: 0 | H59: 0 | I59: 0 | J59: 0 | K59: 0 | L59: OA
A60: Infirmiers en soins généraux | B60: 0 | C60: 0 | D60: 0 | E60: 0 | F60: 0 | G60: 0 | H60: 0 | I60: 0 | J60: 0 | K60: 0 | L60: OB
A61: Infirmiers | B61: 0 | C61: 0 | D61: 0 | E61: 0 | F61: 0 | G61: 0 | H61: 0 | I61: 0 | J61: 0 | K61: 0 | L61: ON
A62: Auxiliaires de puériculture | B62: 0 | C62: 0 | D62: 0 | E62: 0 | F62: 0 | G62: 0 | H62: 0 | I62: 0 | J62: 0 | K62: 0 | L62: OJ
A63: Auxiliaires de soins | B63: 0 | C63: 0 | D63: 0 | E63: 0 | F63: 0 | G63: 0 | H63: 0 | I63: 0 | J63: 0 | K63: 0 | L63: OK
A64: FILIERE MEDICO-SOCIALE | B64: =SUM(B53:B63) -> 0 | C64: 0 | D64: 0 | E64: 0 | F64: 0 | G64: 0 | H64: 0 | I64: 0 | J64: 0 | K64: 0 | L64: O
A65: FILIERE MEDICO-TECHNIQUE
A66: Biologistes, vétérinaires, pharmaciens | B66: 0 | C66: 0 | D66: 0 | E66: 0 | F66: 0 | G66: 0 | H66: 0 | I66: 0 | J66: =B66+D66+F66+H66 -> 0 | K66: =C66+E66+G66+I66 -> 0 | L66: EB
A67: Techniciens paramédicaux | B67: 0 | C67: 0 | D67: 0 | E67: 0 | F67: 0 | G67: 0 | H67: 0 | I67: 0 | J67: =B67+D67+F67+H67 -> 0 | K67: =C67+E67+G67+I67 -> 0 | L67: ET
A68: FILIERE MEDICO-TECHNIQUE | B68: =SUM(B66:B67) -> 0 | C68: 0 | D68: 0 | E68: 0 | F68: 0 | G68: 0 | H68: 0 | I68: 0 | J68: 0 | K68: 0 | L68: E
A69: FILIERE POLICE MUNICIPALE
A70: Directeurs de police municipale | B70: 0 | C70: 0 | D70: 0 | E70: 0 | F70: 0 | G70: 0 | H70: 0 | I70: 0 | J70: =B70+D70+F70+H70 -> 0 | K70: =C70+E70+G70+I70 -> 0 | L70: PU
A71: Chefs de service de police municipale | B71: 0 | C71: 0 | D71: 0 | E71: 0 | F71: 0 | G71: 0 | H71: 0 | I71: 0 | J71: =B71+D71+F71+H71 -> 0 | K71: 0 | L71: PC
A72: Agents de police municipale | B72: 0 | C72: 0 | D72: 0 | E72: 0 | F72: 0 | G72: 0 | H72: 0 | I72: 0 | J72: 0 | K72: 0 | L72: PG
A73: Gardes-champêtres | B73: 0 | C73: 0 | D73: 0 | E73: 0 | F73: 0 | G73: 0 | H73: 0 | I73: 0 | J73: 0 | K73: 0 | L73: PH
A74: FILIERE POLICE MUNICIPALE | B74: =SUM(B70:B73) -> 0 | C74: 0 | D74: 0 | E74: 0 | F74: 0 | G74: 0 | H74: 0 | I74: 0 | J74: 0 | K74: 0 | L74: P
A75: FILIERE INCENDIE ET SECOURS
A76: Contrôleurs, colonels | B76: 0 | C76: 0 | D76: 0 | E76: 0 | F76: 0 | G76: 0 | H76: 0 | I76: 0 | J76: =B76+D76+F76+H76 -> 0 | K76: =C76+E76+G76+I76 -> 0 | L76: RH
A77: Capitaines, commandants, lieutenants-colonels | B77: 0 | C77: 0 | D77: 0 | E77: 0 | F77: 0 | G77: 0 | H77: 0 | I77: 0 | J77: 0 | K77: 0 | L77: RC
A78: Médecins, pharmaciens | B78: 0 | C78: 0 | D78: 0 | E78: 0 | F78: 0 | G78: 0 | H78: 0 | I78: 0 | J78: 0 | K78: 0 | L78: RD
A79: Lieutenants | B79: 0 | C79: 0 | D79: 0 | E79: 0 | F79: 0 | G79: 0 | H79: 0 | I79: 0 | J79: 0 | K79: 0 | L79: RL
A80: Cadres de santé | B80: 0 | C80: 0 | D80: 0 | E80: 0 | F80: 0 | G80: 0 | H80: 0 | I80: 0 | J80: 0 | K80: 0 | L80: RF
A81: Infirmiers | B81: 0 | C81: 0 | D81: 0 | E81: 0 | F81: 0 | G81: 0 | H81: 0 | I81: 0 | J81: 0 | K81: 0 | L81: RG
A82: Sous-officiers | B82: 0 | C82: 0 | D82: 0 | E82: 0 | F82: 0 | G82: 0 | H82: 0 | I82: 0 | J82: 0 | K82: 0 | L82: RS
A83: Sapeurs et caporaux | B83: 0 | C83: 0 | D83: 0 | E83: 0 | F83: 0 | G83: 0 | H83: 0 | I83: 0 | J83: 0 | K83: 0 | L83: RU
A84: FILIERE INCENDIE-SECOURS | B84: =SUM(B76:B83) -> 0 | C84: 0 | D84: 0 | E84: 0 | F84: 0 | G84: 0 | H84: 0 | I84: 0 | J84: 0 | K84: 0 | L84: R
A85: FILIERE ANIMATION
A86: Animateurs | B86: 0 | C86: 0 | D86: 0 | E86: 0 | F86: 0 | G86: 0 | H86: 0 | I86: 0 | J86: =B86+D86+F86+H86 -> 0 | K86: =C86+E86+G86+I86 -> 0 | L86: NN
A87: Adjoints d'animation | B87: 0 | C87: 0 | D87: 0 | E87: 0 | F87: 0 | G87: 0 | H87: 0 | I87: 0 | J87: =B87+D87+F87+H87 -> 0 | K87: =C87+E87+G87+I87 -> 0 | L87: NJ
A88: FILIERE ANIMATION | B88: =SUM(B86:B87) -> 0 | C88: 0 | D88: 0 | E88: 0 | F88: 0 | G88: 0 | H88: 0 | I88: 0 | J88: 0 | K88: 0 | L88: N
A90: TOTAL | B90: =B51+B64+B68+B74+B84+B88+B43+B38+B27+B19 -> 2 | C90: =C51+C64+C68+C74+C84+C88+C43+C38+C27+C19 -> 0 | D90: 0 | E90: 0 | F90: 0 | G90: 0 | H90: 0 | I90: 0 | J90: 2 | K90: 0 | L90: 00
A92: *comptabiliser les puéricultrices du cadre d'emplois du décret n° 92-859 du 28 août 1992 modifié et du cadre d'emplois du décret n° 2014-923 du 18 août 2014.

Sheet Fiche 1.1.3
C1: Retour Sommaire
A3: 1.1.3 - Nombre de fonctionnaires bénéficiaires d'un temps partiel de droit ou sur autorisation par catégorie et sexe
A6: L’indicateur 1.1.3. détaille les effectifs, en nombre de personnes physiques (1 personne = 1 unité).
A7: Ne pas remplir les cellules grisées (pré remplies par un zéro) qui font l’objet de calculs automatiques.
A10: Quels sont les agents à recenser ?
A12: * les fonctionnaires (titulaires et stagiaires)
A14: *occupant un emploi permanent à temps complet
A17: * et exerçant à temps partiel sous les formes particulières (*) :
A18: - du temps partiel de droit qui peut être accordé soit pour raison familiale (pour élever un enfant, donner des soins à son conjoint, à un enfant à charge ou à un ascendant atteint d'un handicap nécessitant la présence d'une tierce personne), soit à certaines personnes en situation de handicap (article 60 bis de la loi du 26 janvier 1984) ;
A19: - du temps partiel sur autorisation pour les fonctionnaires en activité ou en service détaché, qui peuvent, en application de l'article 60 de la loi du 26 janvier 1984 susvisée, être autorisés, sur leur demande et sous réserve des nécessités du service, à bénéficier d'un service à temps partiel qui ne peut être inférieur au mi-temps;
A21: *rémunérés à la date du 31 décembre 2020
A23: Remarque : il s’agit de fonctionnaires déjà recensés à l’indicateur 1.1.2. dans les colonnes 1.1.2(3) à 1.1.2(8).
A26: Comment sont-ils recensés ?
A28: * par catégorie et par sexe (en lignes)
A30: *par type de temps partiel concerné (en colonnes)
A31: - colonne 1.1.3(1) : temps partiel de droit
A32: - colonne 1.1.3(2) : temps partiel sur autorisation
A34: (*) cf. art 1er du décret n° 2004-777 du 29 juillet 2004.

Sheet IND 1.1.3
C1: Retour Sommaire
A3: 1.1.3 - Nombre de fonctionnaires bénéficiaires d'un temps partiel de droit ou sur autorisation par catégorie et sexe
A5: Champ : le tableau qui suit concerne les agents fonctionnaires occupant un emploi permanent à temps complet et exerçant à temps partiel, rémunérés au 31/12/2020.
C6: 1 | D6: 2 | E6: temps
C7: Temps partiel de droit | D7: Temps partiel sur autorisation | E7: catégorie | F7: sexe
C8: 1.1.3(1) | D8: 1.1.3(2)
A9: Catégorie A | B9: Hommes | C9: 0 | D9: 0 | E9: 1 | F9: 1
B10: Femmes | C10: 0 | D10: 0 | E10: 1 | F10: 2
B11: Total | C11: =SUM(C9:C10) -> 0 | D11: =SUM(D9:D10) -> 0 | E11: 1 | F11: 0
A12: Catégorie B | B12: Hommes | C12: 0 | D12: 0 | E12: 2 | F12: 1
B13: Femmes | C13: 0 | D13: 0 | E13: 2 | F13: 2
B14: Total | C14: =SUM(C12:C13) -> 0 | D14: =SUM(D12:D13) -> 0 | E14: 2 | F14: 0
A15: Catégorie C | B15: Hommes | C15: 0 | D15: 0 | E15: 3 | F15: 1
B16: Femmes | C16: 0 | D16: 0 | E16: 3 | F16: 2
B17: Total | C17: =SUM(C15:C16) -> 0 | D17: =SUM(D15:D16) -> 0 | E17: 3 | F17: 0

Sheet IND 1.1.4
C1: Retour Sommaire
A3: 1.1.4 - Nombre de fonctionnaires en Equivalent Temps Plein Rémunéré (ETPR) en 2020 par filière déclinée par catégorie hiérarchique et par sexe
A5: Champ : le tableau qui suit concerne les fonctionnaires, occupant un emploi permanent à temps complet ou non complet et ayant été rémunérés au moins un jour durant l'année 2020 (hors heures supplémentaires et/ou complémentaires).
A7: L’indicateur 1.1.4. détaille les effectifs en ETPR (1 ETPR = 1 unité),
A8: Ne pas remplir les cellules grisées (pré remplies par un zéro) qui font l’objet de calculs automatiques.
A10: Définition : l'Equivalent Temps Plein Rémunéré (ETPR) est proportionnel à l'activité d'un agent, mesuré par sa quotité de temps de travail et par sa période d'activité sur l'année. Par contre, il ne tient pas compte des heures supplémentaires et/ou complémentaires effectuées par l'agent.
A11: La base de calcul pour un agent à temps plein (35 heures), ayant été en activité toute l'année correspond au nombre total d'heures payées soit 1 820 heures pour une année.
A12: Les périodes d'activités rémunérées sont incluses dans cette base de calcul (congés, absence, etc...).
A13: Le nombre d'heures payées à prendre en compte pour un agent, est le nombre d'heures annuelles cumulées au dernier jour de l'année ou au dernier jour de travail de l'agent.
A14: - cas particulier des agents de la filière culturelle : un(e) assistant(e) d'enseignement artistique travaillant 20h hebdomadaire (temps plein de référence) correspond à 1 ETPR (base 35 heures rémunérées). Un(e) professeur(e) d'enseignement artistique travaillant 16h hebdomadaire (temps plein de référence) correspond à 1 ETPR.
A16: Exemples :
A17: - un agent à temps plein rémunéré et présent toute l'année correspond à 1 ETPR, soit 1 820 heures
A18: - un agent à temps partiel (80 %) présent toute l'année correspond à 0,8 ETPR
A19: - un agent à temps non complet (25 heures par semaine) et ayant été présent 4 mois sur l'année correspond à 0,24 ETPR > calcul : (25 heures /35)*(4 mois /12)
A20: - un agent à temps partiel (80 %) étant repassé à temps plein le 1er juin 2017 correspond à 0,9 ETPR > calcul : (0,8 *(5 mois /12)) + (1*(7 mois /12))
A22: Exemples de calcul par le nombre d'heures payées (y compris congés, absences, ...)
A23: - pour un agent à temps complet, soit 1 820 heures travaillées > 1 ETPR
A24: - pour un agent à temps non complet, par exemple à 1 204 heures travaillées > 1 204 / 1 820 = 0,66 ETPR
C28: 1 | D28: 2 | E28: sexe
B29: 1.1.4 Nombre de Fonctionnaires en Equivalent Temps Plein Rémunéré (ETPR) ayant travaillé au moins un jour (Titulaires et stagiaires)
C30: année 2020
B31: Filières | C31: Hommes 1.1.4(1.1) | D31: Femmes 1.1.4(1.2) | E31: cadre | F31: categorie
B32: FILIERE ADMINISTRATIVE | C32: =+SUM(C33:C35) -> 0 | D32: =+SUM(D33:D35) -> 0.88 | E32: A | F32: 0
B33: Catégorie A | C33: 0 | D33: 0 | E33: A | F33: 1
B34: Catégorie B | C34: 0 | D34: 0 | E34: A | F34: 2
B35: Catégorie C | C35: 0 | D35: 0.88 | E35: A | F35: 3
B36: FILIERE TECHNIQUE | C36: =SUM(C37:C39) -> 1.5 | D36: =SUM(D37:D39) -> 1.25 | E36: T | F36: 0
B37: Catégorie A | C37: 0 | D37: 0 | E37: T | F37: 1
B38: Catégorie B | C38: 0 | D38: 0 | E38: T | F38: 2
B39: Catégorie C | C39: 1.5 | D39: 1.25 | E39: T | F39: 3
B40: FILIERE CULTURELLE | C40: =SUM(C41:C43) -> 0 | D40: =SUM(D41:D43) -> 0 | E40: C | F40: 0
B41: Catégorie A | C41: 0 | D41: 0 | E41: C | F41: 1
B42: Catégorie B | C42: 0 | D42: 0 | E42: C | F42: 2
B43: Catégorie C | C43: 0 | D43: 0 | E43: C | F43: 3
B44: FILIERE SPORTIVE | C44: =SUM(C45:C47) -> 0 | D44: =SUM(D45:D47) -> 0 | E44: S | F44: 0
B45: Catégorie A | C45: 0 | D45: 0 | E45: S | F45: 1
B46: Catégorie B | C46: 0 | D46: 0 | E46: S | F46: 2
B47: Catégorie C | C47: 0 | D47: 0 | E47: S | F47: 3
B48: FILIERE SOCIALE | C48: =SUM(C49:C51) -> 0 | D48: =SUM(D49:D51) -> 0 | E48: M | F48: 0
B49: Catégorie A | C49: 0 | D49: 0 | E49: M | F49: 1
B50: Catégorie B | C50: 0 | D50: 0 | E50: M | F50: 2
B51: Catégorie C | C51: 0 | D51: 0 | E51: M | F51: 3
B52: FILIERE MEDICO-SOCIALE | C52: =SUM(C53:C55) -> 0 | D52: =SUM(D53:D55) -> 0 | E52: O | F52: 0
B53: Catégorie A | C53: 0 | D53: 0 | E53: O | F53: 1
B54: Catégorie B | C54: 0 | D54: 0 | E54: O | F54: 2
B55: Catégorie C | C55: 0 | D55: 0 | E55: O | F55: 3
B56: FILIERE MEDICO-TECHNIQUE | C56: =SUM(C57:C59) -> 0 | D56: =SUM(D57:D59) -> 0 | E56: E | F56: 0
B57: Catégorie A | C57: 0 | D57: 0 | E57: E | F57: 1
B58: Catégorie B | C58: 0 | D58: 0 | E58: E | F58: 2
B59: Catégorie C | C59: 0 | D59: 0 | E59: E | F59: 3
B60: FILIERE POLICE MUNICIPALE | C60: =SUM(C61:C63) -> 0 | D60: =SUM(D61:D63) -> 0 | E60: P | F60: 0
B61: Catégorie A | C61: 0 | D61: 0 | E61: P | F61: 1
B62: Catégorie B | C62: 0 | D62: 0 | E62: P | F62: 2
B63: Catégorie C | C63: 0 | D63: 0 | E63: P | F63: 3
B64: FILIERE INCENDIE ET SECOURS | C64: =SUM(C65:C67) -> 0 | D64: =SUM(D65:D67) -> 0 | E64: R | F64: 0
B65: Catégorie A | C65: 0 | D65: 0 | E65: R | F65: 1
B66: Catégorie B | C66: 0 | D66: 0 | E66: R | F66: 2
B67: Catégorie C | C67: 0 | D67: 0 | E67: R | F67: 3
B68: FILIERE ANIMATION | C68: =SUM(C69:C70) -> 0 | D68: =SUM(D69:D70) -> 0 | E68: N | F68: 0
B69: Catégorie B | C69: 0 | D69: 0 | E69: N | F69: 2
B70: Catégorie C | C70: 0 | D70: 0 | E70: N | F70: 3
B72: TOTAL | C72: =SUM(C32,C36,C40,C44,C48,C52,C56,C60,C64,C68) -> 1.5 | D72: =SUM(D32,D36,D40,D44,D48,D52,D56,D60,D64,D68) -> 2.13 | E72: 00 | F72: 0

Sheet Fiche 1.2.1
E1: Retour Sommaire
A3: 1.2.1 - Effectifs des agents contractuels occupant un emploi permanent rémunérés au 31/12/2020
A4: par filière et cadre d'emplois, selon le type de contrat et le type de recrutement
A7: L’indicateur 1.2.1 recense les effectifs en nombre de personnes physiques (1 personne = 1 unité).
A8: Ne pas remplir les cellules grisées (pré remplies par un zéro) qui font l’objet de calculs automatiques.
A11: Quels sont les agents à recenser ?
A13: * les agents contractuels
A15: * recrutés sur un emploi permanent
A17: * rémunérés à la date du 31 décembre 2020
A19: Sont comptabilisés :
A20: - les agents de droit public répertoriés selon les colonnes listées ci-dessous en référence aux dispositions législatives qui autorisent leur recrutement, y compris les remplaçants de fonctionnaires momentanément indisponibles car ils sont affectés sur un emploi permanent ;
A21: - les agents de droit privé dont le contrat a été repris à l’occasion de la reprise d’activités transférées ou précédemment déléguées à des associations.
A24: Ne doivent pas être comptabilisés :
A25: - les agents contractuels recrutés sur un emploi non permanent au sens de la loi du 26 janvier 1984 : agents recrutés pour un besoin saisonnier ou occasionnel (article 3 de la loi du 26 janvier 1984) et collaborateurs de cabinet (article 110 de la loi du 26 janvier 1984) et collaborateurs de groupe d'élus (article 110-1 de la loi du 26 janvier 1984);
A26: - les assistants maternels et familiaux ;
A27: - les accueillants familiaux ;
A28: - les agents de droit privé recrutés dans le cadre d’un dispositif de résorption du chômage (contrat dits «aidés ») ;
A29: - les fonctionnaires exerçant dans votre collectivité dans le cadre d’un cumul d’emplois.
A30: - les agents contractuels en congé sans traitement de toute nature, y compris les agents en congé de maladie qui n’ont pas ou plus de droit à rémunération ;
A31: - les agents contractuels placés en congés de fin d'activité (CFA) ;
A32: - les agents partis ou placés en congé sans traitement qui ont perçu en décembre un rappel de traitement.
A35: Comment sont-ils recensés ?
A37: * par filière déclinée en cadre d'emplois (en lignes)
A38: Les agents contractuels occupant un emploi fonctionnel au titre de l’article 47 de la loi du 26 janvier 1984 doivent être recensés uniquement dans les cadres d'emplois auxquels ils sont assimilés même s'ils ont déjà été comptabilisés dans l'indicateur 1.1.0.
A40: * par type de contrats croisés, pour les agents en CDD recrutés dans le cadre de l'article 3 de la loi statutaire n° 84-53 du 26 janvier 1984 par la référence aux cas de recrutement prévus par les articles 3-1, 3-2 et 3-3 de la loi précitée (en colonnes)
A41: - colonne 1.2.1(1) : article 3-1 modifié par la loi n° 2019-828 du 6 août 2019 : pour assurer le remplacement temporaire de fonctionnaires ou d'agents contractuels autorisés à exercer leurs fonctions à temps partiel ou indisponibles en raison d'un détachement de courte durée, d'une disponibilité de courte durée prononcée d'office, de droit ou sur demande pour raisons familiales, d'un détachement pour l'accomplissement d'un stage ou d'une période de scolarité préalable à la titularisation dans un corps ou un cadre d'emplois de fonctionnaires ou pour suivre un cycle de préparation à un concours donnant accès à un corps ou un cadre d'emplois, d'un congé régulièrement octroyé en application de l'article 21 bis de la loi n° 83-634 du 13 juillet 1983, des articles 57, 60 sexies et 75 de la loi du 26 janvier 1984 [...].
A42: - colonne 1.2.1(2) : article 3-2 : pour faire face à une vacance temporaire d'emploi dans l'attente du recrutement d'un fonctionnaire et pour une durée déterminée n'excédant pas un an.
A43: - colonne 1.2.1 (3) : article 3-3, 1° : lorsqu'il n'existe pas de cadre d'emplois de fonctionnaires susceptibles d'assurer les fonctions correspondantes.
A44: - colonne 1.2.1 (4) : article 3-3, 2° : pour les emplois du niveau de la catégorie A lorsque les besoins des services ou la nature des fonctions le justifient.
A45: - colonne 1.2.1 (5) : article 3-3, 3° : pour les emplois de secrétaire de mairie des communes et groupements de communes de moins de 1 000 habitants
A46: - colonne 1.2.1 (6) : article 3-3, 4° : pour les emplois à temps non complet des communes et groupements de communes de moins de 1 000 habitants, lorsque la quotité de temps de travail est inférieure à 50 %.
A47: - colonne 1.2.1 (7) : article 3-3, 5° : pour les emplois des communes de moins de 2 000 habitants et des groupements de communes de moins de 10 000 habitants dont la création ou la suppression dépend de la décision d'une autorité qui s'impose à la collectivité ou à l'établissement en matière de création, de changement de périmètre ou de suppression d'un service public.
A48: - colonne 1.2.1 (8) : autres contractuels : bénéficiaires de la réglementation relative aux personnes en situation de handicap (article 38), Pacte (article 38 bis), emplois fonctionnels de direction dans les très grandes collectivités (article 47), agents contractuels maintenus en fonctions lors de la publication de la loi, agents contractuels transférés (article 136), autres agents contractuels exerçant sur emplois permanents (notamment agents de droit privé recrutés lors de la reprise d’activités précédemment confiées à une association).
A49: - colonne 1.2.1 (9) : les agents en CDI
A51: * selon les caractéristiques de leur emploi (temps complet ou non complet ; en colonnes)
A52: Les agents recensés dans les colonnes 1.2.1(1) à 1.2.1(9) sont à nouveau recensés dans les colonnes 1.2.1(10) et 1.2.1(11), tous cas de recrutement confondus. Par conséquent, le total de ces deux colonnes doit être égal à la colonne de total des colonnes 1.2.1(1) à 1.2.1(9).
A53: - colonne 1.2.1(10) : effectif des contractuels occupant un emploi à temps complet, qu’ils exercent à temps plein ou à temps partiel (ces derniers font l’objet d’un recensement détaillé à l’indicateur 1.2.2.) ;
A54: - colonne 1.2.1(11) : effectif des contractuels occupant un emploi à temps NON complet.
A56: Attention : ne pas confondre "temps non complet" qui est une caractéristique de l'emploi (exprimée en 35èmes) et "temps partiel" qui est une modalité d'exercice (exprimée en pourcentage de temps plein) pour un agent occupant un emploi à temps complet.
A58: * par tranches d’ancienneté (en colonnes)
A59: Les agents recensés dans les colonnes 1.2.1(1) à 1.2.1(9) sont à nouveau recensés dans les colonnes 1.2.1(12) à 1.2.1(14), tous cas de recrutement confondus, selon l'ancienneté retenue au 31/12/2020. Par conséquent, le total des colonnes 1.2.1(12) à 1.2.1(14) doit être égal à la colonne de total des colonnes 1.2.1(1) à 1.2.1(9).
A61: * par type d'emploi (CDI, CDD) croisé par le sexe
A62: Les agents recensés dans les colonnes 1.2.1(1) à 1.2.1(9) sont à nouveau recensés dans les colonnes 1.2.1(15) à 1.2.1(18), tous cas de recrutement confondus. Par conséquent, le total des colonnes 1.2.1(15) à 1.2.1(18) doit être égal à la colonne de total des colonnes 1.2.1(1) à 1.2.1(9).

Sheet IND 1.2.1
G1: Retour Sommaire
A3: 1.2.1 - Effectifs des agents contractuels occupant un emploi permanent rémunérés au 31/12/2020 par filière et cadre d'emplois, selon le type de contrat et le type de recrutement
A5: Champ : le tableau qui suit concerne les agents contractuels sur un emploi permanent rémunérés au 31/12/2020.
A6: Remarque importante : les agents occupant un emploi fonctionnel doivent être uniquement comptabilisés dans leurs cadres d'emplois respectifs.
B8: Type de contrats
B9: Agents en CDD | J9: Agents en CDI
B10: Article 3 de la Loi du 26 janvier 84, modifié par la loi n° 2012-347 et la loi n° 2019-828 | I10: Autres contractuels (articles 38, 38bis, 47,136...) | K10: Total | L10: Tous emplois exerçant à | N10: Ancienneté dans la collectivité | Q10: CDI | S10: CDD
B11: Article 3-1 | C11: Article 3-2 | D11: Article 3-3, 1° | E11: Article 3-3, 2° | F11: Article 3-3, 3° | G11: Article 3-3, 4° | H11: Article 3-3, 5°
A12: CADRE D'EMPLOIS | B12: Remplaçants | C12: Affectés sur un poste vacant | D12: Pas de cadre d'emplois existant | E12: Catégorie A selon les fonctions ou pour des besoins de service | F12: Secrétaire de mairie dans les communes et groupements de communes de moins de 1000 habitants | G12: Temps non complet des communes et groupements de communes de moins de 1000 hab., lorsque la quotité de temps de travail est inférieure à 50 % | H12: Communes de moins de 2000 hab. et groupements de communes de moins de 10 000 hab. dont la création ou la suppression dépend de la décision d'une autorité qui s'impose à la collectivité | L12: Temps complet | M12: Temps non complet | N12: Moins de 3 ans | O12: de 3 ans à moins de 6 ans | P12: 6 ans et plus | Q12: Hommes | R12: Femmes | S12: Hommes | T12: Femmes
B13: 1.2.1(1) | C13: 1.2.1(2) | D13: 1.2.1(3) | E13: 1.2.1(4) | F13: 1.2.1(5) | G13: 1.2.1(6) | H13: 1.2.1(7) | I13: 1.2.1(8) | J13: 1.2.1(9) | L13: 1.2.1(10) | M13: 1.2.1(11) | N13: 1.2.1(12) | O13: 1.2.1(13) | P13: 1.2.1(14) | Q13: 1.2.1(15) | R13: 1.2.1(16) | S13: 1.2.1(17) | T13: 1.2.1(18)
A14: FILIERE ADMINISTRATIVE | B14: 1 | C14: 2 | D14: 3 | E14: 4 | F14: 5 | G14: 6 | H14: 7 | I14: 8 | J14: 9 | K14: 0 | L14: 10 | M14: 20 | N14: 10 | O14: 20 | P14: 30 | Q14: 1 | R14: 3 | S14: 2 | T14: 4 | U14: article/temps/ancienneté/sexe
A15: Administrateurs | B15: 0 | C15: 0 | D15: 0 | E15: 0 | F15: 0 | G15: 0 | H15: 0 | I15: 0 | J15: 0 | K15: =SUM(B15:J15) -> 0 | L15: 0 | M15: 0 | N15: 0 | O15: 0 | P15: 0 | Q15: 0 | R15: 0 | S15: 0 | T15: 0 | U15: AD
A16: Attachés | B16: 0 | C16: 0 | D16: 0 | E16: 0 | F16: 0 | G16: 0 | H16: 0 | I16: 0 | J16: 0 | K16: =SUM(B16:J16) -> 0 | L16: 0 | M16: 0 | N16: 0 | O16: 0 | P16: 0 | Q16: 0 | R16: 0 | S16: 0 | T16: 0 | U16: AT
A17: Secrétaires de mairie | B17: 0 | C17: 0 | D17: 0 | E17: 0 | F17: 0 | G17: 0 | H17: 0 | I17: 0 | J17: 0 | K17: =SUM(B17:J17) -> 0 | L17: 0 | M17: 0 | N17: 0 | O17: 0 | P17: 0 | Q17: 0 | R17: 0 | S17: 0 | T17: 0 | U17: AS
A18: Rédacteurs | B18: 0 | C18: 0 | D18: 0 | E18: 0 | F18: 0 | G18: 0 | H18: 0 | I18: 0 | J18: 0 | K18: =SUM(B18:J18) -> 0 | L18: 0 | M18: 0 | N18: 0 | O18: 0 | P18: 0 | Q18: 0 | R18: 0 | S18: 0 | T18: 0 | U18: AR
A19: Adjoints administratifs | B19: 0 | C19: 1 | D19: 0 | E19: 0 | F19: 0 | G19: 0 | H19: 0 | I19: 0 | J19: 0 | K19: =SUM(B19:J19) -> 1 | L19: 1 | M19: 0 | N19: 1 | O19: 0 | P19: 0 | Q19: 0 | R19: 0 | S19: 0 | T19: 1 | U19: AJ
A20: FILIERE ADMINISTRATIVE | B20: =SUM(B15:B19) -> 0 | C20: 1 | D20: 0 | E20: 0 | F20: 0 | G20: 0 | H20: 0 | I20: 0 | J20: 0 | K20: 1 | L20: 1 | M20: 0 | N20: 1 | O20: 0 | P20: 0 | Q20: 0 | R20: 0 | S20: 0 | T20: 1 | U20: A
A21: FILIERE TECHNIQUE
A22: Ingénieurs en chef | B22: 0 | C22: 0 | D22: 0 | E22: 0 | F22: 0 | G22: 0 | H22: 0 | I22: 0 | J22: 0 | K22: =SUM(B22:J22) -> 0 | L22: 0 | M22: 0 | N22: 0 | O22: 0 | P22: 0 | Q22: 0 | R22: 0 | S22: 0 | T22: 0 | U22: TN
A23: Ingénieurs | B23: 0 | C23: 0 | D23: 0 | E23: 0 | F23: 0 | G23: 0 | H23: 0 | I23: 0 | J23: 0 | K23: 0 | L23: 0 | M23: 0 | N23: 0 | O23: 0 | P23: 0 | Q23: 0 | R23: 0 | S23: 0 | T23: 0 | U23: TP
A24: Techniciens | B24: 0 | C24: 0 | D24: 0 | E24: 0 | F24: 0 | G24: 0 | H24: 0 | I24: 0 | J24: 0 | K24: 0 | L24: 0 | M24: 0 | N24: 0 | O24: 0 | P24: 0 | Q24: 0 | R24: 0 | S24: 0 | T24: 0 | U24: TT
A25: Agents de maîtrise | B25: 0 | C25: 0 | D25: 0 | E25: 0 | F25: 0 | G25: 0 | H25: 0 | I25: 0 | J25: 0 | K25: 0 | L25: 0 | M25: 0 | N25: 0 | O25: 0 | P25: 0 | Q25: 0 | R25: 0 | S25: 0 | T25: 0 | U25: TM
A26: Adjoints techniques | B26: 1 | C26: 0 | D26: 0 | E26: 0 | F26: 0 | G26: 0 | H26: 0 | I26: 0 | J26: 0 | K26: 1 | L26: 0 | M26: 1 | N26: 1 | O26: 0 | P26: 0 | Q26: 0 | R26: 0 | S26: 0 | T26: 1 | U26: TH
A27: Adjoints techniques des établissements d'enseignement | B27: 0 | C27: 0 | D27: 0 | E27: 0 | F27: 0 | G27: 0 | H27: 0 | I27: 0 | J27: 0 | K27: 0 | L27: 0 | M27: 0 | N27: 0 | O27: 0 | P27: 0 | Q27: 0 | R27: 0 | S27: 0 | T27: 0 | U27: TA
A28: FILIERE TECHNIQUE | B28: =SUM(B22:B27) -> 1 | C28: =SUM(C22:C27) -> 0 | D28: 0 | E28: 0 | F28: 0 | G28: 0 | H28: 0 | I28: 0 | J28: 0 | K28: 1 | L28: 0 | M28: 1 | N28: 1 | O28: 0 | P28: 0 | Q28: 0 | R28: 0 | S28: 0 | T28: 1 | U28: T
A29: FILIERE CULTURELLE
A30: Conservateurs du patrimoine | B30: 0 | C30: 0 | D30: 0 | E30: 0 | F30: 0 | G30: 0 | H30: 0 | I30: 0 | J30: 0 | K30: =SUM(B30:J30) -> 0 | L30: 0 | M30: 0 | N30: 0 | O30: 0 | P30: 0 | Q30: 0 | R30: 0 | S30: 0 | T30: 0 | U30: CM
A31: Conservateurs des bibliothèques | B31: 0 | C31: 0 | D31: 0 | E31: 0 | F31: 0 | G31: 0 | H31: 0 | I31: 0 | J31: 0 | K31: 0 | L31: 0 | M31: 0 | N31: 0 | O31: 0 | P31: 0 | Q31: 0 | R31: 0 | S31: 0 | T31: 0 | U31: CH
A32: Attachés de conservation du patrimoine | B32: 0 | C32: 0 | D32: 0 | E32: 0 | F32: 0 | G32: 0 | H32: 0 | I32: 0 | J32: 0 | K32: 0 | L32: 0 | M32: 0 | N32: 0 | O32: 0 | P32: 0 | Q32: 0 | R32: 0 | S32: 0 | T32: 0 | U32: CA
A33: Bibliothécaires | B33: 0 | C33: 0 | D33: 0 | E33: 0 | F33: 0 | G33: 0 | H33: 0 | I33: 0 | J33: 0 | K33: 0 | L33: 0 | M33: 0 | N33: 0 | O33: 0 | P33: 0 | Q33: 0 | R33: 0 | S33: 0 | T33: 0 | U33: CB
A34: Directeurs d'établissements d'enseignement artistique | B34: 0 | C34: 0 | D34: 0 | E34: 0 | F34: 0 | G34: 0 | H34: 0 | I34: 0 | J34: 0 | K34: 0 | L34: 0 | M34: 0 | N34: 0 | O34: 0 | P34: 0 | Q34: 0 | R34: 0 | S34: 0 | T34: 0 | U34: CD
A35: Professeurs d'enseignement artistique | B35: 0 | C35: 0 | D35: 0 | E35: 0 | F35: 0 | G35: 0 | H35: 0 | I35: 0 | J35: 0 | K35: 0 | L35: 0 | M35: 0 | N35: 0 | O35: 0 | P35: 0 | Q35: 0 | R35: 0 | S35: 0 | T35: 0 | U35: CP
A36: Assistants de conservation du patrimoine et des bibliothèques | B36: 0 | C36: 0 | D36: 0 | E36: 0 | F36: 0 | G36: 0 | H36: 0 | I36: 0 | J36: 0 | K36: 0 | L36: 0 | M36: 0 | N36: 0 | O36: 0 | P36: 0 | Q36: 0 | R36: 0 | S36: 0 | T36: 0 | U36: CG
A37: Assistants d'enseignement artistique | B37: 0 | C37: 0 | D37: 0 | E37: 0 | F37: 0 | G37: 0 | H37: 0 | I37: 0 | J37: 0 | K37: 0 | L37: 0 | M37: 0 | N37: 0 | O37: 0 | P37: 0 | Q37: 0 | R37: 0 | S37: 0 | T37: 0 | U37: CS
A38: Adjoints territoriaux du patrimoine | B38: 0 | C38: 0 | D38: 0 | E38: 0 | F38: 0 | G38: 0 | H38: 0 | I38: 0 | J38: 0 | K38: 0 | L38: 0 | M38: 0 | N38: 0 | O38: 0 | P38: 0 | Q38: 0 | R38: 0 | S38: 0 | T38: 0 | U38: CJ
A39: FILIERE CULTURELLE | B39: =SUM(B30:B38) -> 0 | C39: 0 | D39: 0 | E39: 0 | F39: 0 | G39: 0 | H39: 0 | I39: 0 | J39: 0 | K39: 0 | L39: 0 | M39: 0 | N39: 0 | O39: 0 | P39: 0 | Q39: 0 | R39: 0 | S39: 0 | T39: 0 | U39: C
A40: FILIERE SPORTIVE
A41: Conseillers des APS | B41: 0 | C41: 0 | D41: 0 | E41: 0 | F41: 0 | G41: 0 | H41: 0 | I41: 0 | J41: 0 | K41: =SUM(B41:J41) -> 0 | L41: 0 | M41: 0 | N41: 0 | O41: 0 | P41: 0 | Q41: 0 | R41: 0 | S41: 0 | T41: 0 | U41: SC
A42: Educateurs des APS | B42: 0 | C42: 0 | D42: 0 | E42: 0 | F42: 0 | G42: 0 | H42: 0 | I42: 0 | J42: 0 | K42: =SUM(B42:J42) -> 0 | L42: 0 | M42: 0 | N42: 0 | O42: 0 | P42: 0 | Q42: 0 | R42: 0 | S42: 0 | T42: 0 | U42: SE
A43: Opérateurs des APS | B43: 0 | C43: 0 | D43: 0 | E43: 0 | F43: 0 | G43: 0 | H43: 0 | I43: 0 | J43: 0 | K43: =SUM(B43:J43) -> 0 | L43: 0 | M43: 0 | N43: 0 | O43: 0 | P43: 0 | Q43: 0 | R43: 0 | S43: 0 | T43: 0 | U43: SP
A44: FILIERE SPORTIVE | B44: =SUM(B41:B43) -> 0 | C44: 0 | D44: 0 | E44: 0 | F44: 0 | G44: 0 | H44: 0 | I44: 0 | J44: 0 | K44: 0 | L44: 0 | M44: 0 | N44: 0 | O44: 0 | P44: 0 | Q44: 0 | R44: 0 | S44: 0 | T44: 0 | U44: S
A45: FILIERE SOCIALE
A46: Conseillers socio-éducatifs | B46: 0 | C46: 0 | D46: 0 | E46: 0 | F46: 0 | G46: 0 | H46: 0 | I46: 0 | J46: 0 | K46: =SUM(B46:J46) -> 0 | L46: 0 | M46: 0 | N46: 0 | O46: 0 | P46: 0 | Q46: 0 | R46: 0 | S46: 0 | T46: 0 | U46: MM
A47: Assistants socio-éducatifs | B47: 0 | C47: 0 | D47: 0 | E47: 0 | F47: 0 | G47: 0 | H47: 0 | I47: 0 | J47: 0 | K47: 0 | L47: 0 | M47: 0 | N47: 0 | O47: 0 | P47: 0 | Q47: 0 | R47: 0 | S47: 0 | T47: 0 | U47: MT
A48: Educateurs de jeunes enfants | B48: 0 | C48: 0 | D48: 0 | E48: 0 | F48: 0 | G48: 0 | H48: 0 | I48: 0 | J48: 0 | K48: 0 | L48: 0 | M48: 0 | N48: 0 | O48: 0 | P48: 0 | Q48: 0 | R48: 0 | S48: 0 | T48: 0 | U48: ME
A49: Moniteurs-éducateurs et intervenants familiaux | B49: 0 | C49: 0 | D49: 0 | E49: 0 | F49: 0 | G49: 0 | H49: 0 | I49: 0 | J49: 0 | K49: 0 | L49: 0 | M49: 0 | N49: 0 | O49: 0 | P49: 0 | Q49: 0 | R49: 0 | S49: 0 | T49: 0 | U49: MB
A50: Agents spécialisés des écoles maternelles (ASEM) | B50: 0 | C50: 0 | D50: 0 | E50: 0 | F50: 0 | G50: 0 | H50: 0 | I50: 0 | J50: 0 | K50: 0 | L50: 0 | M50: 0 | N50: 0 | O50: 0 | P50: 0 | Q50: 0 | R50: 0 | S50: 0 | T50: 0 | U50: MD
A51: Agents sociaux | B51: 0 | C51: 0 | D51: 0 | E51: 0 | F51: 0 | G51: 0 | H51: 0 | I51: 0 | J51: 0 | K51: 0 | L51: 0 | M51: 0 | N51: 0 | O51: 0 | P51: 0 | Q51: 0 | R51: 0 | S51: 0 | T51: 0 | U51: MP
A52: FILIERE SOCIALE | B52: =SUM(B46:B51) -> 0 | C52: 0 | D52: 0 | E52: 0 | F52: 0 | G52: 0 | H52: 0 | I52: 0 | J52: 0 | K52: 0 | L52: 0 | M52: 0 | N52: 0 | O52: 0 | P52: 0 | Q52: 0 | R52: 0 | S52: 0 | T52: 0 | U52: M
A53: FILIERE MEDICO-SOCIALE
A54: Médecins | B54: 0 | C54: 0 | D54: 0 | E54: 0 | F54: 0 | G54: 0 | H54: 0 | I54: 0 | J54: 0 | K54: =SUM(B54:J54) -> 0 | L54: 0 | M54: 0 | N54: 0 | O54: 0 | P54: 0 | Q54: 0 | R54: 0 | S54: 0 | T54: 0 | U54: OD
A55: Psychologues | B55: 0 | C55: 0 | D55: 0 | E55: 0 | F55: 0 | G55: 0 | H55: 0 | I55: 0 | J55: 0 | K55: 0 | L55: 0 | M55: 0 | N55: 0 | O55: 0 | P55: 0 | Q55: 0 | R55: 0 | S55: 0 | T55: 0 | U55: OH
A56: Sages-femmes | B56: 0 | C56: 0 | D56: 0 | E56: 0 | F56: 0 | G56: 0 | H56: 0 | I56: 0 | J56: 0 | K56: 0 | L56: 0 | M56: 0 | N56: 0 | O56: 0 | P56: 0 | Q56: 0 | R56: 0 | S56: 0 | T56: 0 | U56: OF
A57: Cadres de santé paramédicaux | B57: 0 | C57: 0 | D57: 0 | E57: 0 | F57: 0 | G57: 0 | H57: 0 | I57: 0 | J57: 0 | K57: 0 | L57: 0 | M57: 0 | N57: 0 | O57: 0 | P57: 0 | Q57: 0 | R57: 0 | S57: 0 | T57: 0 | U57: OG
A58: Puéricultrices cadres de santé | B58: 0 | C58: 0 | D58: 0 | E58: 0 | F58: 0 | G58: 0 | H58: 0 | I58: 0 | J58: 0 | K58: 0 | L58: 0 | M58: 0 | N58: 0 | O58: 0 | P58: 0 | Q58: 0 | R58: 0 | S58: 0 | T58: 0 | U58: OC
A59: Puéricultrices* | B59: 0 | C59: 0 | D59: 0 | E59: 0 | F59: 0 | G59: 0 | H59: 0 | I59: 0 | J59: 0 | K59: 0 | L59: 0 | M59: 0 | N59: 0 | O59: 0 | P59: 0 | Q59: 0 | R59: 0 | S59: 0 | T59: 0 | U59: OX
A60: Cadres de santé infirmiers, rééducateurs et assistants médico-techniques | B60: 0 | C60: 0 | D60: 0 | E60: 0 | F60: 0 | G60: 0 | H60: 0 | I60: 0 | J60: 0 | K60: 0 | L60: 0 | M60: 0 | N60: 0 | O60: 0 | P60: 0 | Q60: 0 | R60: 0 | S60: 0 | T60: 0 | U60: OA
A61: Infirmiers en soins généraux | B61: 0 | C61: 0 | D61: 0 | E61: 0 | F61: 0 | G61: 0 | H61: 0 | I61: 0 | J61: 0 | K61: 0 | L61: 0 | M61: 0 | N61: 0 | O61: 0 | P61: 0 | Q61: 0 | R61: 0 | S61: 0 | T61: 0 | U61: OB
A62: Infirmiers | B62: 0 | C62: 0 | D62: 0 | E62: 0 | F62: 0 | G62: 0 | H62: 0 | I62: 0 | J62: 0 | K62: =SUM(B62:J62) -> 0 | L62: 0 | M62: 0 | N62: 0 | O62: 0 | P62: 0 | Q62: 0 | R62: 0 | S62: 0 | T62: 0 | U62: ON
A63: Auxiliaires de puériculture | B63: 0 | C63: 0 | D63: 0 | E63: 0 | F63: 0 | G63: 0 | H63: 0 | I63: 0 | J63: 0 | K63: =SUM(B63:J63) -> 0 | L63: 0 | M63: 0 | N63: 0 | O63: 0 | P63: 0 | Q63: 0 | R63: 0 | S63: 0 | T63: 0 | U63: OJ
A64: Auxiliaires de soins | B64: 0 | C64: 0 | D64: 0 | E64: 0 | F64: 0 | G64: 0 | H64: 0 | I64: 0 | J64: 0 | K64: =SUM(B64:J64) -> 0 | L64: 0 | M64: 0 | N64: 0 | O64: 0 | P64: 0 | Q64: 0 | R64: 0 | S64: 0 | T64: 0 | U64: OK
A65: FILIERE MEDICO-SOCIALE | B65: =SUM(B54:B64) -> 0 | C65: 0 | D65: 0 | E65: 0 | F65: 0 | G65: 0 | H65: 0 | I65: 0 | J65: 0 | K65: 0 | L65: 0 | M65: 0 | N65: 0 | O65: 0 | P65: 0 | Q65: 0 | R65: 0 | S65: 0 | T65: 0 | U65: O
A66: FILIERE MEDICO-TECHNIQUE
A67: Biologistes, vétérinaires, pharmaciens | B67: 0 | C67: 0 | D67: 0 | E67: 0 | F67: 0 | G67: 0 | H67: 0 | I67: 0 | J67: 0 | K67: =SUM(B67:J67) -> 0 | L67: 0 | M67: 0 | N67: 0 | O67: 0 | P67: 0 | Q67: 0 | R67: 0 | S67: 0 | T67: 0 | U67: EB
A68: Techniciens paramédicaux | B68: 0 | C68: 0 | D68: 0 | E68: 0 | F68: 0 | G68: 0 | H68: 0 | I68: 0 | J68: 0 | K68: =SUM(B68:J68) -> 0 | L68: 0 | M68: 0 | N68: 0 | O68: 0 | P68: 0 | Q68: 0 | R68: 0 | S68: 0 | T68: 0 | U68: ET
A69: FILIERE MEDICO-TECHNIQUE | B69: =SUM(B67:B68) -> 0 | C69: 0 | D69: 0 | E69: 0 | F69: 0 | G69: 0 | H69: 0 | I69: 0 | J69: 0 | K69: 0 | L69: 0 | M69: 0 | N69: 0 | O69: 0 | P69: 0 | Q69: 0 | R69: 0 | S69: 0 | T69: 0 | U69: E
A70: FILIERE POLICE MUNICIPALE
A71: Directeur de police municipale | B71: 0 | C71: 0 | D71: 0 | E71: 0 | F71: 0 | G71: 0 | H71: 0 | I71: 0 | J71: 0 | K71: =SUM(B71:J71) -> 0 | L71: 0 | M71: 0 | N71: 0 | O71: 0 | P71: 0 | Q71: 0 | R71: 0 | S71: 0 | T71: 0 | U71: PU
A72: Chefs de service de police municipale | B72: 0 | C72: 0 | D72: 0 | E72: 0 | F72: 0 | G72: 0 | H72: 0 | I72: 0 | J72: 0 | K72: =SUM(B72:J72) -> 0 | L72: 0 | M72: 0 | N72: 0 | O72: 0 | P72: 0 | Q72: 0 | R72: 0 | S72: 0 | T72: 0 | U72: PC
A73: Agents de police municipale | B73: 0 | C73: 0 | D73: 0 | E73: 0 | F73: 0 | G73: 0 | H73: 0 | I73: 0 | J73: 0 | K73: =SUM(B73:J73) -> 0 | L73: 0 | M73: 0 | N73: 0 | O73: 0 | P73: 0 | Q73: 0 | R73: 0 | S73: 0 | T73: 0 | U73: PG
A74: Gardes-champêtres | B74: 0 | C74: 0 | D74: 0 | E74: 0 | F74: 0 | G74: 0 | H74: 0 | I74: 0 | J74: 0 | K74: =SUM(B74:J74) -> 0 | L74: 0 | M74: 0 | N74: 0 | O74: 0 | P74: 0 | Q74: 0 | R74: 0 | S74: 0 | T74: 0 | U74: PH
A75: FILIERE POLICE MUNICIPALE | B75: =SUM(B71:B74) -> 0 | C75: 0 | D75: 0 | E75: 0 | F75: 0 | G75: 0 | H75: 0 | I75: 0 | J75: 0 | K75: 0 | L75: 0 | M75: 0 | N75: 0 | O75: 0 | P75: 0 | Q75: 0 | R75: 0 | S75: 0 | T75: 0 | U75: P
A76: FILIERE INCENDIE ET SECOURS
A77: Contrôleurs, colonels | B77: 0 | C77: 0 | D77: 0 | E77: 0 | F77: 0 | G77: 0 | H77: 0 | I77: 0 | J77: 0 | K77: =SUM(B77:J77) -> 0 | L77: 0 | M77: 0 | N77: 0 | O77: 0 | P77: 0 | Q77: 0 | R77: 0 | S77: 0 | T77: 0 | U77: RH
A78: Capitaines, commandants, lieutenants-colonels | B78: 0 | C78: 0 | D78: 0 | E78: 0 | F78: 0 | G78: 0 | H78: 0 | I78: 0 | J78: 0 | K78: =SUM(B78:J78) -> 0 | L78: 0 | M78: 0 | N78: 0 | O78: 0 | P78: 0 | Q78: 0 | R78: 0 | S78: 0 | T78: 0 | U78: RC
A79: Médecins, pharmaciens | B79: 0 | C79: 0 | D79: 0 | E79: 0 | F79: 0 | G79: 0 | H79: 0 | I79: 0 | J79: 0 | K79: 0 | L79: 0 | M79: 0 | N79: 0 | O79: 0 | P79: 0 | Q79: 0 | R79: 0 | S79: 0 | T79: 0 | U79: RD
A80: Lieutenants | B80: 0 | C80: 0 | D80: 0 | E80: 0 | F80: 0 | G80: 0 | H80: 0 | I80: 0 | J80: 0 | K80: 0 | L80: 0 | M80: 0 | N80: 0 | O80: 0 | P80: 0 | Q80: 0 | R80: 0 | S80: 0 | T80: 0 | U80: RL
A81: Cadres de santé | B81: 0 | C81: 0 | D81: 0 | E81: 0 | F81: 0 | G81: 0 | H81: 0 | I81: 0 | J81: 0 | K81: 0 | L81: 0 | M81: 0 | N81: 0 | O81: 0 | P81: 0 | Q81: 0 | R81: 0 | S81: 0 | T81: 0 | U81: RF
A82: Infirmiers | B82: 0 | C82: 0 | D82: 0 | E82: 0 | F82: 0 | G82: 0 | H82: 0 | I82: 0 | J82: 0 | K82: 0 | L82: 0 | M82: 0 | N82: 0 | O82: 0 | P82: 0 | Q82: 0 | R82: 0 | S82: 0 | T82: 0 | U82: RG
A83: Sous-officiers | B83: 0 | C83: 0 | D83: 0 | E83: 0 | F83: 0 | G83: 0 | H83: 0 | I83: 0 | J83: 0 | K83: 0 | L83: 0 | M83: 0 | N83: 0 | O83: 0 | P83: 0 | Q83: 0 | R83: 0 | S83: 0 | T83: 0 | U83: RS
A84: Sapeurs et caporaux | B84: 0 | C84: 0 | D84: 0 | E84: 0 | F84: 0 | G84: 0 | H84: 0 | I84: 0 | J84: 0 | K84: 0 | L84: 0 | M84: 0 | N84: 0 | O84: 0 | P84: 0 | Q84: 0 | R84: 0 | S84: 0 | T84: 0 | U84: RU
A85: FILIERE INCENDIE-SECOURS | B85: =SUM(B77:B84) -> 0 | C85: 0 | D85: 0 | E85: 0 | F85: 0 | G85: 0 | H85: 0 | I85: 0 | J85: =SUM(J77:J84) -> 0 | K85: =SUM(K77:K84) -> 0 | L85: 0 | M85: 0 | N85: 0 | O85: 0 | P85: 0 | Q85: 0 | R85: 0 | S85: 0 | T85: 0 | U85: R
A86: FILIERE ANIMATION
A87: Animateurs | B87: 0 | C87: 0 | D87: 0 | E87: 0 | F87: 0 | G87: 0 | H87: 0 | I87: 0 | J87: 0 | K87: =SUM(B87:J87) -> 0 | L87: 0 | M87: 0 | N87: 0 | O87: 0 | P87: 0 | Q87: 0 | R87: 0 | S87: 0 | T87: 0 | U87: NN
A88: Adjoints d'animation | B88: 0 | C88: 0 | D88: 0 | E88: 0 | F88: 0 | G88: 0 | H88: 0 | I88: 0 | J88: 0 | K88: =SUM(B88:J88) -> 0 | L88: 0 | M88: 0 | N88: 0 | O88: 0 | P88: 0 | Q88: 0 | R88: 0 | S88: 0 | T88: 0 | U88: NJ
A89: FILIERE ANIMATION | B89: =SUM(B87:B88) -> 0 | C89: 0 | D89: 0 | E89: 0 | F89: 0 | G89: 0 | H89: 0 | I89: 0 | J89: =SUM(J87:J88) -> 0 | K89: =SUM(K87:K88) -> 0 | L89: 0 | M89: 0 | N89: 0 | O89: 0 | P89: 0 | Q89: 0 | R89: 0 | S89: 0 | T89: 0 | U89: N
A91: TOTAL | B91: =B52+B65+B69+B75+B85+B89+B44+B39+B28+B20 -> 1 | C91: =C52+C65+C69+C75+C85+C89+C44+C39+C28+C20 -> 1 | D91: 0 | E91: 0 | F91: 0 | G91: 0 | H91: 0 | I91: 0 | J91: 0 | K91: 2 | L91: 1 | M91: 1 | N91: 2 | O91: 0 | P91: 0 | Q91: 0 | R91: 0 | S91: 0 | T91: 2 | U91: 00
A93: * Comptabiliser les puéricultrices du cadre d'emplois du décret n° 92-859 du 28 août 1992 modifié et du cadre d'emplois du décret n° 2014-923 du 18 août 2014.

Sheet Fiche 1.2.2
D1: Retour Sommaire
A3: 1.2.2 - Nombre d'agents contractuels au 31/12/2020 occupant un emploi permanent à temps complet rémunérés au 31/12/2020
A4: par filière et cadre d'emplois, selon la quotité de temps de travail et le sexe
A7: L’indicateur 1.2.2. détaille les effectifs, en nombre de personnes physiques (1 personne = 1 unité).
A8: Ne pas remplir les cellules grisées (pré remplies par un zéro) qui font l’objet de calculs automatiques.
A11: Quels sont les agents à recenser ?
A13: * les agents contractuels
A15: * occupant un emploi permanent à temps complet, exerçant à temps plein ou à temps partiel
A16: Attention : Ne pas recenser les agents exerçant à temps non complet
A18: * rémunérés à la date du 31 décembre 2020
A20: Remarque : ces agents ont déjà été recensés pour l'indicateur 1.2.1. (colonne 1.2.1(10))
A23: Comment sont-ils recensés ?
A25: * par filière déclinée en cadres d'emplois (en lignes)
A26: Les agents contractuels occupant un emploi fonctionnel au titre de l’article 47 de la loi du 26 janvier 1984 doivent être recensés uniquement dans les cadres d'emplois auxquels ils sont assimilés même s'ils ont déjà été comptabilisés dans l'indicateur 1.1.0.
A28: * par quotité de temps de travail et par sexe (en colonnes)
A29: - colonnes 1.2.2(1) et 1.2.2(2) : temps plein
A30: - colonnes 1.2.2(3) à 1.2.2(8) : temps partiel
A33: Précisions sur les temps partiels :
A34: Tous les contractuels à temps partiel sont à recenser, y compris les temps partiels de droit ou sur autorisation qui seront de nouveau décomptés à l’indicateur 1.2.3.
A35: La quotité de temps de travail à prendre en compte est celle qui figure sur la décision individuelle d’autorisation d’exercice à temps partiel, calculée en base annuelle par rapport à la durée légale du temps de travail. Cette quotité peut donc être différente de la durée hebdomadaire de service effectivement travaillée. Elle est également différente de la quotité rémunérée dans le cas particulier des temps partiels à 80% et à 90%.

Sheet IND 1.2.2
D1: Retour Sommaire
A3: 1.2.2 - Nombre d'agents contractuels rémunérés au 31/12/2020 occupant un emploi permanent à temps complet
A4: par filière et cadre d'emplois, selon la quotité de temps de travail et le sexe
A6: Champ : le tableau qui suit concerne les agents contractuels rémunérés sur un emploi permanent à temps complet, rémunérés au 31/12/2020
A7: Remarque importante : les agents occupant un emploi fonctionnel doivent être uniquement comptabilisés dans leurs cadres d'emplois respectifs.
B9: 10 | C9: 10 | D9: 21 | E9: 21 | F9: 22 | G9: 22 | H9: 23 | I9: 23 | J9: 00 | K9: 00 | L9: temps
B10: CONTRACTUELS sur emploi permanent occupant un poste à TEMPS COMPLET et exerçant leurs fonctions à : | J10: Total
B11: TEMPS PLEIN | D11: Tout type de TEMPS PARTIEL (sauf thérapeutique)
B12: 1 | D12: Moins de 80% | F12: de 80% à moins de 90% | H12: 90% et plus
B13: Hommes 1.2.2(1) | C13: Femmes 1.2.2(2) | D13: Hommes 1.2.2(3) | E13: Femmes 1.2.2(4) | F13: Hommes 1.2.2(5) | G13: Femmes 1.2.2(6) | H13: Hommes 1.2.2(7) | I13: Femmes 1.2.2(8) | J13: Hommes | K13: Femmes
A14: FILIERE ADMINISTRATIVE | B14: 1 | C14: 2 | D14: 1 | E14: 2 | F14: 1 | G14: 2 | H14: 1 | I14: 2 | J14: 1 | K14: 2 | L14: sexe
A15: Administrateurs | B15: 0 | C15: 0 | D15: 0 | E15: 0 | F15: 0 | G15: 0 | H15: 0 | I15: 0 | J15: =B15+D15+F15+H15 -> 0 | K15: 0 | L15: AD
A16: Attachés | B16: 0 | C16: 0 | D16: 0 | E16: 0 | F16: 0 | G16: 0 | H16: 0 | I16: 0 | J16: 0 | K16: 0 | L16: AT
A17: Secrétaires de mairie | B17: 0 | C17: 0 | D17: 0 | E17: 0 | F17: 0 | G17: 0 | H17: 0 | I17: 0 | J17: 0 | K17: 0 | L17: AS
A18: Rédacteurs | B18: 0 | C18: 0 | D18: 0 | E18: 0 | F18: 0 | G18: 0 | H18: 0 | I18: 0 | J18: 0 | K18: 0 | L18: AR
A19: Adjoints administratifs | B19: 0 | C19: 1 | D19: 0 | E19: 0 | F19: 0 | G19: 0 | H19: 0 | I19: 0 | J19: 0 | K19: 1 | L19: AJ
A20: FILIERE ADMINISTRATIVE | B20: =SUM(B15:B19) -> 0 | C20: 1 | D20: 0 | E20: 0 | F20: 0 | G20: 0 | H20: 0 | I20: 0 | J20: 0 | K20: 1 | L20: A
A21: FILIERE TECHNIQUE
A22: Ingénieurs en chef | B22: 0 | C22: 0 | D22: 0 | E22: 0 | F22: 0 | G22: 0 | H22: 0 | I22: 0 | J22: =B22+D22+F22+H22 -> 0 | K22: =C22+E22+G22+I22 -> 0 | L22: TN
A23: Ingénieurs | B23: 0 | C23: 0 | D23: 0 | E23: 0 | F23: 0 | G23: 0 | H23: 0 | I23: 0 | J23: =B23+D23+F23+H23 -> 0 | K23: 0 | L23: TP
A24: Techniciens | B24: 0 | C24: 0 | D24: 0 | E24: 0 | F24: 0 | G24: 0 | H24: 0 | I24: 0 | J24: 0 | K24: 0 | L24: TT
A25: Agents de maîtrise | B25: 0 | C25: 0 | D25: 0 | E25: 0 | F25: 0 | G25: 0 | H25: 0 | I25: 0 | J25: 0 | K25: 0 | L25: TM
A26: Adjoints techniques | B26: 0 | C26: 0 | D26: 0 | E26: 0 | F26: 0 | G26: 0 | H26: 0 | I26: 0 | J26: 0 | K26: 0 | L26: TH
A27: Adjoints techniques des établissements d'enseignement | B27: 0 | C27: 0 | D27: 0 | E27: 0 | F27: 0 | G27: 0 | H27: 0 | I27: 0 | J27: 0 | K27: 0 | L27: TA
A28: FILIERE TECHNIQUE | B28: =SUM(B22:B27) -> 0 | C28: =SUM(C22:C27) -> 0 | D28: 0 | E28: 0 | F28: 0 | G28: 0 | H28: 0 | I28: 0 | J28: 0 | K28: 0 | L28: T
A29: FILIERE CULTURELLE
A30: Conservateurs du patrimoine | B30: 0 | C30: 0 | D30: 0 | E30: 0 | F30: 0 | G30: 0 | H30: 0 | I30: 0 | J30: =B30+D30+F30+H30 -> 0 | K30: =C30+E30+G30+I30 -> 0 | L30: CM
A31: Conservateurs des bibliothèques | B31: 0 | C31: 0 | D31: 0 | E31: 0 | F31: 0 | G31: 0 | H31: 0 | I31: 0 | J31: 0 | K31: 0 | L31: CH
A32: Attachés de conservation du patrimoine | B32: 0 | C32: 0 | D32: 0 | E32: 0 | F32: 0 | G32: 0 | H32: 0 | I32: 0 | J32: 0 | K32: 0 | L32: CA
A33: Bibliothécaires | B33: 0 | C33: 0 | D33: 0 | E33: 0 | F33: 0 | G33: 0 | H33: 0 | I33: 0 | J33: 0 | K33: 0 | L33: CB
A34: Directeurs d'établissements d'enseignement artistique | B34: 0 | C34: 0 | D34: 0 | E34: 0 | F34: 0 | G34: 0 | H34: 0 | I34: 0 | J34: 0 | K34: 0 | L34: CD
A35: Professeurs d'enseignement artistique | B35: 0 | C35: 0 | D35: 0 | E35: 0 | F35: 0 | G35: 0 | H35: 0 | I35: 0 | J35: 0 | K35: 0 | L35: CP
A36: Assistants de conservation du patrimoine et des bibliothèques | B36: 0 | C36: 0 | D36: 0 | E36: 0 | F36: 0 | G36: 0 | H36: 0 | I36: 0 | J36: 0 | K36: 0 | L36: CG
A37: Assistants d'enseignement artistique | B37: 0 | C37: 0 | D37: 0 | E37: 0 | F37: 0 | G37: 0 | H37: 0 | I37: 0 | J37: 0 | K37: 0 | L37: CS
A38: Adjoints territoriaux du patrimoine | B38: 0 | C38: 0 | D38: 0 | E38: 0 | F38: 0 | G38: 0 | H38: 0 | I38: 0 | J38: 0 | K38: 0 | L38: CJ
A39: FILIERE CULTURELLE | B39: =SUM(B30:B38) -> 0 | C39: 0 | D39: 0 | E39: 0 | F39: 0 | G39: 0 | H39: 0 | I39: 0 | J39: 0 | K39: 0 | L39: C
A40: FILIERE SPORTIVE
A41: Conseillers des APS | B41: 0 | C41: 0 | D41: 0 | E41: 0 | F41: 0 | G41: 0 | H41: 0 | I41: 0 | J41: =B41+D41+F41+H41 -> 0 | K41: 0 | L41: SC
A42: Educateurs des APS | B42: 0 | C42: 0 | D42: 0 | E42: 0 | F42: 0 | G42: 0 | H42: 0 | I42: 0 | J42: 0 | K42: 0 | L42: SE
A43: Opérateurs des APS | B43: 0 | C43: 0 | D43: 0 | E43: 0 | F43: 0 | G43: 0 | H43: 0 | I43: 0 | J43: 0 | K43: 0 | L43: SP
A44: FILIERE SPORTIVE | B44: =SUM(B41:B43) -> 0 | C44: 0 | D44: 0 | E44: 0 | F44: 0 | G44: 0 | H44: 0 | I44: 0 | J44: 0 | K44: 0 | L44: S
A45: FILIERE SOCIALE
A46: Conseillers socio-éducatifs | B46: 0 | C46: 0 | D46: 0 | E46: 0 | F46: 0 | G46: 0 | H46: 0 | I46: 0 | J46: =B46+D46+F46+H46 -> 0 | K46: =C46+E46+G46+I46 -> 0 | L46: MM
A47: Assistants socio-éducatifs | B47: 0 | C47: 0 | D47: 0 | E47: 0 | F47: 0 | G47: 0 | H47: 0 | I47: 0 | J47: 0 | K47: 0 | L47: MT
A48: Educateurs de jeunes enfants | B48: 0 | C48: 0 | D48: 0 | E48: 0 | F48: 0 | G48: 0 | H48: 0 | I48: 0 | J48: 0 | K48: 0 | L48: ME
A49: Moniteurs-éducateurs et intervenants familiaux | B49: 0 | C49: 0 | D49: 0 | E49: 0 | F49: 0 | G49: 0 | H49: 0 | I49: 0 | J49: 0 | K49: 0 | L49: MB
A50: Agents spécialisés des écoles maternelles (ASEM) | B50: 0 | C50: 0 | D50: 0 | E50: 0 | F50: 0 | G50: 0 | H50: 0 | I50: 0 | J50: 0 | K50: 0 | L50: MD
A51: Agents sociaux | B51: 0 | C51: 0 | D51: 0 | E51: 0 | F51: 0 | G51: 0 | H51: 0 | I51: 0 | J51: 0 | K51: 0 | L51: MP
A52: FILIERE SOCIALE | B52: =SUM(B46:B51) -> 0 | C52: 0 | D52: 0 | E52: 0 | F52: 0 | G52: 0 | H52: 0 | I52: 0 | J52: 0 | K52: 0 | L52: M
A53: FILIERE MEDICO-SOCIALE
A54: Médecins | B54: 0 | C54: 0 | D54: 0 | E54: 0 | F54: 0 | G54: 0 | H54: 0 | I54: 0 | J54: =B54+D54+F54+H54 -> 0 | K54: =C54+E54+G54+I54 -> 0 | L54: OD
A55: Psychologues | B55: 0 | C55: 0 | D55: 0 | E55: 0 | F55: 0 | G55: 0 | H55: 0 | I55: 0 | J55: 0 | K55: 0 | L55: OH
A56: Sages-femmes | B56: 0 | C56: 0 | D56: 0 | E56: 0 | F56: 0 | G56: 0 | H56: 0 | I56: 0 | J56: 0 | K56: 0 | L56: OF
A57: Cadres de santé paramédicaux | B57: 0 | C57: 0 | D57: 0 | E57: 0 | F57: 0 | G57: 0 | H57: 0 | I57: 0 | J57: 0 | K57: 0 | L57: OG
A58: Puéricultrices cadres de santé | B58: 0 | C58: 0 | D58: 0 | E58: 0 | F58: 0 | G58: 0 | H58: 0 | I58: 0 | J58: 0 | K58: 0 | L58: OC
A59: Puéricultrices* | B59: 0 | C59: 0 | D59: 0 | E59: 0 | F59: 0 | G59: 0 | H59: 0 | I59: 0 | J59: 0 | K59: 0 | L59: OX
A60: Cadres de santé infirmiers, rééducateurs et assistants médico-techniques | B60: 0 | C60: 0 | D60: 0 | E60: 0 | F60: 0 | G60: 0 | H60: 0 | I60: 0 | J60: 0 | K60: 0 | L60: OA
A61: Infirmiers en soins généraux | B61: 0 | C61: 0 | D61: 0 | E61: 0 | F61: 0 | G61: 0 | H61: 0 | I61: 0 | J61: 0 | K61: 0 | L61: OB
A62: Infirmiers | B62: 0 | C62: 0 | D62: 0 | E62: 0 | F62: 0 | G62: 0 | H62: 0 | I62: 0 | J62: 0 | K62: 0 | L62: ON
A63: Auxiliaires de puériculture | B63: 0 | C63: 0 | D63: 0 | E63: 0 | F63: 0 | G63: 0 | H63: 0 | I63: 0 | J63: 0 | K63: 0 | L63: OJ
A64: Auxiliaires de soins | B64: 0 | C64: 0 | D64: 0 | E64: 0 | F64: 0 | G64: 0 | H64: 0 | I64: 0 | J64: 0 | K64: 0 | L64: OK
A65: FILIERE MEDICO-SOCIALE | B65: =SUM(B54:B64) -> 0 | C65: 0 | D65: 0 | E65: 0 | F65: 0 | G65: 0 | H65: 0 | I65: 0 | J65: 0 | K65: 0 | L65: O
A66: FILIERE MEDICO-TECHNIQUE
A67: Biologistes, vétérinaires, pharmaciens | B67: 0 | C67: 0 | D67: 0 | E67: 0 | F67: 0 | G67: 0 | H67: 0 | I67: 0 | J67: 0 | K67: 0 | L67: EB
A68: Techniciens paramédicaux | B68: 0 | C68: 0 | D68: 0 | E68: 0 | F68: 0 | G68: 0 | H68: 0 | I68: 0 | J68: 0 | K68: 0 | L68: ET
A69: FILIERE MEDICO-TECHNIQUE | B69: =SUM(B67:B68) -> 0 | C69: 0 | D69: 0 | E69: 0 | F69: 0 | G69: 0 | H69: 0 | I69: 0 | J69: 0 | K69: 0 | L69: E
A70: FILIERE POLICE MUNICIPALE
A71: Directeur de police municipale | B71: 0 | C71: 0 | D71: 0 | E71: 0 | F71: 0 | G71: 0 | H71: 0 | I71: 0 | J71: =B71+D71+F71+H71 -> 0 | K71: 0 | L71: PU
A72: Chefs de service de police municipale | B72: 0 | C72: 0 | D72: 0 | E72: 0 | F72: 0 | G72: 0 | H72: 0 | I72: 0 | J72: 0 | K72: 0 | L72: PC
A73: Agents de police municipale | B73: 0 | C73: 0 | D73: 0 | E73: 0 | F73: 0 | G73: 0 | H73: 0 | I73: 0 | J73: 0 | K73: 0 | L73: PG
A74: Gardes-champêtres | B74: 0 | C74: 0 | D74: 0 | E74: 0 | F74: 0 | G74: 0 | H74: 0 | I74: 0 | J74: 0 | K74: 0 | L74: PH
A75: FILIERE POLICE MUNICIPALE | B75: =SUM(B71:B74) -> 0 | C75: 0 | D75: 0 | E75: 0 | F75: 0 | G75: 0 | H75: 0 | I75: 0 | J75: 0 | K75: 0 | L75: P
A76: FILIERE INCENDIE ET SECOURS
A77: Contrôleurs, colonels | B77: 0 | C77: 0 | D77: 0 | E77: 0 | F77: 0 | G77: 0 | H77: 0 | I77: 0 | J77: =B77+D77+F77+H77 -> 0 | K77: =C77+E77+G77+I77 -> 0 | L77: RH
A78: Capitaines, commandants, lieutenants-colonels | B78: 0 | C78: 0 | D78: 0 | E78: 0 | F78: 0 | G78: 0 | H78: 0 | I78: 0 | J78: =B78+D78+F78+H78 -> 0 | K78: 0 | L78: RC
A79: Médecins, pharmaciens | B79: 0 | C79: 0 | D79: 0 | E79: 0 | F79: 0 | G79: 0 | H79: 0 | I79: 0 | J79: 0 | K79: 0 | L79: RD
A80: Lieutenants | B80: 0 | C80: 0 | D80: 0 | E80: 0 | F80: 0 | G80: 0 | H80: 0 | I80: 0 | J80: 0 | K80: 0 | L80: RL
A81: Cadres de santé | B81: 0 | C81: 0 | D81: 0 | E81: 0 | F81: 0 | G81: 0 | H81: 0 | I81: 0 | J81: 0 | K81: 0 | L81: RF
A82: Infirmiers | B82: 0 | C82: 0 | D82: 0 | E82: 0 | F82: 0 | G82: 0 | H82: 0 | I82: 0 | J82: 0 | K82: 0 | L82: RG
A83: Sous-officiers | B83: 0 | C83: 0 | D83: 0 | E83: 0 | F83: 0 | G83: 0 | H83: 0 | I83: 0 | J83: 0 | K83: 0 | L83: RS
A84: Sapeurs et caporaux | B84: 0 | C84: 0 | D84: 0 | E84: 0 | F84: 0 | G84: 0 | H84: 0 | I84: 0 | J84: 0 | K84: 0 | L84: RU
A85: FILIERE INCENDIE-SECOURS | B85: =SUM(B77:B84) -> 0 | C85: 0 | D85: 0 | E85: 0 | F85: 0 | G85: 0 | H85: 0 | I85: 0 | J85: 0 | K85: 0 | L85: R
A86: FILIERE ANIMATION
A87: Animateurs | B87: 0 | C87: 0 | D87: 0 | E87: 0 | F87: 0 | G87: 0 | H87: 0 | I87: 0 | J87: =B87+D87+F87+H87 -> 0 | K87: =C87+E87+G87+I87 -> 0 | L87: NN
A88: Adjoints d'animation | B88: 0 | C88: 0 | D88: 0 | E88: 0 | F88: 0 | G88: 0 | H88: 0 | I88: 0 | J88: =B88+D88+F88+H88 -> 0 | K88: =C88+E88+G88+I88 -> 0 | L88: NJ
A89: FILIERE ANIMATION | B89: =SUM(B87:B88) -> 0 | C89: 0 | D89: 0 | E89: 0 | F89: 0 | G89: 0 | H89: 0 | I89: 0 | J89: 0 | K89: 0 | L89: N
A91: TOTAL | B91: =B52+B65+B69+B75+B85+B89+B44+B39+B28+B20 -> 0 | C91: =C52+C65+C69+C75+C85+C89+C44+C39+C28+C20 -> 1 | D91: 0 | E91: 0 | F91: 0 | G91: 0 | H91: 0 | I91: 0 | J91: 0 | K91: 1 | L91: 00
A93: * Comptabiliser les puéricultrices du cadre d'emplois du décret n° 92-859 du 28 août 1992 modifié et du cadre d'emplois du décret n° 2014-923 du 18 août 2014.

Sheet Fiche 1.2.3
E1: Retour Sommaire
A3: 1.2.3 - Nombre d'agents contractuels bénéficiaires d'un temps partiel de droit ou sur autorisation rémunérés au 31/12/2020, par catégorie et par sexe
A6: L’indicateur 1.2.3. détaille les effectifs, en nombre de personnes physiques (1 personne = 1 unité),
A7: Ne pas remplir les cellules grisées (pré remplies par un zéro) qui font l’objet de calculs automatiques.
A10: Quels sont les agents à recenser ?
A12: * les agents contractuels
A14: * occupant un emploi permanent à temps complet
A16: * et exerçant à temps partiel sous les formes particulières :
A17: - du temps partiel de droit qui peut être accordé soit pour raison familiale (pour élever un enfant, donner des soins à son conjoint, à un enfant à charge ou à un ascendant atteint d'un handicap nécessitant la présence d'une tierce personne, ou victime d'un accident ou d'une maladie grave), soit à certains travailleurs en situation de handicap (article 13 du décret n° 2004-777 du 29 juillet 2004 relatif à la mise en œuvre du temps partiel dans la fonction publique territoriale)
A18: - du temps partiel sur autorisation (pour une durée de service qui ne peut être inférieure au mi-temps) pour les agents contractuels en activité employés depuis plus d'un an de façon continue à temps complet, sur leur demande et sous réserve des nécessités du service (article 10 du décret n°2004-777 du 29 juillet 2004 précité)
A20: *rémunérés à la date du 31 décembre 2020
A22: Remarque : il s’agit des fonctionnaires déjà recensés à l’indicateur 1.2.2. dans les colonnes 1.2.2(3) à 1.2.2(8).
A25: Comment sont-ils recensés ?
A27: *par catégorie par sexe (en lignes)
A29: *par type de temps partiel (en colonnes)
A30: - colonne 1.2.3(1) : temps partiel de droit
A31: - colonne 1.2.3(2) : temps partiel sur autorisation

Sheet IND 1.2.3
C1: Retour Sommaire
A3: 1.2.3 - Nombre d'agents contractuels rémunérés bénéficiaires d'un temps partiel de droit ou sur autorisation rémunérés au 31/12/2020, par catégorie et sexe
A5: Champ : le tableau qui suit concerne les agents contractuels sur un emploi permanent à temps complet et exerçant à temps partiel, rémunérés au 31/12/2020.
C6: 1 | D6: 2 | E6: temps
C7: Temps partiel de droit | D7: Temps partiel sur autorisation | E7: catégorie | F7: sexe
C8: 1.2.3(1) | D8: 1.2.3(2)
A9: Catégorie A | B9: Hommes | C9: 0 | D9: 0 | E9: 1 | F9: 1
B10: Femmes | C10: 0 | D10: 0 | E10: 1 | F10: 2
B11: Total | C11: =SUM(C9:C10) -> 0 | D11: =SUM(D9:D10) -> 0 | E11: 1 | F11: 0
A12: Catégorie B | B12: Hommes | C12: 0 | D12: 0 | E12: 2 | F12: 1
B13: Femmes | C13: 0 | D13: 0 | E13: 2 | F13: 2
B14: Total | C14: =SUM(C12:C13) -> 0 | D14: =SUM(D12:D13) -> 0 | E14: 2 | F14: 0
A15: Catégorie C | B15: Hommes | C15: 0 | D15: 0 | E15: 3 | F15: 1
B16: Femmes | C16: 0 | D16: 0 | E16: 3 | F16: 2
B17: Total | C17: =SUM(C15:C16) -> 0 | D17: =SUM(D15:D16) -> 0 | E17: 3 | F17: 0

Sheet IND 1.2.4
C1: Retour Sommaire
A3: 1.2.4 - Nombre de contractuels en Equivalent Temps Plein Rémunéré (ETPR) en 2020 par filière déclinée par catégorie et par sexe
A5: Champ : le tableau qui suit concerne les contractuels occupant un emploi permanent à temps complet ou non complet et ayant été rémunérés au moins un jour durant l'année 2020 (hors heures supplémentaires et/ou complémentaires)
A6: L’indicateur 1.2.4. détaille les effectifs en ETPR (1 ETPR = 1 unité),
A7: Ne pas remplir les cellules grisées (pré remplies par un zéro) qui font l’objet de calculs automatiques.
A9: Définition : l'Equivalent Temps Plein Rémunéré (ETPR) est proportionnel à l'activité d'un agent, mesuré par sa quotité de temps de travail et par sa période d'activité sur l'année. Par contre, il ne tient pas compte des heures supplémentaires et/ou complémentaires effectuées par l'agent.
A10: La base de calcul pour un agent à temps plein (35 heures), ayant été en activité toute l'année correspond au nombre total d'heures payées soit 1 820 heures pour une année.
A11: Les périodes d'activités rémunérées sont incluses dans cette base de calcul (congés, absence, etc...).
A12: Le nombre d'heures payées à prendre en compte pour un agent, est le nombre d'heures annuelles cumulées au dernier jour de l'année ou au dernier jour de travail de l'agent.
A13: - cas particulier des agents de la filière culturelle : un(e) assistant(e) d'enseignement artistique travaillant 20h hebdomadaire (temps plein de référence) correspond à 1 ETPR (base 35 heures rémunérées). Un(e) professeur(e) d'enseignement artistique travaillant 16h hebdomadaire (temps plein de référence) correspond à 1 ETPR.
A15: Exemples :
A16: - un agent à temps plein rémunéré et présent toute l'année correspond à 1 ETPR, soit 1 820 heures
A17: - un agent à temps partiel (80 %) présent toute l'année correspond à 0,8 ETPR
A18: - un agent à temps non complet (25 heures par semaine) et ayant été présent 4 mois sur l'année correspond à 0,24 ETPR > calcul : (25 heures /35)*(4 mois /12)
A19: - un agent à temps partiel (80 %) étant repassé à temps plein le 1er juin 2017 correspond à 0,9 ETPR > calcul : (0,8 *(5 mois /12)) + (1*(7 mois /12))
A21: Exemples de calcul par le nombre d'heures payées (y compris congés, absences, ...)
A22: - pour un agent à temps complet, soit 1 820 heures travaillées > 1 ETPR
A23: - pour un agent à temps non complet, par exemple à 1 204 heures travaillées > 1 204 / 1 820 = 0,66 ETPR
C27: 1 | D27: 2 | E27: sexe
B28: Nombre de contractuels en Equivalent Temps Plein Rémunéré (ETPR) ayant travaillé au moins un jour (Contractuels sur emplois permanents)
C29: année 2020
B30: Filières | C30: Hommes 1.2.4(1.1) | D30: Femmes 1.2.4(1.2) | E30: cadre | F30: categorie
B31: FILIERE ADMINISTRATIVE | C31: =SUM(C32:C34) -> 0 | D31: =SUM(D32:D34) -> 0.17 | E31: A | F31: 0
B32: Catégorie A | C32: 0 | D32: 0 | E32: A | F32: 1
B33: Catégorie B | C33: 0 | D33: 0 | E33: A | F33: 2
B34: Catégorie C | C34: 0 | D34: 0.17 | E34: A | F34: 3
B35: FILIERE TECHNIQUE | C35: =SUM(C36:C38) -> 0.33 | D35: =SUM(D36:D38) -> 0.19 | E35: T | F35: 0
B36: Catégorie A | C36: 0 | D36: 0 | E36: T | F36: 1
B37: Catégorie B | C37: 0 | D37: 0 | E37: T | F37: 2
B38: Catégorie C | C38: 0.33 | D38: 0.19 | E38: T | F38: 3
B39: FILIERE CULTURELLE | C39: =SUM(C40:C42) -> 0 | D39: =SUM(D40:D42) -> 0 | E39: C | F39: 0
B40: Catégorie A | C40: 0 | D40: 0 | E40: C | F40: 1
B41: Catégorie B | C41: 0 | D41: 0 | E41: C | F41: 2
B42: Catégorie C | C42: 0 | D42: 0 | E42: C | F42: 3
B43: FILIERE SPORTIVE | C43: =SUM(C44:C46) -> 0 | D43: =SUM(D44:D46) -> 0 | E43: S | F43: 0
B44: Catégorie A | C44: 0 | D44: 0 | E44: S | F44: 1
B45: Catégorie B | C45: 0 | D45: 0 | E45: S | F45: 2
B46: Catégorie C | C46: 0 | D46: 0 | E46: S | F46: 3
B47: FILIERE SOCIALE | C47: =SUM(C48:C50) -> 0 | D47: =SUM(D48:D50) -> 0 | E47: M | F47: 0
B48: Catégorie A | C48: 0 | D48: 0 | E48: M | F48: 1
B49: Catégorie B | C49: 0 | D49: 0 | E49: M | F49: 2
B50: Catégorie C | C50: 0 | D50: 0 | E50: M | F50: 3
B51: FILIERE MEDICO-SOCIALE | C51: =SUM(C52:C54) -> 0 | D51: =SUM(D52:D54) -> 0 | E51: O | F51: 0
B52: Catégorie A | C52: 0 | D52: 0 | E52: O | F52: 1
B53: Catégorie B | C53: 0 | D53: 0 | E53: O | F53: 2
B54: Catégorie C | C54: 0 | D54: 0 | E54: O | F54: 3
B55: FILIERE MEDICO-TECHNIQUE | C55: =SUM(C56:C58) -> 0 | D55: =SUM(D56:D58) -> 0 | E55: E | F55: 0
B56: Catégorie A | C56: 0 | D56: 0 | E56: E | F56: 1
B57: Catégorie B | C57: 0 | D57: 0 | E57: E | F57: 2
B58: Catégorie C | C58: 0 | D58: 0 | E58: E | F58: 3
B59: FILIERE POLICE MUNICIPALE | C59: =SUM(C60:C62) -> 0 | D59: =SUM(D60:D62) -> 0 | E59: P | F59: 0
B60: Catégorie A | C60: 0 | D60: 0 | E60: P | F60: 1
B61: Catégorie B | C61: 0 | D61: 0 | E61: P | F61: 2
B62: Catégorie C | C62: 0 | D62: 0 | E62: P | F62: 3
B63: FILIERE INCENDIE ET SECOURS | C63: =SUM(C64:C66) -> 0 | D63: =SUM(D64:D66) -> 0 | E63: R | F63: 0
B64: Catégorie A | C64: 0 | D64: 0 | E64: R | F64: 1
B65: Catégorie B | C65: 0 | D65: 0 | E65: R | F65: 2
B66: Catégorie C | C66: 0 | D66: 0 | E66: R | F66: 3
B67: FILIERE ANIMATION | C67: =SUM(C68:C69) -> 0 | D67: =SUM(D68:D69) -> 0 | E67: N | F67: 0
B68: Catégorie B | C68: 0 | D68: 0 | E68: N | F68: 2
B69: Catégorie C | C69: 0 | D69: 0 | E69: N | F69: 3
B71: TOTAL | C71: =C31+C35+C39+C43+C47+C51+C55+C59+C63+C67 -> 0.33 | D71: =D31+D35+D39+D43+D47+D51+D55+D59+D63+D67 -> 0.36 | E71: 00 | F71: 0

Sheet Fiche 1.3.1-1.3.2
E1: Retour Sommaire
A3: 1.3.1 - 1.3.2 - Autres personnels
A5: Les indicateurs 1.3.1(1) et 1.3.1(2) recensent, respectivement, les effectifs en nombre de personnes physiques (1 personne = 1 unité) et en équivalent temps plein rémunéré (1 ETPR = 1 unité).
A6: L' indicateur 1.3.2 recense uniquement les effectifs en nombre de personnes physiques (1 personne = 1 unité).
A7: Ne pas remplir les cellules grisées (pré remplies par un zéro) qui font l’objet de calculs automatiques.
A10: Quels sont les agents à recenser à l'indicateur 1.3.1 ?
A12: * les contractuels
A14: * recrutés sur un emploi NON permanent
A16: * rémunérés à la date du 31 décembre 2020
A18: * ou rémunérés au moins 1 jour dans l’année 2020 .
A20: Remarques :
A21: - il s'agit, ici, de recenser les agents contractuels NON recensés à l'indicateur 1.2.1, qu'ils soient de droit public ou de droit privé.
A22: - les agents qui ont été rémunérés au 31/12/2020 ont, par définition, été rémunérés au moins un jour dans l'année 2020. Ils doivent donc également être recensés dans les effectifs des colonnes 1.3.1(1.3) et 1.3.1(1.4) pour l'indicateur 1.3.1(1).
A23: - si une personne a exercé sur plusieurs périodes distinctes au cours de l'année, il ne faut la compter qu’une fois, pour l'indicateur 1.3.1(1), dans les effectifs des agents ayant été rémunérés au moins un jour dans l'année 2020.
A26: Comment sont-ils recensés ?
A28: * par nature d’emploi « non permanent » (en ligne)
A29: - collaborateurs de cabinet : article 110 de la loi du 26 janvier 1984
A30: - assistants maternels
A31: - assistants familiaux : arrêté du 10 juillet 2008, agréé d'avenant n° 305 du 20 mars 2007 relatif aux assistants familiaux, travaillant dans les centres ou services d'accueil familial ou de placement familial spécialisé
A32: - accueillants familiaux : article 57 de la loi DALO du 5 mars 2007 ; décret d’application n° 2010-928 du 3 août 2010
A33: - agents contractuels recrutés pour faire face à un besoin lié à un accroissement temporaire ou saisonnier d'activité : article 3 de la loi n° 84-53 du 26 janvier 1984
A34: - personnes ayant bénéficié d'un emploi aidé
A35: - contractuels employés par les CDG et mis à disposition des collectivités (concernent uniquement les CDG)
A36: - apprentis
A37: - personnes bénéficiant d'une rémunération accessoire autorisée par la réglementation sur le cumul des emplois
A38: - vacataires, hors jury de concours
A39: - autres (agents non classables dans les catégories précédentes) : par exemple, les intermittents du spectacle, les vacataires, etc. Non compris les élus et comptables publics.
A41: * en fonction de la rémunération (au 31 décembre 2020 ou au moins un jour au cours de l'année 2020) croisée par le sexe (en colonnes)
A42: Pour l'indicateur 1.3.1(1) :
A43: - colonnes 1.3.1(1.1) et 1.3.1(1.2) : rémunération au 31 décembre 2020 (en nombre de personnes)
A44: - colonnes 1.3.1(1.3) et 1.3.1(1.4) : rémunération au moins un jour au cours de l'année 2020 (en nombre de personnes)
A45: Pour l'indicateur 1.3.1(2) : rémunération au moins un jour au cours de l'année 2020 (en ETPR)
A48: Quels sont les agents à recenser à l'indicateur 1.3.2 ?
A50: * les personnes de droit public ou privé qui sont dans le cadre d'une mission temporaire
A52: * mises à disposition par les CDG
A54: * ou intérimaires
A56: * présentes à la date du 31 décembre 2020
A58: * ou présentes au moins 1 jour dans l’année 2020
A61: Comment sont-ils recensés ?
A63: * par nature d’emploi « non permanent » (décliné par filière pour le personnel mis à disposition par les CDG ; en lignes)
A64: - personnes employées comme personnels remplaçants mis à disposition par le centre de gestion (par filière)
A65: - personnes employées dans le cadre du recours au service des entreprises mentionnées à l’article L. 1251-1 du code du travail (intérim) en référence à l’article 3-7 de la loi n° 84-53 du 26 janvier 1984
A67: * en fonction de la présence (au 31 décembre 2020 ou au moins un jour au cours de l'année 2020) croisée par le sexe (en colonnes)
A68: - colonnes 1.3.2(1) et 1.3.2(2) : rémunération au 31 décembre 2020
A69: - colonnes 1.3.2(3) et 1.3.2(4) : rémunération au moins un jour au cours de l'année 2020
A71: Remarques :
A72: - les agents qui ont été présents au 31/12/2020 ont, par définition, été présents au moins un jour dans l'année 2020. Ils doivent donc être recensés dans les deux colonnes 1.3.2(1) et 1.3.2(2).
A73: - si une personne a exercé sur plusieurs périodes distinctes au cours de l'année, il ne faut la compter qu’une fois dans les colonnes 1.3.2(3) ou1.3.2(4).

Sheet IND 1.3.1
D1: Retour Sommaire
A3: 1.3.1 - Autres contractuels sur emploi non permanent, en effectif physique et en ETPR, selon le sexe
A5: 1.3.1 (1) - Autres contractuels sur emploi non permanent en effectif physique
A7: Champ : les tableaux qui suivent concernent les agents contractuels sur un emploi non permanent ayant été rémunérés au moins un jour durant l'année 2020
A8: Remarques :
A9: - ces agents ne doivent pas avoir été recensés à l’indicateur 1.2.1.
A10: - si une personne a exercé au cours de plusieurs périodes distinctes, ne la compter qu’une fois dans les colonnes 1.3.1(1.3) ou 1.3.1(1.4) .
D12: E1 | E12: E1 | F12: E1 | H12: E2 | I12: E2 | J12: E2 | K12: effectif
D13: Effectifs rémunérés au 31 décembre 2020 | H13: Effectifs ayant été rémunérés au moins un jour entre le 1er janvier 2020 et le 31 décembre 2020
D14: Hommes 1.3.1(1.1) | E14: Femmes 1.3.1(1.2) | F14: Total | H14: Hommes 1.3.1(1.3) | I14: Femmes 1.3.1(1.4) | J14: Total
D15: 1 | E15: 2 | F15: 0 | H15: 1 | I15: 2 | J15: 0 | K15: sexe/emploi
B16: Collaborateurs de cabinet (article 110 de la loi du 26 janvier 1984) | D16: 0 | E16: 0 | F16: =SUM(D16:E16) -> 0 | H16: 0 | I16: 0 | J16: =SUM(H16:I16) -> 0 | K16: 01
B18: Assistants maternels | D18: 0 | E18: 0 | F18: =SUM(D18:E18) -> 0 | H18: 0 | I18: 0 | J18: =SUM(H18:I18) -> 0 | K18: 02
B20: Assistants familiaux | D20: 0 | E20: 0 | F20: =SUM(D20:E20) -> 0 | H20: 0 | I20: 0 | J20: =SUM(H20:I20) -> 0 | K20: 03
B22: Accueillants familiaux (Loi DALO de 2007) | D22: 0 | E22: 0 | F22: =SUM(D22:E22) -> 0 | H22: 0 | I22: 0 | J22: =SUM(H22:I22) -> 0 | K22: 04
B24: Agents contractuels recrutés pour faire face à un accroissement temporaire d'activité ou un accroissement saisonnier d'activité (article 3 de la loi du 26 janvier 1984) | D24: 0 | E24: 0 | F24: =SUM(D24:E24) -> 0 | H24: 0 | I24: 0 | J24: =SUM(H24:I24) -> 0 | K24: 05
B26: Personnes ayant bénéficié d'un emploi aidé | D26: 0 | E26: 0 | F26: =SUM(D26:E26) -> 0 | H26: 0 | I26: 0 | J26: =SUM(H26:I26) -> 0 | K26: 06
B28: Contractuels employés par les CDG et mis à disposition des collectivités ( A renseigner uniquement par les CDG ) | D28: 0 | E28: 0 | F28: =SUM(D28:E28) -> 0 | H28: 0 | I28: 0 | J28: =SUM(H28:I28) -> 0 | K28: 09
B30: Apprentis | D30: 0 | E30: 0 | F30: =SUM(D30:E30) -> 0 | H30: 0 | I30: 0 | J30: =SUM(H30:I30) -> 0 | K30: 10
B32: Personnes bénéficiant d'une rémunération accessoire autorisée par la réglementation sur le cumul des emplois | D32: 0 | E32: 0 | F32: =SUM(D32:E32) -> 0 | H32: 0 | I32: 0 | J32: =SUM(H32:I32) -> 0 | K32: 11
B34: Vacataires (hors jury de concours) | D34: 0 | E34: 0 | F34: =SUM(D34:E34) -> 0 | H34: 0 | I34: 0 | J34: =SUM(H34:I34) -> 0 | K34: 41
B36: Autres (agents non classables dans les catégories précédentes) | D36: 0 | E36: 0 | F36: =SUM(D36:E36) -> 0 | H36: 0 | I36: 0 | J36: =SUM(H36:I36) -> 0 | K36: 12
B38: TOTAL | D38: =D16+D18+D20+D22+D24+D28+D30+D32+D36+D26+D34 -> 0 | E38: =E16+E18+E20+E22+E24+E28+E30+E32+E36+E26+E34 -> 0 | F38: 0 | H38: 0 | I38: 0 | J38: 0 | K38: 00
A41: 1.3.1 (2) - Autres contractuels sur emploi non permanent en Equivalent Temps Plein Rémunéré
B43: Champ : les tableaux qui suivent concernent les agents contractuels sur emploi non permanent ayant été rémunérés au moins un jour durant l'année 2020 (hors heures supplémentaires et/ou complémentaires).
B45: Remarque : Ces agents ne doivent pas avoir été recensés à l’indicateur 1.2.1.
B48: Définition : l'Equivalent Temps Plein Rémunéré (ETPR) est proportionnel à l'activité d'un agent, mesuré par sa quotité de temps de travail et par sa période d'activité sur l'année. Par contre, il ne tient pas compte des heures supplémentaires et/ou complémentaires effectuées par l'agent.
B49: La base de calcul pour un agent à temps plein (35 heures), ayant été en activité toute l'année correspond au nombre total d'heures payées soit 1 820 heures pour une année.
B50: Les périodes d'activités rémunérées sont incluses dans cette base de calcul (congés, absence, etc...).
B51: Le nombre d'heures payées à prendre en compte pour un agent, est le nombre d'heures annuelles cumulées au dernier jour de l'année ou au dernier jour de travail de l'agent.
B53: Exemples :
B54: - pour un agent à temps complet, soit 1 820 heures travaillées > 1 ETPR
B55: - pour un agent à temps non complet, par exemple à 1 204 heures travaillées > 1 204 / 1 820 = 0,66 ETPR
D58: Nombre de contractuels sur emploi non permanent en Equivalent Temps Plein Rémunéré sur l'année 2020
D59: Hommes 1.3.1(2.1) | E59: Femmes 1.3.1(2.2) | F59: Total
D60: 1 | E60: 2 | F60: 0 | G60: sexe/emploi
B61: Collaborateurs de cabinet (article 110 de la loi du 26 janvier 1984) | D61: 0 | E61: 0 | F61: =SUM(D61:E61) -> 0 | G61: 01
B63: Assistants maternels | D63: 0 | E63: 0 | F63: =SUM(D63:E63) -> 0 | G63: 02
B65: Assistants familiaux | D65: 0 | E65: 0 | F65: =SUM(D65:E65) -> 0 | G65: 03
B67: Accueillants familiaux (Loi DALO de 2007) | D67: 0 | E67: 0 | F67: =SUM(D67:E67) -> 0 | G67: 04
B69: Agents contractuels recrutés pour faire face à un accroissement temporaire d'activité ou un accroissement saisonnier d'activité (article 3 de la loi du 26 janvier 1984) | D69: 0 | E69: 0 | F69: =SUM(D69:E69) -> 0 | G69: 05
B71: Personnes ayant bénéficié d'un emploi aidé | D71: 0 | E71: 0 | F71: =SUM(D71:E71) -> 0 | G71: 06
B73: Contractuels employés par les CDG et mis à disposition des collectivités ( A renseigner uniquement par les CDG ) | D73: 0 | E73: 0 | F73: =SUM(D73:E73) -> 0 | G73: 09
B75: Apprentis | D75: 0 | E75: 0 | F75: =SUM(D75:E75) -> 0 | G75: 10
B77: Personnes bénéficiant d'une rémunération accessoire autorisée par la réglementation sur le cumul des emplois | D77: 0 | E77: 0 | F77: =SUM(D77:E77) -> 0 | G77: 11
B79: Vacataires (hors jury de concours) | D79: 0 | E79: 0 | F79: =SUM(D79:E79) -> 0 | G79: 41
B81: Autres (agents non classables dans les catégories précédentes) | D81: 0 | E81: 0 | F81: =SUM(D81:E81) -> 0 | G81: 12
B83: TOTAL | D83: =D61+D63+D65+D67+D69+D71+D73+D75+D77+D79+D81 -> 0 | E83: =E61+E63+E65+E67+E69+E71+E73+E75+E77+E79+E81 -> 0 | F83: =F61+F63+F65+F67+F69+F71+F73+F75+F77+F79+F81 -> 0 | G83: 00

Sheet IND 1.3.2
B1: Retour Sommaire
A3: 1.3.2 - Recours à du personnel temporaire (mis à disposition par CDG décliné par filière et intérim), selon le sexe
A5: Champ : personnes de droit public ou privé qui sont dans le cadre d'une mission temporaire et qui sont mises à disposition par les CDG ou intérimaires, ayant été présentes au moins un jour durant l'année 2020.
A6: Remarques :
A7: - ces agents NE doivent PAS avoir été recensés à l’indicateur 1.2.1.
A8: - si une personne a exercé au cours de plusieurs périodes distinctes, ne la compter qu’une fois dans les colonnes 1.3.2(3) ou 1.3.2(4).
B10: E1 | C10: E1 | E10: E2 | F10: E2 | G10: eff3
B11: Effectifs présents au 31 décembre 2020 | E11: Effectifs présents au moins un jour entre le 1er janvier 2020 et le 31 décembre 2020
B12: Hommes 1.3.2(1) | C12: Femmes 1.3.2(2) | E12: Hommes 1.3.2(3) | F12: Femmes 1.3.2(4)
B13: 1 | C13: 2 | E13: 1 | F13: 2 | G13: sexe/emploi7
A14: Personnels remplaçants mis à disposition par le centre de gestion | B14: =SUM(B15:B24) -> 0 | C14: =SUM(C15:C24) -> 0 | E14: =SUM(E15:E24) -> 0 | F14: =SUM(F15:F24) -> 0 | G14: 00
A15: FILIERE ADMINISTRATIVE | B15: 0 | C15: 0 | E15: 0 | F15: 0 | G15: A
A16: FILIERE TECHNIQUE | B16: 0 | C16: 0 | E16: 0 | F16: 0 | G16: T
A17: FILIERE CULTURELLE | B17: 0 | C17: 0 | E17: 0 | F17: 0 | G17: C
A18: FILIERE SPORTIVE | B18: 0 | C18: 0 | E18: 0 | F18: 0 | G18: S
A19: FILIERE SOCIALE | B19: 0 | C19: 0 | E19: 0 | F19: 0 | G19: M
A20: FILIERE MEDICO-SOCIALE | B20: 0 | C20: 0 | E20: 0 | F20: 0 | G20: O
A21: FILIERE MEDICO-TECHNIQUE | B21: 0 | C21: 0 | E21: 0 | F21: 0 | G21: E
A22: FILIERE POLICE MUNICIPALE | B22: 0 | C22: 0 | E22: 0 | F22: 0 | G22: P
A23: FILIERE INCENDIE ET SECOURS | B23: 0 | C23: 0 | E23: 0 | F23: 0 | G23: R
A24: FILIERE ANIMATION | B24: 0 | C24: 0 | E24: 0 | F24: 0 | G24: N
A26: Personnels employés dans le cadre du recours au service des entreprises (intérim) | B26: 0 | C26: 0 | E26: 0 | F26: 0 | G26: 20

Sheet Fiche 1.4.1-1.4.4
E1: Retour Sommaire
A3: 1.4.1 - 1.4.4 - Nombre d'agents selon les positions statutaires particulières et par sexe, au 31/12/2020
A6: Les indicateurs de 1.4.1 à 1.4.2 recensent les effectifs en nombre de personnes physiques (1 personne = 1 unité).
A7: Ne pas remplir les cellules grisées (pré remplies par un zéro) qui font l’objet de calculs automatiques.
A10: Quels sont les agents à recenser ?
A12: * les fonctionnaires (titulaires et stagiaires) et les contractuels sur emploi permanent
A14: * placés dans une position particulière au 31/12/2020 :
A15: - les fonctionnaires et agents contractuels sur emploi permanent qui se trouvent dans une position autre que celle de l’activité. Pour les contractuels, les congés sans traitement pour convenance personnelle sont à comptabiliser avec les disponibilités pour convenance personnelle.
A16: - les fonctionnaires recrutés dans votre collectivité par la voie d’un détachement non suivi d’intégration.
A19: Comment sont-ils recensés ?
A21: * selon leur origine et par type de situation
A22: - indicateur 1.4.1 : agents originaires de votre collectivité ;
A23: - indicateur 1.4.2 : agents détachés dans la collectivité et originaires d’une autre structure ;
A24: - indicateur 1.4.3 : agents mis à disposition de votre collectivité et originaires d’une autre structure ;
A25: - indicateur 1.4.4 : fonctionnaires pris en charge par le CNFPT ou un CDG.
A28: Indicateur 1.4.1 : agents originaires de votre collectivité
A29: * par positions statutaires particulières (en lignes)
A30: Remarque : certaines rubriques ne concernent pas les contractuels sur emploi permanent :
A31: - position hors cadres ;
A32: - congé spécial ;
A33: - détachement.
A35: * par structures d’accueil (accueillantes) pour les fonctionnaires détachés dans une autre structure (en lignes)
A37: * par types d'emploi ou changement de filière pour les fonctionnaires détachés au sein de leur propre collectivité (en lignes)
A39: * les agents mis à disposition dans une autre structure sont également recensés (en lignes)
A41: * et selon le sexe (en colonnes)
A44: Indicateur 1.4.2 : agents détachés dans la collectivité et originaires d’une autre structure
A45: Remarque : cet indicateur concerne uniquement les fonctionnaires
A47: * par structures d'origine (en lignes)
A49: * et selon le type d'emploi croisé par le sexe (en colonnes)
A52: Indicateur 1.4.3 : recensement des agents mis à disposition de votre collectivité et originaires d’une autre structure selon le statut et le sexe
A55: Indicateur 1.4.4 : fonctionnaires pris en charge par le CNFPT ou un CDG
A56: Remarque : seuls le CNFPT et les CDG doivent renseigner cet indicateur
A58: * par ancienneté (en lignes)
A60: * et selon le sexe (en colonnes)

Sheet IND 1.4.1-1.4.4
B1: Retour Sommaire
A3: 1.4 - Nombre d'agents selon les positions statutaires particulières et par sexe au 31/12/2020
A5: Champ : les tableaux qui suivent concernent les fonctionnaires et contractuels sur emploi permanent, en positions statutaires particulières au 31/12/2020.
A7: 1.4.1 Nombre d'agents originaires de la collectivité
B8: 1 | C8: 2 | D8: 0 | E8: sexe
A9: au 31/12/2020 | B9: Hommes | C9: Femmes | D9: Total | E9: position1
A10: En congé parental (article 75) Fonctionnaires et contractuels | B10: 0 | C10: 0 | D10: =B10+C10 -> 0 | E10: 10
A11: En disponibilité (article 72) hors ceux mis en disponibilité d'office ou bénéficiaires d'un congé équivalent pour les contractuels Fonctionnaires et contractuels | B11: 0 | C11: 0 | D11: 0 | E11: 20
A12: dont disponibilité de droit | B12: 0 | C12: 0 | D12: 0 | E12: 21
A13: En disponibilité d'office ou bénéficiaires d'un congé équivalent Fonctionnaires et contractuels | B13: 0 | C13: 0 | D13: 0 | E13: 22
A14: En position hors cadres (article 70) Fonctionnaires uniquement | B14: 0 | C14: 0 | D14: 0 | E14: 79
A15: En congé spécial (article 99) Fonctionnaires uniquement | B15: 0 | C15: 0 | D15: 0 | E15: 80
A17: Détachés dans une autre structure (article 64) Fonctionnaires uniquement : | B17: Hommes | C17: Femmes | D17: Total
A18: Fonction publique d'Etat | B18: 0 | C18: 0 | D18: =B18+C18 -> 0 | E18: 41
A19: Fonction publique hospitalière | B19: 0 | C19: 0 | D19: =B19+C19 -> 0 | E19: 42
A20: Autre collectivité | B20: 0 | C20: 0 | D20: =B20+C20 -> 0 | E20: 43
A21: Autres structures* | B21: 0 | C21: 0 | D21: =B21+C21 -> 0 | E21: 44
A23: *Par exemple : fonction publique d'un Etat de l'Union européenne (FPEUE).
A25: Détachés au sein de leur propre collectivité : Fonctionnaires uniquement | B25: Hommes | C25: Femmes | D25: Total
A26: Détachés sur un emploi fonctionnel dans leur collectivité | B26: 0 | C26: 0 | D26: =B26+C26 -> 0 | E26: 51
A27: Détachés sur un emploi de cabinet dans leur collectivité | B27: 0 | C27: 0 | D27: =B27+C27 -> 0 | E27: 52
A28: Changement de filière | B28: 0 | C28: 0 | D28: =B28+C28 -> 0 | E28: 53
A30: Mis à disposition dans une autre structure (articles 61 et 136) Fonctionnaires et contractuels | B30: Hommes | C30: Femmes | D30: Total
A31: Ensemble | B31: 0 | C31: 0 | D31: =B31+C31 -> 0 | E31: 70
A32: dont mis à disposition d'une organisation syndicale | B32: 0 | C32: 0 | D32: =B32+C32 -> 0 | E32: 71
A36: 1.4.2 Nombre d'agents originaires d'une autre structure
A38: au 31/12/2020 | B38: Emploi non fonctionnel | D38: Emploi fonctionnel | F38: Emploi de cabinet
B39: Hommes | C39: Femmes | D39: Hommes | E39: Femmes | F39: Hommes | G39: Femmes
A40: Détachés dans votre collectivité et issus de : | B40: 1 | C40: 1 | D40: 2 | E40: 2 | F40: 3 | G40: 3 | H40: emploi3/position2
A41: Fonction publique d'Etat | B41: 0 | C41: 0 | D41: 0 | E41: 0 | F41: 0 | G41: 0 | H41: 1
A42: Fonction publique hospitalière | B42: 0 | C42: 0 | D42: 0 | E42: 0 | F42: 0 | G42: 0 | H42: 2
A43: Autre collectivité | B43: 0 | C43: 0 | D43: 0 | E43: 0 | F43: 0 | G43: 0 | H43: 3
A44: Autres structures* | B44: 0 | C44: 0 | D44: 0 | E44: 0 | F44: 0 | G44: 0 | H44: 4
B45: 1 | C45: 2 | D45: 1 | E45: 2 | F45: 1 | G45: 2 | H45: sexe
A46: *par exemple : fonction publique d'un Etat de l'Union européenne (FPEUE).
A48: 1.4.3 Nombre d'agents originaires d'une autre structure mis à disposition (*)
B49: 1 | C49: 1 | D49: 2 | E49: 2 | F49: statut1
A50: au 31/12/2020 | B50: Fonctionnaires | D50: Contractuels sur emploi permanent | F50: position3
B51: Hommes | C51: Femmes | D51: Hommes | E51: Femmes
A52: Mis à disposition de votre collectivité | B52: 0 | C52: 0 | D52: 0 | E52: 0 | F52: 1
A53: dont originaire de la fonction publique d'Etat | B53: 0 | C53: 0 | D53: 0 | E53: 0 | F53: 2
B54: 1 | C54: 2 | D54: 1 | E54: 2 | F54: sexe
A55: (*) Décret n° 2008-580 du 18 juin 2008 relatif au régime de la mise à disposition applicable aux collectivités territoriales et aux établissements publics administratifs locaux.
A57: 1.4.4 Fonctionnaires pris en charge par le CDG ou le CNFPT (articles 53 et 97)
A59: Remarque : seuls le CNFPT et les CDG doivent renseigner cet indicateur
B60: 1 | C60: 2 | D60: 0 | E60: sexe
A61: au 31/12/2020 | B61: Hommes | C61: Femmes | D61: Total | E61: position4
A62: Depuis moins d'1 an | D62: =SUM(B62:C62) -> 0 | E62: 1
A63: De 1 an à moins de 2 ans | D63: =SUM(B63:C63) -> 0 | E63: 2
A64: De 2 ans à moins de 5 ans | D64: =SUM(B64:C64) -> 0 | E64: 3
A65: 5 ans et plus | D65: =SUM(B65:C65) -> 0 | E65: 4

Sheet Fiche 1.5.0
D1: Retour Sommaire
A3: 1.5.0- Départs dans l'année 2020
A5: L’indicateur 1.5.0. recense les effectifs en nombre de personnes physiques (1 personne = 1 unité).
A6: Ne pas remplir les cellules grisées (pré remplies par un zéro) qui font l’objet de calculs automatiques.
A9: Quels sont les agents à recenser ?
A11: * les fonctionnaires
A13: * et les contractuels occupant un emploi permanent (cf. fiche 1.2.1.)
A15: * ayant quitté votre collectivité au cours de l’année 2020
A17: * pour ce qui correspond au dernier mouvement de l'année
A19: Remarque : Les agents contractuels qui ont cumulé des contrats avec des périodes fréquentes d'interruption ne doivent être comptés qu'une fois.
A21: Comment sont-ils recensés ?
A23: * par statut :
A24: - tableau 1.5.0.1 : fonctionnaires
A25: - tableau 1.5.0.2 : contractuels occupant un emploi permanent
A27: * selon le motif de leur départ, qu'il soit temporaire ou définitif (en lignes)
A28: motifs communs aux fonctionnaires et contractuels (tableaux 1.5.0.1 et 1.5.0.2) :
A29: - mise à disposition totale auprès d’une autre collectivité ou structure (articles 25 et 61 de la loi du 26 janvier 1984)
A30: - congé formation (article 57 - 6° de la loi du 26 janvier 1984), subdivisé en "moins d'un an" et "au-delà d'un an" (Remarque : ne pas comptabiliser les agents en décharge d’activité de courte durée pour leur permettre de suivre un stage de formation)
A31: - congé parental (article 75 de la loi du 26 janvier 1984 pour les fonctionnaires - article 14 du décret n° 88-145 du 15 février 1988 pour les contractuels)
A32: - démission (article 96 de la loi du 26 janvier 1984)
A33: - départ à la retraite
A34: - licenciement
A35: - décès
A36: - transfert de compétence
A37: - autres (révocation, abandon de poste, perte de la nationalité française, etc.)
A39: motifs concernant uniquement les fonctionnaires (tableau 1.5.0.1) :
A40: - décharge totale d’activité de service pour exercice d’un mandat syndical (article 100-1 de la loi du 26 janvier 1984)
A41: - détachement auprès d’une autre collectivité ou structure (article 64 de la loi du 26 janvier 1984) ;
A42: - placement dans une position autre que l'activité ou le détachement (hors congé parental cité plus haut) : mise en disponibilité (de droit ou sur demande), congé parental, accomplissement du service national, congé spécial (articles 72 et 99 de la loi du 26 janvier 1984) ;
A43: - mutation dans une autre collectivité (article 51 de la loi du 26 janvier 1984) ;
A44: - fin de détachement auprès de votre collectivité d’un fonctionnaire issu d’une autre collectivité ou d’une autre Fonction Publique ;
A45: - décharge d'emploi et de fonction (autre que pour exercice d'un mandat syndical)
A46: - prise en charge par le CNFPT ou un CDG à l’issue de la période de surnombre (article 97 de la loi du 26 janvier 1984) ;
A48: motifs concernant uniquement les contractuels (tableau 1.5.0.2) :
A49: - congé sans traitement (convenances personnelles, suivi de conjoint)
A50: - fin de contrat non suivie d’une titularisation ou d’une nomination stagiaire (remplaçant et autre)
A51: - Agent contractuel nommé stagiaire au sein de la collectivité au cours de l'année
A53: *selon le sexe et la catégorie hiérarchique (en colonnes)
A55: Exemples de mouvements au sein de la collectivité

Sheet IND 1.5.0
C1: Retour Sommaire
A3: Nombre d'agents sur emploi permanent au 31/12/2019 | C3: Nombre d'arrivées dans la collectivité en 2020 | E3: Nombre de départs de la collectivité en 2020 | G3: Nombre d'agents sur emploi permanent au 31/12/2020
A4: =G4+E4-C4 -> 6 | C4: ='IND 1.5.2'!S93-'IND 1.5.2'!H93-'IND 1.5.2'!R93-'IND 1.5.2'!C93-'IND 1.5.2'!F93 + 'IND 1.5.3'!F12+'IND 1.5.3'!F13+'IND 1.5.3'!F98 -> 4 | E4: =F41+J41-F21-J21-F22-J22-F39-J39+F65+J65-F51-J51-F63-J63 -> 4 | G4: ='IND 1.1.1'!I376+'IND 1.2.1'!K91 -> 6
A7: 1.5.0 - Départs dans l'année 2020, par motifs de départ et selon le sexe et la catégorie
A9: Champ : les tableaux qui suivent concernent d'une part les agents titulaires et stagiaires et, d'autre part, les agents contractuels sur emploi permanent
A10: Remarque : prendre en compte uniquement le dernier mouvement de l'année. Les agents contractuels qui ont cumulé des contrats avec des périodes fréquentes d'interruption ne doivent être comptés qu'une fois.
A12: Code couleur
A13: Agent rémunéré par la collectivité d'origine suite à son départ "temporaire" au cours de l'année 2020
A14: Agent non rémunéré ou indemnisé par la collectivité d'origine suite à son départ "temporaire" ou définitif au cours de l'année 2020
A16: 1.5.0.1 - Départs des fonctionnaires au cours de l'année 2020
C18: 1 | D18: 1 | E18: 1 | F18: 1 | G18: 2 | H18: 2 | I18: 2 | J18: 2 | K18: sexe
B19: Fonctionnaires sur emploi permanent | C19: Hommes | G19: Femmes
B20: Motif de départ définitif ou "temporaire" | C20: Cat. A | D20: Cat. B | E20: Cat. C | F20: Total | G20: Cat. A | H20: Cat. B | I20: Cat. C | J20: Total | K20: mouvement
A21: Départs "temporaires" | B21: . Mise à disposition dans une autre collectivité ou structure (articles 25 et 61 de la loi du 26 janvier 1984 ; ne prendre en compte que les mises à disposition complètes) | C21: 0 | D21: 0 | E21: 0 | F21: =SUM(C21:E21) -> 0 | G21: 0 | H21: 0 | I21: 0 | J21: =SUM(G21:I21) -> 0 | K21: 11
B22: . Décharge totale de service pour exercice de mandats syndicaux (article 100) | C22: 0 | D22: 0 | E22: 0 | F22: 0 | G22: 0 | H22: 0 | I22: 0 | J22: 0 | K22: 14
B23: . Congé formation indemnisé par la collectivité (max 1 an ; article 57 - 6° de la loi du 26 janvier 1984) | C23: 0 | D23: 0 | E23: 0 | F23: 0 | G23: 0 | H23: 0 | I23: 0 | J23: 0 | K23: 15
B24: . Congé formation au-delà d'un an (article 57 - 6° de la loi du 26 janvier 1984) | C24: 0 | D24: 0 | E24: 0 | F24: 0 | G24: 0 | H24: 0 | I24: 0 | J24: 0 | K24: 20
B25: . Détachement dans une autre structure (fonction publique d'Etat, fonction publique hospitalière ; article 64 de la loi du 26 janvier 1984) | C25: 0 | D25: 0 | E25: 0 | F25: 0 | G25: 0 | H25: 0 | I25: 0 | J25: 0 | K25: 12
B26: . Mise en disponibilité | C26: =SUM(C27:C28) -> 0 | D26: =SUM(D27:D28) -> 0 | E26: =SUM(E27:E28) -> 0 | F26: 0 | G26: =SUM(G27:G28) -> 0 | H26: =SUM(H27:H28) -> 0 | I26: =SUM(I27:I28) -> 0 | J26: 0 | K26: 13
B27: - de droit | C27: 0 | D27: 0 | E27: 0 | F27: 0 | G27: 0 | H27: 0 | I27: 0 | J27: 0 | K27: 25
B28: - sur demande | C28: 0 | D28: 0 | E28: 0 | F28: 0 | G28: 0 | H28: 0 | I28: 0 | J28: 0 | K28: 26
B29: . Congé parental | C29: 0 | D29: 0 | E29: 0 | F29: =SUM(C29:E29) -> 0 | G29: 0 | H29: 0 | I29: 0 | J29: =SUM(G29:I29) -> 0 | K29: 21
A30: Départs "définitifs" | B30: . Mutation (changement de collectivité ; article 51 de la loi du 26 janvier 1984) | C30: 0 | D30: 0 | E30: 0 | F30: 0 | G30: 0 | H30: 0 | I30: 1 | J30: 1 | K30: 16
B31: . Fin de détachement dans votre collectivité (agents originaires d'autres structures:fonction publique d'Etat, fonction publique hospitalière, …dont le détachement dans votre collectivité s'est terminé dans l'année 2020) | C31: 0 | D31: 0 | E31: 0 | F31: 0 | G31: 0 | H31: 0 | I31: 0 | J31: 0 | K31: 17
B32: . Décharge d'emploi et de fonctions pour exercice d'un mandat syndical | C32: 0 | D32: 0 | E32: 0 | F32: 0 | G32: 0 | H32: 0 | I32: 0 | J32: 0 | K32: 18
B33: . Agent pris en charge par le CNFPT ou le CDG | C33: 0 | D33: 0 | E33: 0 | F33: 0 | G33: 0 | H33: 0 | I33: 0 | J33: 0 | K33: 22
B34: . Démission | C34: 0 | D34: 0 | E34: 0 | F34: 0 | G34: 0 | H34: 0 | I34: 0 | J34: 0 | K34: 19
B35: . Départ à la retraite | C35: 0 | D35: 0 | E35: 0 | F35: 0 | G35: 0 | H35: 0 | I35: 0 | J35: 0 | K35: 1C
B36: . Licenciement | C36: 0 | D36: 0 | E36: 0 | F36: 0 | G36: 0 | H36: 0 | I36: 0 | J36: 0 | K36: 1D
B37: . Décès | C37: 0 | D37: 0 | E37: 0 | F37: 0 | G37: 0 | H37: 0 | I37: 0 | J37: 0 | K37: 1E
B38: . Transfert de compétence | C38: 0 | D38: 0 | E38: 0 | F38: 0 | G38: 0 | H38: 0 | I38: 0 | J38: 0 | K38: 1G
B39: . Congé spécial | C39: 0 | D39: 0 | E39: 0 | F39: 0 | G39: 0 | H39: 0 | I39: 0 | J39: 0 | K39: 1J
B40: . Autres cas (révocation, abandon de poste, perte de la nationalité française, etc.) | C40: 0 | D40: 0 | E40: 0 | F40: 0 | G40: 0 | H40: 0 | I40: 0 | J40: 0 | K40: 1F
B41: Total | C41: =SUM(C21:C40)-C26 -> 0 | D41: =SUM(D21:D40)-D26 -> 0 | E41: 0 | F41: 0 | G41: 0 | H41: 0 | I41: 1 | J41: =SUM(J21:J40)-J26 -> 1 | K41: 1Z
C42: 1 | D42: 2 | E42: 3 | F42: 0 | G42: 1 | H42: 2 | I42: 3 | J42: 0 | K42: categ
A47: 1.5.0.2 - Départs des contractuels sur emploi permanent au cours de l'année 2020
C48: 1 | D48: 1 | E48: 1 | F48: 1 | G48: 2 | H48: 2 | I48: 2 | J48: 2 | K48: sexe
B49: Contractuels sur emploi permanent | C49: Hommes | G49: Femmes
B50: Motif de départ | C50: Cat. A | D50: Cat. B | E50: Cat. C | F50: Total | G50: Cat. A | H50: Cat. B | I50: Cat. C | J50: Total | K50: mouvement
A51: Départs "temporaires" | B51: . Mise à disposition dans une autre collectivité ou structure (articles 25 et 61 de la loi du 26 janvier 1984 ; ne prendre en compte que les mises à disposition complètes - ne concerne que les agents en CDI) | C51: 0 | D51: 0 | E51: 0 | F51: =SUM(C51:E51) -> 0 | G51: 0 | H51: 0 | I51: 0 | J51: =SUM(G51:I51) -> 0 | K51: 11
B52: . Congé formation rémunéré par la collectivité (max 1 an ; article 57 - 6° de la loi du 26 janvier 1984) | C52: 0 | D52: 0 | E52: 0 | F52: 0 | G52: 0 | H52: 0 | I52: 0 | J52: 0 | K52: 15
B53: . Congé formation au-delà d'un an | C53: 0 | D53: 0 | E53: 0 | F53: 0 | G53: 0 | H53: 0 | I53: 0 | J53: 0 | K53: 20
B54: . Congé parental | C54: 0 | D54: 0 | E54: 0 | F54: 0 | G54: 0 | H54: 0 | I54: 0 | J54: 0 | K54: 21
B55: . Congés sans traitement (convenances personnelles, suivi de conjoint) | C55: 0 | D55: 0 | E55: 0 | F55: 0 | G55: 0 | H55: 0 | I55: 0 | J55: 0 | K55: 23
A56: Départs "définitifs" | B56: . Démission | C56: 0 | D56: 0 | E56: 0 | F56: 0 | G56: 0 | H56: 0 | I56: 0 | J56: 0 | K56: 19
B57: . Fin de contrat (ne pas inclure les agents contractuels mis en stage dans l'année 2020) | C57: 0 | D57: 0 | E57: 1 | F57: 1 | G57: 0 | H57: 0 | I57: 2 | J57: 2 | K57: 1B
B58: dont fin de contrat d'agent remplaçant article 3-1 (ne pas inclure les agents contractuels mis en stage dans l'année 2020) | C58: 0 | D58: 0 | E58: 0 | F58: 0 | G58: 0 | H58: 0 | I58: 0 | J58: 0 | K58: 1H
B59: . Départ à la retraite | C59: 0 | D59: 0 | E59: 0 | F59: =SUM(C59:E59) -> 0 | G59: 0 | H59: 0 | I59: 0 | J59: =SUM(G59:I59) -> 0 | K59: 1C
B60: . Licenciement | C60: 0 | D60: 0 | E60: 0 | F60: 0 | G60: 0 | H60: 0 | I60: 0 | J60: 0 | K60: 1D
B61: . Décès | C61: 0 | D61: 0 | E61: 0 | F61: 0 | G61: 0 | H61: 0 | I61: 0 | J61: 0 | K61: 1E
B62: . Transfert de compétence | C62: 0 | D62: 0 | E62: 0 | F62: 0 | G62: 0 | H62: 0 | I62: 0 | J62: 0 | K62: 1G
B63: . Agent contractuel nommé stagiaire au sein de la collectivité au cours de l'année | C63: 0 | D63: 0 | E63: 0 | F63: 0 | G63: 0 | H63: 0 | I63: 1 | J63: 1 | K63: 1K
B64: . Autres cas (révocation, abandon de poste, perte de la nationalité française, etc.) | C64: 0 | D64: 0 | E64: 0 | F64: 0 | G64: 0 | H64: 0 | I64: 0 | J64: 0 | K64: 1F
B65: Total | C65: =SUM(C51:C64)-C58 -> 0 | D65: 0 | E65: 1 | F65: 1 | G65: 0 | H65: 0 | I65: 3 | J65: 3 | K65: 1Z
C66: 1 | D66: 2 | E66: 3 | F66: 0 | G66: 1 | H66: 2 | I66: 3 | J66: 0 | K66: categ

Sheet Fiche 1.5.1
C1: Retour Sommaire
A3: 1.5.1 - Arrivées d'agents sur emploi fonctionnel au cours de l'année 2020
A5: L’indicateur 1.5.1. recense les effectifs en nombre de personnes physiques (1 personne = 1 unité).
A6: Ne pas remplir les cellules grisées (pré remplies par un zéro) qui font l’objet de calculs automatiques.
A9: Quels sont les agents à recenser ?
A11: * les fonctionnaires titulaires occupant un emploi fonctionnel en application de l'article 53 de la loi du 26 janvier 1984
A12: dont ceux appartenant au cadre d'emploi d'administrateur, d'attaché, d'ingénieur ou d'ingénieur en chef
A14: * les agents contractuels recrutés sur un emploi fonctionnel en application de l'article 47 de la loi du 26 janvier 1984
A16: * arrivés au cours de l'année 2020
A18: * et rémunérés à la date du 31 décembre 2020
A21: Comment sont-ils recensés ?
A23: * par statut et fonction publique d'origine pour les fonctionnaires :
A24: - tableau 1 : fonctionnaires de la fonction publique territoriale
A25: - tableau 2 : fonctionnaires issus d'une autre administration (FPE, FPH)
A26: - tableau 3 : contractuels sur emplois permanents
A28: * par emplois fonctionnels dans les filières concernées (administratives, techniques et d'incendie et secours ; en lignes)
A30: * par cadre d'emplois croisé par le sexe pour les fonctionnaires (en colonnes ; tableaux 1 et 2)
A31: - les fonctionnaires des filières administratives et techniques occupant un emploi fonctionnel de direction doivent être recensés selon leur grade de détachement. Parmi ceux-ci, on comptabilise ceux relevant des cadres d'emplois d'administrateur, d'attaché ou d'ingénieur.
A33: * par sexe pour les contractuels sur emploi permanent (en colonnes ; tableau 3)
A34: - les contractuels sur emploi permanent sont recensés uniquement sur l'emploi fonctionnel occupé.

Sheet IND 1.5.1
C1: Retour Sommaire
A3: 1.5.1 - Arrivées d'agents sur emploi fonctionnel au cours de l'année 2020, par statut d'origine, selon le grade de détachement et le sexe
A6: Champ : les tableaux qui suivent concernent les fonctionnaires et contractuels occupant un emploi fonctionnel, arrivés en 2020 et rémunérés au 31/12/2020.
A8: Tableau 1 : Fonctionnaires de la fonction publique territoriale
A9: Arrivées en 2020 | B9: Fonctionnaires de la fonction publique territoriale
B10: Administrateurs | D10: Attachés | F10: Ingénieurs en chef | H10: Ingénieurs | J10: Autres
B11: Hommes | C11: Femmes | D11: Hommes | E11: Femmes | F11: Hommes | G11: Femmes | H11: Hommes | I11: Femmes | J11: Hommes | K11: Femmes
A12: Emplois fonctionnels administratifs : | B12: 1 | C12: 2 | D12: 1 | E12: 2 | F12: 1 | G12: 2 | H12: 1 | I12: 2 | J12: 1 | K12: 2 | L12: sexe/emploi1
A13: Directeur général des services ou directeur | B13: 0 | C13: 0 | D13: 0 | E13: 0 | F13: 0 | G13: 0 | H13: 0 | I13: 0 | J13: 0 | K13: 0 | L13: TAU2
A14: Directeur général adjoint des services ou directeur adjoint | B14: 0 | C14: 0 | D14: 0 | E14: 0 | F14: 0 | G14: 0 | H14: 0 | I14: 0 | J14: 0 | K14: 0 | L14: TAU1
A15: Emplois fonctionnels techniques :
A16: Directeur général des services techniques | B16: 0 | C16: 0 | D16: 0 | E16: 0 | F16: 0 | G16: 0 | H16: 0 | I16: 0 | J16: 0 | K16: 0 | L16: TTU2
A17: Directeur des services techniques | B17: 0 | C17: 0 | D17: 0 | E17: 0 | F17: 0 | G17: 0 | H17: 0 | I17: 0 | J17: 0 | K17: 0 | L17: TTU1
A18: Emplois fonctionnels d'incendie et secours :
A19: Directeur départemental des services d'incendie et secours | B19: 0 | C19: 0 | D19: 0 | E19: 0 | F19: 0 | G19: 0 | H19: 0 | I19: 0 | J19: 0 | K19: 0 | L19: TRB2
A20: Directeur départemental adjoint des services d'incendie et secours | B20: 0 | C20: 0 | D20: 0 | E20: 0 | F20: 0 | G20: 0 | H20: 0 | I20: 0 | J20: 0 | K20: 0 | L20: TRB1
A21: TOTAL EMPLOIS FONCTIONNELS | B21: =B13+B14+B16+B17+B19+B20 -> 0 | C21: =C13+C14+C16+C17+C19+C20 -> 0 | D21: 0 | E21: 0 | F21: 0 | G21: 0 | H21: 0 | I21: 0 | J21: 0 | K21: 0 | L21: 00X3
B22: 1 | C22: 1 | D22: 2 | E22: 2 | F22: 3 | G22: 3 | H22: 4 | I22: 4 | J22: 5 | K22: 5 | L22: origine
A24: Tableau 2 : Fonctionnaires issus d'une autre administration (FPE, FPH)
A25: Arrivées en 2020 | B25: Fonctionnaires issus d'une autre administration (FPE, FPH)
B26: Administrateurs | D26: Attachés | F26: Ingénieurs en chef | H26: Ingénieurs | J26: Autres
B27: Hommes | C27: Femmes | D27: Hommes | E27: Femmes | F27: Hommes | G27: Femmes | H27: Hommes | I27: Femmes | J27: Hommes | K27: Femmes
A28: Emplois fonctionnels administratifs : | B28: 1 | C28: 2 | D28: 1 | E28: 2 | F28: 1 | G28: 2 | H28: 1 | I28: 2 | J28: 1 | K28: 2 | L28: sexe/emploi1
A29: Directeur général des services ou directeur | B29: 0 | C29: 0 | D29: 0 | E29: 0 | F29: 0 | G29: 0 | H29: 0 | I29: 0 | J29: 0 | K29: 0 | L29: TAU2
A30: Directeur général adjoint des services ou directeur adjoint | B30: 0 | C30: 0 | D30: 0 | E30: 0 | F30: 0 | G30: 0 | H30: 0 | I30: 0 | J30: 0 | K30: 0 | L30: TAU1
A31: Emplois fonctionnels techniques :
A32: Directeur général des services techniques | B32: 0 | C32: 0 | D32: 0 | E32: 0 | F32: 0 | G32: 0 | H32: 0 | I32: 0 | J32: 0 | K32: 0 | L32: TTU2
A33: Directeur des services techniques | B33: 0 | C33: 0 | D33: 0 | E33: 0 | F33: 0 | G33: 0 | H33: 0 | I33: 0 | J33: 0 | K33: 0 | L33: TTU1
A34: Emplois fonctionnels d'incendie et secours :
A35: Directeur départemental des services d'incendie et secours | B35: 0 | C35: 0 | D35: 0 | E35: 0 | F35: 0 | G35: 0 | H35: 0 | I35: 0 | J35: 0 | K35: 0 | L35: TRB2
A36: Directeur départemental adjoint des services d'incendie et secours | B36: 0 | C36: 0 | D36: 0 | E36: 0 | F36: 0 | G36: 0 | H36: 0 | I36: 0 | J36: 0 | K36: 0 | L36: TRB1
A37: TOTAL EMPLOIS FONCTIONNELS | B37: =B29+B30+B32+B33+B35+B36 -> 0 | C37: 0 | D37: 0 | E37: 0 | F37: 0 | G37: 0 | H37: 0 | I37: 0 | J37: 0 | K37: 0 | L37: 00X3
B38: 1 | C38: 1 | D38: 2 | E38: 2 | F38: 3 | G38: 3 | H38: 4 | I38: 4 | J38: 5 | K38: 5 | L38: origine
A40: Tableau 3 : Contractuels sur emploi permanent
A41: Arrivées en 2020 | B41: Contractuels sur emploi permanent
B43: Hommes | C43: Femmes
A44: Emplois fonctionnels administratifs : | B44: 1 | C44: 2 | D44: sexe/emploi1
A45: Directeur général des services ou directeur | B45: 0 | C45: 0 | D45: TAU2
A46: Directeur général adjoint des services ou directeur adjoint | B46: 0 | C46: 0 | D46: TAU1
A47: Emplois fonctionnels techniques :
A48: Directeur général des services techniques | B48: 0 | C48: 0 | D48: TTU2
A49: Directeur des services techniques | B49: 0 | C49: 0 | D49: TTU1
A50: Emplois fonctionnels d'incendie et secours :
A51: Directeur départemental des services d'incendie et secours | B51: 0 | C51: 0 | D51: TRB2
A52: Directeur départemental adjoint des services d'incendie et secours | B52: 0 | C52: 0 | D52: TRB1
A53: TOTAL EMPLOIS FONCTIONNELS | B53: =B45+B46+B48+B49+B51+B52 -> 0 | C53: =C45+C46+C48+C49+C51+C52 -> 0 | D53: 00X3

Sheet Fiche 1.5.2
D1: Retour Sommaire
A3: 1.5.2 - Arrivées de fonctionnaires dans l'année 2020
A5: L’indicateur 1.5.2. recense les effectifs en nombre de personnes physiques (1 personne = 1 unité).
A6: Ne pas remplir les cellules grisées (pré remplies par un zéro) qui font l’objet de calculs automatiques.
A9: Quels sont les agents à recenser ?
A10: * les fonctionnaires stagiaires et titulaires (cf. fiche 1.1.1.)
A12: * recrutés dans votre collectivité au cours de l’année 2020
A14: * pour ce qui correspond au premier mouvement de l'année
A15: Exemple : les agents qui demeurent dans la collectivité après un changement de statut ne doivent pas être comptés ici.
A17: * et rémunérés à la date du 31 décembre 2020
A20: Comment sont-ils recensés ?
A22: * par filière déclinée par cadre d'emplois (en lignes)
A23: Remarque importante : les fonctionnaires recrutés sur un emploi fonctionnel de direction doivent être comptabilisés uniquement dans leurs cadres d'emplois et grades respectifs même s'ils ont déjà été comptabilisés dans l'indicateur 1.5.1.
A25: * selon le motif de recrutement
A26: - colonnes 1.5.2(0) à 1.5.2(2) : par recrutement direct
A27: - colonnes 1.5.2(3) à 1.5.2(5) : par voie de concours ou de sélection professionnelle
A28: - colonne 1.5.2(6) : recrutement correspondant à l'article 38 de la loi du 26 janvier 1984
A29: - colonne 1.5.2(7) : par intégration directe (article 13bis alinéa 1 et 14 de la loi du 13 juillet 1983, et article 68-1 de la loi du 26 janvier 1984)
A30: - colonne 1.5.2(8) : par voie de mutation d’une autre collectivité
A31: - colonnes 1.5.2(9) à 1.5.2(12) : par voie de détachement d’une autre structure
A32: Remarque : Ne pas comptabiliser les fonctionnaires détachés au sein de votre collectivité.
A34: - colonne 1.5.2(13) : par transfert de compétence (dont reprise d'activité)
A35: - colonnes 1.5.2(14) et 1.5.2(15) : par voie de réintégration après une disponibilité ou autre (congé parental, détachement)
A36: - colonne 1.5.2(16) : retour d'agents en position particulière.
A38: * selon les caractéristiques de leur emploi et le sexe (en colonnes)
A39: - colonnes 1.5.2(17) et 1.5.2(18) : temps complet
A40: - colonnes 1.5.2(19) et 1.5.2(20) : temps non complet
A42: Rappel (cf. fiche 1.1.1) : ne pas confondre "temps non complet" qui est une caractéristique de l'emploi (exprimée en 35èmes) et "temps partiel" qui est une modalité d'exercice (exprimée en pourcentage de temps plein) pour un agent occupant un emploi à temps complet.
A44: Remarque : les agents recensés dans les colonnes 1.5.2(0) à 1.5.2(16) sont à nouveau recensés dans les colonnes 1.5.2(17) à 1.5.2(20), tous motifs de recrutement confondus. Par conséquent, le total des colonnes 1.5.2(0) à 1.5.2(16) doit être égal au total des colonnes 1.5.2(17) à 1.5.2(20).

Sheet IND 1.5.2
F1: Retour Sommaire
A3: 1.5.2 - Arrivées de fonctionnaires dans l'année 2020, par cadre d'emplois, selon le motif de recrutement
A5: Champ : le tableau qui suit concerne les fonctionnaires occupant un emploi permanent, arrivés au cours de l'année 2020 et rémunérés au 31/12/2020.
A6: Remarque importante : les agents recrutés sur des emplois fonctionnels doivent être uniquement comptabilisés dans leurs cadres d'emplois d'origine.
A8: FPE : Fonction publique d'Etat, FPH : Fonction publique hospitalière, FPEUE : Fonction publique d'un Etat de l'Union Européenne
B10: 11 | C10: 13 | D10: 15 | E10: 21 | F10: 22 | G10: 23 | H10: 30 | I10: 40 | J10: 50 | K10: 61 | L10: 62 | M10: 63 | N10: 64 | O10: 80 | P10: 70 | Q10: 71 | R10: 90 | S10: 00 | T10: 1 | U10: 2 | V10: 1 | W10: 2 | X10: recrutement/sexe
A11: Recrutements | B11: Fonctionnaires | T11: Fonctionnaires
B12: Par | K12: Par voie de détachement d'agents | O12: Par | T12: Recrutements
B13: Recrutement direct | E13: Voie de concours, Sélection pro | H13: Article 38 | I13: Intégration directe | J13: Voie de mutation | K13: de la FPE | L13: de la FPH | M13: d'autres collectivités territoriales | N13: d'autres organismes (par ex.: FPEUE) | O13: Transfert de compétence | P13: Réintégration agents non rémunérés pendant la période d'absence : | R13: Retours d'agents en positions particulières ayant été rémunérés pendant la période d'absence | S13: Total | T13: Temps complet | V13: Temps non complet
B14: Nouvel arrivant dans la collectivité | C14: Agent déjà présent en 2020 en tant que contractuel permanent | D14: Agent déjà présent en 2020 en tant que contractuel non permanent | E14: Lauréat nouvel arrivant dans la collectivité | F14: Lauréat déjà présent en 2020 en tant que contractuel permanent | G14: Lauréat déjà présent en 2020 en tant que contractuel non permanent | P14: retour de disponibilité | Q14: autres cas | T14: Hommes | U14: Femmes | V14: Hommes | W14: Femmes
B15: 1.5.2 (0) | C15: 1.5.2 (1) | D15: 1.5.2 (2) | E15: 1.5.2(3) | F15: 1.5.2(4) | G15: 1.5.2(5) | H15: 1.5.2 (6) | I15: 1.5.2(7) | J15: 1.5.2(8) | K15: 1.5.2(9) | L15: 1.5.2(10) | M15: 1.5.2(11) | N15: 1.5.2(12) | O15: 1.5.2(13) | P15: 1.5.2(14) | Q15: 1.5.2(15) | R15: 1.5.2(16) | T15: 1.5.2(17) | U15: 1.5.2(18) | V15: 1.5.2(19) | W15: 1.5.2(20)
A16: FILIERE ADMINISTRATIVE | T16: 10 | U16: 10 | V16: 20 | W16: 20 | X16: temps
A17: Administrateurs | B17: 0 | C17: 0 | D17: 0 | E17: 0 | F17: 0 | G17: 0 | H17: 0 | I17: 0 | J17: 0 | K17: 0 | L17: 0 | M17: 0 | N17: 0 | O17: 0 | P17: 0 | Q17: 0 | R17: 0 | S17: =SUM(B17:R17) -> 0 | T17: 0 | U17: 0 | V17: 0 | W17: 0 | X17: AD
A18: Attachés | B18: 0 | C18: 0 | D18: 0 | E18: 0 | F18: 0 | G18: 0 | H18: 0 | I18: 0 | J18: 0 | K18: 0 | L18: 0 | M18: 0 | N18: 0 | O18: 0 | P18: 0 | Q18: 0 | R18: 0 | S18: 0 | T18: 0 | U18: 0 | V18: 0 | W18: 0 | X18: AT
A19: Secrétaires de mairie | B19: 0 | C19: 0 | D19: 0 | E19: 0 | F19: 0 | G19: 0 | H19: 0 | I19: 0 | J19: 0 | K19: 0 | L19: 0 | M19: 0 | N19: 0 | O19: 0 | P19: 0 | Q19: 0 | R19: 0 | S19: 0 | T19: 0 | U19: 0 | V19: 0 | W19: 0 | X19: AS
A20: Rédacteurs | B20: 0 | C20: 0 | D20: 0 | E20: 0 | F20: 0 | G20: 0 | H20: 0 | I20: 0 | J20: 0 | K20: 0 | L20: 0 | M20: 0 | N20: 0 | O20: 0 | P20: 0 | Q20: 0 | R20: 0 | S20: 0 | T20: 0 | U20: 0 | V20: 0 | W20: 0 | X20: AR
A21: Adjoints administratifs | B21: 0 | C21: 0 | D21: 0 | E21: 0 | F21: 0 | G21: 0 | H21: 0 | I21: 0 | J21: 0 | K21: 0 | L21: 0 | M21: 0 | N21: 0 | O21: 0 | P21: 0 | Q21: 0 | R21: 0 | S21: 0 | T21: 0 | U21: 0 | V21: 0 | W21: 0 | X21: AJ
A22: FILIERE ADMINISTRATIVE | B22: =SUM(B17:B21) -> 0 | C22: 0 | D22: 0 | E22: 0 | F22: 0 | G22: 0 | H22: 0 | I22: 0 | J22: 0 | K22: 0 | L22: 0 | M22: 0 | N22: 0 | O22: 0 | P22: 0 | Q22: 0 | R22: 0 | S22: 0 | T22: =SUM(T17:T21) -> 0 | U22: =SUM(U17:U21) -> 0 | V22: =SUM(V17:V21) -> 0 | W22: =SUM(W17:W21) -> 0 | X22: A
A23: FILIERE TECHNIQUE
A24: Ingénieurs en chef | B24: 0 | C24: 0 | D24: 0 | E24: 0 | F24: 0 | G24: 0 | H24: 0 | I24: 0 | J24: 0 | K24: 0 | L24: 0 | M24: 0 | N24: 0 | O24: 0 | P24: 0 | Q24: 0 | R24: 0 | S24: =SUM(B24:R24) -> 0 | T24: 0 | U24: 0 | V24: 0 | W24: 0 | X24: TN
A25: Ingénieurs | B25: 0 | C25: 0 | D25: 0 | E25: 0 | F25: 0 | G25: 0 | H25: 0 | I25: 0 | J25: 0 | K25: 0 | L25: 0 | M25: 0 | N25: 0 | O25: 0 | P25: 0 | Q25: 0 | R25: 0 | S25: =SUM(B25:R25) -> 0 | T25: 0 | U25: 0 | V25: 0 | W25: 0 | X25: TP
A26: Techniciens | B26: 0 | C26: 0 | D26: 0 | E26: 0 | F26: 0 | G26: 0 | H26: 0 | I26: 0 | J26: 0 | K26: 0 | L26: 0 | M26: 0 | N26: 0 | O26: 0 | P26: 0 | Q26: 0 | R26: 0 | S26: 0 | T26: 0 | U26: 0 | V26: 0 | W26: 0 | X26: TT
A27: Agents de maîtrise | B27: 0 | C27: 0 | D27: 0 | E27: 0 | F27: 0 | G27: 0 | H27: 0 | I27: 0 | J27: 0 | K27: 0 | L27: 0 | M27: 0 | N27: 0 | O27: 0 | P27: 0 | Q27: 0 | R27: 0 | S27: 0 | T27: 0 | U27: 0 | V27: 0 | W27: 0 | X27: TM
A28: Adjoints techniques | B28: 0 | C28: 0 | D28: 0 | E28: 0 | F28: 0 | G28: 0 | H28: 0 | I28: 0 | J28: 0 | K28: 0 | L28: 0 | M28: 0 | N28: 0 | O28: 0 | P28: 0 | Q28: 0 | R28: 0 | S28: 0 | T28: 0 | U28: 0 | V28: 0 | W28: 0 | X28: TH
A29: Adjoints techniques des établissements d'enseignement | B29: 0 | C29: 0 | D29: 0 | E29: 0 | F29: 0 | G29: 0 | H29: 0 | I29: 0 | J29: 0 | K29: 0 | L29: 0 | M29: 0 | N29: 0 | O29: 0 | P29: 0 | Q29: 0 | R29: 0 | S29: 0 | T29: 0 | U29: 0 | V29: 0 | W29: 0 | X29: TA
A30: FILIERE TECHNIQUE | B30: =SUM(B24:B29) -> 0 | C30: =SUM(C24:C29) -> 0 | D30: 0 | E30: 0 | F30: 0 | G30: 0 | H30: 0 | I30: 0 | J30: 0 | K30: 0 | L30: 0 | M30: 0 | N30: 0 | O30: 0 | P30: 0 | Q30: 0 | R30: 0 | S30: 0 | T30: =SUM(T24:T29) -> 0 | U30: =SUM(U24:U29) -> 0 | V30: =SUM(V24:V29) -> 0 | W30: =SUM(W24:W29) -> 0 | X30: T
A31: FILIERE CULTURELLE
A32: Conservateurs du patrimoine | B32: 0 | C32: 0 | D32: 0 | E32: 0 | F32: 0 | G32: 0 | H32: 0 | I32: 0 | J32: 0 | K32: 0 | L32: 0 | M32: 0 | N32: 0 | O32: 0 | P32: 0 | Q32: 0 | R32: 0 | S32: 0 | T32: 0 | U32: 0 | V32: 0 | W32: 0 | X32: CM
A33: Conservateurs des bibliothèques | B33: 0 | C33: 0 | D33: 0 | E33: 0 | F33: 0 | G33: 0 | H33: 0 | I33: 0 | J33: 0 | K33: 0 | L33: 0 | M33: 0 | N33: 0 | O33: 0 | P33: 0 | Q33: 0 | R33: 0 | S33: 0 | T33: 0 | U33: 0 | V33: 0 | W33: 0 | X33: CH
A34: Attachés de conservation du patrimoine | B34: 0 | C34: 0 | D34: 0 | E34: 0 | F34: 0 | G34: 0 | H34: 0 | I34: 0 | J34: 0 | K34: 0 | L34: 0 | M34: 0 | N34: 0 | O34: 0 | P34: 0 | Q34: 0 | R34: 0 | S34: 0 | T34: 0 | U34: 0 | V34: 0 | W34: 0 | X34: CA
A35: Bibliothécaires | B35: 0 | C35: 0 | D35: 0 | E35: 0 | F35: 0 | G35: 0 | H35: 0 | I35: 0 | J35: 0 | K35: 0 | L35: 0 | M35: 0 | N35: 0 | O35: 0 | P35: 0 | Q35: 0 | R35: 0 | S35: 0 | T35: 0 | U35: 0 | V35: 0 | W35: 0 | X35: CB
A36: Directeurs d'établissements d'enseignement artistique | B36: 0 | C36: 0 | D36: 0 | E36: 0 | F36: 0 | G36: 0 | H36: 0 | I36: 0 | J36: 0 | K36: 0 | L36: 0 | M36: 0 | N36: 0 | O36: 0 | P36: 0 | Q36: 0 | R36: 0 | S36: 0 | T36: 0 | U36: 0 | V36: 0 | W36: 0 | X36: CD
A37: Professeurs d'enseignement artistique | B37: 0 | C37: 0 | D37: 0 | E37: 0 | F37: 0 | G37: 0 | H37: 0 | I37: 0 | J37: 0 | K37: 0 | L37: 0 | M37: 0 | N37: 0 | O37: 0 | P37: 0 | Q37: 0 | R37: 0 | S37: 0 | T37: 0 | U37: 0 | V37: 0 | W37: 0 | X37: CP
A38: Assistants de conservation du patrimoine et des bibliothèques | B38: 0 | C38: 0 | D38: 0 | E38: 0 | F38: 0 | G38: 0 | H38: 0 | I38: 0 | J38: 0 | K38: 0 | L38: 0 | M38: 0 | N38: 0 | O38: 0 | P38: 0 | Q38: 0 | R38: 0 | S38: 0 | T38: 0 | U38: 0 | V38: 0 | W38: 0 | X38: CG
A39: Assistants d'enseignement artistique | B39: 0 | C39: 0 | D39: 0 | E39: 0 | F39: 0 | G39: 0 | H39: 0 | I39: 0 | J39: 0 | K39: 0 | L39: 0 | M39: 0 | N39: 0 | O39: 0 | P39: 0 | Q39: 0 | R39: 0 | S39: 0 | T39: 0 | U39: 0 | V39: 0 | W39: 0 | X39: CS
A40: Adjoints territoriaux du patrimoine | B40: 0 | C40: 0 | D40: 0 | E40: 0 | F40: 0 | G40: 0 | H40: 0 | I40: 0 | J40: 0 | K40: 0 | L40: 0 | M40: 0 | N40: 0 | O40: 0 | P40: 0 | Q40: 0 | R40: 0 | S40: 0 | T40: 0 | U40: 0 | V40: 0 | W40: 0 | X40: CJ
A41: FILIERE CULTURELLE | B41: =SUM(B32:B40) -> 0 | C41: 0 | D41: 0 | E41: 0 | F41: 0 | G41: 0 | H41: 0 | I41: 0 | J41: 0 | K41: 0 | L41: 0 | M41: 0 | N41: 0 | O41: 0 | P41: 0 | Q41: 0 | R41: 0 | S41: 0 | T41: =SUM(T32:T40) -> 0 | U41: =SUM(U32:U40) -> 0 | V41: =SUM(V32:V40) -> 0 | W41: =SUM(W32:W40) -> 0 | X41: C
A42: FILIERE SPORTIVE
A43: Conseillers des APS | B43: 0 | C43: 0 | D43: 0 | E43: 0 | F43: 0 | G43: 0 | H43: 0 | I43: 0 | J43: 0 | K43: 0 | L43: 0 | M43: 0 | N43: 0 | O43: 0 | P43: 0 | Q43: 0 | R43: 0 | S43: =SUM(B43:R43) -> 0 | T43: 0 | U43: 0 | V43: 0 | W43: 0 | X43: SC
A44: Educateurs des APS | B44: 0 | C44: 0 | D44: 0 | E44: 0 | F44: 0 | G44: 0 | H44: 0 | I44: 0 | J44: 0 | K44: 0 | L44: 0 | M44: 0 | N44: 0 | O44: 0 | P44: 0 | Q44: 0 | R44: 0 | S44: =SUM(B44:R44) -> 0 | T44: 0 | U44: 0 | V44: 0 | W44: 0 | X44: SE
A45: Opérateurs des APS | B45: 0 | C45: 0 | D45: 0 | E45: 0 | F45: 0 | G45: 0 | H45: 0 | I45: 0 | J45: 0 | K45: 0 | L45: 0 | M45: 0 | N45: 0 | O45: 0 | P45: 0 | Q45: 0 | R45: 0 | S45: =SUM(B45:R45) -> 0 | T45: 0 | U45: 0 | V45: 0 | W45: 0 | X45: SP
A46: FILIERE SPORTIVE | B46: =SUM(B43:B45) -> 0 | C46: 0 | D46: =SUM(D43:D45) -> 0 | E46: 0 | F46: 0 | G46: 0 | H46: 0 | I46: 0 | J46: 0 | K46: 0 | L46: 0 | M46: 0 | N46: 0 | O46: 0 | P46: 0 | Q46: 0 | R46: 0 | S46: =SUM(B46:R46) -> 0 | T46: =SUM(T43:T45) -> 0 | U46: =SUM(U43:U45) -> 0 | V46: =SUM(V43:V45) -> 0 | W46: =SUM(W43:W45) -> 0 | X46: S
A47: FILIERE SOCIALE
A48: Conseillers socio-éducatifs | B48: 0 | C48: 0 | D48: 0 | E48: 0 | F48: 0 | G48: 0 | H48: 0 | I48: 0 | J48: 0 | K48: 0 | L48: 0 | M48: 0 | N48: 0 | O48: 0 | P48: 0 | Q48: 0 | R48: 0 | S48: =SUM(B48:R48) -> 0 | T48: 0 | U48: 0 | V48: 0 | W48: 0 | X48: MM
A49: Assistants socio-éducatifs | B49: 0 | C49: 0 | D49: 0 | E49: 0 | F49: 0 | G49: 0 | H49: 0 | I49: 0 | J49: 0 | K49: 0 | L49: 0 | M49: 0 | N49: 0 | O49: 0 | P49: 0 | Q49: 0 | R49: 0 | S49: 0 | T49: 0 | U49: 0 | V49: 0 | W49: 0 | X49: MT
A50: Educateurs de jeunes enfants | B50: 0 | C50: 0 | D50: 0 | E50: 0 | F50: 0 | G50: 0 | H50: 0 | I50: 0 | J50: 0 | K50: 0 | L50: 0 | M50: 0 | N50: 0 | O50: 0 | P50: 0 | Q50: 0 | R50: 0 | S50: 0 | T50: 0 | U50: 0 | V50: 0 | W50: 0 | X50: ME
A51: Moniteurs-éducateurs et intervenants familiaux | B51: 0 | C51: 0 | D51: 0 | E51: 0 | F51: 0 | G51: 0 | H51: 0 | I51: 0 | J51: 0 | K51: 0 | L51: 0 | M51: 0 | N51: 0 | O51: 0 | P51: 0 | Q51: 0 | R51: 0 | S51: 0 | T51: 0 | U51: 0 | V51: 0 | W51: 0 | X51: MB
A52: Agents spécialisés des écoles maternelles (ASEM) | B52: 0 | C52: 0 | D52: 0 | E52: 0 | F52: 0 | G52: 0 | H52: 0 | I52: 0 | J52: 0 | K52: 0 | L52: 0 | M52: 0 | N52: 0 | O52: 0 | P52: 0 | Q52: 0 | R52: 0 | S52: 0 | T52: 0 | U52: 0 | V52: 0 | W52: 0 | X52: MD
A53: Agents sociaux | B53: 0 | C53: 0 | D53: 0 | E53: 0 | F53: 0 | G53: 0 | H53: 0 | I53: 0 | J53: 0 | K53: 0 | L53: 0 | M53: 0 | N53: 0 | O53: 0 | P53: 0 | Q53: 0 | R53: 0 | S53: 0 | T53: 0 | U53: 0 | V53: 0 | W53: 0 | X53: MP
A54: FILIERE SOCIALE | B54: =SUM(B48:B53) -> 0 | C54: 0 | D54: 0 | E54: 0 | F54: 0 | G54: 0 | H54: 0 | I54: 0 | J54: 0 | K54: 0 | L54: 0 | M54: 0 | N54: 0 | O54: 0 | P54: 0 | Q54: 0 | R54: 0 | S54: 0 | T54: =SUM(T48:T53) -> 0 | U54: =SUM(U48:U53) -> 0 | V54: =SUM(V48:V53) -> 0 | W54: =SUM(W48:W53) -> 0 | X54: M
A55: FILIERE MEDICO-SOCIALE
A56: Médecins | B56: 0 | C56: 0 | D56: 0 | E56: 0 | F56: 0 | G56: 0 | H56: 0 | I56: 0 | J56: 0 | K56: 0 | L56: 0 | M56: 0 | N56: 0 | O56: 0 | P56: 0 | Q56: 0 | R56: 0 | S56: =SUM(B56:R56) -> 0 | T56: 0 | U56: 0 | V56: 0 | W56: 0 | X56: OD
A57: Psychologues | B57: 0 | C57: 0 | D57: 0 | E57: 0 | F57: 0 | G57: 0 | H57: 0 | I57: 0 | J57: 0 | K57: 0 | L57: 0 | M57: 0 | N57: 0 | O57: 0 | P57: 0 | Q57: 0 | R57: 0 | S57: 0 | T57: 0 | U57: 0 | V57: 0 | W57: 0 | X57: OH
A58: Sages-femmes | B58: 0 | C58: 0 | D58: 0 | E58: 0 | F58: 0 | G58: 0 | H58: 0 | I58: 0 | J58: 0 | K58: 0 | L58: 0 | M58: 0 | N58: 0 | O58: 0 | P58: 0 | Q58: 0 | R58: 0 | S58: 0 | T58: 0 | U58: 0 | V58: 0 | W58: 0 | X58: OF
A59: Cadres de santé paramédicaux | B59: 0 | C59: 0 | D59: 0 | E59: 0 | F59: 0 | G59: 0 | H59: 0 | I59: 0 | J59: 0 | K59: 0 | L59: 0 | M59: 0 | N59: 0 | O59: 0 | P59: 0 | Q59: 0 | R59: 0 | S59: 0 | T59: 0 | U59: 0 | V59: 0 | W59: 0 | X59: OG
A60: Puéricultrices cadres de santé | B60: 0 | C60: 0 | D60: 0 | E60: 0 | F60: 0 | G60: 0 | H60: 0 | I60: 0 | J60: 0 | K60: 0 | L60: 0 | M60: 0 | N60: 0 | O60: 0 | P60: 0 | Q60: 0 | R60: 0 | S60: 0 | T60: 0 | U60: 0 | V60: 0 | W60: 0 | X60: OC
A61: Puéricultrices* | B61: 0 | C61: 0 | D61: 0 | E61: 0 | F61: 0 | G61: 0 | H61: 0 | I61: 0 | J61: 0 | K61: 0 | L61: 0 | M61: 0 | N61: 0 | O61: 0 | P61: 0 | Q61: 0 | R61: 0 | S61: 0 | T61: 0 | U61: 0 | V61: 0 | W61: 0 | X61: OX
A62: Cadres de santé infirmiers, rééducateurs et assistants médico-techniques | B62: 0 | C62: 0 | D62: 0 | E62: 0 | F62: 0 | G62: 0 | H62: 0 | I62: 0 | J62: 0 | K62: 0 | L62: 0 | M62: 0 | N62: 0 | O62: 0 | P62: 0 | Q62: 0 | R62: 0 | S62: 0 | T62: 0 | U62: 0 | V62: 0 | W62: 0 | X62: OA
